Workbook

Sheet Spis tablic
A1: SPIS ZAŁĄCZNIKÓW:
A4: Tablica 1. WSKAŹNIKI BUDŻETOWE - zestawienie zbiorcze
A5: Tablica 2. WSKAŹNIKI NA MIESZKAŃCA - zestawienie zbiorcze
A6: Tablica 3. WSKAŹNIKI DLA ZOBOWIĄZAŃ WEDŁUG TYTUŁÓW DŁUŻNYCH - zestawienie zbiorcze
A7: Tablica 4. WSKAŹNIKI DLA GMIN MIEJSKICH
A8: Tablica 5. WSKAŹNIKI DLA GMIN WIEJSKICH
A9: Tablica 6. WSKAŹNIKI DLA GMIN MIEJSKO-WIEJSKICH
A10: Tablica 7. WSKAŹNIKI DLA MIAST NA PRAWACH POWIATU (BEZ METROPOLII)
A11: Tablica 8. WSKAŹNIKI DLA METROPOLII
A12: Tablica 9. WSKAŹNIKI DLA POWIATÓW
A13: Tablica 10. WSKAŹNIKI DLA WOJEWÓDZTW
A14: Tablica 11. WSKAŹNIKI DLA POSZCZEGÓLNYCH JEDNOSTEK W LATACH 2019-2022
A16: Dane_SŁOWNIKI (kody użyte w tabeli z danymi jednostkowymi)
A18: WYKAZ WSKAŹNIKÓW
A19: WYKAZ ZMIENNYCH

Sheet Tab_1 wskaźniki budżetowe
A1: Tablica 1: WSKAŹNIKI BUDŻETOWE | J1: powrót do spisu tablic
A3: 1. Wskaźnik WB1 – Udział dochodów bieżących w dochodach ogółem
J4: (%%)
A5: Wskaźnik WB1 | C5: gminy | F5: miasta na prawach powiatu | G5: metropolie | H5: powiaty | I5: województwa | J5: Ogółem JST
C6: miejskie | D6: wiejskie | E6: miejsko-wiejskie | L6: Etykiety wierszy | M6: Średnia z WB1[2019] | N6: Średnia z WB1[2020] | O6: Średnia z WB1[2021] | P6: Średnia z WB1[2022] | Q6: Minimum z WB1[2019] | R6: Minimum z WB1[2020] | S6: Minimum z WB1[2021] | T6: Minimum z WB1[2022] | U6: Maksimum z WB1[2019] | V6: Maksimum z WB1[2020] | W6: Maksimum z WB1[2021] | X6: Maksimum z WB1[2022]
A7: Średnia | B7: 2019 | C7: 90.43682203 | D7: 91.68457649 | E7: 91.88613497 | F7: 91.36388889 | G7: 92.985 | H7: 88.32171975 | I7: 77.72125 | J7: 91.17010688 | L7: GM | M7: 90.43682203 | N7: 88.19491525 | O7: 90.25169492 | P7: 90.07419492 | Q7: 47.19 | R7: 55.52 | S7: 68.89 | T7: 42.9 | U7: 99.24 | V7: 98.54 | W7: 99.32 | X7: 99.06
B8: 2020 | C8: 88.19491525 | D8: 89.37705844 | E8: 89.88257669 | F8: 88.81240741 | G8: 91.40416667 | H8: 86.19503185 | I8: 78.7 | J8: 88.97608123 | L8: GMW | M8: 91.88753776 | N8: 89.88725076 | O8: 88.84354985 | P8: 91.62854985 | Q8: 59.45 | R8: 64.63 | S8: 54 | T8: 54.68 | U8: 99.78 | V8: 98.75 | W8: 99.12 | X8: 99.79
B9: 2021 | C9: 90.25169492 | D9: 86.77370978 | E9: 88.84354985 | F9: 91.25203704 | G9: 93.345 | H9: 89.87958599 | I9: 83.360625 | J9: 87.99348415 | L9: GW | M9: 91.68263054 | N9: 89.37167217 | O9: 86.76812293 | P9: 90.89001983 | Q9: 60.33 | R9: 53.32 | S9: 59.63 | T9: 59.72 | U9: 100 | V9: 99.77 | W9: 99.93 | X9: 99.85
B10: 2022 | C10: 90.07419492 | D10: 90.89001983 | E10: 91.62854985 | F10: 92.54388889 | G10: 92.5525 | H10: 89.48366242 | I10: 86.07125 | J10: 90.84973994 | L10: M | M10: 91.36388889 | N10: 88.81240741 | O10: 91.25203704 | P10: 92.54388889 | Q10: 79.63 | R10: 53.49 | S10: 45.75 | T10: 74.67 | U10: 98.06 | V10: 97.67 | W10: 98.02 | X10: 97.57
A11: Minimum | B11: 2019 | C11: 47.19 | D11: 60.33 | E11: 59.45 | F11: 79.63 | G11: 85.58 | H11: 53.85 | I11: 50.75 | J11: 47.19 | L11: P | M11: 88.32171975 | N11: 86.19503185 | O11: 89.87958599 | P11: 89.48366242 | Q11: 53.85 | R11: 61.26 | S11: 64.78 | T11: 50.8 | U11: 99.66 | V11: 98.65 | W11: 99.93 | X11: 99.92
B12: 2020 | C12: 55.52 | D12: 53.32 | E12: 64.63 | F12: 53.49 | G12: 86.52 | H12: 61.26 | I12: 62.08 | J12: 53.32 | L12: W | M12: 77.72125 | N12: 78.7 | O12: 83.360625 | P12: 86.07125 | Q12: 50.75 | R12: 62.08 | S12: 70.17 | T12: 75.88 | U12: 93.35 | V12: 95.5 | W12: 93.17 | X12: 95.91
B13: 2021 | C13: 68.89 | D13: 59.63 | E13: 54 | F13: 45.75 | G13: 90.93 | H13: 64.78 | I13: 70.17 | J13: 45.75 | L13: MT | M13: 92.985 | N13: 91.40416667 | O13: 93.345 | P13: 92.5525 | Q13: 85.58 | R13: 86.52 | S13: 90.93 | T13: 88.4 | U13: 96.26 | V13: 95.68 | W13: 96.17 | X13: 96.4
B14: 2022 | C14: 42.9 | D14: 59.72 | E14: 54.68 | F14: 74.67 | G14: 88.4 | H14: 50.8 | I14: 75.88 | J14: 42.9 | L14: Suma końcowa | M14: 91.17010688 | N14: 88.97608123 | O14: 87.99348415 | P14: 90.84973994 | Q14: 47.19 | R14: 53.32 | S14: 45.75 | T14: 42.9 | U14: 100 | V14: 99.77 | W14: 99.93 | X14: 99.92
A15: Maksimum | B15: 2019 | C15: 99.24 | D15: 100 | E15: 99.78 | F15: 98.06 | G15: 96.26 | H15: 99.66 | I15: 93.35 | J15: 100
B16: 2020 | C16: 98.54 | D16: 99.77 | E16: 98.75 | F16: 97.67 | G16: 95.68 | H16: 98.65 | I16: 95.5 | J16: 99.77
B17: 2021 | C17: 99.32 | D17: 99.93 | E17: 99.12 | F17: 98.02 | G17: 96.17 | H17: 99.93 | I17: 93.17 | J17: 99.93
B18: 2022 | C18: 99.06 | D18: 99.85 | E18: 99.79 | F18: 97.57 | G18: 96.4 | H18: 99.92 | I18: 95.91 | J18: 99.92
A20: 2. Wskaźnik WB2 – udział transferów bieżących w dochodach bieżących
J21: (%%)
A22: Wskaźnik WB2 | C22: gminy | F22: miasta na prawach powiatu | G22: metropolie | H22: powiaty | I22: województwa | J22: Ogółem JST
C23: miejskie | D23: wiejskie | E23: miejsko-wiejskie | L23: Etykiety wierszy | M23: Średnia z WB2[2019] | N23: Średnia z WB2[2020] | O23: Średnia z WB2[2021] | P23: Średnia z WB2[2022] | Q23: Minimum z WB2[2019] | R23: Minimum z WB2[2020] | S23: Minimum z WB2[2021] | T23: Minimum z WB2[2022] | U23: Maksimum z WB2[2019] | V23: Maksimum z WB2[2020] | W23: Maksimum z WB2[2021] | X23: Maksimum z WB2[2022]
A24: Średnia | B24: 2019 | C24: 48.63427966 | D24: 65.39463559 | E24: 59.56729607 | F24: 49.6062963 | G24: 37.94666667 | H24: 64.35050955 | I24: 45.88875 | J24: 61.9659316 | L24: GM | M24: 48.63427966 | N24: 51.15771186 | O24: 50.45436441 | P24: 46.54186441 | Q24: 17.53 | R24: 18.45 | S24: 21.4 | T24: 23.93 | U24: 72.51 | V24: 72.23 | W24: 72.11 | X24: 64.22
B25: 2020 | C25: 51.15771186 | D25: 66.1945174 | E25: 61.05707055 | F25: 52.73407407 | G25: 42.29833333 | H25: 67.09356688 | I25: 49.881875 | J25: 63.38346633 | L25: GMW | M25: 59.56729607 | N25: 61.11019637 | O25: 59.9192145 | P25: 56.65069486 | Q25: 19.67 | R25: 22.1 | S25: 20.39 | T25: 23.02 | U25: 83.08 | V25: 83.13 | W25: 81.72 | X25: 76.42
B26: 2021 | C26: 50.45436441 | D26: 65.02919238 | E26: 59.88440184 | F26: 51.86648148 | G26: 41.43916667 | H26: 66.3206051 | I26: 44.53875 | J26: 62.28239045 | L26: GW | M26: 65.40168539 | N26: 66.20522802 | O26: 65.04796431 | P26: 59.45062789 | Q26: 9.51 | R26: 10.76 | S26: 11.34 | T26: 12.68 | U26: 86.92 | V26: 86.91 | W26: 84.95 | X26: 80.1
B27: 2022 | C27: 46.54186441 | D27: 59.45062789 | E27: 56.65069486 | F27: 48.45907407 | G27: 37.2575 | H27: 63.29216561 | I27: 45.854375 | J27: 57.75088351 | L27: M | M27: 49.6062963 | N27: 52.73407407 | O27: 51.86648148 | P27: 48.45907407 | Q27: 27.01 | R27: 32.55 | S27: 30.29 | T27: 29.86 | U27: 63.44 | V27: 66.65 | W27: 65.68 | X27: 62.79
A28: Minimum | B28: 2019 | C28: 17.53 | D28: 9.51 | E28: 19.67 | F28: 27.01 | G28: 25.87 | H28: 30.8 | I28: 10.05 | J28: 9.51 | L28: P | M28: 64.35050955 | N28: 67.09356688 | O28: 66.3206051 | P28: 63.29216561 | Q28: 30.8 | R28: 33.38 | S28: 36.39 | T28: 33.29 | U28: 85.57 | V28: 87.27 | W28: 85.76 | X28: 80.58
B29: 2020 | C29: 18.45 | D29: 10.76 | E29: 22.1 | F29: 32.55 | G29: 30.56 | H29: 33.38 | I29: 13.33 | J29: 10.76 | L29: W | M29: 45.88875 | N29: 49.881875 | O29: 44.53875 | P29: 45.854375 | Q29: 10.05 | R29: 13.33 | S29: 12.97 | T29: 10.49 | U29: 70.04 | V29: 68.6 | W29: 66.69 | X29: 65.05
B30: 2021 | C30: 21.4 | D30: 11.34 | E30: 20.39 | F30: 30.29 | G30: 29.75 | H30: 36.39 | I30: 12.97 | J30: 11.34 | L30: MT | M30: 37.94666667 | N30: 42.29833333 | O30: 41.43916667 | P30: 37.2575 | Q30: 25.87 | R30: 30.56 | S30: 29.75 | T30: 25.24 | U30: 49.04 | V30: 52.81 | W30: 51.95 | X30: 46.65
B31: 2022 | C31: 23.93 | D31: 12.68 | E31: 23.02 | F31: 29.86 | G31: 25.24 | H31: 33.29 | I31: 10.49 | J31: 10.49 | L31: Suma końcowa | M31: 61.9659316 | N31: 63.38346633 | O31: 62.28239045 | P31: 57.75088351 | Q31: 9.51 | R31: 10.76 | S31: 11.34 | T31: 10.49 | U31: 86.92 | V31: 87.27 | W31: 85.76 | X31: 80.58
A32: Maksimum | B32: 2019 | C32: 72.51 | D32: 86.92 | E32: 83.08 | F32: 63.44 | G32: 49.04 | H32: 85.57 | I32: 70.04 | J32: 86.92
B33: 2020 | C33: 72.23 | D33: 86.91 | E33: 83.13 | F33: 66.65 | G33: 52.81 | H33: 87.27 | I33: 68.6 | J33: 87.27
B34: 2021 | C34: 72.11 | D34: 84.95 | E34: 81.72 | F34: 65.68 | G34: 51.95 | H34: 85.76 | I34: 66.69 | J34: 85.76
B35: 2022 | C35: 64.22 | D35: 80.1 | E35: 76.42 | F35: 62.79 | G35: 46.65 | H35: 80.58 | I35: 65.05 | J35: 80.58
A37: 3. Wskaźnik WB3 – udział nadwyżki operacyjnej w dochodach bieżących
J38: (%%)
A39: Wskaźnik WB3 | C39: gminy | F39: miasta na prawach powiatu | G39: metropolie | H39: powiaty | I39: województwa | J39: Ogółem JST
C40: miejskie | D40: wiejskie | E40: miejsko-wiejskie | L40: Etykiety wierszy | M40: Średnia z WB3[2019] | N40: Średnia z WB3[2020] | O40: Średnia z WB3[2021] | P40: Średnia z WB3[2022] | Q40: Minimum z WB3[2019] | R40: Minimum z WB3[2020] | S40: Minimum z WB3[2021] | T40: Minimum z WB3[2022] | U40: Maksimum z WB3[2019] | V40: Maksimum z WB3[2020] | W40: Maksimum z WB3[2021] | X40: Maksimum z WB3[2022]
A41: Średnia | B41: 2019 | C41: 6.861991525 | D41: 9.526900854 | E41: 8.475184049 | F41: 6.275925926 | G41: 8.25 | H41: 9.991146497 | I41: 22.791875 | J41: 9.118101176 | L41: GM | M41: 6.861991525 | N41: 5.13440678 | O41: 9.686059322 | P41: 5.295974576 | Q41: -4.86 | R41: -6.96 | S41: -19.69 | T41: -5.35 | U41: 19.64 | V41: 25.16 | W41: 28.73 | X41: 22.27
B42: 2020 | C42: 5.13440678 | D42: 9.60651346 | E42: 8.059877301 | F42: 4.543703704 | G42: 4.638333333 | H42: 9.122961783 | I42: 25.101875 | J42: 8.786868543 | L42: GMW | M42: 8.511299094 | N42: 8.10081571 | O42: 10.31332326 | P42: 8.298610272 | Q42: -13.52 | R42: -2.01 | S42: -4.86 | T42: -9.93 | U42: 25.47 | V42: 28.43 | W42: 33.26 | X42: 26.99
B43: 2021 | C43: 9.686059322 | D43: 11.13829941 | E43: 10.26415644 | F43: 9.127777778 | G43: 10.75916667 | H43: 11.09643312 | I43: 30.405 | J43: 10.87799786 | L43: GW | M43: 9.518050231 | N43: 9.598823529 | O43: 11.12256444 | P43: 11.99486451 | Q43: -7.02 | R43: -4.15 | S43: -12.17 | T43: -5.79 | U43: 38.21 | V43: 47.35 | W43: 36.77 | X43: 57.67
B44: 2022 | C44: 5.295974576 | D44: 11.99486451 | E44: 8.298610272 | F44: 3.591296296 | G44: 4.629166667 | H44: 8.401878981 | I44: 26.283125 | J44: 10.04629854 | L44: M | M44: 6.275925926 | N44: 4.543703704 | O44: 9.127777778 | P44: 3.591296296 | Q44: -1.53 | R44: -2.5 | S44: 1.78 | T44: -3.8 | U44: 15.42 | V44: 13.71 | W44: 15.67 | X44: 13.87
A45: Minimum | B45: 2019 | C45: -4.86 | D45: -7.02 | E45: -13.52 | F45: -1.53 | G45: 4.32 | H45: -4.33 | I45: 14.05 | J45: -13.52 | L45: P | M45: 9.991146497 | N45: 9.122961783 | O45: 11.09643312 | P45: 8.401878981 | Q45: -4.33 | R45: -2.37 | S45: 1.08 | T45: -3.36 | U45: 32.91 | V45: 36.6 | W45: 29.57 | X45: 26.87
B46: 2020 | C46: -6.96 | D46: -4.15 | E46: -2.01 | F46: -2.5 | G46: -1.04 | H46: -2.37 | I46: 16.36 | J46: -6.96 | L46: W | M46: 22.791875 | N46: 25.101875 | O46: 30.405 | P46: 26.283125 | Q46: 14.05 | R46: 16.36 | S46: 22.02 | T46: 17.51 | U46: 29.19 | V46: 35.3 | W46: 37.71 | X46: 36.61
B47: 2021 | C47: -19.69 | D47: -12.17 | E47: -4.86 | F47: 1.78 | G47: 6.18 | H47: 1.08 | I47: 22.02 | J47: -19.69 | L47: MT | M47: 8.25 | N47: 4.638333333 | O47: 10.75916667 | P47: 4.629166667 | Q47: 4.32 | R47: -1.04 | S47: 6.18 | T47: -0.01 | U47: 13.6 | V47: 9.99 | W47: 14.29 | X47: 9.38
B48: 2022 | C48: -5.35 | D48: -5.79 | E48: -9.93 | F48: -3.8 | G48: -0.01 | H48: -3.36 | I48: 17.51 | J48: -9.93 | L48: Suma końcowa | M48: 9.118101176 | N48: 8.786868543 | O48: 10.87799786 | P48: 10.04629854 | Q48: -13.52 | R48: -6.96 | S48: -19.69 | T48: -9.93 | U48: 38.21 | V48: 47.35 | W48: 37.71 | X48: 57.67
A49: Maksimum | B49: 2019 | C49: 19.64 | D49: 38.21 | E49: 25.47 | F49: 15.42 | G49: 13.6 | H49: 32.91 | I49: 29.19 | J49: 38.21
B50: 2020 | C50: 25.16 | D50: 47.35 | E50: 28.43 | F50: 13.71 | G50: 9.99 | H50: 36.6 | I50: 35.3 | J50: 47.35
B51: 2021 | C51: 28.73 | D51: 36.77 | E51: 33.26 | F51: 15.67 | G51: 14.29 | H51: 29.57 | I51: 37.71 | J51: 37.71
B52: 2022 | C52: 22.27 | D52: 57.67 | E52: 26.99 | F52: 13.87 | G52: 9.38 | H52: 26.87 | I52: 36.61 | J52: 57.67
A54: 4. Wskaźnik WB4 – udział wydatków majątkowych w wydatkach ogółem
J55: (%%)
A56: Wskaźnik WB4 | C56: gminy | F56: miasta na prawach powiatu | G56: metropolie | H56: powiaty | I56: województwa | J56: Ogółem JST
C57: miejskie | D57: wiejskie | E57: miejsko-wiejskie | L57: Etykiety wierszy | M57: Średnia z WB4[2019] | N57: Średnia z WB4[2020] | O57: Średnia z WB4[2021] | P57: Średnia z WB4[2022] | Q57: Minimum z WB4[2019] | R57: Minimum z WB4[2020] | S57: Minimum z WB4[2021] | T57: Minimum z WB4[2022] | U57: Maksimum z WB4[2019] | V57: Maksimum z WB4[2020] | W57: Maksimum z WB4[2021] | X57: Maksimum z WB4[2022]
A58: Średnia | B58: 2019 | C58: 15.92169492 | D58: 16.24699278 | E58: 15.45392638 | F58: 15.92666667 | G58: 18.015 | H58: 17.36334395 | I58: 38.915625 | J58: 16.29091913 | L58: GM | M58: 15.92169492 | N58: 14.33792373 | O58: 14.03427966 | P58: 16.44699153 | Q58: 2.03 | R58: 0.83 | S58: 1.27 | T58: 3.64 | U58: 40.11 | V58: 43.16 | W58: 36.35 | X58: 40.2
B59: 2020 | C59: 14.33792373 | D59: 14.34145765 | E59: 13.56855828 | F59: 14.87240741 | G59: 15.87333333 | H59: 16.07579618 | I59: 36.959375 | J59: 14.50132882 | L59: GMW | M59: 15.49163142 | N59: 13.59175227 | O59: 14.84338369 | P59: 17.47883686 | Q59: 0.86 | R59: 0.26 | S59: 1.3 | T59: 1.7 | U59: 56.8 | V59: 47.49 | W59: 60.61 | X59: 49.21
B60: 2021 | C60: 14.03427966 | D60: 15.36697308 | E60: 14.8170092 | F60: 14.37 | G60: 15.41333333 | H60: 15.69226115 | I60: 35.76125 | J60: 15.26083719 | L60: GW | M60: 16.23573695 | N60: 14.33641771 | O60: 15.35906808 | P60: 19.62104428 | Q60: 0.24 | R60: 0.22 | S60: 0.59 | T60: 1.36 | U60: 48.13 | V60: 55.19 | W60: 47.69 | X60: 51.05
B61: 2022 | C61: 16.44699153 | D61: 19.62104428 | E61: 17.47883686 | F61: 15.40722222 | G61: 15.50666667 | H61: 19.09289809 | I61: 33.866875 | J61: 18.77243677 | L61: M | M61: 15.92666667 | N61: 14.87240741 | O61: 14.37 | P61: 15.40722222 | Q61: 4.38 | R61: 3.14 | S61: 4.04 | T61: 7.45 | U61: 45.29 | V61: 56.42 | W61: 62.69 | X61: 42.42
A62: Minimum | B62: 2019 | C62: 2.03 | D62: 0.24 | E62: 0.86 | F62: 4.38 | G62: 12.69 | H62: 1.38 | I62: 26.85 | J62: 0.24 | L62: P | M62: 17.36334395 | N62: 16.07579618 | O62: 15.69226115 | P62: 19.09289809 | Q62: 1.38 | R62: 2.05 | S62: 2.08 | T62: 2.03 | U62: 44.8 | V62: 53.14 | W62: 43.32 | X62: 55.09
B63: 2020 | C63: 0.83 | D63: 0.22 | E63: 0.26 | F63: 3.14 | G63: 11.25 | H63: 2.05 | I63: 22.77 | J63: 0.22 | L63: W | M63: 38.915625 | N63: 36.959375 | O63: 35.76125 | P63: 33.866875 | Q63: 26.85 | R63: 22.77 | S63: 23.4 | T63: 25.18 | U63: 63.72 | V63: 50.49 | W63: 46.43 | X63: 47.01
B64: 2021 | C64: 1.27 | D64: 0.59 | E64: 1.3 | F64: 4.04 | G64: 8.92 | H64: 2.08 | I64: 23.4 | J64: 0.59 | L64: MT | M64: 18.015 | N64: 15.87333333 | O64: 15.41333333 | P64: 15.50666667 | Q64: 12.69 | R64: 11.25 | S64: 8.92 | T64: 9.7 | U64: 24.19 | V64: 26.46 | W64: 26.08 | X64: 23.36
B65: 2022 | C65: 3.64 | D65: 1.36 | E65: 1.7 | F65: 7.45 | G65: 9.7 | H65: 2.03 | I65: 25.18 | J65: 1.36 | L65: Suma końcowa | M65: 16.29091913 | N65: 14.50132882 | O65: 15.26083719 | P65: 18.77243677 | Q65: 0.24 | R65: 0.22 | S65: 0.59 | T65: 1.36 | U65: 63.72 | V65: 56.42 | W65: 62.69 | X65: 55.09
A66: Maksimum | B66: 2019 | C66: 40.11 | D66: 48.13 | E66: 56.8 | F66: 45.29 | G66: 24.19 | H66: 44.8 | I66: 63.72 | J66: 63.72
B67: 2020 | C67: 43.16 | D67: 55.19 | E67: 47.49 | F67: 56.42 | G67: 26.46 | H67: 53.14 | I67: 50.49 | J67: 56.42
B68: 2021 | C68: 36.35 | D68: 47.69 | E68: 60.61 | F68: 62.69 | G68: 26.08 | H68: 43.32 | I68: 46.43 | J68: 62.69
B69: 2022 | C69: 40.2 | D69: 51.05 | E69: 49.21 | F69: 42.42 | G69: 23.36 | H69: 55.09 | I69: 47.01 | J69: 55.09
A71: 5. Wskaźnik WB5 – Obciążenie wydatków bieżących wydatkami na wynagrodzenia i pochodne od wynagrodzeń
J72: (%%)
A73: Wskaźnik WB5 | C73: gminy | F73: miasta na prawach powiatu | G73: metropolie | H73: powiaty | I73: województwa | J73: Ogółem JST
C74: miejskie | D74: wiejskie | E74: miejsko-wiejskie | L74: Etykiety wierszy | M74: Średnia z WB5[2019] | N74: Średnia z WB5[2020] | O74: Średnia z WB5[2021] | P74: Średnia z WB5[2022] | Q74: Minimum z WB5[2019] | R74: Minimum z WB5[2020] | S74: Minimum z WB5[2021] | T74: Minimum z WB5[2022] | U74: Maksimum z WB5[2019] | V74: Maksimum z WB5[2020] | W74: Maksimum z WB5[2021] | X74: Maksimum z WB5[2022]
A75: Średnia | B75: 2019 | C75: 37.51885593 | D75: 37.75784636 | E75: 36.99391104 | F75: 41.55962963 | G75: 35.935 | H75: 61.78394904 | I75: 20.268125 | J75: 40.21359815 | L75: GM | M75: 37.51885593 | N75: 36.31961864 | O75: 37.26699153 | P75: 37.7225 | Q75: 25.13 | R75: 23.93 | S75: 21.75 | T75: 25.77 | U75: 48.61 | V75: 46.7 | W75: 48.04 | X75: 50.81
B76: 2020 | C76: 36.31961864 | D76: 36.47633618 | E76: 35.91708589 | F76: 41.145 | G76: 35.75583333 | H76: 62.5033758 | I76: 19.441875 | J76: 39.23436409 | L76: GMW | M76: 37.00848943 | N76: 35.92557402 | O76: 36.91412387 | P76: 35.52651057 | Q76: 20.35 | R76: 20.13 | S76: 20.61 | T76: 20.62 | U76: 46.42 | V76: 46.7 | W76: 46.61 | X76: 49.67
B77: 2021 | C77: 37.26699153 | D77: 37.71348654 | E77: 36.90742331 | F77: 41.88277778 | G77: 36.08916667 | H77: 63.1793949 | I77: 20.063125 | J77: 40.31007125 | L77: GW | M77: 37.75651685 | N77: 36.47631857 | O77: 37.71588235 | P77: 35.90742895 | Q77: 16.14 | R77: 15.03 | S77: 15.14 | T77: 15.49 | U77: 48.39 | V77: 48.12 | W77: 49.5 | X77: 51.54
B78: 2022 | C78: 37.7225 | D78: 35.90742895 | E78: 35.52651057 | F78: 42.79740741 | G78: 37.10583333 | H78: 61.57165605 | I78: 19.466875 | J78: 38.88503741 | L78: M | M78: 41.55962963 | N78: 41.145 | O78: 41.88277778 | P78: 42.79740741 | Q78: 30.24 | R78: 31.94 | S78: 33.58 | T78: 32.82 | U78: 51.58 | V78: 50.29 | W78: 50.2 | X78: 52.23
A79: Minimum | B79: 2019 | C79: 25.13 | D79: 16.14 | E79: 20.35 | F79: 30.24 | G79: 31.86 | H79: 37.96 | I79: 15.75 | J79: 15.75 | L79: P | M79: 61.78394904 | N79: 62.5033758 | O79: 63.1793949 | P79: 61.57165605 | Q79: 37.96 | R79: 36.64 | S79: 37.19 | T79: 34.67 | U79: 74.75 | V79: 74.86 | W79: 74.27 | X79: 72.98
B80: 2020 | C80: 23.93 | D80: 15.03 | E80: 20.13 | F80: 31.94 | G80: 31.04 | H80: 36.64 | I80: 14.78 | J80: 14.78 | L80: W | M80: 20.268125 | N80: 19.441875 | O80: 20.063125 | P80: 19.466875 | Q80: 15.75 | R80: 14.78 | S80: 15.61 | T80: 14.55 | U80: 24.94 | V80: 23.77 | W80: 24.48 | X80: 24.69
B81: 2021 | C81: 21.75 | D81: 15.14 | E81: 20.61 | F81: 33.58 | G81: 31.75 | H81: 37.19 | I81: 15.61 | J81: 15.14 | L81: MT | M81: 35.935 | N81: 35.75583333 | O81: 36.08916667 | P81: 37.10583333 | Q81: 31.86 | R81: 31.04 | S81: 31.75 | T81: 33.43 | U81: 42.01 | V81: 41.38 | W81: 41.91 | X81: 43.51
B82: 2022 | C82: 25.77 | D82: 15.49 | E82: 20.62 | F82: 32.82 | G82: 33.43 | H82: 34.67 | I82: 14.55 | J82: 14.55 | L82: Suma końcowa | M82: 40.21359815 | N82: 39.23436409 | O82: 40.31007125 | P82: 38.88503741 | Q82: 15.75 | R82: 14.78 | S82: 15.14 | T82: 14.55 | U82: 74.75 | V82: 74.86 | W82: 74.27 | X82: 72.98
A83: Maksimum | B83: 2019 | C83: 48.61 | D83: 48.39 | E83: 46.42 | F83: 51.58 | G83: 42.01 | H83: 74.75 | I83: 24.94 | J83: 74.75
B84: 2020 | C84: 46.7 | D84: 48.12 | E84: 46.7 | F84: 50.29 | G84: 41.38 | H84: 74.86 | I84: 23.77 | J84: 74.86
B85: 2021 | C85: 48.04 | D85: 49.5 | E85: 46.61 | F85: 50.2 | G85: 41.91 | H85: 74.27 | I85: 24.48 | J85: 74.27
B86: 2022 | C86: 50.81 | D86: 51.54 | E86: 49.67 | F86: 52.23 | G86: 43.51 | H86: 72.98 | I86: 24.69 | J86: 72.98
A88: 6. Wskaźnik WB6 – Udział nadwyżki operacyjnej i dochodów ze sprzedaży majątku w dochodach ogółem
J89: (%%)
A90: Wskaźnik WB6 | C90: gminy | F90: miasta na prawach powiatu | G90: metropolie | H90: powiaty | I90: województwa | J90: Ogółem JST
C91: miejskie | D91: wiejskie | E91: miejsko-wiejskie | L91: Etykiety wierszy | M91: Średnia z WB6[2019] | N91: Średnia z WB6[2020] | O91: Średnia z WB6[2021] | P91: Średnia z WB6[2022] | Q91: Minimum z WB6[2019] | R91: Minimum z WB6[2020] | S91: Minimum z WB6[2021] | T91: Minimum z WB6[2022] | U91: Maksimum z WB6[2019] | V91: Maksimum z WB6[2020] | W91: Maksimum z WB6[2021] | X91: Maksimum z WB6[2022]
A92: Średnia | B92: 2019 | C92: 8.581313559 | D92: 9.2 | E92: 8.874244713 | F92: 7.667037037 | G92: 9.24 | H92: 9.073757962 | I92: 18.144375 | J92: 9.102557891 | L92: GM | M92: 8.581313559 | N92: 6.640466102 | O92: 11.48254237 | P92: 7.599237288 | Q92: -1.61 | R92: -1.94 | S92: -5.75 | T92: -2.91 | U92: 46.01 | V92: 35.75 | W92: 28.4 | X92: 55.91
B93: 2020 | C93: 6.640466102 | D93: 9.192921865 | E93: 8.426042945 | F93: 5.969444444 | G93: 5.738333333 | H93: 8.375636943 | I93: 20.351875 | J93: 8.695596722 | L93: GMW | M93: 8.874244713 | N93: 8.448519637 | O93: 10.81676737 | P93: 9.085619335 | Q93: -11.37 | R93: -0.52 | S93: -1.81 | T93: -9.07 | U93: 28.44 | V93: 26.48 | W93: 32.21 | X93: 45.46
B94: 2021 | C94: 11.48254237 | D94: 10.58915299 | E94: 10.79168712 | F94: 10.86444444 | G94: 12.28333333 | H94: 10.49535032 | I94: 25.8775 | J94: 10.80049875 | L94: GW | M94: 9.244263054 | N94: 9.188155981 | O94: 10.57684071 | P94: 11.61155981 | Q94: -3.93 | R94: -2.1 | S94: -9.42 | T94: -2.35 | U94: 37.71 | V94: 46.16 | W94: 38.91 | X94: 53.61
B95: 2022 | C95: 7.599237288 | D95: 11.61155981 | E95: 9.085619335 | F95: 5.104444444 | G95: 6.7375 | H95: 8.003407643 | I95: 22.839375 | J95: 10.19286783 | L95: M | M95: 7.667037037 | N95: 5.969444444 | O95: 10.86444444 | P95: 5.104444444 | Q95: 1.01 | R95: 0.25 | S95: 6.06 | T95: -3.14 | U95: 20.83 | V95: 15 | W95: 18.32 | X95: 15.09
A96: Minimum | B96: 2019 | C96: -1.61 | D96: -3.93 | E96: -11.37 | F96: 1.01 | G96: 5.27 | H96: -2.92 | I96: 10.43 | J96: -11.37 | L96: P | M96: 9.073757962 | N96: 8.375636943 | O96: 10.49535032 | P96: 8.003407643 | Q96: -2.92 | R96: -2.07 | S96: 1.64 | T96: -3.2 | U96: 28.69 | V96: 35.3 | W96: 27.65 | X96: 36.21
B97: 2020 | C97: -1.94 | D97: -2.1 | E97: -0.52 | F97: 0.25 | G97: -0.73 | H97: -2.07 | I97: 12.58 | J97: -2.1 | L97: W | M97: 18.144375 | N97: 20.351875 | O97: 25.8775 | P97: 22.839375 | Q97: 10.43 | R97: 12.58 | S97: 17.63 | T97: 14.55 | U97: 27.62 | V97: 28.3 | W97: 32.2 | X97: 32.46
B98: 2021 | C98: -5.75 | D98: -9.42 | E98: -1.81 | F98: 6.06 | G98: 6.42 | H98: 1.64 | I98: 17.63 | J98: -9.42 | L98: MT | M98: 9.24 | N98: 5.738333333 | O98: 12.28333333 | P98: 6.7375 | Q98: 5.27 | R98: -0.73 | S98: 6.42 | T98: 1.13 | U98: 13.66 | V98: 11.38 | W98: 16.03 | X98: 11.47
B99: 2022 | C99: -2.91 | D99: -2.35 | E99: -9.07 | F99: -3.14 | G99: 1.13 | H99: -3.2 | I99: 14.55 | J99: -9.07 | L99: Suma końcowa | M99: 9.102557891 | N99: 8.695596722 | O99: 10.80049875 | P99: 10.19286783 | Q99: -11.37 | R99: -2.1 | S99: -9.42 | T99: -9.07 | U99: 46.01 | V99: 46.16 | W99: 38.91 | X99: 55.91
A100: Maksimum | B100: 2019 | C100: 46.01 | D100: 37.71 | E100: 28.44 | F100: 20.83 | G100: 13.66 | H100: 28.69 | I100: 27.62 | J100: 46.01
B101: 2020 | C101: 35.75 | D101: 46.16 | E101: 26.48 | F101: 15 | G101: 11.38 | H101: 35.3 | I101: 28.3 | J101: 46.16
B102: 2021 | C102: 28.4 | D102: 38.91 | E102: 32.21 | F102: 18.32 | G102: 16.03 | H102: 27.65 | I102: 32.2 | J102: 38.91
B103: 2022 | C103: 55.91 | D103: 53.61 | E103: 45.46 | F103: 15.09 | G103: 11.47 | H103: 36.21 | I103: 32.46 | J103: 55.91
A105: 7. Wskaźnik WB7 – Udział nadwyżki operacyjnej i dochodów majątkowych w wydatkach majątkowych (wskaźnik samofinansowania)
J106: (%%)
A107: Wskaźnik WB7 | C107: gminy | F107: miasta na prawach powiatu | G107: metropolie | H107: powiaty | I107: województwa | J107: Ogółem JST
C108: miejskie | D108: wiejskie | E108: miejsko-wiejskie | M108: Średnia z WB7[2019] | N108: Średnia z WB7[2020] | O108: Średnia z WB7[2021] | P108: Średnia z WB7[2022] | Q108: Minimum z WB7[2019] | R108: Minimum z WB7[2020] | S108: Minimum z WB7[2021] | T108: Minimum z WB7[2022] | U108: Maksimum z WB7[2019] | V108: Maksimum z WB7[2020] | W108: Maksimum z WB7[2021] | X108: Maksimum z WB7[2022]
A109: Średnia | B109: 2019 | C109: 110.3640254 | D109: 136.1255453 | E109: 123.2580211 | F109: 95.34018519 | G109: 78.59 | H109: 142.1666561 | I109: 106.448125 | J109: 130.4010046 | L109: GM | M109: 110.3640254 | N109: 145.0056356 | O109: 165.1883475 | P109: 97.90690678 | Q109: 26.51 | R109: -9.63 | S109: -15.55 | T109: -6.25 | U109: 455.21 | V109: 2076.87 | W109: 889.82 | X109: 1343.31
B110: 2020 | C110: 145.0056356 | D110: 203.5370324 | E110: 176.5701964 | F110: 110.5377778 | G110: 76.41583333 | H110: 170.2524522 | I110: 122.6875 | J110: 185.7394478 | L110: GMW | M110: 123.2580211 | N110: 176.5701964 | O110: 173.9525378 | P110: 99.9852568 | Q110: -129.52 | R110: 32.59 | S110: 35.59 | T110: -8.55 | U110: 1521.95 | V110: 11822.74 | W110: 1014.9 | X110: 579.8
B111: 2021 | C111: 165.1883475 | D111: 215.790456 | E111: 173.9525378 | F111: 133.2790741 | G111: 117.595 | H111: 155.0448408 | I111: 133.458125 | J111: 192.3974385 | L111: GW | M111: 136.1255453 | N111: 203.5370324 | O111: 215.790456 | P111: 115.3706808 | Q111: -91.9 | R111: 21.96 | S111: 35.96 | T111: 6.12 | U111: 2583.12 | V111: 9624.57 | W111: 6437.84 | X111: 1279.15
B112: 2022 | C112: 97.90690678 | D112: 115.3706808 | E112: 99.9852568 | F112: 66.23759259 | G112: 76.97583333 | H112: 100.8534076 | I112: 114.275625 | J112: 107.534389 | L112: M | M112: 95.34018519 | N112: 110.5377778 | O112: 133.2790741 | P112: 66.23759259 | Q112: 28.75 | R112: 62.54 | S112: 62 | T112: -9.6 | U112: 182.51 | V112: 282.22 | W112: 256.27 | X112: 138.01
A113: Minimum | B113: 2019 | C113: 26.51 | D113: -91.9 | E113: -129.52 | F113: 28.75 | G113: 58.52 | H113: -9.98 | I113: 82 | J113: -129.52 | L113: P | M113: 142.1666561 | N113: 170.2524522 | O113: 155.0448408 | P113: 100.8534076 | Q113: -9.98 | R113: 40.35 | S113: 46.02 | T113: -26.05 | U113: 1147.74 | V113: 785.48 | W113: 654.83 | X113: 590.52
B114: 2020 | C114: -9.63 | D114: 21.96 | E114: 32.59 | F114: 62.54 | G114: 26.99 | H114: 40.35 | I114: 90.8 | J114: -9.63 | L114: W | M114: 106.448125 | N114: 122.6875 | O114: 133.458125 | P114: 114.275625 | Q114: 82 | R114: 90.8 | S114: 100.15 | T114: 87.5 | U114: 142.36 | V114: 189.36 | W114: 170.62 | X114: 177.81
B115: 2021 | C115: -15.55 | D115: 35.96 | E115: 35.59 | F115: 62 | G115: 71.85 | H115: 46.02 | I115: 100.15 | J115: -15.55 | L115: MT | M115: 78.59 | N115: 76.41583333 | O115: 117.595 | P115: 76.97583333 | Q115: 58.52 | R115: 26.99 | S115: 71.85 | T115: 26.64 | U115: 94.92 | V115: 103.55 | W115: 168.21 | X115: 144.77
B116: 2022 | C116: -6.25 | D116: 6.12 | E116: -8.55 | F116: -9.6 | G116: 26.64 | H116: -26.05 | I116: 87.5 | J116: -26.05 | L116: Suma końcowa | M116: 130.4010046 | N116: 185.7394478 | O116: 192.3974385 | P116: 107.534389 | Q116: -129.52 | R116: -9.63 | S116: -15.55 | T116: -26.05 | U116: 2583.12 | V116: 11822.74 | W116: 6437.84 | X116: 1343.31
A117: Maksimum | B117: 2019 | C117: 455.21 | D117: 2583.12 | E117: 1521.95 | F117: 182.51 | G117: 94.92 | H117: 1147.74 | I117: 142.36 | J117: 2583.12
B118: 2020 | C118: 2076.87 | D118: 9624.57 | E118: 11822.74 | F118: 282.22 | G118: 103.55 | H118: 785.48 | I118: 189.36 | J118: 11822.74
B119: 2021 | C119: 889.82 | D119: 6437.84 | E119: 1014.9 | F119: 256.27 | G119: 168.21 | H119: 654.83 | I119: 170.62 | J119: 6437.84
B120: 2022 | C120: 1343.31 | D120: 1279.15 | E120: 579.8 | F120: 138.01 | G120: 144.77 | H120: 590.52 | I120: 177.81 | J120: 1343.31
A122: 8. Wskaźnik WB8 - Odsetek dochodów ogółem pozostający po zakończeniu roku budżetowego
J123: (%%)
A124: Wskaźnik WB8 | C124: gminy | F124: miasta na prawach powiatu | G124: metropolie | H124: powiaty | I124: województwa | J124: Ogółem JST
C125: miejskie | D125: wiejskie | E125: miejsko-wiejskie | L125: Etykiety wierszy | M125: Średnia z WB8[2019] | N125: Średnia z WB8[2020] | O125: Średnia z WB8[2021] | P125: Średnia z WB8[2022] | Q125: Minimum z WB8[2019] | R125: Minimum z WB8[2020] | S125: Minimum z WB8[2021] | T125: Minimum z WB8[2022] | U125: Maksimum z WB8[2019] | V125: Maksimum z WB8[2020] | W125: Maksimum z WB8[2021] | X125: Maksimum z WB8[2022]
A126: Średnia | B126: 2019 | C126: 6.71690678 | D126: 7.222856205 | E126: 6.529743202 | F126: 5.785925926 | G126: 6.015833333 | H126: 9.83366242 | I126: 8.9125 | J126: 7.293936587 | L126: GM | M126: 6.71690678 | N126: 10.22699153 | O126: 14.24792373 | P126: 10.93745763 | Q126: 0 | R126: -0.54 | S126: 0.2 | T126: -2.39 | U126: 53.53 | V126: 68.11 | W126: 62.31 | X126: 60.57
B127: 2020 | C127: 10.22699153 | D127: 11.88961261 | E127: 10.62142638 | F127: 8.142222222 | G127: 7.9525 | H127: 14.5794586 | I127: 14.573125 | J127: 11.68252583 | L127: GMW | M127: 6.529743202 | N127: 10.59962236 | O127: 15.59990937 | P127: 12.57238671 | Q127: -1.18 | R127: -0.2 | S127: 0.46 | T127: -2.53 | U127: 74.27 | V127: 47.87 | W127: 67.99 | X127: 48.24
B128: 2021 | C128: 14.24792373 | D128: 18.17623112 | E128: 15.58831288 | F128: 11.4662963 | G128: 10.97083333 | H128: 18.02117834 | I128: 20.635 | J128: 17.08162807 | L128: GW | M128: 7.238070059 | N128: 11.9075347 | O128: 18.18826173 | P128: 16.3093655 | Q128: -1.65 | R128: -3.6 | S128: 0 | T128: 0 | U128: 85.26 | V128: 95.81 | W128: 91.47 | X128: 88.28
B129: 2022 | C129: 10.93745763 | D129: 16.3093655 | E129: 12.57238671 | F129: 6.887592593 | G129: 6.539166667 | H129: 14.42044586 | I129: 19.63875 | J129: 14.56105094 | L129: M | M129: 5.785925926 | N129: 8.142222222 | O129: 11.4662963 | P129: 6.887592593 | Q129: -0.59 | R129: 1.07 | S129: 5.23 | T129: -0.19 | U129: 22.63 | V129: 18.92 | W129: 22.21 | X129: 17.31
A130: Minimum | B130: 2019 | C130: 0 | D130: -1.65 | E130: -1.18 | F130: -0.59 | G130: 1.58 | H130: 0.49 | I130: 1.72 | J130: -1.65 | L130: P | M130: 9.83366242 | N130: 14.5794586 | O130: 18.02117834 | P130: 14.42044586 | Q130: 0.49 | R130: 0 | S130: -2.26 | T130: 0 | U130: 32.08 | V130: 43.64 | W130: 65.52 | X130: 64.43
B131: 2020 | C131: -0.54 | D131: -3.6 | E131: -0.2 | F131: 1.07 | G131: 0.49 | H131: 0 | I131: 6 | J131: -3.6 | L131: W | M131: 8.9125 | N131: 14.573125 | O131: 20.635 | P131: 19.63875 | Q131: 1.72 | R131: 6 | S131: 8.49 | T131: 6.72 | U131: 22.23 | V131: 30.92 | W131: 36.23 | X131: 46.27
B132: 2021 | C132: 0.2 | D132: 0 | E132: 0.46 | F132: 5.23 | G132: 4.71 | H132: -2.26 | I132: 8.49 | J132: -2.26 | L132: MT | M132: 6.015833333 | N132: 7.9525 | O132: 10.97083333 | P132: 6.539166667 | Q132: 1.58 | R132: 0.49 | S132: 4.71 | T132: 1.49 | U132: 20.22 | V132: 19.09 | W132: 22.37 | X132: 15.02
B133: 2022 | C133: -2.39 | D133: 0 | E133: -2.53 | F133: -0.19 | G133: 1.49 | H133: 0 | I133: 6.72 | J133: -2.53 | L133: Suma końcowa | M133: 7.293936587 | N133: 11.68252583 | O133: 17.08162807 | P133: 14.56105094 | Q133: -1.65 | R133: -3.6 | S133: -2.26 | T133: -2.53 | U133: 85.26 | V133: 95.81 | W133: 91.47 | X133: 88.28
A134: Maksimum | B134: 2019 | C134: 53.53 | D134: 85.26 | E134: 74.27 | F134: 22.63 | G134: 20.22 | H134: 32.08 | I134: 22.23 | J134: 85.26
B135: 2020 | C135: 68.11 | D135: 95.81 | E135: 47.87 | F135: 18.92 | G135: 19.09 | H135: 43.64 | I135: 30.92 | J135: 95.81
B136: 2021 | C136: 62.31 | D136: 91.47 | E136: 67.99 | F136: 22.21 | G136: 22.37 | H136: 65.52 | I136: 36.23 | J136: 91.47
B137: 2022 | C137: 60.57 | D137: 88.28 | E137: 48.24 | F137: 17.31 | G137: 15.02 | H137: 64.43 | I137: 46.27 | J137: 88.28
A139: 9. Wskaźnik WB9 - potencjał rozwojowy w relacji do wydatków majątkowych i spłat kapitału
J140: (%%)
A141: Wskaźnik WB9 | C141: gminy | F141: miasta na prawach powiatu | G141: metropolie | H141: powiaty | I141: województwa | J141: Ogółem JST
C142: miejskie | D142: wiejskie | E142: miejsko-wiejskie | M142: Średnia z WB9[2019] | N142: Średnia z WB9[2020] | O142: Średnia z WB9[2021] | P142: Średnia z WB9[2022] | Q142: Minimum z WB9[2019] | R142: Minimum z WB9[2020] | S142: Minimum z WB9[2021] | T142: Minimum z WB9[2022] | U142: Maksimum z WB9[2019] | V142: Maksimum z WB9[2020] | W142: Maksimum z WB9[2021] | X142: Maksimum z WB9[2022]
A143: Średnia | B143: 2019 | C143: 122.0083898 | D143: 132.6225314 | E143: 122.9571299 | F143: 104.3140741 | G143: 97.3175 | H143: 151.0115924 | I143: 113.673125 | J143: 130.7041931 | L143: GM | M143: 122.0083898 | N143: 153.2792373 | O143: 193.5858475 | P143: 163.4838136 | Q143: 25.23 | R143: 57.96 | S143: 56.97 | T143: 50.99 | U143: 521.94 | V143: 1107.21 | W143: 848.64 | X143: 746.27
B144: 2020 | C144: 153.2792373 | D144: 191.6928883 | E144: 160.5489426 | F144: 120.9881481 | G144: 93.16916667 | H144: 201.4857325 | I144: 128.763125 | J144: 180.0736587 | L144: GMW | M144: 122.9571299 | N144: 160.5489426 | O144: 204.7012538 | P144: 168.2642447 | Q144: -104.93 | R144: 30.98 | S144: 24.52 | T144: 36.82 | U144: 1070 | V144: 882.38 | W144: 814.18 | X144: 1040
B145: 2021 | C145: 193.5858475 | D145: 244.3257171 | E145: 204.7012538 | F145: 154.9162963 | G145: 141.4291667 | H145: 224.7784076 | I145: 159.41625 | J145: 225.8842216 | L145: GW | M145: 132.6225314 | N145: 191.6928883 | O145: 244.3257171 | P145: 194.27577 | Q145: 1.55 | R145: 15.67 | S145: 40.66 | T145: 30.65 | U145: 1204.39 | V145: 2959.89 | W145: 2035.84 | X145: 1378.38
B146: 2022 | C146: 163.4838136 | D146: 194.27577 | E146: 168.2642447 | F146: 121.7424074 | G146: 124.9175 | H146: 179.173758 | I146: 161.45875 | J146: 181.9840933 | L146: M | M146: 104.3140741 | N146: 120.9881481 | O146: 154.9162963 | P146: 121.7424074 | Q146: 54.55 | R146: 52.56 | S146: 64.94 | T146: 45.86 | U146: 274.65 | V146: 249.06 | W146: 279.68 | X146: 200.63
A147: Minimum | B147: 2019 | C147: 25.23 | D147: 1.55 | E147: -104.93 | F147: 54.55 | G147: 72.61 | H147: -0.06 | I147: 87.42 | J147: -104.93 | L147: MT | M147: 97.3175 | N147: 93.16916667 | O147: 141.4291667 | P147: 124.9175 | Q147: 72.61 | R147: 53.67 | S147: 73.09 | T147: 70.56 | U147: 180.74 | V147: 166.77 | W147: 244.5 | X147: 239.78
B148: 2020 | C148: 57.96 | D148: 15.67 | E148: 30.98 | F148: 52.56 | G148: 53.67 | H148: 32 | I148: 103.73 | J148: 15.67 | L148: P | M148: 151.0115924 | N148: 201.4857325 | O148: 224.7784076 | P148: 179.173758 | Q148: -0.06 | R148: 32 | S148: 58.11 | T148: 49.9 | U148: 586.55 | V148: 783.7 | W148: 774.06 | X148: 704.14
B149: 2021 | C149: 56.97 | D149: 40.66 | E149: 24.52 | F149: 64.94 | G149: 73.09 | H149: 58.11 | I149: 113.6 | J149: 24.52 | L149: W | M149: 113.673125 | N149: 128.763125 | O149: 159.41625 | P149: 161.45875 | Q149: 87.42 | R149: 103.73 | S149: 113.6 | T149: 106.05 | U149: 145.87 | V149: 177.26 | W149: 250.68 | X149: 282.26
B150: 2022 | C150: 50.99 | D150: 30.65 | E150: 36.82 | F150: 45.86 | G150: 70.56 | H150: 49.9 | I150: 106.05 | J150: 30.65 | L150: Suma końcowa | M150: 130.7041931 | N150: 180.0736587 | O150: 225.8842216 | P150: 181.9840933 | Q150: -104.93 | R150: 15.67 | S150: 24.52 | T150: 30.65 | U150: 1204.39 | V150: 2959.89 | W150: 2035.84 | X150: 1378.38
A151: Maksimum | B151: 2019 | C151: 521.94 | D151: 1204.39 | E151: 1070 | F151: 274.65 | G151: 180.74 | H151: 586.55 | I151: 145.87 | J151: 1204.39
B152: 2020 | C152: 1107.21 | D152: 2959.89 | E152: 882.38 | F152: 249.06 | G152: 166.77 | H152: 783.7 | I152: 177.26 | J152: 2959.89
B153: 2021 | C153: 848.64 | D153: 2035.84 | E153: 814.18 | F153: 279.68 | G153: 244.5 | H153: 774.06 | I153: 250.68 | J153: 2035.84
B154: 2022 | C154: 746.27 | D154: 1378.38 | E154: 1040 | F154: 200.63 | G154: 239.78 | H154: 704.14 | I154: 282.26 | J154: 1378.38
A156: 10. Wskaźnik WB10 - potencjał inwestycyjny w relacji do wydatków majątkowych
J157: (%%)
A158: Wskaźnik WB10 | C158: gminy | F158: miasta na prawach powiatu | G158: metropolie | H158: powiaty | I158: województwa | J158: Ogółem JST
C159: miejskie | D159: wiejskie | E159: miejsko-wiejskie | M159: Średnia z WB10[2019] | N159: Średnia z WB10[2020] | O159: Średnia z WB10[2021] | P159: Średnia z WB10[2022] | Q159: Minimum z WB10[2019] | R159: Minimum z WB10[2020] | S159: Minimum z WB10[2021] | T159: Minimum z WB10[2022] | U159: Maksimum z WB10[2019] | V159: Maksimum z WB10[2020] | W159: Maksimum z WB10[2021] | X159: Maksimum z WB10[2022]
A160: Średnia | B160: 2019 | C160: 127.1972881 | D160: 147.5062525 | E160: 121.9342178 | F160: 102.0683333 | G160: 96.27166667 | H160: 161.8383121 | I160: 115.81375 | J160: 140.0956003 | L160: GM | M160: 127.1972881 | N160: 174.9355932 | O160: 224.0158475 | P160: 178.1472034 | Q160: -54.59 | R160: 18.22 | S160: -61.91 | T160: 14.03 | U160: 733.2 | V160: 2120.71 | W160: 1171.79 | X160: 1201.21
B161: 2020 | C161: 174.9355932 | D161: 240.1214144 | E161: 193.8936103 | F161: 124.9477778 | G161: 89.79583333 | H161: 222.6696497 | I161: 132.4475 | J161: 218.3142964 | L161: GMW | M161: 121.9269335 | N161: 193.8936103 | O161: 235.5441692 | P161: 182.8816465 | Q161: -5507.75 | R161: -1962.59 | S161: -224.46 | T161: -116.57 | U161: 1302.46 | V161: 12687.79 | W161: 2139.34 | X161: 1746.12
B162: 2021 | C162: 224.0158475 | D162: 291.6758427 | E162: 235.5194479 | F162: 165.797037 | G162: 148.72 | H162: 252.7117197 | I162: 167.031875 | J162: 264.6473815 | L162: GW | M162: 147.5062525 | N162: 240.1214144 | O162: 291.6758427 | P162: 210.3147918 | Q162: -389.14 | R162: -2234.42 | S162: -504.46 | T162: -12.67 | U162: 1810.06 | V162: 14908.09 | W162: 7509.27 | X162: 1882.61
B163: 2022 | C163: 178.1472034 | D163: 210.3147918 | E163: 182.8816465 | F163: 124.4516667 | G163: 129.7441667 | H163: 192.9335987 | I163: 167.275 | J163: 196.9545921 | L163: M | M163: 102.0683333 | N163: 124.9477778 | O163: 165.797037 | P163: 124.4516667 | Q163: -51.46 | R163: 39.07 | S163: -6.96 | T163: -5.23 | U163: 274.74 | V163: 266.1 | W163: 311.1 | X163: 225.07
A164: Minimum | B164: 2019 | C164: -54.59 | D164: -389.14 | E164: -5507.75 | F164: -51.46 | G164: 64.73 | H164: -279.7 | I164: 84.69 | J164: -5507.75 | L164: MT | M164: 96.27166667 | N164: 89.79583333 | O164: 148.72 | P164: 129.7441667 | Q164: 64.73 | R164: 43.98 | S164: 65.49 | T164: 63.32 | U164: 203.65 | V164: 173.15 | W164: 273.36 | X164: 273.55
B165: 2020 | C165: 18.22 | D165: -2234.42 | E165: -1962.59 | F165: 39.07 | G165: 43.98 | H165: -409.02 | I165: 104.29 | J165: -2234.42 | L165: P | M165: 161.8383121 | N165: 222.6696497 | O165: 252.7117197 | P165: 192.9335987 | Q165: -279.7 | R165: -409.02 | S165: 0.94 | T165: -49.51 | U165: 1157.27 | V165: 997.66 | W165: 1127.03 | X165: 1367.8
B166: 2021 | C166: -61.91 | D166: -504.46 | E166: -224.46 | F166: -6.96 | G166: 65.49 | H166: 0.94 | I166: 115.9 | J166: -504.46 | L166: W | M166: 115.81375 | N166: 132.4475 | O166: 167.031875 | P166: 167.275 | Q166: 84.69 | R166: 104.29 | S166: 115.9 | T166: 107.38 | U166: 159.37 | V166: 186.3 | W166: 263.95 | X166: 298.15
B167: 2022 | C167: 14.03 | D167: -12.67 | E167: -116.57 | F167: -5.23 | G167: 63.32 | H167: -49.51 | I167: 107.38 | J167: -116.57 | L167: Suma końcowa | M167: 140.0956003 | N167: 218.3142964 | O167: 264.6473815 | P167: 196.9545921 | Q167: -5507.75 | R167: -2234.42 | S167: -504.46 | T167: -116.57 | U167: 1810.06 | V167: 14908.09 | W167: 7509.27 | X167: 1882.61
A168: Maksimum | B168: 2019 | C168: 733.2 | D168: 1810.06 | E168: 1302.46 | F168: 274.74 | G168: 203.65 | H168: 1157.27 | I168: 159.37 | J168: 1810.06
B169: 2020 | C169: 2120.71 | D169: 14908.09 | E169: 12687.79 | F169: 266.1 | G169: 173.15 | H169: 997.66 | I169: 186.3 | J169: 14908.09
B170: 2021 | C170: 1171.79 | D170: 7509.27 | E170: 2139.34 | F170: 311.1 | G170: 273.36 | H170: 1127.03 | I170: 263.95 | J170: 7509.27
B171: 2022 | C171: 1201.21 | D171: 1882.61 | E171: 1746.12 | F171: 225.07 | G171: 273.55 | H171: 1367.8 | I171: 298.15 | J171: 1882.61
A173: 11. Wskaźnik WB11 - wykorzystanie potencjału inwestycyjnego
J174: (%%)
A175: Wskaźnik WB11 | C175: gminy | F175: miasta na prawach powiatu | G175: metropolie | H175: powiaty | I175: województwa | J175: Ogółem JST
C176: miejskie | D176: wiejskie | E176: miejsko-wiejskie | M176: Średnia z WB11[2019] | N176: Średnia z WB11[2020] | O176: Średnia z WB11[2021] | P176: Średnia z WB11[2022] | Q176: Minimum z WB11[2019] | R176: Minimum z WB11[2020] | S176: Minimum z WB11[2021] | T176: Minimum z WB11[2022] | U176: Maksimum z WB11[2019] | V176: Maksimum z WB11[2020] | W176: Maksimum z WB11[2021] | X176: Maksimum z WB11[2022]
A177: Średnia | B177: 2019 | C177: 93.14665254 | D177: 102.5203152 | E177: 95.62796073 | F177: 106.7824074 | G177: 118.0625 | H177: 68.72949045 | I177: 88.784375 | J177: 96.39902387 | L177: GM | M177: 93.14665254 | N177: 81.08949153 | O177: 53.88330508 | P177: 74.46351695 | Q177: -238.73 | R177: 4.72 | S177: -161.52 | T177: 8.32 | U177: 308.45 | V177: 548.91 | W177: 166.42 | X177: 712.57
B178: 2020 | C178: 81.08949153 | D178: 70.15217449 | E178: 65.67108896 | F178: 94.84055556 | G178: 130.9691667 | H178: 52.38073248 | I178: 77.8925 | J178: 68.81306021 | L178: GMW | M178: 95.62796073 | N178: 65.70098187 | O178: 50.22348943 | P178: 69.29826284 | Q178: -497.05 | R178: -3369.57 | S178: -2046.28 | T178: -862.26 | U178: 1209.86 | V178: 764.7 | W178: 477.7 | X178: 1734.37
B179: 2021 | C179: 53.88330508 | D179: 44.04064347 | E179: 50.19570552 | F179: 38.71462963 | G179: 79.655 | H179: 82.08933121 | I179: 63.9 | J179: 50.71708586 | L179: GW | M179: 102.5242102 | N179: 70.15217449 | O179: 43.98780568 | P179: 57.44223397 | Q179: -744.34 | R179: -110.63 | S179: -4444.59 | T179: -2472.21 | U179: 6937.64 | V179: 8776.53 | W179: 242.18 | X179: 1029.69
B180: 2022 | C180: 74.46351695 | D180: 57.44223397 | E180: 69.29826284 | F180: 52.42740741 | G180: 92.89916667 | H180: 58.90506369 | I180: 63.7575 | J180: 61.92416103 | L180: M | M180: 106.7824074 | N180: 94.84055556 | O180: 38.71462963 | P180: 52.42740741 | Q180: -194.33 | R180: 37.58 | S180: -1437.68 | T180: -1910.53 | U180: 277.2 | V180: 255.95 | W180: 193.91 | X180: 272.36
A181: Minimum | B181: 2019 | C181: -238.73 | D181: -744.34 | E181: -497.05 | F181: -194.33 | G181: 49.1 | H181: -337.15 | I181: 62.75 | J181: -744.34 | L181: MT | M181: 118.0625 | N181: 130.9691667 | O181: 79.655 | P181: 92.89916667 | Q181: 49.1 | R181: 57.75 | S181: 36.58 | T181: 36.56 | U181: 154.49 | V181: 227.38 | W181: 152.69 | X181: 157.94
B182: 2020 | C182: 4.72 | D182: -110.63 | E182: -3369.57 | F182: 37.58 | G182: 57.75 | H182: -501.02 | I182: 53.68 | J182: -3369.57 | L182: P | M182: 68.72949045 | N182: 52.38073248 | O182: 82.08933121 | P182: 58.90506369 | Q182: -337.15 | R182: -501.02 | S182: 8.87 | T182: -326.44 | U182: 259.73 | V182: 164.34 | W182: 10595.1 | X182: 143.93
B183: 2021 | C183: -161.52 | D183: -4444.59 | E183: -2046.28 | F183: -1437.68 | G183: 36.58 | H183: 8.87 | I183: 37.89 | J183: -4444.59 | L183: W | M183: 88.784375 | N183: 77.8925 | O183: 63.9 | P183: 63.7575 | Q183: 62.75 | R183: 53.68 | S183: 37.89 | T183: 33.54 | U183: 118.07 | V183: 95.89 | W183: 86.28 | X183: 93.12
B184: 2022 | C184: 8.32 | D184: -2472.21 | E184: -862.26 | F184: -1910.53 | G184: 36.56 | H184: -326.44 | I184: 33.54 | J184: -2472.21 | L184: Suma końcowa | M184: 96.39902387 | N184: 68.81306021 | O184: 50.71708586 | P184: 61.92416103 | Q184: -744.34 | R184: -3369.57 | S184: -4444.59 | T184: -2472.21 | U184: 6937.64 | V184: 8776.53 | W184: 10595.1 | X184: 1734.37
A185: Maksimum | B185: 2019 | C185: 308.45 | D185: 6937.64 | E185: 1209.86 | F185: 277.2 | G185: 154.49 | H185: 259.73 | I185: 118.07 | J185: 6937.64
B186: 2020 | C186: 548.91 | D186: 8776.53 | E186: 764.7 | F186: 255.95 | G186: 227.38 | H186: 164.34 | I186: 95.89 | J186: 8776.53
B187: 2021 | C187: 166.42 | D187: 242.18 | E187: 477.7 | F187: 193.91 | G187: 152.69 | H187: 10595.1 | I187: 86.28 | J187: 10595.1
B188: 2022 | C188: 712.57 | D188: 1029.69 | E188: 1734.37 | F188: 272.36 | G188: 157.94 | H188: 143.93 | I188: 93.12 | J188: 1734.37
A190: 12. Wskaźnik WB12 – wskaźnik jednoroczny średniej z art. 243 ustawy o finansach publicznych (z uwzględnieniem dochodów ze sprzedaży majątku)
J191: (%%)
A192: Wskaźnik WB12 | C192: gminy | F192: miasta na prawach powiatu | G192: metropolie | H192: powiaty | I192: województwa | J192: Ogółem JST
C193: miejskie | D193: wiejskie | E193: miejsko-wiejskie | L193: Etykiety wierszy | M193: Średnia z WB12[2019] | N193: Średnia z WB12[2020] | O193: Średnia z WB12[2021] | P193: Średnia z WB12[2022] | Q193: Minimum z WB12[2019] | R193: Minimum z WB12[2020] | S193: Minimum z WB12[2021] | T193: Minimum z WB12[2022] | U193: Maksimum z WB12[2019] | V193: Maksimum z WB12[2020] | W193: Maksimum z WB12[2021] | X193: Maksimum z WB12[2022]
A194: Średnia | B194: 2019 | C194: 13.72152542 | D194: 15.24434237 | E194: 14.37834356 | F194: 11.10148148 | G194: 12.33666667 | H194: 13.08038217 | I194: 31.799375 | J194: 14.68337371 | L194: GM | M194: 13.72152542 | N194: 11.25394068 | O194: 18.23838983 | P194: 12.74580508 | Q194: -4.15 | R194: -2.93 | S194: -8.88 | T194: -3.62 | U194: 109.95 | V194: 65.87 | W194: 43.03 | X194: 186.05
B195: 2020 | C195: 11.25394068 | D195: 16.09336179 | E195: 14.46378834 | F195: 9.219259259 | G195: 8.071666667 | H195: 12.28894904 | I195: 34.06625 | J195: 14.81831136 | L195: GMW | M195: 14.42554381 | N195: 14.49951662 | O195: 18.11129909 | P195: 14.88915408 | Q195: -18.92 | R195: -0.48 | S195: -4.66 | T195: -17.22 | U195: 57.84 | V195: 52.14 | W195: 61.76 | X195: 114.26
B196: 2021 | C196: 18.23838983 | D196: 18.41877873 | E196: 18.06719325 | F196: 15.96407407 | G196: 16.54916667 | H196: 15.0961465 | I196: 40.3475 | J196: 18.02004631 | L196: GW | M196: 15.24434237 | N196: 16.08849967 | O196: 18.40180436 | P196: 19.2924653 | Q196: -7.27 | R196: -4.4 | S196: -19.36 | T196: -3.95 | U196: 67.24 | V196: 63.53 | W196: 72.58 | X196: 93.17
B197: 2022 | C197: 12.74580508 | D197: 19.2924653 | E197: 14.88915408 | F197: 7.253148148 | G197: 8.971666667 | H197: 11.86579618 | I197: 34.63875 | J197: 16.6845529 | L197: M | M197: 11.10148148 | N197: 9.219259259 | O197: 15.96407407 | P197: 7.253148148 | Q197: 2.01 | R197: 0.49 | S197: 8.6 | T197: -4.3 | U197: 29.37 | V197: 21.52 | W197: 26.2 | X197: 18.95
A198: Minimum | B198: 2019 | C198: -4.15 | D198: -7.27 | E198: -18.92 | F198: 2.01 | G198: 7.43 | H198: -0.6 | I198: 22.05 | J198: -18.92 | L198: P | M198: 13.08038217 | N198: 12.28894904 | O198: 15.0961465 | P198: 11.86579618 | Q198: -0.6 | R198: -3.92 | S198: 3.49 | T198: -3.32 | U198: 40.33 | V198: 59.79 | W198: 36.71 | X198: 59.03
B199: 2020 | C199: -2.93 | D199: -4.4 | E199: -0.48 | F199: 0.49 | G199: -0.96 | H199: -3.92 | I199: 26.1 | J199: -4.4 | L199: W | M199: 31.799375 | N199: 34.06625 | O199: 40.3475 | P199: 34.63875 | Q199: 22.05 | R199: 26.1 | S199: 29.75 | T199: 23.56 | U199: 41.65 | V199: 48.46 | W199: 48.87 | X199: 46.56
B200: 2021 | C200: -8.88 | D200: -19.36 | E200: -4.66 | F200: 8.6 | G200: 9.51 | H200: 3.49 | I200: 29.75 | J200: -19.36 | L200: MT | M200: 12.33666667 | N200: 8.071666667 | O200: 16.54916667 | P200: 8.971666667 | Q200: 7.43 | R200: -0.96 | S200: 9.51 | T200: 1.41 | U200: 18.76 | V200: 15.56 | W200: 21.45 | X200: 16.03
B201: 2022 | C201: -3.62 | D201: -3.95 | E201: -17.22 | F201: -4.3 | G201: 1.41 | H201: -3.32 | I201: 23.56 | J201: -17.22 | L201: Suma końcowa | M201: 14.68337371 | N201: 14.81831136 | O201: 18.02004631 | P201: 16.6845529 | Q201: -18.92 | R201: -4.4 | S201: -19.36 | T201: -17.22 | U201: 109.95 | V201: 65.87 | W201: 72.58 | X201: 186.05
A202: Maksimum | B202: 2019 | C202: 109.95 | D202: 67.24 | E202: 57.84 | F202: 29.37 | G202: 18.76 | H202: 40.33 | I202: 41.65 | J202: 109.95
B203: 2020 | C203: 65.87 | D203: 63.53 | E203: 52.14 | F203: 21.52 | G203: 15.56 | H203: 59.79 | I203: 48.46 | J203: 65.87
B204: 2021 | C204: 43.03 | D204: 72.58 | E204: 61.76 | F204: 26.2 | G204: 21.45 | H204: 36.71 | I204: 48.87 | J204: 72.58
B205: 2022 | C205: 186.05 | D205: 93.17 | E205: 114.26 | F205: 18.95 | G205: 16.03 | H205: 59.03 | I205: 46.56 | J205: 186.05

Sheet Tab_2 wskaźniki na mieszkańca
A1: Tablica 2: WSKAŹNIKI NA MIESZKAŃCA | J1: powrót do spisu tablic
A3: 13. Wskaźnik WL1 – Transfery bieżące na mieszkańca
J4: (zł)
A5: Wskaźnik WL1 | C5: gminy | F5: miasta na prawach powiatu | G5: metropolie | H5: powiaty | I5: województwa | J5: Ogółem JST
C6: miejskie | D6: wiejskie | E6: miejsko-wiejskie | L6: Etykiety wierszy | M6: Średnia z WL1[2019] | N6: Średnia z WL1[2020] | O6: Średnia z WL1[2021] | P6: Średnia z WL1[2022] | Q6: Minimum z WL1[2019] | R6: Minimum z WL1[2020] | S6: Minimum z WL1[2021] | T6: Minimum z WL1[2022] | U6: Maksimum z WL1[2019] | V6: Maksimum z WL1[2020] | W6: Maksimum z WL1[2021] | X6: Maksimum z WL1[2022]
A7: Średnia | B7: 2019 | C7: 2251.340593 | D7: 3151.20881 | E7: 2779.010408 | F7: 3068.002407 | G7: 2607.205 | H7: 713.2403185 | I7: 173.8625 | J7: 2694.156769 | L7: GM | M7: 2251.340593 | N7: 2537.964025 | O7: 2803.303263 | P7: 2744.236949 | Q7: 1536.32 | R7: 1725.16 | S7: 1919.89 | T7: 1801.77 | U7: 3855.4 | V7: 3875.47 | W7: 5055.59 | X7: 4735.58
B8: 2020 | C8: 2537.964025 | D8: 3453.673496 | E8: 3078.600483 | F8: 3504.423148 | G8: 3044.435 | H8: 819.9185987 | I8: 218.954375 | J8: 2974.396441 | L8: GMW | M8: 2779.010408 | N8: 3078.600483 | O8: 3276.544305 | P8: 3554.606269 | Q8: 1648.35 | R8: 1729.62 | S8: 1998.91 | T8: 1881.54 | U8: 4775.53 | V8: 4914.98 | W8: 4967.72 | X8: 5284.58
B9: 2021 | C9: 2803.303263 | D9: 3658.771613 | E9: 3276.544305 | F9: 3839.035 | G9: 3384.994167 | H9: 880.7100318 | I9: 220.8225 | J9: 3168.64171 | L9: GW | M9: 3151.20881 | N9: 3453.673496 | O9: 3658.771613 | P9: 3989.636219 | Q9: 1612.21 | R9: 1986.66 | S9: 2069.6 | T9: 1890.22 | U9: 4954.62 | V9: 5433.82 | W9: 5738.51 | X9: 6172.64
B10: 2022 | C10: 2744.236949 | D10: 3989.636219 | E10: 3554.606269 | F10: 3681.513148 | G10: 2994.155 | H10: 938.9806688 | I10: 257.828125 | J10: 3409.620812 | L10: M | M10: 3068.002407 | N10: 3504.423148 | O10: 3839.035 | P10: 3681.513148 | Q10: 2212.37 | R10: 2560.2 | S10: 2904.64 | T10: 2672.49 | U10: 4247.91 | V10: 4829.05 | W10: 5206.16 | X10: 5190.63
A11: Minimum | B11: 2019 | C11: 1536.32 | D11: 1612.21 | E11: 1648.35 | F11: 2212.37 | G11: 2252.99 | H11: 250.89 | I11: 57.54 | J11: 57.54 | L11: P | M11: 713.2403185 | N11: 819.9185987 | O11: 880.7100318 | P11: 938.9806688 | Q11: 250.89 | R11: 285.41 | S11: 319.14 | T11: 267.8 | U11: 1575.4 | V11: 1712.73 | W11: 1762.29 | X11: 1936.51
B12: 2020 | C12: 1725.16 | D12: 1986.66 | E12: 1729.62 | F12: 2560.2 | G12: 2691.34 | H12: 285.41 | I12: 82.66 | J12: 82.66 | L12: W | M12: 173.8625 | N12: 218.954375 | O12: 220.8225 | P12: 257.828125 | Q12: 57.54 | R12: 82.66 | S12: 86.17 | T12: 82.03 | U12: 266.97 | V12: 351.91 | W12: 346.4 | X12: 377.57
B13: 2021 | C13: 1919.89 | D13: 2069.6 | E13: 1998.91 | F13: 2904.64 | G13: 3012.93 | H13: 319.14 | I13: 86.17 | J13: 86.17 | L13: MT | M13: 2607.205 | N13: 3044.435 | O13: 3384.994167 | P13: 2994.155 | Q13: 2252.99 | R13: 2691.34 | S13: 3012.93 | T13: 2639.12 | U13: 3230.54 | V13: 3755.09 | W13: 4040 | X13: 3687.12
B14: 2022 | C14: 1801.77 | D14: 1890.22 | E14: 1881.54 | F14: 2672.49 | G14: 2639.12 | H14: 267.8 | I14: 82.03 | J14: 82.03 | L14: Suma końcowa | M14: 2694.156769 | N14: 2974.396441 | O14: 3168.64171 | P14: 3409.620812 | Q14: 57.54 | R14: 82.66 | S14: 86.17 | T14: 82.03 | U14: 4954.62 | V14: 5433.82 | W14: 5738.51 | X14: 6172.64
A15: Maksimum | B15: 2019 | C15: 3855.4 | D15: 4954.62 | E15: 4775.53 | F15: 4247.91 | G15: 3230.54 | H15: 1575.4 | I15: 266.97 | J15: 4954.62
B16: 2020 | C16: 3875.47 | D16: 5433.82 | E16: 4914.98 | F16: 4829.05 | G16: 3755.09 | H16: 1712.73 | I16: 351.91 | J16: 5433.82
B17: 2021 | C17: 5055.59 | D17: 5738.51 | E17: 4967.72 | F17: 5206.16 | G17: 4040 | H17: 1762.29 | I17: 346.4 | J17: 5738.51
B18: 2022 | C18: 4735.58 | D18: 6172.64 | E18: 5284.58 | F18: 5190.63 | G18: 3687.12 | H18: 1936.51 | I18: 377.57 | J18: 6172.64
A20: 14. Wskaźnik WL2 – Nadwyżka operacyjna na mieszkańca
J21: (zł)
A22: Wskaźnik WL2 | C22: gminy | F22: miasta na prawach powiatu | G22: metropolie | H22: powiaty | I22: województwa | J22: Ogółem JST
C23: miejskie | D23: wiejskie | E23: miejsko-wiejskie | L23: Etykiety wierszy | M23: Średnia z WL2[2019] | N23: Średnia z WL2[2020] | O23: Średnia z WL2[2021] | P23: Średnia z WL2[2022] | Q23: Minimum z WL2[2019] | R23: Minimum z WL2[2020] | S23: Minimum z WL2[2021] | T23: Minimum z WL2[2022] | U23: Maksimum z WL2[2019] | V23: Maksimum z WL2[2020] | W23: Maksimum z WL2[2021] | X23: Maksimum z WL2[2022]
A24: Średnia | B24: 2019 | C24: 330.4266949 | D24: 486.11577 | E24: 409.8723716 | F24: 398.4405556 | G24: 572.9675 | H24: 105.4356369 | I24: 88.2725 | J24: 408.877777 | L24: GM | M24: 330.4266949 | N24: 263.2336864 | O24: 558.0640254 | P24: 346.7955085 | Q24: -235.94 | R24: -350.32 | S24: -1331.7 | T24: -360.85 | U24: 1727.21 | V24: 2003.94 | W24: 3198.44 | X24: 2589.59
B25: 2020 | C25: 263.2336864 | D25: 520.925889 | E25: 420.046858 | F25: 311.8264815 | G25: 325.08 | H25: 106.5458917 | I25: 110.19 | J25: 421.9141717 | L25: GMW | M25: 409.8723716 | N25: 420.046858 | O25: 582.558716 | P25: 543.7759668 | Q25: -639.66 | R25: -103.09 | S25: -286.88 | T25: -575.67 | U25: 1753.16 | V25: 1928.05 | W25: 3028.47 | X25: 3827.48
B26: 2021 | C26: 558.0640254 | D26: 656.8492862 | E26: 582.558716 | F26: 691.0948148 | G26: 898.4358333 | H26: 140.2416561 | I26: 150.935 | J26: 572.0417314 | L26: GW | M26: 486.11577 | N26: 520.925889 | O26: 656.8492862 | P26: 839.086345 | Q26: -368.58 | R26: -206.83 | S26: -570.91 | T26: -365.63 | U26: 15812.3 | V26: 8049.21 | W26: 12389.34 | X26: 9185.76
B27: 2022 | C27: 346.7955085 | D27: 839.086345 | E27: 543.7759668 | F27: 288.737037 | G27: 390.7983333 | H27: 120.8924522 | I27: 147.070625 | J27: 631.2632027 | L27: M | M27: 398.4405556 | N27: 311.8264815 | O27: 691.0948148 | P27: 288.737037 | Q27: -80.68 | R27: -143.35 | S27: 112.52 | T27: -283 | U27: 1302.14 | V27: 1140.84 | W27: 1389.62 | X27: 1411.06
A28: Minimum | B28: 2019 | C28: -235.94 | D28: -368.58 | E28: -639.66 | F28: -80.68 | G28: 278.1 | H28: -51.08 | I28: 52.5 | J28: -639.66 | L28: P | M28: 105.4356369 | N28: 106.5458917 | O28: 140.2416561 | P28: 120.8924522 | Q28: -51.08 | R28: -31.42 | S28: 13.65 | T28: -46.1 | U28: 253.12 | V28: 632.66 | W28: 314.02 | X28: 452.21
B29: 2020 | C29: -350.32 | D29: -206.83 | E29: -103.09 | F29: -143.35 | G29: -103.26 | H29: -31.42 | I29: 64.86 | J29: -350.32 | L29: W | M29: 88.2725 | N29: 110.19 | O29: 150.935 | P29: 147.070625 | Q29: 52.5 | R29: 64.86 | S29: 102.92 | T29: 95.55 | U29: 167.13 | V29: 158.62 | W29: 191.88 | X29: 202.65
B30: 2021 | C30: -1331.7 | D30: -570.91 | E30: -286.88 | F30: 112.52 | G30: 460.21 | H30: 13.65 | I30: 102.92 | J30: -1331.7 | L30: MT | M30: 572.9675 | N30: 325.08 | O30: 898.4358333 | P30: 390.7983333 | Q30: 278.1 | R30: -103.26 | S30: 460.21 | T30: -0.98 | U30: 918.51 | V30: 767.51 | W30: 1277.61 | X30: 972.01
B31: 2022 | C31: -360.85 | D31: -365.63 | E31: -575.67 | F31: -283 | G31: -0.98 | H31: -46.1 | I31: 95.55 | J31: -575.67 | L31: Suma końcowa | M31: 408.877777 | N31: 421.9141717 | O31: 572.0417314 | P31: 631.2632027 | Q31: -639.66 | R31: -350.32 | S31: -1331.7 | T31: -575.67 | U31: 15812.3 | V31: 8049.21 | W31: 12389.34 | X31: 9185.76
A32: Maksimum | B32: 2019 | C32: 1727.21 | D32: 15812.3 | E32: 1753.16 | F32: 1302.14 | G32: 918.51 | H32: 253.12 | I32: 167.13 | J32: 15812.3
B33: 2020 | C33: 2003.94 | D33: 8049.21 | E33: 1928.05 | F33: 1140.84 | G33: 767.51 | H33: 632.66 | I33: 158.62 | J33: 8049.21
B34: 2021 | C34: 3198.44 | D34: 12389.34 | E34: 3028.47 | F34: 1389.62 | G34: 1277.61 | H34: 314.02 | I34: 191.88 | J34: 12389.34
B35: 2022 | C35: 2589.59 | D35: 9185.76 | E35: 3827.48 | F35: 1411.06 | G35: 972.01 | H35: 452.21 | I35: 202.65 | J35: 9185.76
A37: 15. Wskaźnik WL3 – Zobowiązania ogółem na mieszkańca
J38: (zł)
A39: Wskaźnik WL3 | C39: gminy | F39: miasta na prawach powiatu | G39: metropolie | H39: powiaty | I39: województwa | J39: Ogółem JST
C40: miejskie | D40: wiejskie | E40: miejsko-wiejskie | L40: Etykiety wierszy | M40: Średnia z WL3[2019] | N40: Średnia z WL3[2020] | O40: Średnia z WL3[2021] | P40: Średnia z WL3[2022] | Q40: Minimum z WL3[2019] | R40: Minimum z WL3[2020] | S40: Minimum z WL3[2021] | T40: Minimum z WL3[2022] | U40: Maksimum z WL3[2019] | V40: Maksimum z WL3[2020] | W40: Maksimum z WL3[2021] | X40: Maksimum z WL3[2022]
A41: Średnia | B41: 2019 | C41: 1240.393178 | D41: 1127.869035 | E41: 1356.376828 | F41: 2555.464259 | G41: 3447.091667 | H41: 272.8525478 | I41: 163.13875 | J41: 1127.455002 | L41: GM | M41: 1240.393178 | N41: 1361.481525 | O41: 1372.854703 | P41: 1361.765424 | Q41: 0 | R41: 0 | S41: 0 | T41: 0 | U41: 5630.58 | V41: 5744.94 | W41: 5479.75 | X41: 4824.17
B42: 2020 | C42: 1361.481525 | D42: 1146.2685 | E42: 1404.173459 | F42: 2808.747778 | G42: 3975.311667 | H42: 270.4506369 | I42: 166.84375 | J42: 1165.708525 | L42: GMW | M42: 1356.376828 | N42: 1404.173459 | O42: 1414.398852 | P42: 1456.34864 | Q42: 0 | R42: 0 | S42: 0 | T42: 0 | U42: 7070.7 | V42: 7444.52 | W42: 9192.28 | X42: 10324.98
B43: 2021 | C43: 1372.854703 | D43: 1119.509379 | E43: 1414.398852 | F43: 2865.808889 | G43: 4230.275833 | H43: 259.1451911 | I43: 156.805625 | J43: 1155.518671 | L43: GW | M43: 1127.869035 | N43: 1146.2685 | O43: 1119.509379 | P43: 1091.420126 | Q43: 0 | R43: 0 | S43: 0 | T43: 0 | U43: 9609.71 | V43: 9929.82 | W43: 9872.89 | X43: 13029.19
B44: 2022 | C44: 1361.765424 | D44: 1091.420126 | E44: 1456.34864 | F44: 3028.412037 | G44: 4282.25 | H44: 256.5332484 | I44: 143.089375 | J44: 1152.319277 | L44: M | M44: 2555.464259 | N44: 2808.747778 | O44: 2865.808889 | P44: 3028.412037 | Q44: 339.42 | R44: 271.49 | S44: 206.13 | T44: 269.02 | U44: 5385.23 | V44: 5697.56 | W44: 6934.78 | X44: 7922.58
A45: Minimum | B45: 2019 | C45: 0 | D45: 0 | E45: 0 | F45: 339.42 | G45: 1985.13 | H45: 0 | I45: 99.82 | J45: 0 | L45: P | M45: 272.8525478 | N45: 270.4506369 | O45: 259.1451911 | P45: 256.5332484 | Q45: 0 | R45: 0 | S45: 0 | T45: 0 | U45: 1503.44 | V45: 1457.75 | W45: 1419.71 | X45: 1332.52
B46: 2020 | C46: 0 | D46: 0 | E46: 0 | F46: 271.49 | G46: 2363.7 | H46: 0 | I46: 81.57 | J46: 0 | L46: W | M46: 163.13875 | N46: 166.84375 | O46: 156.805625 | P46: 143.089375 | Q46: 99.82 | R46: 81.57 | S46: 62.83 | T46: 44.59 | U46: 333.89 | V46: 328.86 | W46: 290.13 | X46: 255.27
B47: 2021 | C47: 0 | D47: 0 | E47: 0 | F47: 206.13 | G47: 2266.09 | H47: 0 | I47: 62.83 | J47: 0 | L47: MT | M47: 3447.091667 | N47: 3975.311667 | O47: 4230.275833 | P47: 4282.25 | Q47: 1985.13 | R47: 2363.7 | S47: 2266.09 | T47: 2107.7 | U47: 5136.56 | V47: 5984.65 | W47: 6355.84 | X47: 6383.17
B48: 2022 | C48: 0 | D48: 0 | E48: 0 | F48: 269.02 | G48: 2107.7 | H48: 0 | I48: 44.59 | J48: 0 | L48: Suma końcowa | M48: 1127.455002 | N48: 1165.708525 | O48: 1155.518671 | P48: 1152.319277 | Q48: 0 | R48: 0 | S48: 0 | T48: 0 | U48: 9609.71 | V48: 9929.82 | W48: 9872.89 | X48: 13029.19
A49: Maksimum | B49: 2019 | C49: 5630.58 | D49: 9609.71 | E49: 7070.7 | F49: 5385.23 | G49: 5136.56 | H49: 1503.44 | I49: 333.89 | J49: 9609.71
B50: 2020 | C50: 5744.94 | D50: 9929.82 | E50: 7444.52 | F50: 5697.56 | G50: 5984.65 | H50: 1457.75 | I50: 328.86 | J50: 9929.82
B51: 2021 | C51: 5479.75 | D51: 9872.89 | E51: 9192.28 | F51: 6934.78 | G51: 6355.84 | H51: 1419.71 | I51: 290.13 | J51: 9872.89
B52: 2022 | C52: 4824.17 | D52: 13029.19 | E52: 10324.98 | F52: 7922.58 | G52: 6383.17 | H52: 1332.52 | I52: 255.27 | J52: 13029.19
A54: 16. Wskaźnik WL4 - Potencjał rozwojowy na mieszkańca
J55: (zł)
A56: Wskaźnik WL4 | C56: gminy | F56: miasta na prawach powiatu | G56: metropolie | H56: powiaty | I56: województwa | J56: Ogółem JST
C57: miejskie | D57: wiejskie | E57: miejsko-wiejskie | M57: Średnia z WL4[2019] | N57: Średnia z WL4[2020] | O57: Średnia z WL4[2021] | P57: Średnia z WL4[2022] | Q57: Minimum z WL4[2019] | R57: Minimum z WL4[2020] | S57: Minimum z WL4[2021] | T57: Minimum z WL4[2022] | U57: Maksimum z WL4[2019] | V57: Maksimum z WL4[2020] | W57: Maksimum z WL4[2021] | X57: Maksimum z WL4[2022]
A58: Średnia | B58: 2019 | C58: 1194.303686 | D58: 1316.990416 | E58: 1118.321465 | F58: 1359.655556 | G58: 1625.8575 | H58: 331.286879 | I58: 251.241875 | J58: 1145.624019 | L58: GM | M58: 1194.303686 | N58: 1388.111695 | O58: 1843.633686 | P58: 2151.635975 | Q58: 74.62 | R58: 242.03 | S58: 458.04 | T58: 398.81 | U58: 13886.18 | V58: 10148.38 | W58: 10847.75 | X58: 20593.85
B59: 2020 | C59: 1388.111695 | D59: 1641.967396 | E59: 1373.804592 | F59: 1638.948148 | G59: 1479.754167 | H59: 430.0744268 | I59: 279.01375 | J59: 1413.294446 | L59: GMW | M59: 1118.321465 | N59: 1373.804592 | O59: 1951.438187 | P59: 2230.466405 | Q59: -524.47 | R59: 325.71 | S59: 427.6 | T59: 447.68 | U59: 5304.64 | V59: 6484.18 | W59: 9313.97 | X59: 10760.77
B60: 2021 | C60: 1843.633686 | D60: 2346.612141 | E60: 1951.438187 | F60: 2204.401296 | G60: 2155.246667 | H60: 501.7587261 | I60: 337.86875 | J60: 1989.751539 | L60: GW | M60: 1316.990416 | N60: 1641.967396 | O60: 2346.612141 | P60: 2932.144547 | Q60: 4.89 | R60: 253.77 | S60: 414.5 | T60: 336.49 | U60: 101624.84 | V60: 96820.13 | W60: 95386.1 | X60: 93255.84
B61: 2022 | C61: 2151.635975 | D61: 2932.144547 | E61: 2230.466405 | F61: 1980.921111 | G61: 2040.268333 | H61: 572.7719108 | I61: 372.855 | J61: 2400.412743 | L61: M | M61: 1359.655556 | N61: 1638.948148 | O61: 2204.401296 | P61: 1980.921111 | Q61: 389.38 | R61: 292.79 | S61: 880.17 | T61: 514.97 | U61: 3803.62 | V61: 8908.33 | W61: 13688.93 | X61: 6582.66
A62: Minimum | B62: 2019 | C62: 74.62 | D62: 4.89 | E62: -524.47 | F62: 389.38 | G62: 885.04 | H62: -0.58 | I62: 153.69 | J62: -524.47 | L62: MT | M62: 1625.8575 | N62: 1479.754167 | O62: 2155.246667 | P62: 2040.268333 | Q62: 885.04 | R62: 686.55 | S62: 1246.7 | T62: 1047.69 | U62: 3090.03 | V62: 2977.79 | W62: 3261.17 | X62: 3648.28
B63: 2020 | C63: 242.03 | D63: 253.77 | E63: 325.71 | F63: 292.79 | G63: 686.55 | H63: 59.46 | I63: 180.47 | J63: 59.46 | L63: P | M63: 331.286879 | N63: 430.0744268 | O63: 501.7587261 | P63: 572.7719108 | Q63: -0.58 | R63: 59.46 | S63: 133.1 | T63: 151.26 | U63: 1333.96 | V63: 1140.24 | W63: 1244.75 | X63: 1973.47
B64: 2021 | C64: 458.04 | D64: 414.5 | E64: 427.6 | F64: 880.17 | G64: 1246.7 | H64: 133.1 | I64: 192.08 | J64: 133.1 | L64: W | M64: 251.241875 | N64: 279.01375 | O64: 337.86875 | P64: 372.855 | Q64: 153.69 | R64: 180.47 | S64: 192.08 | T64: 208.6 | U64: 548.61 | V64: 444.57 | W64: 505.41 | X64: 657.92
B65: 2022 | C65: 398.81 | D65: 336.49 | E65: 447.68 | F65: 514.97 | G65: 1047.69 | H65: 151.26 | I65: 208.6 | J65: 151.26 | L65: Suma końcowa | M65: 1145.624019 | N65: 1413.294446 | O65: 1989.751539 | P65: 2400.412743 | Q65: -524.47 | R65: 59.46 | S65: 133.1 | T65: 151.26 | U65: 101624.84 | V65: 96820.13 | W65: 95386.1 | X65: 93255.84
A66: Maksimum | B66: 2019 | C66: 13886.18 | D66: 101624.84 | E66: 5304.64 | F66: 3803.62 | G66: 3090.03 | H66: 1333.96 | I66: 548.61 | J66: 101624.84
B67: 2020 | C67: 10148.38 | D67: 96820.13 | E67: 6484.18 | F67: 8908.33 | G67: 2977.79 | H67: 1140.24 | I67: 444.57 | J67: 96820.13
B68: 2021 | C68: 10847.75 | D68: 95386.1 | E68: 9313.97 | F68: 13688.93 | G68: 3261.17 | H68: 1244.75 | I68: 505.41 | J68: 95386.1
B69: 2022 | C69: 20593.85 | D69: 93255.84 | E69: 10760.77 | F69: 6582.66 | G69: 3648.28 | H69: 1973.47 | I69: 657.92 | J69: 93255.84
A71: 17. Wskaźnik WL5 - potencjał inwestycyjny na mieszkańca
J72: (zł)
A73: Wskaźnik WL5 | C73: gminy | F73: miasta na prawach powiatu | G73: metropolie | H73: powiaty | I73: województwa | J73: Ogółem JST
C74: miejskie | D74: wiejskie | E74: miejsko-wiejskie | M74: Średnia z WL5[2019] | N74: Średnia z WL5[2020] | O74: Średnia z WL5[2021] | P74: Średnia z WL5[2022] | Q74: Minimum z WL5[2019] | R74: Minimum z WL5[2020] | S74: Minimum z WL5[2021] | T74: Minimum z WL5[2022] | U74: Maksimum z WL5[2019] | V74: Maksimum z WL5[2020] | W74: Maksimum z WL5[2021] | X74: Maksimum z WL5[2022]
A75: Średnia | B75: 2019 | C75: 1028.725085 | D75: 1116.717508 | E75: 918.4201057 | F75: 1132.083519 | G75: 1363.044167 | H75: 289.5886306 | I75: 228.309375 | J75: 966.3126612 | L75: GM | M75: 1028.725085 | N75: 1216.025975 | O75: 1672.458602 | P75: 1971.468517 | Q75: -162.67 | R75: 79.46 | S75: -498.95 | T75: 50 | U75: 13886.18 | V75: 10148.38 | W75: 10847.75 | X75: 20194.61
B76: 2020 | C76: 1216.025975 | D76: 1461.538632 | E76: 1182.573474 | F76: 1414.950185 | G76: 1217.2725 | H76: 395.9169427 | I76: 256.95125 | J76: 1247.095632 | L76: GMW | M76: 918.4201057 | N76: 1182.573474 | O76: 1763.444577 | P76: 2043.839335 | Q76: -1971.41 | R76: -1867.23 | S76: -1830.42 | T76: -548.61 | U76: 5304.64 | V76: 6484.18 | W76: 9176.23 | X76: 10760.77
B77: 2021 | C77: 1672.458602 | D77: 2169.746649 | E77: 1763.444577 | F77: 1937.912037 | G77: 1896.0125 | H77: 468.2528344 | I77: 312.299375 | J77: 1825.562807 | L77: GW | M77: 1116.717508 | N77: 1461.538632 | O77: 2169.746649 | P77: 2750.605182 | Q77: -1992.24 | R77: -3052.26 | S77: -2245.95 | T77: -280.4 | U77: 101624.84 | V77: 96820.13 | W77: 95386.1 | X77: 93255.84
B78: 2022 | C78: 1971.468517 | D78: 2750.605182 | E78: 2043.839335 | F78: 1688.242963 | G78: 1774.194167 | H78: 534.5186306 | I78: 353.67 | J78: 2232.243274 | L78: M | M78: 1132.083519 | N78: 1414.950185 | O78: 1937.912037 | P78: 1688.242963 | Q78: -170.19 | R78: 169.49 | S78: -44.99 | T78: -59.98 | U78: 3352.38 | V78: 8630.57 | W78: 13688.93 | X78: 6582.66
A79: Minimum | B79: 2019 | C79: -162.67 | D79: -1992.24 | E79: -1971.41 | F79: -170.19 | G79: 653.97 | H79: -694.25 | I79: 126.29 | J79: -1992.24 | L79: MT | M79: 1363.044167 | N79: 1217.2725 | O79: 1896.0125 | P79: 1774.194167 | Q79: 653.97 | R79: 422.7 | S79: 871.25 | T79: 754.62 | U79: 2741.26 | V79: 2822.03 | W79: 3039.14 | X79: 3352.27
B80: 2020 | C80: 79.46 | D80: -3052.26 | E80: -1867.23 | F80: 169.49 | G80: 422.7 | H80: -313.25 | I80: 159.73 | J80: -3052.26 | L80: P | M80: 289.5886306 | N80: 395.9169427 | O80: 468.2528344 | P80: 534.5186306 | Q80: -694.25 | R80: -313.25 | S80: 1.52 | T80: -88.63 | U80: 1333.96 | V80: 1092.76 | W80: 1232.72 | X80: 1945.55
B81: 2021 | C81: -498.95 | D81: -2245.95 | E81: -1830.42 | F81: -44.99 | G81: 871.25 | H81: 1.52 | I81: 175.79 | J81: -2245.95 | L81: W | M81: 228.309375 | N81: 256.95125 | O81: 312.299375 | P81: 353.67 | Q81: 126.29 | R81: 159.73 | S81: 175.79 | T81: 192.61 | U81: 540 | V81: 437.44 | W81: 489.55 | X81: 647.56
B82: 2022 | C82: 50 | D82: -280.4 | E82: -548.61 | F82: -59.98 | G82: 754.62 | H82: -88.63 | I82: 192.61 | J82: -548.61 | L82: Suma końcowa | M82: 966.3126612 | N82: 1247.095632 | O82: 1825.562807 | P82: 2232.243274 | Q82: -1992.24 | R82: -3052.26 | S82: -2245.95 | T82: -548.61 | U82: 101624.84 | V82: 96820.13 | W82: 95386.1 | X82: 93255.84
A83: Maksimum | B83: 2019 | C83: 13886.18 | D83: 101624.84 | E83: 5304.64 | F83: 3352.38 | G83: 2741.26 | H83: 1333.96 | I83: 540 | J83: 101624.84
B84: 2020 | C84: 10148.38 | D84: 96820.13 | E84: 6484.18 | F84: 8630.57 | G84: 2822.03 | H84: 1092.76 | I84: 437.44 | J84: 96820.13
B85: 2021 | C85: 10847.75 | D85: 95386.1 | E85: 9176.23 | F85: 13688.93 | G85: 3039.14 | H85: 1232.72 | I85: 489.55 | J85: 95386.1
B86: 2022 | C86: 20194.61 | D86: 93255.84 | E86: 10760.77 | F86: 6582.66 | G86: 3352.27 | H86: 1945.55 | I86: 647.56 | J86: 93255.84

Sheet Tab_3 wskaźniki zadłużenia
A1: Tablica 3: WSKAŹNIKI WEDŁUG TYTUŁÓW ZADŁUŻENIA | J1: powrót do spisu tablic
A3: 18. Wskaźnik WZ1 – Udział zobowiązań ogółem w dochodach ogółem
J4: (%%)
A5: Wskaźnik WZ1 | C5: gminy | F5: miasta na prawach powiatu | G5: metropolie | H5: powiaty | I5: województwa | J5: Ogółem JST
C6: miejskie | D6: wiejskie | E6: miejsko-wiejskie | M6: Średnia z WZ1[2019] | N6: Średnia z WZ1[2020] | O6: Średnia z WZ1[2021] | P6: Średnia z WZ1[2022] | Q6: Minimum z WZ1[2019] | R6: Minimum z WZ1[2020] | S6: Minimum z WZ1[2021] | T6: Minimum z WZ1[2022] | U6: Maksimum z WZ1[2019] | V6: Maksimum z WZ1[2020] | W6: Maksimum z WZ1[2021] | X6: Maksimum z WZ1[2022]
A7: Średnia | B7: 2019 | C7: 23.65686441 | D7: 20.80923178 | E7: 26.10534743 | F7: 37.40759259 | G7: 47.37916667 | H7: 21.83089172 | I7: 33.414375 | J7: 22.90972212 | L7: GM | M7: 23.65686441 | N7: 23.60377119 | O7: 21.74775424 | P7: 21.02529661 | Q7: 0 | R7: 0 | S7: 0 | T7: 0 | U7: 68.9 | V7: 68.34 | W7: 61.65 | X7: 66.85
B8: 2020 | C8: 23.60377119 | D8: 19.06076822 | E8: 24.46797583 | F8: 37.07333333 | G8: 50.875 | H8: 19.12691083 | I8: 30.17875 | J8: 21.26566441 | L8: GMW | M8: 26.10534743 | N8: 24.46797583 | O8: 22.32694864 | P8: 20.98483384 | Q8: 0 | R8: 0 | S8: 0 | T8: 0 | U8: 106.41 | V8: 114.97 | W8: 92.07 | X8: 94.63
B9: 2021 | C9: 21.74775424 | D9: 16.67765594 | E9: 22.32694864 | F9: 34.82814815 | G9: 48.56166667 | H9: 17.4256051 | I9: 25.953125 | J9: 19.05615604 | L9: GW | M9: 20.79625909 | N9: 19.05040317 | O9: 16.67374091 | P9: 14.59643754 | Q9: 0 | R9: 0 | S9: 0 | T9: 0 | U9: 101.05 | V9: 91.45 | W9: 70.87 | X9: 73.51
B10: 2022 | C10: 21.02529661 | D10: 14.59643754 | E10: 20.98483384 | F10: 36.61925926 | G10: 49.62083333 | H10: 15.49767516 | I10: 21.81625 | J10: 17.35894549 | L10: M | M10: 37.40759259 | N10: 37.07333333 | O10: 34.82814815 | P10: 36.61925926 | Q10: 5.87 | R10: 4.08 | S10: 2.93 | T10: 3.8 | U10: 85.94 | V10: 81.48 | W10: 86.94 | X10: 79.53
A11: Minimum | B11: 2019 | C11: 0 | D11: 0 | E11: 0 | F11: 5.87 | G11: 21.51 | H11: 0 | I11: 17.95 | J11: 0 | L11: P | M11: 21.83089172 | N11: 19.12691083 | O11: 17.4256051 | P11: 15.49767516 | Q11: 0 | R11: 0 | S11: 0 | T11: 0 | U11: 127.6 | V11: 111.56 | W11: 99.06 | X11: 82.17
B12: 2020 | C12: 0 | D12: 0 | E12: 0 | F12: 4.08 | G12: 28.37 | H12: 0 | I12: 12.67 | J12: 0 | L12: W | M12: 33.414375 | N12: 30.17875 | O12: 25.953125 | P12: 21.81625 | Q12: 17.95 | R12: 12.67 | S12: 9.73 | T12: 6.24 | U12: 63.47 | V12: 66.04 | W12: 44.35 | X12: 39.03
B13: 2021 | C13: 0 | D13: 0 | E13: 0 | F13: 2.93 | G13: 24.77 | H13: 0 | I13: 9.73 | J13: 0 | L13: MT | M13: 47.37916667 | N13: 50.875 | O13: 48.56166667 | P13: 49.62083333 | Q13: 21.51 | R13: 28.37 | S13: 24.77 | T13: 23.36 | U13: 77.82 | V13: 78.33 | W13: 77.64 | X13: 76.83
B14: 2022 | C14: 0 | D14: 0 | E14: 0 | F14: 3.8 | G14: 23.36 | H14: 0 | I14: 6.24 | J14: 0 | L14: Suma końcowa | M14: 22.90972212 | N14: 21.26566441 | O14: 19.05615604 | P14: 17.35894549 | Q14: 0 | R14: 0 | S14: 0 | T14: 0 | U14: 127.6 | V14: 114.97 | W14: 99.06 | X14: 94.63
A15: Maksimum | B15: 2019 | C15: 68.9 | D15: 101.05 | E15: 106.41 | F15: 85.94 | G15: 77.82 | H15: 127.6 | I15: 63.47 | J15: 127.6
B16: 2020 | C16: 68.34 | D16: 91.45 | E16: 114.97 | F16: 81.48 | G16: 78.33 | H16: 111.56 | I16: 66.04 | J16: 114.97
B17: 2021 | C17: 61.65 | D17: 70.87 | E17: 92.07 | F17: 86.94 | G17: 77.64 | H17: 99.06 | I17: 44.35 | J17: 99.06
B18: 2022 | C18: 66.85 | D18: 73.51 | E18: 94.63 | F18: 79.53 | G18: 76.83 | H18: 82.17 | I18: 39.03 | J18: 94.63
A20: 19. Wskaźnik WZ3 – Obciążenie dochodów ogółem obsługą zadłużenia
J21: (%%)
A22: Wskaźnik WZ3 | C22: gminy | F22: miasta na prawach powiatu | G22: metropolie | H22: powiaty | I22: województwa | J22: Ogółem JST
C23: miejskie | D23: wiejskie | E23: miejsko-wiejskie | M23: Średnia z WZ3[2019] | N23: Średnia z WZ3[2020] | O23: Średnia z WZ3[2021] | P23: Średnia z WZ3[2022] | Q23: Minimum z WZ3[2019] | R23: Minimum z WZ3[2020] | S23: Minimum z WZ3[2021] | T23: Minimum z WZ3[2022] | U23: Maksimum z WZ3[2019] | V23: Maksimum z WZ3[2020] | W23: Maksimum z WZ3[2021] | X23: Maksimum z WZ3[2022]
A24: Średnia | B24: 2019 | C24: 3.757669492 | D24: 4.238548917 | E24: 4.57892638 | F24: 4.177037037 | G24: 4.3975 | H24: 3.935796178 | I24: 5.49625 | J24: 4.249978625 | L24: GM | M24: 3.757669492 | N24: 3.431016949 | O24: 3.013135593 | P24: 3.684745763 | Q24: 0 | R24: 0 | S24: 0 | T24: 0 | U24: 21.92 | V24: 14.5 | W24: 35.22 | X24: 13.78
B25: 2020 | C25: 3.431016949 | D25: 3.394707814 | E25: 3.873773006 | F25: 3.623888889 | G25: 4.025 | H25: 2.858535032 | I25: 4.644375 | J25: 3.463284646 | L25: GMW | M25: 4.566329305 | N25: 3.85826284 | O25: 3.323353474 | P25: 3.829848943 | Q25: 0 | R25: 0 | S25: 0 | T25: 0 | U25: 66.02 | V25: 55.23 | W25: 48.04 | X25: 31.42
B26: 2021 | C26: 3.013135593 | D26: 2.903000657 | E26: 3.330368098 | F26: 3.739074074 | G26: 3.466666667 | H26: 2.568407643 | I26: 4.594375 | J26: 3.002233701 | L26: GW | M26: 4.241810972 | N26: 3.398327826 | O26: 2.903245208 | P26: 3.216946464 | Q26: 0 | R26: 0 | S26: 0 | T26: 0 | U26: 63.1 | V26: 63.02 | W26: 59.43 | X26: 42.32
B27: 2022 | C27: 3.684745763 | D27: 3.216946464 | E27: 3.829848943 | F27: 5.272407407 | G27: 5.050833333 | H27: 3.22 | I27: 4.118125 | J27: 3.453683648 | L27: M | M27: 4.177037037 | N27: 3.623888889 | O27: 3.739074074 | P27: 5.272407407 | Q27: 0.14 | R27: 0.48 | S27: 0.32 | T27: 0.92 | U27: 13.17 | V27: 10.41 | W27: 17.33 | X27: 21.18
A28: Minimum | B28: 2019 | C28: 0 | D28: 0 | E28: 0 | F28: 0.14 | G28: 2.49 | H28: 0 | I28: 1.51 | J28: 0 | L28: MT | M28: 4.3975 | N28: 4.025 | O28: 3.466666667 | P28: 5.050833333 | Q28: 2.49 | R28: 1.97 | S28: 1.41 | T28: 2.02 | U28: 8.61 | V28: 7.91 | W28: 8.14 | X28: 8.53
B29: 2020 | C29: 0 | D29: 0 | E29: 0 | F29: 0.48 | G29: 1.97 | H29: 0 | I29: 1.5 | J29: 0 | L29: P | M29: 3.935796178 | N29: 2.858535032 | O29: 2.568407643 | P29: 3.22 | Q29: 0 | R29: 0 | S29: 0 | T29: 0 | U29: 62.11 | V29: 34.59 | W29: 20.48 | X29: 30.88
B30: 2021 | C30: 0 | D30: 0 | E30: 0 | F30: 0.32 | G30: 1.41 | H30: 0 | I30: 1.6 | J30: 0 | L30: W | M30: 5.49625 | N30: 4.644375 | O30: 4.594375 | P30: 4.118125 | Q30: 1.51 | R30: 1.5 | S30: 1.6 | T30: 2.08 | U30: 12.62 | V30: 12.18 | W30: 12.73 | X30: 9.14
B31: 2022 | C31: 0 | D31: 0 | E31: 0 | F31: 0.92 | G31: 2.02 | H31: 0 | I31: 2.08 | J31: 0 | L31: Suma końcowa | M31: 4.249978625 | N31: 3.463284646 | O31: 3.002233701 | P31: 3.453683648 | Q31: 0 | R31: 0 | S31: 0 | T31: 0 | U31: 66.02 | V31: 63.02 | W31: 59.43 | X31: 42.32
A32: Maksimum | B32: 2019 | C32: 21.92 | D32: 63.1 | E32: 66.02 | F32: 13.17 | G32: 8.61 | H32: 62.11 | I32: 12.62 | J32: 66.02
B33: 2020 | C33: 14.5 | D33: 63.02 | E33: 55.23 | F33: 10.41 | G33: 7.91 | H33: 34.59 | I33: 12.18 | J33: 63.02
B34: 2021 | C34: 35.22 | D34: 59.43 | E34: 48.04 | F34: 17.33 | G34: 8.14 | H34: 20.48 | I34: 12.73 | J34: 59.43
B35: 2022 | C35: 13.78 | D35: 42.32 | E35: 31.42 | F35: 21.18 | G35: 8.53 | H35: 30.88 | I35: 9.14 | J35: 42.32
A37: 20. Wskaźnik WZ5 – Obciążenie dochodów bieżących obsługą zadłużenia
J38: (%%)
A39: Wskaźnik WZ5 | C39: gminy | F39: miasta na prawach powiatu | G39: metropolie | H39: powiaty | I39: województwa | J39: Ogółem JST
C40: miejskie | D40: wiejskie | E40: miejsko-wiejskie | M40: Średnia z WZ5[2019] | N40: Średnia z WZ5[2020] | O40: Średnia z WZ5[2021] | P40: Średnia z WZ5[2022] | Q40: Minimum z WZ5[2019] | R40: Minimum z WZ5[2020] | S40: Minimum z WZ5[2021] | T40: Minimum z WZ5[2022] | U40: Maksimum z WZ5[2019] | V40: Maksimum z WZ5[2020] | W40: Maksimum z WZ5[2021] | X40: Maksimum z WZ5[2022]
A41: Średnia | B41: 2019 | C41: 5.933601695 | D41: 7.183834537 | E41: 7.590092025 | F41: 6.126666667 | G41: 5.83 | H41: 5.651050955 | I41: 9.25625 | J41: 6.987310296 | L41: GM | M41: 5.933601695 | N41: 5.876610169 | O41: 4.820677966 | P41: 5.828432203 | Q41: 0 | R41: 0 | S41: 0 | T41: 0 | U41: 32.76 | V41: 31.51 | W41: 58.98 | X41: 49.08
B42: 2020 | C42: 5.876610169 | D42: 6.02535128 | E42: 6.741993958 | F42: 5.627037037 | G42: 5.685 | H42: 4.254968153 | I42: 7.849375 | J42: 5.989112932 | L42: GMW | M42: 7.567024169 | N42: 6.741993958 | O42: 5.632039275 | P42: 6.369652568 | Q42: 0 | R42: 0 | S42: 0 | T42: 0 | U42: 141.54 | V42: 92.5 | W42: 80.86 | X42: 53.27
B43: 2021 | C43: 4.820677966 | D43: 5.134445174 | E43: 5.643619632 | F43: 5.384814815 | G43: 4.689166667 | H43: 3.596178344 | I43: 6.99625 | J43: 5.067784111 | L43: GW | M43: 7.191242564 | N43: 6.032802379 | O43: 5.136146728 | P43: 5.402352941 | Q43: 0 | R43: 0 | S43: 0 | T43: 0 | U43: 105.59 | V43: 105.25 | W43: 103.95 | X43: 72.19
B44: 2022 | C44: 5.828432203 | D44: 5.402352941 | E44: 6.369652568 | F44: 7.405555556 | G44: 6.665 | H44: 4.599808917 | I44: 5.9675 | J44: 5.623683648 | L44: M | M44: 6.126666667 | N44: 5.627037037 | O44: 5.384814815 | P44: 7.405555556 | Q44: 0.19 | R44: 0.75 | S44: 0.8 | T44: 1.35 | U44: 19.22 | V44: 15.5 | W44: 24.43 | X44: 33.48
A45: Minimum | B45: 2019 | C45: 0 | D45: 0 | E45: 0 | F45: 0.19 | G45: 3.23 | H45: 0 | I45: 3.98 | J45: 0 | L45: MT | M45: 5.83 | N45: 5.685 | O45: 4.689166667 | P45: 6.665 | Q45: 3.23 | R45: 2.81 | S45: 1.85 | T45: 2.57 | U45: 11.05 | V45: 10.74 | W45: 11.12 | X45: 11.6
B46: 2020 | C46: 0 | D46: 0 | E46: 0 | F46: 0.75 | G46: 2.81 | H46: 0 | I46: 3.13 | J46: 0 | L46: P | M46: 5.651050955 | N46: 4.254968153 | O46: 3.596178344 | P46: 4.599808917 | Q46: 0 | R46: 0 | S46: 0 | T46: 0 | U46: 78.08 | V46: 47.93 | W46: 26.97 | X46: 46.02
B47: 2021 | C47: 0 | D47: 0 | E47: 0 | F47: 0.8 | G47: 1.85 | H47: 0 | I47: 2.59 | J47: 0 | L47: W | M47: 9.25625 | N47: 7.849375 | O47: 6.99625 | P47: 5.9675 | Q47: 3.98 | R47: 3.13 | S47: 2.59 | T47: 2.9 | U47: 26.12 | V47: 19.62 | W47: 17.38 | X47: 13.7
B48: 2022 | C48: 0 | D48: 0 | E48: 0 | F48: 1.35 | G48: 2.57 | H48: 0 | I48: 2.9 | J48: 0 | L48: Suma końcowa | M48: 6.987310296 | N48: 5.989112932 | O48: 5.067784111 | P48: 5.623683648 | Q48: 0 | R48: 0 | S48: 0 | T48: 0 | U48: 141.54 | V48: 105.25 | W48: 103.95 | X48: 72.19
A49: Maksimum | B49: 2019 | C49: 32.76 | D49: 105.59 | E49: 141.54 | F49: 19.22 | G49: 11.05 | H49: 78.08 | I49: 26.12 | J49: 141.54
B50: 2020 | C50: 31.51 | D50: 105.25 | E50: 92.5 | F50: 15.5 | G50: 10.74 | H50: 47.93 | I50: 19.62 | J50: 105.25
B51: 2021 | C51: 58.98 | D51: 103.95 | E51: 80.86 | F51: 24.43 | G51: 11.12 | H51: 26.97 | I51: 17.38 | J51: 103.95
B52: 2022 | C52: 49.08 | D52: 72.19 | E52: 53.27 | F52: 33.48 | G52: 11.6 | H52: 46.02 | I52: 13.7 | J52: 72.19
A54: 21. Wskaźnik WZ7 – Udział zobowiązań wymagalnych w zobowiązaniach ogółem
J55: (%%)
A56: Wskaźnik WZ7 | C56: gminy | F56: miasta na prawach powiatu | G56: metropolie | H56: powiaty | I56: województwa | J56: Ogółem JST
C57: miejskie | D57: wiejskie | E57: miejsko-wiejskie | M57: Średnia z WZ7[2019] | N57: Średnia z WZ7[2020] | O57: Średnia z WZ7[2021] | P57: Średnia z WZ7[2022] | Q57: Minimum z WZ7[2019] | R57: Minimum z WZ7[2020] | S57: Minimum z WZ7[2021] | T57: Minimum z WZ7[2022] | U57: Maksimum z WZ7[2019] | V57: Maksimum z WZ7[2020] | W57: Maksimum z WZ7[2021] | X57: Maksimum z WZ7[2022]
A58: Średnia | B58: 2019 | C58: 0.3211864407 | D58: 0.5435456336 | E58: 0.7692944785 | F58: 0.11 | G58: 0.009166666667 | H58: 0.6808917197 | I58: 0.020625 | J58: 0.579045244 | L58: GM | M58: 0.3211864407 | N58: 0.1715677966 | O58: 0.6844915254 | P58: 1.156016949 | Q58: 0 | R58: 0 | S58: 0 | T58: 0 | U58: 21.28 | V58: 21.54 | W58: 76.79 | X58: 100
B59: 2020 | C59: 0.1715677966 | D59: 0.5032501641 | E59: 0.4254907975 | F59: 0.1118518519 | G59: 0.01 | H59: 0.4224522293 | I59: 0.021875 | J59: 0.4358817243 | L59: GMW | M59: 0.757673716 | N59: 0.4219033233 | O59: 0.2342749245 | P59: 0.2752265861 | Q59: 0 | R59: 0 | S59: 0 | T59: 0 | U59: 100 | V59: 100 | W59: 84.4 | X59: 100
B60: 2021 | C60: 0.6844915254 | D60: 0.5774195666 | E60: 0.2378680982 | F60: 0.09518518519 | G60: 0.0175 | H60: 0.6879299363 | I60: 0.02375 | J60: 0.5050872818 | L60: GW | M60: 0.5471381362 | N60: 0.505333774 | O60: 0.5812359551 | P60: 0.3425974884 | Q60: 0 | R60: 0 | S60: 0 | T60: 0 | U60: 100 | V60: 100 | W60: 100 | X60: 100
B61: 2022 | C61: 1.156016949 | D61: 0.3425974884 | E61: 0.2752265861 | F61: 0.105 | G61: 0.0175 | H61: 0.4584394904 | I61: 0.02375 | J61: 0.4001995012 | L61: M | M61: 0.11 | N61: 0.1118518519 | O61: 0.09518518519 | P61: 0.105 | Q61: 0 | R61: 0 | S61: 0 | T61: 0 | U61: 2.01 | V61: 2 | W61: 1.37 | X61: 2.48
A62: Minimum | B62: 2019 | C62: 0 | D62: 0 | E62: 0 | F62: 0 | G62: 0 | H62: 0 | I62: 0 | J62: 0 | L62: P | M62: 0.6808917197 | N62: 0.4224522293 | O62: 0.6879299363 | P62: 0.4584394904 | Q62: 0 | R62: 0 | S62: 0 | T62: 0 | U62: 100 | V62: 100 | W62: 100 | X62: 100
B63: 2020 | C63: 0 | D63: 0 | E63: 0 | F63: 0 | G63: 0 | H63: 0 | I63: 0 | J63: 0 | L63: W | M63: 0.020625 | N63: 0.021875 | O63: 0.02375 | P63: 0.01625 | Q63: 0 | R63: 0 | S63: 0 | T63: 0 | U63: 0.19 | V63: 0.21 | W63: 0.24 | X63: 0.25
B64: 2021 | C64: 0 | D64: 0 | E64: 0 | F64: 0 | G64: 0 | H64: 0 | I64: 0 | J64: 0 | L64: MT | M64: 0.009166666667 | N64: 0.01 | O64: 0.0175 | P64: 0.009166666667 | Q64: 0 | R64: 0 | S64: 0 | T64: 0 | U64: 0.06 | V64: 0.05 | W64: 0.13 | X64: 0.1
B65: 2022 | C65: 0 | D65: 0 | E65: 0 | F65: 0 | G65: 0 | H65: 0 | I65: 0 | J65: 0 | L65: Suma końcowa | M65: 0.579045244 | N65: 0.4358817243 | O65: 0.5050872818 | P65: 0.4001995012 | Q65: 0 | R65: 0 | S65: 0 | T65: 0 | U65: 100 | V65: 100 | W65: 100 | X65: 100
A66: Maksimum | B66: 2019 | C66: 21.28 | D66: 100 | E66: 100 | F66: 2.01 | G66: 0.06 | H66: 100 | I66: 0.19 | J66: 100
B67: 2020 | C67: 21.54 | D67: 100 | E67: 100 | F67: 2 | G67: 0.05 | H67: 100 | I67: 0.21 | J67: 100
B68: 2021 | C68: 76.79 | D68: 100 | E68: 84.4 | F68: 1.37 | G68: 0.13 | H68: 100 | I68: 0.24 | J68: 100
B69: 2022 | C69: 100 | D69: 100 | E69: 100 | F69: 2.48 | G69: 0.1 | H69: 100 | I69: 0.25 | J69: 100

Sheet Tab_4 gminy miejskie
Q1: powrót do spisu tablic
A2: GMINY MIEJSKIE
A4: Tablica 1. WSKAŹNIKI BUDŻETOWE - zestawienie zbiorcze
A5: Wskaźnik | B5: średnia arytmetyczna | J5: wartości minimalne | R5: wartości maksymalne
B6: 2019 | C6: 2020 | D6: 2021 | E6: 2022 | F6: (3-2) | G6: (4-3) | H6: (5-4) | I6: (5-2) | J6: 2019 | K6: 2020 | L6: 2021 | M6: 2022 | N6: (11-10) | O6: (12-11) | P6: (13-12) | Q6: (13-10) | R6: 2019 | S6: 2020 | T6: 2021 | U6: 2022 | V6: (19-18) | W6: (20-19) | X6: (21-20) | Y6: (21-18)
A7: 1 | B7: 2 | C7: 3 | D7: 4 | E7: 5 | F7: 6 | G7: 7 | H7: 8 | I7: 9 | J7: 10 | K7: 11 | L7: 12 | M7: 13 | N7: 14 | O7: 15 | P7: 16 | Q7: 17 | R7: 18 | S7: 19 | T7: 20 | U7: 21 | V7: 22 | W7: 23 | X7: 24 | Y7: 25
B8: %% | F8: pkt. proc. | J8: %% | N8: pkt. proc. | R8: %% | V8: pkt. proc.
A9: WB1 | B9: 90.4 | C9: 88.19491525 | D9: 90.25169492 | E9: 90.07419492 | F9: =C9-B9 -> -2.205084746 | G9: 2.056779661 | H9: =E9-D9 -> -0.1775 | I9: =E9-B9 -> -0.3258050847 | J9: 47.19 | K9: 55.52 | L9: 68.89 | M9: 42.9 | N9: =K9-J9 -> 8.33 | O9: 13.37 | P9: =M9-L9 -> -25.99 | Q9: =M9-J9 -> -4.29 | R9: 99.24 | S9: 98.54 | T9: 99.32 | U9: 99.06 | V9: =S9-R9 -> -0.7 | W9: =T9-S9 -> 0.78 | X9: =U9-T9 -> -0.26 | Y9: =U9-R9 -> -0.18
A10: WB2 | B10: 48.63427966 | C10: 51.15771186 | D10: 50.45436441 | E10: 46.54186441 | F10: 2.523432203 | G10: -0.7033474576 | H10: -3.9125 | I10: =E10-B10 -> -2.092415254 | J10: 17.53 | K10: 18.45 | L10: 21.4 | M10: 23.93 | N10: 0.92 | O10: 2.95 | P10: 2.53 | Q10: =M10-J10 -> 6.4 | R10: 72.51 | S10: 72.23 | T10: 72.11 | U10: 64.22 | V10: -0.28 | W10: -0.12 | X10: -7.89 | Y10: =U10-R10 -> -8.29
A11: WB3 | B11: 6.861991525 | C11: 5.13440678 | D11: 9.686059322 | E11: 5.295974576 | F11: -1.727584746 | G11: 4.551652542 | H11: -4.390084746 | I11: -1.566016949 | J11: -4.86 | K11: -6.96 | L11: -19.69 | M11: -5.35 | N11: -2.1 | O11: -12.73 | P11: 14.34 | Q11: -0.49 | R11: 19.64 | S11: 25.16 | T11: 28.73 | U11: 22.27 | V11: 5.52 | W11: 3.57 | X11: -6.46 | Y11: 2.63
A12: WB4 | B12: 15.92169492 | C12: 14.33792373 | D12: 14.03427966 | E12: 16.44699153 | F12: -1.583771186 | G12: -0.3036440678 | H12: 2.412711864 | I12: 0.5252966102 | J12: 2.03 | K12: 0.83 | L12: 1.27 | M12: 3.64 | N12: -1.2 | O12: 0.44 | P12: 2.37 | Q12: 1.61 | R12: 40.11 | S12: 43.16 | T12: 36.35 | U12: 40.2 | V12: 3.05 | W12: -6.81 | X12: 3.85 | Y12: 0.09
A13: WB5 | B13: 37.51885593 | C13: 36.31961864 | D13: 37.26699153 | E13: 37.7225 | F13: -1.199237288 | G13: 0.9473728814 | H13: 0.4555084746 | I13: 0.2036440678 | J13: 25.13 | K13: 23.93 | L13: 21.75 | M13: 25.77 | N13: -1.2 | O13: -2.18 | P13: 4.02 | Q13: 0.64 | R13: 48.61 | S13: 46.7 | T13: 48.04 | U13: 50.81 | V13: -1.91 | W13: 1.34 | X13: 2.77 | Y13: 2.2
A14: WB6 | B14: 8.581313559 | C14: 6.640466102 | D14: 11.48254237 | E14: 7.599237288 | F14: -1.940847458 | G14: 4.842076271 | H14: -3.883305085 | I14: -0.9820762712 | J14: -1.61 | K14: -1.94 | L14: -5.75 | M14: -2.91 | N14: -0.33 | O14: -3.81 | P14: 2.84 | Q14: -1.3 | R14: 46.01 | S14: 35.75 | T14: 28.4 | U14: 55.91 | V14: -10.26 | W14: -7.35 | X14: 27.51 | Y14: 9.9
A15: WB7 | B15: 110.3640254 | C15: 145.0056356 | D15: 165.1883475 | E15: 97.90690678 | F15: 34.64161017 | G15: 20.18271186 | H15: -67.28144068 | I15: -12.45711864 | J15: 26.51 | K15: -9.63 | L15: -15.55 | M15: -6.25 | N15: -36.14 | O15: -5.92 | P15: 9.3 | Q15: -32.76 | R15: 455.21 | S15: 2076.87 | T15: 889.82 | U15: 1343.31 | V15: 1621.66 | W15: -1187.05 | X15: 453.49 | Y15: 888.1
A16: WB8 | B16: 6.71690678 | C16: 10.22699153 | D16: 14.24792373 | E16: 10.93745763 | F16: 3.510084746 | G16: 4.020932203 | H16: -3.310466102 | I16: 4.220550847 | J16: 0 | K16: -0.54 | L16: 0.2 | M16: -2.39 | N16: -0.54 | O16: 0.74 | P16: -2.59 | Q16: -2.39 | R16: 53.53 | S16: 68.11 | T16: 62.31 | U16: 60.57 | V16: 14.58 | W16: -5.8 | X16: -1.74 | Y16: 7.04
A17: WB9 | B17: 122.0083898 | C17: 153.2792373 | D17: 193.5858475 | E17: 163.4838136 | F17: 31.27084746 | G17: 40.30661017 | H17: -30.1020339 | I17: 41.47542373 | J17: 25.23 | K17: 57.96 | L17: 56.97 | M17: 50.99 | N17: 32.73 | O17: -0.99 | P17: -5.98 | Q17: 25.76 | R17: 521.94 | S17: 1107.21 | T17: 848.64 | U17: 746.27 | V17: 585.27 | W17: -258.57 | X17: -102.37 | Y17: 224.33
A18: WB10 | B18: 127.1972881 | C18: 174.9355932 | D18: 224.0158475 | E18: 178.1472034 | F18: 47.73830508 | G18: 49.08025424 | H18: -45.86864407 | I18: 50.94991525 | J18: -54.59 | K18: 18.22 | L18: -61.91 | M18: 14.03 | N18: 72.81 | O18: -80.13 | P18: 75.94 | Q18: 68.62 | R18: 733.2 | S18: 2120.71 | T18: 1171.79 | U18: 1201.21 | V18: 1387.51 | W18: -948.92 | X18: 29.42 | Y18: 468.01
A19: WB11 | B19: 93.14665254 | C19: 81.08949153 | D19: 53.88330508 | E19: 74.46351695 | F19: -12.05716102 | G19: -27.20618644 | H19: 20.58021186 | I19: -18.68313559 | J19: -238.73 | K19: 4.72 | L19: -161.52 | M19: 8.32 | N19: 243.45 | O19: -166.24 | P19: 169.84 | Q19: 247.05 | R19: 308.45 | S19: 548.91 | T19: 166.42 | U19: 712.57 | V19: 240.46 | W19: -382.49 | X19: 546.15 | Y19: 404.12
A20: WB12 | B20: 13.72152542 | C20: 11.25394068 | D20: 18.23838983 | E20: 12.74580508 | F20: -2.467584746 | G20: 6.984449153 | H20: -5.492584746 | I20: -0.975720339 | J20: -4.15 | K20: -2.93 | L20: -8.88 | M20: -3.62 | N20: 1.22 | O20: -5.95 | P20: 5.26 | Q20: 0.53 | R20: 109.95 | S20: 65.87 | T20: 43.03 | U20: 186.05 | V20: -44.08 | W20: -22.84 | X20: 143.02 | Y20: 76.1
A22: Tablica 2. WSKAŹNIKI NA MIESZKAŃCA - zestawienie zbiorcze
A23: Wskaźnik | B23: średnia arytmetyczna | J23: wartości minimalne | R23: wartości maksymalne
B24: 2019 | C24: 2020 | D24: 2021 | E24: 2022 | F24: (3:2) | G24: (4:3) | H24: (5:4) | I24: (5:2) | J24: 2019 | K24: 2020 | L24: 2021 | M24: 2022 | N24: (11:10) | O24: (12:11) | P24: (13:12) | Q24: (13:10) | R24: 2019 | S24: 2020 | T24: 2021 | U24: 2022 | V24: (19:18) | W24: (20:19) | X24: (21:20) | Y24: (21:18)
A25: 1 | B25: 2 | C25: 3 | D25: 4 | E25: 5 | F25: 6 | G25: 7 | H25: 8 | I25: 9 | J25: 10 | K25: 11 | L25: 12 | M25: 13 | N25: 14 | O25: 15 | P25: 16 | Q25: 17 | R25: 18 | S25: 19 | T25: 20 | U25: 21 | V25: 22 | W25: 23 | X25: 24 | Y25: 25
B26: zł | F26: %% | J26: zł | N26: %% | R26: zł | V26: %%
A27: WL1 | B27: 2251.340593 | C27: 2537.964025 | D27: 2803.303263 | E27: 2744.236949 | F27: =C27/B27*100 -> 112.7312337 | G27: 110.4548069 | H27: 97.89297454 | I27: =E27/B27*100 -> 121.8934602 | J27: 1536.32 | K27: 1725.16 | L27: 1919.89 | M27: 1801.77 | N27: =K27/J27*100 -> 112.2917101 | O27: =L27/K27*100 -> 111.2876487 | P27: =M27/L27*100 -> 93.84756418 | Q27: =M27/J27*100 -> 117.2783014 | R27: 3855.4 | S27: 3875.47 | T27: 5055.59 | U27: 4735.58 | V27: =S27/R27*100 -> 100.5205686 | W27: =T27/S27*100 -> 130.4510163 | X27: =U27/T27*100 -> 93.67017499 | Y27: =U27/R27*100 -> 122.8297972
A28: WL2 | B28: 330.4266949 | C28: 263.2336864 | D28: 558.0640254 | E28: 346.7955085 | F28: 79.66477603 | G28: 212.0032709 | H28: 62.1426024 | I28: =E28/B28*100 -> 104.9538411 | J28: -235.94 | K28: -350.32 | L28: -1331.7 | M28: -360.85 | N28: =K28/J28*100 -> 148.4784267 | O28: =L28/K28*100 -> 380.1381594 | P28: =M28/L28*100 -> 27.09694376 | Q28: =M28/J28*100 -> 152.9414258 | R28: 1727.21 | S28: 2003.94 | T28: 3198.44 | U28: 2589.59 | V28: 116.0217924 | W28: =T28/S28*100 -> 159.6075731 | X28: =U28/T28*100 -> 80.96415753 | Y28: =U28/R28*100 -> 149.9290764
A29: WL3 | B29: 1240.393178 | C29: 1361.481525 | D29: 1372.854703 | E29: 1361.765424 | F29: 109.762094 | G29: 100.8353531 | H29: 99.19224666 | I29: 109.7849817 | J29: 0 | K29: 0 | L29: 0 | M29: 0 | R29: 5630.58 | S29: 5744.94 | T29: 5479.75 | U29: 4824.17 | V29: 102.0310519 | W29: =T29/S29*100 -> 95.38393787 | X29: 88.03631553 | Y29: 85.67802962
A30: WL4 | B30: 1194.303686 | C30: 1388.111695 | D30: 1843.633686 | E30: 2151.635975 | F30: 116.2276991 | G30: 132.8159465 | H30: 116.7062628 | I30: 180.1581959 | J30: 74.62 | K30: 242.03 | L30: 458.04 | M30: 398.81 | N30: =K30/J30*100 -> 324.3500402 | O30: =L30/K30*100 -> 189.2492666 | P30: 87.06881495 | Q30: 534.4545698 | R30: 13886.18 | S30: 10148.38 | T30: 10847.75 | U30: 20593.85 | V30: 73.08259003 | W30: =T30/S30*100 -> 106.8914447 | X30: 189.8444378 | Y30: 148.3046453
A31: WL5 | B31: 1028.725085 | C31: 1216.025975 | D31: 1672.458602 | E31: 1971.468517 | F31: 118.2070888 | G31: 137.5347761 | H31: 117.8784644 | I31: 191.6419213 | J31: -162.67 | K31: 79.46 | L31: -498.95 | M31: 50 | N31: =K31/J31*100 -> -48.84735969 | O31: =L31/K31*100 -> -627.9260005 | P31: -10.02104419 | Q31: -30.73707506 | R31: 13886.18 | S31: 10148.38 | T31: 10847.75 | U31: 20194.61 | V31: 73.08259003 | W31: =T31/S31*100 -> 106.8914447 | X31: 186.1640432 | Y31: 145.4295566
A33: Tablica 3. WSKAŹNIKI DLA ZOBOWIĄZAŃ WG TYTUŁÓW DŁUŻNYCH - zestawienie zbiorcze
A34: Wskaźnik | B34: średnia arytmetyczna | J34: wartości minimalne | R34: wartości maksymalne
B35: 2019 | C35: 2020 | D35: 2021 | E35: 2022 | F35: (3-2) | G35: (4-3) | H35: (5-4) | I35: (5-2) | J35: 2019 | K35: 2020 | L35: 2021 | M35: 2022 | N35: (11-10) | O35: (12-11) | P35: (13-12) | Q35: (13-10) | R35: 2019 | S35: 2020 | T35: 2021 | U35: 2022 | V35: (19-18) | W35: (20-19) | X35: (21-20) | Y35: (21-18)
A36: 1 | B36: 2 | C36: 3 | D36: 4 | E36: 5 | F36: 6 | G36: 7 | H36: 8 | I36: 9 | J36: 10 | K36: 11 | L36: 12 | M36: 13 | N36: 14 | O36: 15 | P36: 16 | Q36: 17 | R36: 18 | S36: 19 | T36: 20 | U36: 21 | V36: 22 | W36: 23 | X36: 24 | Y36: 25
B37: %% | F37: pkt. proc. | J37: %% | N37: pkt. proc. | R37: %% | V37: pkt. proc.
A38: WZ1 | B38: 23.65686441 | C38: 23.60377119 | D38: 21.74775424 | E38: 21.02529661 | F38: =C38-B38 -> -0.05309322034 | G38: -1.856016949 | H38: -0.7224576271 | I38: =E38-B38 -> -2.631567797 | J38: 0 | K38: 0 | L38: 0 | M38: 0 | R38: 68.9 | S38: 68.34 | T38: 61.65 | U38: 66.85 | V38: =S38-R38 -> -0.56 | W38: =T38-S38 -> -6.69 | X38: =U38-T38 -> 5.2 | Y38: =U38-R38 -> -2.05
A39: WZ3 | B39: 3.757669492 | C39: 3.431016949 | D39: 3.013135593 | E39: 3.684745763 | F39: -0.3266525424 | G39: -0.4178813559 | H39: 0.6716101695 | I39: =E39-B39 -> -0.07292372881 | J39: 0 | K39: 0 | L39: 0 | M39: 0 | R39: 21.92 | S39: 14.5 | T39: 35.22 | U39: 13.78 | V39: -7.42 | W39: =T39-S39 -> 20.72 | X39: =U39-T39 -> -21.44 | Y39: =U39-R39 -> -8.14
A40: WZ5 | B40: 5.933601695 | C40: 5.876610169 | D40: 4.820677966 | E40: 5.828432203 | F40: -0.05699152542 | G40: -1.055932203 | H40: 1.007754237 | I40: -0.1051694915 | J40: 0 | K40: 0 | L40: 0 | M40: 0 | R40: 32.76 | S40: 31.51 | T40: 58.98 | U40: 49.08 | V40: -1.25 | W40: =T40-S40 -> 27.47 | X40: -9.9 | Y40: 16.32
A41: WZ7 | B41: 0.3211864407 | C41: 0.1715677966 | D41: 0.6844915254 | E41: 1.156016949 | F41: -0.1496186441 | G41: 0.5129237288 | H41: 0.4715254237 | I41: 0.8348305085 | J41: 0 | K41: 0 | L41: 0 | M41: 0 | R41: 21.28 | S41: 21.54 | T41: 76.79 | U41: 100 | V41: 0.26 | W41: =T41-S41 -> 55.25 | X41: 23.21 | Y41: 78.72

Sheet Tab_5 gminy wiejskie
Q1: powrót do spisu tablic
A2: GMINY WIEJSKIE
A4: Tablica 1. WSKAŹNIKI BUDŻETOWE - zestawienie zbiorcze
A5: Wskaźnik | B5: średnia arytmetyczna | J5: wartości minimalne | R5: wartości maksymalne
B6: 2019 | C6: 2020 | D6: 2021 | E6: 2022 | F6: (3-2) | G6: (4-3) | H6: (5-4) | I6: (5-2) | J6: 2019 | K6: 2020 | L6: 2021 | M6: 2022 | N6: (11-10) | O6: (12-11) | P6: (13-12) | Q6: (13-10) | R6: 2019 | S6: 2020 | T6: 2021 | U6: 2022 | V6: (19-18) | W6: (20-19) | X6: (21-20) | Y6: (21-18)
A7: 1 | B7: 2 | C7: 3 | D7: 4 | E7: 5 | F7: 6 | G7: 7 | H7: 8 | I7: 9 | J7: 10 | K7: 11 | L7: 12 | M7: 13 | N7: 14 | O7: 15 | P7: 16 | Q7: 17 | R7: 18 | S7: 19 | T7: 20 | U7: 21 | V7: 22 | W7: 23 | X7: 24 | Y7: 25
B8: %% | F8: pkt. proc. | J8: %% | N8: pkt. proc. | R8: %% | V8: pkt. proc.
A9: WB1 | B9: 91.68263054 | C9: 89.37167217 | D9: 86.76812293 | E9: 90.89001983 | F9: =C9-B9 -> -2.310958361 | G9: -2.60354924 | H9: =E9-D9 -> 4.121896894 | I9: =E9-B9 -> -0.7926107072 | J9: 60.33 | K9: 53.32 | L9: 59.63 | M9: 59.72 | N9: =K9-J9 -> -7.01 | O9: 6.31 | P9: =M9-L9 -> 0.09 | Q9: =M9-J9 -> -0.61 | R9: 100 | S9: 99.77 | T9: 99.93 | U9: 99.85 | V9: =S9-R9 -> -0.23 | W9: =T9-S9 -> 0.16 | X9: =U9-T9 -> -0.08 | Y9: =U9-R9 -> -0.15
A10: WB2 | B10: 65.40168539 | C10: 66.20522802 | D10: 65.04796431 | E10: 59.45062789 | F10: 0.8035426305 | G10: -1.157263714 | H10: -5.597336418 | I10: =E10-B10 -> -5.951057502 | J10: 9.51 | K10: 10.76 | L10: 11.34 | M10: 12.68 | N10: 1.25 | O10: 0.58 | P10: 1.34 | Q10: =M10-J10 -> 3.17 | R10: 86.92 | S10: 86.91 | T10: 84.95 | U10: 80.1 | V10: -0.01 | W10: -1.96 | X10: -4.85 | Y10: =U10-R10 -> -6.82
A11: WB3 | B11: 9.518050231 | C11: 9.598823529 | D11: 11.12256444 | E11: 11.99486451 | F11: 0.08077329808 | G11: 1.523740912 | H11: 0.8723000661 | I11: 2.476814276 | J11: -7.02 | K11: -4.15 | L11: -12.17 | M11: -5.79 | N11: 2.87 | O11: -8.02 | P11: 6.38 | Q11: 1.23 | R11: 38.21 | S11: 47.35 | T11: 36.77 | U11: 57.67 | V11: 9.14 | W11: -10.58 | X11: 20.9 | Y11: 19.46
A12: WB4 | B12: 16.23573695 | C12: 14.33641771 | D12: 15.35906808 | E12: 19.62104428 | F12: -1.899319233 | G12: 1.022650364 | H12: 4.261976206 | I12: 3.385307336 | J12: 0.24 | K12: 0.22 | L12: 0.59 | M12: 1.36 | N12: -0.02 | O12: 0.37 | P12: 0.77 | Q12: 1.12 | R12: 48.13 | S12: 55.19 | T12: 47.69 | U12: 51.05 | V12: 7.06 | W12: -7.5 | X12: 3.36 | Y12: 2.92
A13: WB5 | B13: 37.75651685 | C13: 36.47631857 | D13: 37.71588235 | E13: 35.90742895 | F13: -1.280198282 | G13: 1.239563781 | H13: -1.808453404 | I13: -1.849087905 | J13: 16.14 | K13: 15.03 | L13: 15.14 | M13: 15.49 | N13: -1.11 | O13: 0.11 | P13: 0.35 | Q13: -0.65 | R13: 48.39 | S13: 48.12 | T13: 49.5 | U13: 51.54 | V13: -0.27 | W13: 1.38 | X13: 2.04 | Y13: 3.15
A14: WB6 | B14: 9.244263054 | C14: 9.188155981 | D14: 10.57684071 | E14: 11.61155981 | F14: -0.05610707204 | G14: 1.388684732 | H14: 1.034719101 | I14: 2.367296761 | J14: -3.93 | K14: -2.1 | L14: -9.42 | M14: -2.35 | N14: 1.83 | O14: -7.32 | P14: 7.07 | Q14: 1.58 | R14: 37.71 | S14: 46.16 | T14: 38.91 | U14: 53.61 | V14: 8.45 | W14: -7.25 | X14: 14.7 | Y14: 15.9
A15: WB7 | B15: 136.1255453 | C15: 203.5370324 | D15: 215.790456 | E15: 115.3706808 | F15: 67.41148711 | G15: 12.25342366 | H15: -100.4197753 | I15: -20.75486451 | J15: -91.9 | K15: 21.96 | L15: 35.96 | M15: 6.12 | N15: 113.86 | O15: 14 | P15: -29.84 | Q15: 98.02 | R15: 2583.12 | S15: 9624.57 | T15: 6437.84 | U15: 1279.15 | V15: 7041.45 | W15: -3186.73 | X15: -5158.69 | Y15: -1303.97
A16: WB8 | B16: 7.238070059 | C16: 11.9075347 | D16: 18.18826173 | E16: 16.3093655 | F16: 4.66946464 | G16: 6.280727032 | H16: -1.878896233 | I16: 9.07129544 | J16: -1.65 | K16: -3.6 | L16: 0 | M16: 0 | N16: -1.95 | O16: 3.6 | P16: 0 | Q16: 1.65 | R16: 85.26 | S16: 95.81 | T16: 91.47 | U16: 88.28 | V16: 10.55 | W16: -4.34 | X16: -3.19 | Y16: 3.02
A17: WB9 | B17: 132.6225314 | C17: 191.6928883 | D17: 244.3257171 | E17: 194.27577 | F17: 59.07035691 | G17: 52.63282882 | H17: -50.04994712 | I17: 61.6532386 | J17: 1.55 | K17: 15.67 | L17: 40.66 | M17: 30.65 | N17: 14.12 | O17: 24.99 | P17: -10.01 | Q17: 29.1 | R17: 1204.39 | S17: 2959.89 | T17: 2035.84 | U17: 1378.38 | V17: 1755.5 | W17: -924.05 | X17: -657.46 | Y17: 173.99
A18: WB10 | B18: 147.5062525 | C18: 240.1214144 | D18: 291.6758427 | E18: 210.3147918 | F18: 92.61516193 | G18: 51.55442829 | H18: -81.36105089 | I18: 62.80853933 | J18: -389.14 | K18: -2234.42 | L18: -504.46 | M18: -12.67 | N18: -1845.28 | O18: 1729.96 | P18: 491.79 | Q18: 376.47 | R18: 1810.06 | S18: 14908.09 | T18: 7509.27 | U18: 1882.61 | V18: 13098.03 | W18: -7398.82 | X18: -5626.66 | Y18: 72.55
A19: WB11 | B19: 102.5242102 | C19: 70.15217449 | D19: 43.98780568 | E19: 57.44223397 | F19: -32.37203569 | G19: -26.1643688 | H19: 13.45442829 | I19: -45.08197621 | J19: -744.34 | K19: -110.63 | L19: -4444.59 | M19: -2472.21 | N19: 633.71 | O19: -4333.96 | P19: 1972.38 | Q19: -1727.87 | R19: 6937.64 | S19: 8776.53 | T19: 242.18 | U19: 1029.69 | V19: 1838.89 | W19: -8534.35 | X19: 787.51 | Y19: -5907.95
A20: WB12 | B20: 15.24434237 | C20: 16.08849967 | D20: 18.40180436 | E20: 19.2924653 | F20: 0.8441573034 | G20: 2.313304693 | H20: 0.8906609385 | I20: 4.048122935 | J20: -7.27 | K20: -4.4 | L20: -19.36 | M20: -3.95 | N20: 2.87 | O20: -14.96 | P20: 15.41 | Q20: 3.32 | R20: 67.24 | S20: 63.53 | T20: 72.58 | U20: 93.17 | V20: -3.71 | W20: 9.05 | X20: 20.59 | Y20: 25.93
A22: Tablica 2. WSKAŹNIKI NA MIESZKAŃCA - zestawienie zbiorcze
A23: Wskaźnik | B23: średnia arytmetyczna | J23: wartości minimalne | R23: wartości maksymalne
B24: 2019 | C24: 2020 | D24: 2021 | E24: 2022 | F24: (3:2) | G24: (4:3) | H24: (5:4) | I24: (5:2) | J24: 2019 | K24: 2020 | L24: 2021 | M24: 2022 | N24: (11:10) | O24: (12:11) | P24: (13:12) | Q24: (13:10) | R24: 2019 | S24: 2020 | T24: 2021 | U24: 2022 | V24: (19:18) | W24: (20:19) | X24: (21:20) | Y24: (21:18)
A25: 1 | B25: 2 | C25: 3 | D25: 4 | E25: 5 | F25: 6 | G25: 7 | H25: 8 | I25: 9 | J25: 10 | K25: 11 | L25: 12 | M25: 13 | N25: 14 | O25: 15 | P25: 16 | Q25: 17 | R25: 18 | S25: 19 | T25: 20 | U25: 21 | V25: 22 | W25: 23 | X25: 24 | Y25: 25
B26: zł | F26: %% | J26: zł | N26: %% | R26: zł | V26: %%
A27: WL1 | B27: 3151.20881 | C27: 3453.673496 | D27: 3658.771613 | E27: 3989.636219 | F27: =C27/B27*100 -> 109.5983702 | G27: 105.9385497 | H27: 109.0430517 | I27: =E27/B27*100 -> 126.6065329 | J27: 1612.21 | K27: 1986.66 | L27: 2069.6 | M27: 1890.22 | N27: =K27/J27*100 -> 123.2258825 | O27: =L27/K27*100 -> 104.1748462 | P27: =M27/L27*100 -> 91.33262466 | Q27: =M27/J27*100 -> 117.2440315 | R27: 4954.62 | S27: 5433.82 | T27: 5738.51 | U27: 6172.64 | V27: =S27/R27*100 -> 109.6717811 | W27: =T27/S27*100 -> 105.6072892 | X27: =U27/T27*100 -> 107.5652042 | Y27: =U27/R27*100 -> 124.58352
A28: WL2 | B28: 486.11577 | C28: 520.925889 | D28: 656.8492862 | E28: 839.086345 | F28: 107.1608701 | G28: 126.0926554 | H28: 127.7441207 | I28: =E28/B28*100 -> 172.6103938 | J28: -368.58 | K28: -206.83 | L28: -570.91 | M28: -365.63 | N28: =K28/J28*100 -> 56.11536166 | O28: =L28/K28*100 -> 276.0286225 | P28: =M28/L28*100 -> 64.04336936 | Q28: =M28/J28*100 -> 99.19963102 | R28: 15812.3 | S28: 8049.21 | T28: 12389.34 | U28: 9185.76 | V28: 50.90473872 | W28: =T28/S28*100 -> 153.9199499 | X28: =U28/T28*100 -> 74.14244827 | Y28: =U28/R28*100 -> 58.09249761
A29: WL3 | B29: 1127.869035 | C29: 1146.2685 | D29: 1119.509379 | E29: 1091.420126 | F29: 101.6313476 | G29: 97.66554512 | H29: 97.49093186 | I29: 96.76833849 | J29: 0 | K29: 0 | L29: 0 | M29: 0 | R29: 9609.71 | S29: 9929.82 | T29: 9872.89 | U29: 13029.19 | V29: 103.3311099 | W29: =T29/S29*100 -> 99.42667642 | X29: 131.9693626 | Y29: 135.583592
A30: WL4 | B30: 1316.990416 | C30: 1641.967396 | D30: 2346.612141 | E30: 2932.144547 | F30: 124.6757285 | G30: 142.9146612 | H30: 124.9522448 | I30: 222.6397786 | J30: 4.89 | K30: 253.77 | L30: 414.5 | M30: 336.49 | N30: =K30/J30*100 -> 5189.570552 | O30: =L30/K30*100 -> 163.3368799 | P30: 81.17973462 | Q30: 6881.186094 | R30: 101624.84 | S30: 96820.13 | T30: 95386.1 | U30: 93255.84 | V30: 95.27211064 | W30: =T30/S30*100 -> 98.51887206 | X30: 97.76669766 | Y30: 91.76480868
A31: WL5 | B31: 1116.717508 | C31: 1461.538632 | D31: 2169.746649 | E31: 2750.605182 | F31: 130.8780977 | G31: 148.4563324 | H31: 126.7707999 | I31: 246.3116376 | J31: -1992.24 | K31: -3052.26 | L31: -2245.95 | M31: -280.4 | N31: =K31/J31*100 -> 153.2074449 | O31: =L31/K31*100 -> 73.58318099 | P31: 12.48469467 | Q31: 14.07460948 | R31: 101624.84 | S31: 96820.13 | T31: 95386.1 | U31: 93255.84 | V31: 95.27211064 | W31: =T31/S31*100 -> 98.51887206 | X31: 97.76669766 | Y31: 91.76480868
A33: Tablica 3. WSKAŹNIKI DLA ZOBOWIĄZAŃ WG TYTUŁÓW DŁUŻNYCH - zestawienie zbiorcze
A34: Wskaźnik | B34: średnia arytmetyczna | J34: wartości minimalne | R34: wartości maksymalne
B35: 2019 | C35: 2020 | D35: 2021 | E35: 2022 | F35: (3-2) | G35: (4-3) | H35: (5-4) | I35: (5-2) | J35: 2019 | K35: 2020 | L35: 2021 | M35: 2022 | N35: (11-10) | O35: (12-11) | P35: (13-12) | Q35: (13-10) | R35: 2019 | S35: 2020 | T35: 2021 | U35: 2022 | V35: (19-18) | W35: (20-19) | X35: (21-20) | Y35: (21-18)
A36: 1 | B36: 2 | C36: 3 | D36: 4 | E36: 5 | F36: 6 | G36: 7 | H36: 8 | I36: 9 | J36: 10 | K36: 11 | L36: 12 | M36: 13 | N36: 14 | O36: 15 | P36: 16 | Q36: 17 | R36: 18 | S36: 19 | T36: 20 | U36: 21 | V36: 22 | W36: 23 | X36: 24 | Y36: 25
B37: %% | F37: pkt. proc. | J37: %% | N37: pkt. proc. | R37: %% | V37: pkt. proc.
A38: WZ1 | B38: 20.79625909 | C38: 19.05040317 | D38: 16.67374091 | E38: 14.59643754 | F38: =C38-B38 -> -1.745855915 | G38: -2.37666226 | H38: -2.077303371 | I38: =E38-B38 -> -6.199821547 | J38: 0 | K38: 0 | L38: 0 | M38: 0 | R38: 101.05 | S38: 91.45 | T38: 70.87 | U38: 73.51 | V38: =S38-R38 -> -9.6 | W38: =T38-S38 -> -20.58 | X38: =U38-T38 -> 2.64 | Y38: =U38-R38 -> -27.54
A39: WZ3 | B39: 4.241810972 | C39: 3.398327826 | D39: 2.903245208 | E39: 3.216946464 | F39: -0.8434831461 | G39: -0.4950826173 | H39: 0.3137012558 | I39: =E39-B39 -> -1.024864508 | J39: 0 | K39: 0 | L39: 0 | M39: 0 | R39: 63.1 | S39: 63.02 | T39: 59.43 | U39: 42.32 | V39: -0.08 | W39: =T39-S39 -> -3.59 | X39: =U39-T39 -> -17.11 | Y39: =U39-R39 -> -20.78
A40: WZ5 | B40: 7.191242564 | C40: 6.032802379 | D40: 5.136146728 | E40: 5.402352941 | F40: -1.158440185 | G40: -0.896655651 | H40: 0.2662062128 | I40: -1.788889623 | J40: 0 | K40: 0 | L40: 0 | M40: 0 | R40: 105.59 | S40: 105.25 | T40: 103.95 | U40: 72.19 | V40: -0.34 | W40: =T40-S40 -> -1.3 | X40: -31.76 | Y40: -33.4
A41: WZ7 | B41: 0.5471381362 | C41: 0.505333774 | D41: 0.5812359551 | E41: 0.3425974884 | F41: -0.04180436219 | G41: 0.0759021811 | H41: -0.2386384666 | I41: -0.2045406477 | J41: 0 | K41: 0 | L41: 0 | M41: 0 | R41: 100 | S41: 100 | T41: 100 | U41: 100 | V41: 0 | W41: =T41-S41 -> 0 | X41: 0 | Y41: 0

Sheet Tab_6 gminy miejsko-wiejskie
Q1: powrót do spisu tablic
A2: GMINY MIEJSKO-WIEJSKIE
A4: Tablica 1. WSKAŹNIKI BUDŻETOWE - zestawienie zbiorcze
A5: Wskaźnik | B5: średnia arytmetyczna | J5: wartości minimalne | R5: wartości maksymalne
B6: 2019 | C6: 2020 | D6: 2021 | E6: 2022 | F6: (3-2) | G6: (4-3) | H6: (5-4) | I6: (5-2) | J6: 2019 | K6: 2020 | L6: 2021 | M6: 2022 | N6: (11-10) | O6: (12-11) | P6: (13-12) | Q6: (13-10) | R6: 2019 | S6: 2020 | T6: 2021 | U6: 2022 | V6: (19-18) | W6: (20-19) | X6: (21-20) | Y6: (21-18)
A7: 1 | B7: 2 | C7: 3 | D7: 4 | E7: 5 | F7: 6 | G7: 7 | H7: 8 | I7: 9 | J7: 10 | K7: 11 | L7: 12 | M7: 13 | N7: 14 | O7: 15 | P7: 16 | Q7: 17 | R7: 18 | S7: 19 | T7: 20 | U7: 21 | V7: 22 | W7: 23 | X7: 24 | Y7: 25
B8: %% | F8: pkt. proc. | J8: %% | N8: pkt. proc. | R8: %% | V8: pkt. proc.
A9: WB1 | B9: 91.88753776 | C9: 89.88725076 | D9: 88.84354985 | E9: 91.62854985 | F9: =C9-B9 -> -2.000287009 | G9: -1.043700906 | H9: =E9-D9 -> 2.785 | I9: =E9-B9 -> -0.2589879154 | J9: 59.45 | K9: 64.63 | L9: 54 | M9: 54.68 | N9: =K9-J9 -> 5.18 | O9: -10.63 | P9: =M9-L9 -> 0.68 | Q9: =M9-J9 -> -4.77 | R9: 99.78 | S9: 98.75 | T9: 99.12 | U9: 99.79 | V9: =S9-R9 -> -1.03 | W9: =T9-S9 -> 0.37 | X9: =U9-T9 -> 0.67 | Y9: =U9-R9 -> 0.01
A10: WB2 | B10: 59.56729607 | C10: 61.11019637 | D10: 59.9192145 | E10: 56.65069486 | F10: 1.542900302 | G10: -1.190981873 | H10: -3.268519637 | I10: =E10-B10 -> -2.916601208 | J10: 19.67 | K10: 22.1 | L10: 20.39 | M10: 23.02 | N10: 2.43 | O10: -1.71 | P10: 2.63 | Q10: =M10-J10 -> 3.35 | R10: 83.08 | S10: 83.13 | T10: 81.72 | U10: 76.42 | V10: 0.05 | W10: -1.41 | X10: -5.3 | Y10: =U10-R10 -> -6.66
A11: WB3 | B11: 8.511299094 | C11: 8.10081571 | D11: 10.31332326 | E11: 8.298610272 | F11: -0.4104833837 | G11: 2.212507553 | H11: -2.014712991 | I11: -0.2126888218 | J11: -13.52 | K11: -2.01 | L11: -4.86 | M11: -9.93 | N11: 11.51 | O11: -2.85 | P11: -5.07 | Q11: 3.59 | R11: 25.47 | S11: 28.43 | T11: 33.26 | U11: 26.99 | V11: 2.96 | W11: 4.83 | X11: -6.27 | Y11: 1.52
A12: WB4 | B12: 15.49163142 | C12: 13.59175227 | D12: 14.84338369 | E12: 17.47883686 | F12: -1.899879154 | G12: 1.25163142 | H12: 2.635453172 | I12: 1.987205438 | J12: 0.86 | K12: 0.26 | L12: 1.3 | M12: 1.7 | N12: -0.6 | O12: 1.04 | P12: 0.4 | Q12: 0.84 | R12: 56.8 | S12: 47.49 | T12: 60.61 | U12: 49.21 | V12: -9.31 | W12: 13.12 | X12: -11.4 | Y12: -7.59
A13: WB5 | B13: 37.00848943 | C13: 35.92557402 | D13: 36.91412387 | E13: 35.52651057 | F13: -1.082915408 | G13: 0.9885498489 | H13: -1.387613293 | I13: -1.481978852 | J13: 20.35 | K13: 20.13 | L13: 20.61 | M13: 20.62 | N13: -0.22 | O13: 0.48 | P13: 0.01 | Q13: 0.27 | R13: 46.42 | S13: 46.7 | T13: 46.61 | U13: 49.67 | V13: 0.28 | W13: -0.09 | X13: 3.06 | Y13: 3.25
A14: WB6 | B14: 8.874244713 | C14: 8.448519637 | D14: 10.81676737 | E14: 9.085619335 | F14: -0.4257250755 | G14: 2.368247734 | H14: -1.731148036 | I14: 0.2113746224 | J14: -11.37 | K14: -0.52 | L14: -1.81 | M14: -9.07 | N14: 10.85 | O14: -1.29 | P14: -7.26 | Q14: 2.3 | R14: 28.44 | S14: 26.48 | T14: 32.21 | U14: 45.46 | V14: -1.96 | W14: 5.73 | X14: 13.25 | Y14: 17.02
A15: WB7 | B15: 123.2580211 | C15: 176.5701964 | D15: 173.9525378 | E15: 99.9852568 | F15: 53.31217523 | G15: -2.61765861 | H15: -73.96728097 | I15: -23.27276435 | J15: -129.52 | K15: 32.59 | L15: 35.59 | M15: -8.55 | N15: 162.11 | O15: 3 | P15: -44.14 | Q15: 120.97 | R15: 1521.95 | S15: 11822.74 | T15: 1014.9 | U15: 579.8 | V15: 10300.79 | W15: -10807.84 | X15: -435.1 | Y15: -942.15
A16: WB8 | B16: 6.529743202 | C16: 10.59962236 | D16: 15.59990937 | E16: 12.57238671 | F16: 4.069879154 | G16: 5.000287009 | H16: -3.027522659 | I16: 6.042643505 | J16: -1.18 | K16: -0.2 | L16: 0.46 | M16: -2.53 | N16: 0.98 | O16: 0.66 | P16: -2.99 | Q16: -1.35 | R16: 74.27 | S16: 47.87 | T16: 67.99 | U16: 48.24 | V16: -26.4 | W16: 20.12 | X16: -19.75 | Y16: -26.03
A17: WB9 | B17: 122.9571299 | C17: 160.5489426 | D17: 204.7012538 | E17: 168.2642447 | F17: 37.59181269 | G17: 44.15231118 | H17: -36.43700906 | I17: 45.3071148 | J17: -104.93 | K17: 30.98 | L17: 24.52 | M17: 36.82 | N17: 135.91 | O17: -6.46 | P17: 12.3 | Q17: 141.75 | R17: 1070 | S17: 882.38 | T17: 814.18 | U17: 1040 | V17: -187.62 | W17: -68.2 | X17: 225.82 | Y17: -30
A18: WB10 | B18: 121.9269335 | C18: 193.8936103 | D18: 235.5441692 | E18: 182.8816465 | F18: 71.96667674 | G18: 41.65055891 | H18: -52.66252266 | I18: 60.95471299 | J18: -5507.75 | K18: -1962.59 | L18: -224.46 | M18: -116.57 | N18: 3545.16 | O18: 1738.13 | P18: 107.89 | Q18: 5391.18 | R18: 1302.46 | S18: 12687.79 | T18: 2139.34 | U18: 1746.12 | V18: 11385.33 | W18: -10548.45 | X18: -393.22 | Y18: 443.66
A19: WB11 | B19: 95.62796073 | C19: 65.70098187 | D19: 50.22348943 | E19: 69.29826284 | F19: -29.92697885 | G19: -15.47749245 | H19: 19.07477341 | I19: -26.32969789 | J19: -497.05 | K19: -3369.57 | L19: -2046.28 | M19: -862.26 | N19: -2872.52 | O19: 1323.29 | P19: 1184.02 | Q19: -365.21 | R19: 1209.86 | S19: 764.7 | T19: 477.7 | U19: 1734.37 | V19: -445.16 | W19: -287 | X19: 1256.67 | Y19: 524.51
A20: WB12 | B20: 14.42554381 | C20: 14.49951662 | D20: 18.11129909 | E20: 14.88915408 | F20: 0.07397280967 | G20: 3.611782477 | H20: -3.222145015 | I20: 0.4636102719 | J20: -18.92 | K20: -0.48 | L20: -4.66 | M20: -17.22 | N20: 18.44 | O20: -4.18 | P20: -12.56 | Q20: 1.7 | R20: 57.84 | S20: 52.14 | T20: 61.76 | U20: 114.26 | V20: -5.7 | W20: 9.62 | X20: 52.5 | Y20: 56.42
A22: Tablica 2. WSKAŹNIKI NA MIESZKAŃCA - zestawienie zbiorcze
A23: Wskaźnik | B23: średnia arytmetyczna | J23: wartości minimalne | R23: wartości maksymalne
B24: 2019 | C24: 2020 | D24: 2021 | E24: 2022 | F24: (3:2) | G24: (4:3) | H24: (5:4) | I24: (5:2) | J24: 2019 | K24: 2020 | L24: 2021 | M24: 2022 | N24: (11:10) | O24: (12:11) | P24: (13:12) | Q24: (13:10) | R24: 2019 | S24: 2020 | T24: 2021 | U24: 2022 | V24: (19:18) | W24: (20:19) | X24: (21:20) | Y24: (21:18)
A25: 1 | B25: 2 | C25: 3 | D25: 4 | E25: 5 | F25: 6 | G25: 7 | H25: 8 | I25: 9 | J25: 10 | K25: 11 | L25: 12 | M25: 13 | N25: 14 | O25: 15 | P25: 16 | Q25: 17 | R25: 18 | S25: 19 | T25: 20 | U25: 21 | V25: 22 | W25: 23 | X25: 24 | Y25: 25
B26: zł | F26: %% | J26: zł | N26: %% | R26: zł | V26: %%
A27: WL1 | B27: 2779.010408 | C27: 3078.600483 | D27: 3276.544305 | E27: 3554.606269 | F27: =C27/B27*100 -> 110.7804589 | G27: 106.429669 | H27: 108.4864399 | I27: =E27/B27*100 -> 127.9090664 | J27: 1648.35 | K27: 1729.62 | L27: 1998.91 | M27: 1881.54 | N27: =K27/J27*100 -> 104.9303849 | O27: =L27/K27*100 -> 115.5693158 | P27: =M27/L27*100 -> 94.12829992 | Q27: =M27/J27*100 -> 114.1468741 | R27: 4775.53 | S27: 4914.98 | T27: 4967.72 | U27: 5284.58 | V27: =S27/R27*100 -> 102.9200947 | W27: =T27/S27*100 -> 101.0730461 | X27: =U27/T27*100 -> 106.3783788 | Y27: =U27/R27*100 -> 110.6595498
A28: WL2 | B28: 409.8723716 | C28: 420.046858 | D28: 582.558716 | E28: 543.7759668 | F28: 102.4823548 | G28: 138.6889831 | H28: 93.34268835 | I28: =E28/B28*100 -> 132.6695831 | J28: -639.66 | K28: -103.09 | L28: -286.88 | M28: -575.67 | N28: =K28/J28*100 -> 16.11637432 | O28: =L28/K28*100 -> 278.2811136 | P28: =M28/L28*100 -> 200.6657836 | Q28: =M28/J28*100 -> 89.99624801 | R28: 1753.16 | S28: 1928.05 | T28: 3028.47 | U28: 3827.48 | V28: 109.975701 | W28: =T28/S28*100 -> 157.074246 | X28: =U28/T28*100 -> 126.3832893 | Y28: =U28/R28*100 -> 218.3189213
A29: WL3 | B29: 1356.376828 | C29: 1404.173459 | D29: 1414.398852 | E29: 1456.34864 | F29: 103.5238461 | G29: 100.7282144 | H29: 102.9659094 | I29: 107.3705043 | J29: 0 | K29: 0 | L29: 0 | M29: 0 | R29: 7070.7 | S29: 7444.52 | T29: 9192.28 | U29: 10324.98 | V29: 105.2868881 | W29: =T29/S29*100 -> 123.4771349 | X29: 112.3222965 | Y29: 146.0248632
A30: WL4 | B30: 1118.321465 | C30: 1373.804592 | D30: 1951.438187 | E30: 2230.466405 | F30: 122.8452314 | G30: 142.0462705 | H30: 114.2985937 | I30: 199.4476968 | J30: -524.47 | K30: 325.71 | L30: 427.6 | M30: 447.68 | N30: =K30/J30*100 -> -62.10269415 | O30: =L30/K30*100 -> 131.2824292 | P30: 104.6959775 | Q30: -85.35855244 | R30: 5304.64 | S30: 6484.18 | T30: 9313.97 | U30: 10760.77 | V30: 122.2360047 | W30: =T30/S30*100 -> 143.6414473 | X30: 115.5336554 | Y30: 202.8558017
A31: WL5 | B31: 918.4201057 | C31: 1182.573474 | D31: 1763.444577 | E31: 2043.839335 | F31: 128.7617145 | G31: 149.11924 | H31: 115.900401 | I31: 222.5386098 | J31: -1971.41 | K31: -1867.23 | L31: -1830.42 | M31: -548.61 | N31: =K31/J31*100 -> 94.71545746 | O31: =L31/K31*100 -> 98.02863065 | P31: 29.97180975 | Q31: 27.82830563 | R31: 5304.64 | S31: 6484.18 | T31: 9176.23 | U31: 10760.77 | V31: 122.2360047 | W31: =T31/S31*100 -> 141.5172003 | X31: 117.2678758 | Y31: 202.8558017
A33: Tablica 3. WSKAŹNIKI DLA ZOBOWIĄZAŃ WG TYTUŁÓW DŁUŻNYCH - zestawienie zbiorcze
A34: Wskaźnik | B34: średnia arytmetyczna | J34: wartości minimalne | R34: wartości maksymalne
B35: 2019 | C35: 2020 | D35: 2021 | E35: 2022 | F35: (3-2) | G35: (4-3) | H35: (5-4) | I35: (5-2) | J35: 2019 | K35: 2020 | L35: 2021 | M35: 2022 | N35: (11-10) | O35: (12-11) | P35: (13-12) | Q35: (13-10) | R35: 2019 | S35: 2020 | T35: 2021 | U35: 2022 | V35: (19-18) | W35: (20-19) | X35: (21-20) | Y35: (21-18)
A36: 1 | B36: 2 | C36: 3 | D36: 4 | E36: 5 | F36: 6 | G36: 7 | H36: 8 | I36: 9 | J36: 10 | K36: 11 | L36: 12 | M36: 13 | N36: 14 | O36: 15 | P36: 16 | Q36: 17 | R36: 18 | S36: 19 | T36: 20 | U36: 21 | V36: 22 | W36: 23 | X36: 24 | Y36: 25
B37: %% | F37: pkt. proc. | J37: %% | N37: pkt. proc. | R37: %% | V37: pkt. proc.
A38: WZ1 | B38: 26.10534743 | C38: 24.46797583 | D38: 22.32694864 | E38: 20.98483384 | F38: =C38-B38 -> -1.637371601 | G38: -2.14102719 | H38: -1.342114804 | I38: =E38-B38 -> -5.120513595 | J38: 0 | K38: 0 | L38: 0 | M38: 0 | R38: 106.41 | S38: 114.97 | T38: 92.07 | U38: 94.63 | V38: =S38-R38 -> 8.56 | W38: =T38-S38 -> -22.9 | X38: =U38-T38 -> 2.56 | Y38: =U38-R38 -> -11.78
A39: WZ3 | B39: 4.566329305 | C39: 3.85826284 | D39: 3.323353474 | E39: 3.829848943 | F39: -0.7080664653 | G39: -0.5349093656 | H39: 0.5064954683 | I39: =E39-B39 -> -0.7364803625 | J39: 0 | K39: 0 | L39: 0 | M39: 0 | R39: 66.02 | S39: 55.23 | T39: 48.04 | U39: 31.42 | V39: -10.79 | W39: =T39-S39 -> -7.19 | X39: =U39-T39 -> -16.62 | Y39: =U39-R39 -> -34.6
A40: WZ5 | B40: 7.567024169 | C40: 6.741993958 | D40: 5.632039275 | E40: 6.369652568 | F40: -0.8250302115 | G40: -1.109954683 | H40: 0.7376132931 | I40: -1.197371601 | J40: 0 | K40: 0 | L40: 0 | M40: 0 | R40: 141.54 | S40: 92.5 | T40: 80.86 | U40: 53.27 | V40: -49.04 | W40: =T40-S40 -> -11.64 | X40: -27.59 | Y40: -88.27
A41: WZ7 | B41: 0.757673716 | C41: 0.4219033233 | D41: 0.2342749245 | E41: 0.2752265861 | F41: -0.3357703927 | G41: -0.1876283988 | H41: 0.04095166163 | I41: -0.4824471299 | J41: 0 | K41: 0 | L41: 0 | M41: 0 | R41: 100 | S41: 100 | T41: 84.4 | U41: 100 | V41: 0 | W41: =T41-S41 -> -15.6 | X41: 15.6 | Y41: 0

Sheet Tab_7 miasta na p. powiatu
Q1: powrót do spisu tablic
A2: MIASTA NA PRAWACH POWIATU
A4: Tablica 1. WSKAŹNIKI BUDŻETOWE - zestawienie zbiorcze
A5: Wskaźnik | B5: średnia arytmetyczna | J5: wartości minimalne | R5: wartości maksymalne
B6: 2019 | C6: 2020 | D6: 2021 | E6: 2022 | F6: (3-2) | G6: (4-3) | H6: (5-4) | I6: (5-2) | J6: 2019 | K6: 2020 | L6: 2021 | M6: 2022 | N6: (11-10) | O6: (12-11) | P6: (13-12) | Q6: (13-10) | R6: 2019 | S6: 2020 | T6: 2021 | U6: 2022 | V6: (19-18) | W6: (20-19) | X6: (21-20) | Y6: (21-18)
A7: 1 | B7: 2 | C7: 3 | D7: 4 | E7: 5 | F7: 6 | G7: 7 | H7: 8 | I7: 9 | J7: 10 | K7: 11 | L7: 12 | M7: 13 | N7: 14 | O7: 15 | P7: 16 | Q7: 17 | R7: 18 | S7: 19 | T7: 20 | U7: 21 | V7: 22 | W7: 23 | X7: 24 | Y7: 25
B8: %% | F8: pkt. proc. | J8: %% | N8: pkt. proc. | R8: %% | V8: pkt. proc.
A9: WB1 | B9: 91.36388889 | C9: 88.81240741 | D9: 91.25203704 | E9: 92.54388889 | F9: =C9-B9 -> -2.551481481 | G9: 2.43962963 | H9: =E9-D9 -> 1.291851852 | I9: =E9-B9 -> 1.18 | J9: 79.63 | K9: 53.49 | L9: 45.75 | M9: 74.67 | N9: =K9-J9 -> -26.14 | O9: -7.74 | P9: =M9-L9 -> 28.92 | Q9: =M9-J9 -> -4.96 | R9: 98.06 | S9: 97.67 | T9: 98.02 | U9: 97.57 | V9: =S9-R9 -> -0.39 | W9: =T9-S9 -> 0.35 | X9: =U9-T9 -> -0.45 | Y9: =U9-R9 -> -0.49
A10: WB2 | B10: 49.6062963 | C10: 52.73407407 | D10: 51.86648148 | E10: 48.45907407 | F10: 3.127777778 | G10: -0.8675925926 | H10: -3.407407407 | I10: =E10-B10 -> -1.147222222 | J10: 27.01 | K10: 32.55 | L10: 30.29 | M10: 29.86 | N10: 5.54 | O10: -2.26 | P10: -0.43 | Q10: =M10-J10 -> 2.85 | R10: 63.44 | S10: 66.65 | T10: 65.68 | U10: 62.79 | V10: 3.21 | W10: -0.97 | X10: -2.89 | Y10: =U10-R10 -> -0.65
A11: WB3 | B11: 6.275925926 | C11: 4.543703704 | D11: 9.127777778 | E11: 3.591296296 | F11: -1.732222222 | G11: 4.584074074 | H11: -5.536481481 | I11: -2.68462963 | J11: -1.53 | K11: -2.5 | L11: 1.78 | M11: -3.8 | N11: -0.97 | O11: 4.28 | P11: -5.58 | Q11: -2.27 | R11: 15.42 | S11: 13.71 | T11: 15.67 | U11: 13.87 | V11: -1.71 | W11: 1.96 | X11: -1.8 | Y11: -1.55
A12: WB4 | B12: 15.92666667 | C12: 14.87240741 | D12: 14.37 | E12: 15.40722222 | F12: -1.054259259 | G12: -0.5024074074 | H12: 1.037222222 | I12: -0.5194444444 | J12: 4.38 | K12: 3.14 | L12: 4.04 | M12: 7.45 | N12: -1.24 | O12: 0.9 | P12: 3.41 | Q12: 3.07 | R12: 45.29 | S12: 56.42 | T12: 62.69 | U12: 42.42 | V12: 11.13 | W12: 6.27 | X12: -20.27 | Y12: -2.87
A13: WB5 | B13: 41.55962963 | C13: 41.145 | D13: 41.88277778 | E13: 42.79740741 | F13: -0.4146296296 | G13: 0.7377777778 | H13: 0.9146296296 | I13: 1.237777778 | J13: 30.24 | K13: 31.94 | L13: 33.58 | M13: 32.82 | N13: 1.7 | O13: 1.64 | P13: -0.76 | Q13: 2.58 | R13: 51.58 | S13: 50.29 | T13: 50.2 | U13: 52.23 | V13: -1.29 | W13: -0.09 | X13: 2.03 | Y13: 0.65
A14: WB6 | B14: 7.667037037 | C14: 5.969444444 | D14: 10.86444444 | E14: 5.104444444 | F14: -1.697592593 | G14: 4.895 | H14: -5.76 | I14: -2.562592593 | J14: 1.01 | K14: 0.25 | L14: 6.06 | M14: -3.14 | N14: -0.76 | O14: 5.81 | P14: -9.2 | Q14: -4.15 | R14: 20.83 | S14: 15 | T14: 18.32 | U14: 15.09 | V14: -5.83 | W14: 3.32 | X14: -3.23 | Y14: -5.74
A15: WB7 | B15: 95.34018519 | C15: 110.5377778 | D15: 133.2790741 | E15: 66.23759259 | F15: 15.19759259 | G15: 22.7412963 | H15: -67.04148148 | I15: -29.10259259 | J15: 28.75 | K15: 62.54 | L15: 62 | M15: -9.6 | N15: 33.79 | O15: -0.54 | P15: -71.6 | Q15: -38.35 | R15: 182.51 | S15: 282.22 | T15: 256.27 | U15: 138.01 | V15: 99.71 | W15: -25.95 | X15: -118.26 | Y15: -44.5
A16: WB8 | B16: 5.785925926 | C16: 8.142222222 | D16: 11.4662963 | E16: 6.887592593 | F16: 2.356296296 | G16: 3.324074074 | H16: -4.578703704 | I16: 1.101666667 | J16: -0.59 | K16: 1.07 | L16: 5.23 | M16: -0.19 | N16: 1.66 | O16: 4.16 | P16: -5.42 | Q16: 0.4 | R16: 22.63 | S16: 18.92 | T16: 22.21 | U16: 17.31 | V16: -3.71 | W16: 3.29 | X16: -4.9 | Y16: -5.32
A17: WB9 | B17: 104.3140741 | C17: 120.9881481 | D17: 154.9162963 | E17: 121.7424074 | F17: 16.67407407 | G17: 33.92814815 | H17: -33.17388889 | I17: 17.42833333 | J17: 54.55 | K17: 52.56 | L17: 64.94 | M17: 45.86 | N17: -1.99 | O17: 12.38 | P17: -19.08 | Q17: -8.69 | R17: 274.65 | S17: 249.06 | T17: 279.68 | U17: 200.63 | V17: -25.59 | W17: 30.62 | X17: -79.05 | Y17: -74.02
A18: WB10 | B18: 102.0683333 | C18: 124.9477778 | D18: 165.797037 | E18: 124.4516667 | F18: 22.87944444 | G18: 40.84925926 | H18: -41.34537037 | I18: 22.38333333 | J18: -51.46 | K18: 39.07 | L18: -6.96 | M18: -5.23 | N18: 90.53 | O18: -46.03 | P18: 1.73 | Q18: 46.23 | R18: 274.74 | S18: 266.1 | T18: 311.1 | U18: 225.07 | V18: -8.64 | W18: 45 | X18: -86.03 | Y18: -49.67
A19: WB11 | B19: 106.7824074 | C19: 94.84055556 | D19: 38.71462963 | E19: 52.42740741 | F19: -11.94185185 | G19: -56.12592593 | H19: 13.71277778 | I19: -54.355 | J19: -194.33 | K19: 37.58 | L19: -1437.68 | M19: -1910.53 | N19: 231.91 | O19: -1475.26 | P19: -472.85 | Q19: -1716.2 | R19: 277.2 | S19: 255.95 | T19: 193.91 | U19: 272.36 | V19: -21.25 | W19: -62.04 | X19: 78.45 | Y19: -4.84
A20: WB12 | B20: 11.10148148 | C20: 9.219259259 | D20: 15.96407407 | E20: 7.253148148 | F20: -1.882222222 | G20: 6.744814815 | H20: -8.710925926 | I20: -3.848333333 | J20: 2.01 | K20: 0.49 | L20: 8.6 | M20: -4.3 | N20: -1.52 | O20: 8.11 | P20: -12.9 | Q20: -6.31 | R20: 29.37 | S20: 21.52 | T20: 26.2 | U20: 18.95 | V20: -7.85 | W20: 4.68 | X20: -7.25 | Y20: -10.42
A22: Tablica 2. WSKAŹNIKI NA MIESZKAŃCA - zestawienie zbiorcze
A23: Wskaźnik | B23: średnia arytmetyczna | J23: wartości minimalne | R23: wartości maksymalne
B24: 2019 | C24: 2020 | D24: 2021 | E24: 2022 | F24: (3:2) | G24: (4:3) | H24: (5:4) | I24: (5:2) | J24: 2019 | K24: 2020 | L24: 2021 | M24: 2022 | N24: (11:10) | O24: (12:11) | P24: (13:12) | Q24: (13:10) | R24: 2019 | S24: 2020 | T24: 2021 | U24: 2022 | V24: (19:18) | W24: (20:19) | X24: (21:20) | Y24: (21:18)
A25: 1 | B25: 2 | C25: 3 | D25: 4 | E25: 5 | F25: 6 | G25: 7 | H25: 8 | I25: 9 | J25: 10 | K25: 11 | L25: 12 | M25: 13 | N25: 14 | O25: 15 | P25: 16 | Q25: 17 | R25: 18 | S25: 19 | T25: 20 | U25: 21 | V25: 22 | W25: 23 | X25: 24 | Y25: 25
B26: zł | F26: %% | J26: zł | N26: %% | R26: zł | V26: %%
A27: WL1 | B27: 3068.002407 | C27: 3504.423148 | D27: 3839.035 | E27: 3681.513148 | F27: =C27/B27*100 -> 114.2249152 | G27: 109.5482719 | H27: 95.89683731 | I27: =E27/B27*100 -> 119.9970749 | J27: 2212.37 | K27: 2560.2 | L27: 2904.64 | M27: 2672.49 | N27: =K27/J27*100 -> 115.7220537 | O27: 113.4536364 | P27: 92.0076154 | Q27: =M27/J27*100 -> 120.7976062 | R27: 4247.91 | S27: 4829.05 | T27: 5206.16 | U27: 5190.63 | V27: =S27/R27*100 -> 113.68061 | W27: =T27/S27*100 -> 107.8091964 | X27: =U27/T27*100 -> 99.70169953 | Y27: =U27/R27*100 -> 122.1925606
A28: WL2 | B28: 398.4405556 | C28: 311.8264815 | D28: 691.0948148 | E28: 288.737037 | F28: 78.26173243 | G28: 221.6280066 | H28: 41.77965611 | I28: =E28/B28*100 -> 72.46677905 | J28: -80.68 | K28: -143.35 | L28: 112.52 | M28: -283 | N28: 177.6772434 | O28: -78.49319847 | P28: -251.5108425 | Q28: =M28/J28*100 -> 350.768468 | R28: 1302.14 | S28: 1140.84 | T28: 1389.62 | U28: 1411.06 | V28: 87.6126991 | W28: =T28/S28*100 -> 121.8067389 | X28: =U28/T28*100 -> 101.5428678 | Y28: =U28/R28*100 -> 108.364692
A29: WL3 | B29: 2555.464259 | C29: 2808.747778 | D29: 2865.808889 | E29: 3028.412037 | F29: 109.9114483 | G29: 102.0315498 | H29: 105.6739006 | I29: 118.5073133 | J29: 339.42 | K29: 271.49 | L29: 206.13 | M29: 269.02 | N29: 79.98644747 | O29: 75.92544845 | P29: 130.5098724 | Q29: 79.25873549 | R29: 5385.23 | S29: 5697.56 | T29: 6934.78 | U29: 7922.58 | V29: 105.7997523 | W29: =T29/S29*100 -> 121.7149095 | X29: 114.2441433 | Y29: 147.1168362
A30: WL4 | B30: 1359.655556 | C30: 1638.948148 | D30: 2204.401296 | E30: 1980.921111 | F30: 120.5414225 | G30: 134.5009785 | H30: 89.86209155 | I30: 145.6928634 | J30: 389.38 | K30: 292.79 | L30: 880.17 | M30: 514.97 | N30: 75.19389799 | O30: 300.6147751 | P30: 58.5080155 | Q30: 132.2538394 | R30: 3803.62 | S30: 8908.33 | T30: 13688.93 | U30: 6582.66 | V30: 234.2066242 | W30: =T30/S30*100 -> 153.6643793 | X30: 48.08746922 | Y30: 173.0630294
A31: WL5 | B31: 1132.083519 | C31: 1414.950185 | D31: 1937.912037 | E31: 1688.242963 | F31: 124.986378 | G31: 136.9597359 | H31: 87.11659408 | I31: 149.1270684 | J31: -170.19 | K31: 169.49 | L31: -44.99 | M31: -59.98 | N31: -99.58869499 | O31: -26.5443389 | P31: 133.3185152 | Q31: 35.24296375 | R31: 3352.38 | S31: 8630.57 | T31: 13688.93 | U31: 6582.66 | V31: 257.4460533 | W31: =T31/S31*100 -> 158.6098021 | X31: 48.08746922 | Y31: 196.3578115
A33: Tablica 3. WSKAŹNIKI DLA ZOBOWIĄZAŃ WG TYTUŁÓW DŁUŻNYCH - zestawienie zbiorcze
A34: Wskaźnik | B34: średnia arytmetyczna | J34: wartości minimalne | R34: wartości maksymalne
B35: 2019 | C35: 2020 | D35: 2021 | E35: 2022 | F35: (3-2) | G35: (4-3) | H35: (5-4) | I35: (5-2) | J35: 2019 | K35: 2020 | L35: 2021 | M35: 2022 | N35: (11-10) | O35: (12-11) | P35: (13-12) | Q35: (13-10) | R35: 2019 | S35: 2020 | T35: 2021 | U35: 2022 | V35: (19-18) | W35: (20-19) | X35: (21-20) | Y35: (21-18)
A36: 1 | B36: 2 | C36: 3 | D36: 4 | E36: 5 | F36: 6 | G36: 7 | H36: 8 | I36: 9 | J36: 10 | K36: 11 | L36: 12 | M36: 13 | N36: 14 | O36: 15 | P36: 16 | Q36: 17 | R36: 18 | S36: 19 | T36: 20 | U36: 21 | V36: 22 | W36: 23 | X36: 24 | Y36: 25
B37: %% | F37: pkt. proc. | J37: %% | N37: pkt. proc. | R37: %% | V37: pkt. proc.
A38: WZ1 | B38: 37.40759259 | C38: 37.07333333 | D38: 34.82814815 | E38: 36.61925926 | F38: =C38-B38 -> -0.3342592593 | G38: -2.245185185 | H38: 1.791111111 | I38: =E38-B38 -> -0.7883333333 | J38: 5.87 | K38: 4.08 | L38: 2.93 | M38: 3.8 | N38: =K38-J38 -> -1.79 | O38: -1.15 | P38: 0.87 | Q38: =L38-J38 -> -2.94 | R38: 85.94 | S38: 81.48 | T38: 86.94 | U38: 79.53 | V38: =S38-R38 -> -4.46 | W38: =T38-S38 -> 5.46 | X38: =U38-T38 -> -7.41 | Y38: =U38-R38 -> -6.41
A39: WZ3 | B39: 4.177037037 | C39: 3.623888889 | D39: 3.739074074 | E39: 5.272407407 | F39: -0.5531481481 | G39: 0.1151851852 | H39: 1.533333333 | I39: =E39-B39 -> 1.09537037 | J39: 0.14 | K39: 0.48 | L39: 0.32 | M39: 0.92 | N39: 0.34 | O39: -0.16 | P39: 0.6 | Q39: =L39-J39 -> 0.18 | R39: 13.17 | S39: 10.41 | T39: 17.33 | U39: 21.18 | V39: -2.76 | W39: =T39-S39 -> 6.92 | X39: =U39-T39 -> 3.85 | Y39: =U39-R39 -> 8.01
A40: WZ5 | B40: 6.126666667 | C40: 5.627037037 | D40: 5.384814815 | E40: 7.405555556 | F40: -0.4996296296 | G40: -0.2422222222 | H40: 2.020740741 | I40: 1.278888889 | J40: 0.19 | K40: 0.75 | L40: 0.8 | M40: 1.35 | N40: 0.56 | O40: 0.05 | P40: 0.55 | Q40: =L40-J40 -> 0.61 | R40: 19.22 | S40: 15.5 | T40: 24.43 | U40: 33.48 | V40: -3.72 | W40: =T40-S40 -> 8.93 | X40: 9.05 | Y40: 14.26
A41: WZ7 | B41: 0.11 | C41: 0.1118518519 | D41: 0.09518518519 | E41: 0.105 | F41: 0.001851851852 | G41: -0.01666666667 | H41: 0.009814814815 | I41: -0.005 | J41: 0 | K41: 0 | L41: 0 | M41: 0 | N41: 0 | O41: 0 | P41: 0 | Q41: =L41-J41 -> 0 | R41: 2.01 | S41: 2 | T41: 1.37 | U41: 2.48 | V41: -0.01 | W41: =T41-S41 -> -0.63 | X41: 1.11 | Y41: 0.47

Sheet Tab_8 metropolie
Q1: powrót do spisu tablic
A2: METROPOLIE
A4: Tablica 1. WSKAŹNIKI BUDŻETOWE - zestawienie zbiorcze
A5: Wskaźnik | B5: średnia arytmetyczna | J5: wartości minimalne | R5: wartości maksymalne
B6: 2019 | C6: 2020 | D6: 2021 | E6: 2022 | F6: (3-2) | G6: (4-3) | H6: (5-4) | I6: (5-2) | J6: 2019 | K6: 2020 | L6: 2021 | M6: 2022 | N6: (11-10) | O6: (12-11) | P6: (13-12) | Q6: (13-10) | R6: 2019 | S6: 2020 | T6: 2021 | U6: 2022 | V6: (19-18) | W6: (20-19) | X6: (21-20) | Y6: (21-18)
A7: 1 | B7: 2 | C7: 3 | D7: 4 | E7: 5 | F7: 6 | G7: 7 | H7: 8 | I7: 9 | J7: 10 | K7: 11 | L7: 12 | M7: 13 | N7: 14 | O7: 15 | P7: 16 | Q7: 17 | R7: 18 | S7: 19 | T7: 20 | U7: 21 | V7: 22 | W7: 23 | X7: 24 | Y7: 25
B8: %% | F8: pkt. proc. | J8: %% | N8: pkt. proc. | R8: %% | V8: pkt. proc.
A9: WB1 | B9: 92.985 | C9: 91.40416667 | D9: 93.345 | E9: 92.5525 | F9: =C9-B9 -> -1.580833333 | G9: 1.940833333 | H9: =E9-D9 -> -0.7925 | I9: =E9-B9 -> -0.4325 | J9: 85.58 | K9: 86.52 | L9: 90.93 | M9: 88.4 | N9: =K9-J9 -> 0.94 | O9: 4.41 | P9: =M9-L9 -> -2.53 | Q9: =M9-J9 -> 2.82 | R9: 96.26 | S9: 95.68 | T9: 96.17 | U9: 96.4 | V9: =S9-R9 -> -0.58 | W9: =T9-S9 -> 0.49 | X9: =U9-T9 -> 0.23 | Y9: =U9-R9 -> 0.14
A10: WB2 | B10: 37.94666667 | C10: 42.29833333 | D10: 41.43916667 | E10: 37.2575 | F10: 4.351666667 | G10: -0.8591666667 | H10: -4.181666667 | I10: =E10-B10 -> -0.6891666667 | J10: 25.87 | K10: 30.56 | L10: 29.75 | M10: 25.24 | N10: 4.69 | O10: -0.81 | P10: -4.51 | Q10: =M10-J10 -> -0.63 | R10: 49.04 | S10: 52.81 | T10: 51.95 | U10: 46.65 | V10: 3.77 | W10: -0.86 | X10: -5.3 | Y10: =U10-R10 -> -2.39
A11: WB3 | B11: 8.25 | C11: 4.638333333 | D11: 10.75916667 | E11: 4.629166667 | F11: -3.611666667 | G11: 6.120833333 | H11: -6.13 | I11: -3.620833333 | J11: 4.32 | K11: -1.04 | L11: 6.18 | M11: -0.01 | N11: -5.36 | O11: 7.22 | P11: -6.19 | Q11: -4.33 | R11: 13.6 | S11: 9.99 | T11: 14.29 | U11: 9.38 | V11: -3.61 | W11: 4.3 | X11: -4.91 | Y11: -4.22
A12: WB4 | B12: 18.015 | C12: 15.87333333 | D12: 15.41333333 | E12: 15.50666667 | F12: -2.141666667 | G12: -0.46 | H12: 0.09333333333 | I12: -2.508333333 | J12: 12.69 | K12: 11.25 | L12: 8.92 | M12: 9.7 | N12: -1.44 | O12: -2.33 | P12: 0.78 | Q12: -2.99 | R12: 24.19 | S12: 26.46 | T12: 26.08 | U12: 23.36 | V12: 2.27 | W12: -0.38 | X12: -2.72 | Y12: -0.83
A13: WB5 | B13: 35.935 | C13: 35.75583333 | D13: 36.08916667 | E13: 37.10583333 | F13: -0.1791666667 | G13: 0.3333333333 | H13: 1.016666667 | I13: 1.170833333 | J13: 31.86 | K13: 31.04 | L13: 31.75 | M13: 33.43 | N13: -0.82 | O13: 0.71 | P13: 1.68 | Q13: 1.57 | R13: 42.01 | S13: 41.38 | T13: 41.91 | U13: 43.51 | V13: -0.63 | W13: 0.53 | X13: 1.6 | Y13: 1.5
A14: WB6 | B14: 9.24 | C14: 5.738333333 | D14: 12.28333333 | E14: 6.7375 | F14: -3.501666667 | G14: 6.545 | H14: -5.545833333 | I14: -2.5025 | J14: 5.27 | K14: -0.73 | L14: 6.42 | M14: 1.13 | N14: -6 | O14: 7.15 | P14: -5.29 | Q14: -4.14 | R14: 13.66 | S14: 11.38 | T14: 16.03 | U14: 11.47 | V14: -2.28 | W14: 4.65 | X14: -4.56 | Y14: -2.19
A15: WB7 | B15: 78.59 | C15: 76.41583333 | D15: 117.595 | E15: 76.97583333 | F15: -2.174166667 | G15: 41.17916667 | H15: -40.61916667 | I15: -1.614166667 | J15: 58.52 | K15: 26.99 | L15: 71.85 | M15: 26.64 | N15: -31.53 | O15: 44.86 | P15: -45.21 | Q15: -31.88 | R15: 94.92 | S15: 103.55 | T15: 168.21 | U15: 144.77 | V15: 8.63 | W15: 64.66 | X15: -23.44 | Y15: 49.85
A16: WB8 | B16: 6.015833333 | C16: 7.9525 | D16: 10.97083333 | E16: 6.539166667 | F16: 1.936666667 | G16: 3.018333333 | H16: -4.431666667 | I16: 0.5233333333 | J16: 1.58 | K16: 0.49 | L16: 4.71 | M16: 1.49 | N16: -1.09 | O16: 4.22 | P16: -3.22 | Q16: -0.09 | R16: 20.22 | S16: 19.09 | T16: 22.37 | U16: 15.02 | V16: -1.13 | W16: 3.28 | X16: -7.35 | Y16: -5.2
A17: WB9 | B17: 97.3175 | C17: 93.16916667 | D17: 141.4291667 | E17: 124.9175 | F17: -4.148333333 | G17: 48.26 | H17: -16.51166667 | I17: 27.6 | J17: 72.61 | K17: 53.67 | L17: 73.09 | M17: 70.56 | N17: -18.94 | O17: 19.42 | P17: -2.53 | Q17: -2.05 | R17: 180.74 | S17: 166.77 | T17: 244.5 | U17: 239.78 | V17: -13.97 | W17: 77.73 | X17: -4.72 | Y17: 59.04
A18: WB10 | B18: 96.27166667 | C18: 89.79583333 | D18: 148.72 | E18: 129.7441667 | F18: -6.475833333 | G18: 58.92416667 | H18: -18.97583333 | I18: 33.4725 | J18: 64.73 | K18: 43.98 | L18: 65.49 | M18: 63.32 | N18: -20.75 | O18: 21.51 | P18: -2.17 | Q18: -1.41 | R18: 203.65 | S18: 173.15 | T18: 273.36 | U18: 273.55 | V18: -30.5 | W18: 100.21 | X18: 0.19 | Y18: 69.9
A19: WB11 | B19: 118.0625 | C19: 130.9691667 | D19: 79.655 | E19: 92.89916667 | F19: 12.90666667 | G19: -51.31416667 | H19: 13.24416667 | I19: -25.16333333 | J19: 49.1 | K19: 57.75 | L19: 36.58 | M19: 36.56 | N19: 8.65 | O19: -21.17 | P19: -0.02 | Q19: -12.54 | R19: 154.49 | S19: 227.38 | T19: 152.69 | U19: 157.94 | V19: 72.89 | W19: -74.69 | X19: 5.25 | Y19: 3.45
A20: WB12 | B20: 12.33666667 | C20: 8.071666667 | D20: 16.54916667 | E20: 8.971666667 | F20: -4.265 | G20: 8.4775 | H20: -7.5775 | I20: -3.365 | J20: 7.43 | K20: -0.96 | L20: 9.51 | M20: 1.41 | N20: -8.39 | O20: 10.47 | P20: -8.1 | Q20: -6.02 | R20: 18.76 | S20: 15.56 | T20: 21.45 | U20: 16.03 | V20: -3.2 | W20: 5.89 | X20: -5.42 | Y20: -2.73
A22: Tablica 2. WSKAŹNIKI NA MIESZKAŃCA - zestawienie zbiorcze
A23: Wskaźnik | B23: średnia arytmetyczna | J23: wartości minimalne | R23: wartości maksymalne
B24: 2019 | C24: 2020 | D24: 2021 | E24: 2022 | F24: (3:2) | G24: (4:3) | H24: (5:4) | I24: (5:2) | J24: 2019 | K24: 2020 | L24: 2021 | M24: 2022 | N24: (11:10) | O24: (12:11) | P24: (13:12) | Q24: (13:10) | R24: 2019 | S24: 2020 | T24: 2021 | U24: 2022 | V24: (19:18) | W24: (20:19) | X24: (21:20) | Y24: (21:18)
A25: 1 | B25: 2 | C25: 3 | D25: 4 | E25: 5 | F25: 6 | G25: 7 | H25: 8 | I25: 9 | J25: 10 | K25: 11 | L25: 12 | M25: 13 | N25: 14 | O25: 15 | P25: 16 | Q25: 17 | R25: 18 | S25: 19 | T25: 20 | U25: 21 | V25: 22 | W25: 23 | X25: 24 | Y25: 25
B26: zł | F26: %% | J26: zł | N26: %% | R26: zł | V26: %%
A27: WL1 | B27: 2607.205 | C27: 3044.435 | D27: 3384.994167 | E27: 2994.155 | F27: =C27/B27*100 -> 116.770066 | G27: 111.1862847 | H27: 88.45377134 | I27: =E27/B27*100 -> 114.8415641 | J27: 2252.99 | K27: 2691.34 | L27: 3012.93 | M27: 2639.12 | N27: =K27/J27*100 -> 119.4563669 | O27: 111.9490663 | P27: 87.59314023 | Q27: =M27/J27*100 -> 117.1385581 | R27: 3230.54 | S27: 3755.09 | T27: 4040 | U27: 3687.12 | V27: =S27/R27*100 -> 116.2372235 | W27: =T27/S27*100 -> 107.5873015 | X27: =U27/T27*100 -> 91.26534653 | Y27: =U27/R27*100 -> 114.1332409
A28: WL2 | B28: 572.9675 | C28: 325.08 | D28: 898.4358333 | E28: 390.7983333 | F28: 56.73620232 | G28: 276.3737644 | H28: 43.49763431 | I28: =E28/B28*100 -> 68.20602099 | J28: 278.1 | K28: -103.26 | L28: 460.21 | M28: -0.98 | N28: -37.13052859 | O28: -445.6808057 | P28: -0.2129462637 | Q28: =M28/J28*100 -> -0.3523912262 | R28: 918.51 | S28: 767.51 | T28: 1277.61 | U28: 972.01 | V28: 83.56033141 | W28: =T28/S28*100 -> 166.4616748 | X28: =U28/T28*100 -> 76.08033751 | Y28: =U28/R28*100 -> 105.8246508
A29: WL3 | B29: 3447.091667 | C29: 3975.311667 | D29: 4230.275833 | E29: 4282.25 | F29: 115.3236424 | G29: 106.41369 | H29: 101.2286236 | I29: 124.2279119 | J29: 1985.13 | K29: 2363.7 | L29: 2266.09 | M29: 2107.7 | N29: 119.0702876 | O29: 95.87045733 | P29: 93.01042765 | Q29: 106.1744067 | R29: 5136.56 | S29: 5984.65 | T29: 6355.84 | U29: 6383.17 | V29: 116.5108555 | W29: =T29/S29*100 -> 106.2023677 | X29: 100.4299982 | Y29: 124.2693554
A30: WL4 | B30: 1625.8575 | C30: 1479.754167 | D30: 2155.246667 | E30: 2040.268333 | F30: 91.01376761 | G30: 145.6489676 | H30: 94.66518914 | I30: 125.4887549 | J30: 885.04 | K30: 686.55 | L30: 1246.7 | M30: 1047.69 | N30: 77.57276507 | O30: 181.5891049 | P30: 84.03705783 | Q30: 118.3777004 | R30: 3090.03 | S30: 2977.79 | T30: 3261.17 | U30: 3648.28 | V30: 96.36767281 | W30: =T30/S30*100 -> 109.5164535 | X30: 111.8702797 | Y30: 118.0661676
A31: WL5 | B31: 1363.044167 | C31: 1217.2725 | D31: 1896.0125 | E31: 1774.194167 | F31: 89.30543337 | G31: 155.7590843 | H31: 93.57502478 | I31: 130.1640996 | J31: 653.97 | K31: 422.7 | L31: 871.25 | M31: 754.62 | N31: 64.63599248 | O31: 206.1154483 | P31: 86.61348637 | Q31: 115.3906142 | R31: 2741.26 | S31: 2822.03 | T31: 3039.14 | U31: 3352.27 | V31: 102.9464553 | W31: =T31/S31*100 -> 107.693398 | X31: 110.3032437 | Y31: 122.2893852
A33: Tablica 3. WSKAŹNIKI DLA ZOBOWIĄZAŃ WG TYTUŁÓW DŁUŻNYCH - zestawienie zbiorcze
A34: Wskaźnik | B34: średnia arytmetyczna | J34: wartości minimalne | R34: wartości maksymalne
B35: 2019 | C35: 2020 | D35: 2021 | E35: 2022 | F35: (3-2) | G35: (4-3) | H35: (5-4) | I35: (5-2) | J35: 2019 | K35: 2020 | L35: 2021 | M35: 2022 | N35: (11-10) | O35: (12-11) | P35: (13-12) | Q35: (13-10) | R35: 2019 | S35: 2020 | T35: 2021 | U35: 2022 | V35: (19-18) | W35: (20-19) | X35: (21-20) | Y35: (21-18)
A36: 1 | B36: 2 | C36: 3 | D36: 4 | E36: 5 | F36: 6 | G36: 7 | H36: 8 | I36: 9 | J36: 10 | K36: 11 | L36: 12 | M36: 13 | N36: 14 | O36: 15 | P36: 16 | Q36: 17 | R36: 18 | S36: 19 | T36: 20 | U36: 21 | V36: 22 | W36: 23 | X36: 24 | Y36: 25
B37: %% | F37: pkt. proc. | J37: %% | N37: pkt. proc. | R37: %% | V37: pkt. proc.
A38: WZ1 | B38: 47.37916667 | C38: 50.875 | D38: 48.56166667 | E38: 49.62083333 | F38: =C38-B38 -> 3.495833333 | G38: -2.313333333 | H38: 1.059166667 | I38: =E38-B38 -> 2.241666667 | J38: 21.51 | K38: 28.37 | L38: 24.77 | M38: 23.36 | N38: =K38-J38 -> 6.86 | O38: -3.6 | P38: =M38-L38 -> -1.41 | Q38: =L38-J38 -> 3.26 | R38: 77.82 | S38: 78.33 | T38: 77.64 | U38: 76.83 | V38: =S38-R38 -> 0.51 | W38: =T38-S38 -> -0.69 | X38: =U38-T38 -> -0.81 | Y38: =U38-R38 -> -0.99
A39: WZ3 | B39: 4.3975 | C39: 4.025 | D39: 3.466666667 | E39: 5.050833333 | F39: -0.3725 | G39: -0.5583333333 | H39: 1.584166667 | I39: =E39-B39 -> 0.6533333333 | J39: 2.49 | K39: 1.97 | L39: 1.41 | M39: 2.02 | N39: -0.52 | O39: -0.56 | P39: 0.61 | Q39: =L39-J39 -> -1.08 | R39: 8.61 | S39: 7.91 | T39: 8.14 | U39: 8.53 | V39: -0.7 | W39: =T39-S39 -> 0.23 | X39: =U39-T39 -> 0.39 | Y39: =U39-R39 -> -0.08
A40: WZ5 | B40: 5.83 | C40: 5.685 | D40: 4.689166667 | E40: 6.665 | F40: -0.145 | G40: -0.9958333333 | H40: 1.975833333 | I40: 0.835 | J40: 3.23 | K40: 2.81 | L40: 1.85 | M40: 2.57 | N40: -0.42 | O40: -0.96 | P40: 0.72 | Q40: =L40-J40 -> -1.38 | R40: 11.05 | S40: 10.74 | T40: 11.12 | U40: 11.6 | V40: -0.31 | W40: =T40-S40 -> 0.38 | X40: 0.48 | Y40: 0.55
A41: WZ7 | B41: 0.009166666667 | C41: 0.01 | D41: 0.0175 | E41: 0.009166666667 | F41: 0.0008333333333 | G41: 0.0075 | H41: -0.008333333333 | I41: 0 | J41: 0 | K41: 0 | L41: 0 | M41: 0 | N41: 0 | O41: 0 | P41: 0 | Q41: =L41-J41 -> 0 | R41: 0.06 | S41: 0.05 | T41: 0.13 | U41: 0.1 | V41: -0.01 | W41: =T41-S41 -> 0.08 | X41: -0.03 | Y41: 0.04

Sheet Tab_9 powiaty
Q1: powrót do spisu tablic
A2: POWIATY
A4: Tablica 1. WSKAŹNIKI BUDŻETOWE - zestawienie zbiorcze
A5: Wskaźnik | B5: średnia arytmetyczna | J5: wartości minimalne | R5: wartości maksymalne
B6: 2019 | C6: 2020 | D6: 2021 | E6: 2022 | F6: (3-2) | G6: (4-3) | H6: (5-4) | I6: (5-2) | J6: 2019 | K6: 2020 | L6: 2021 | M6: 2022 | N6: (11-10) | O6: (12-11) | P6: (13-12) | Q6: (13-10) | R6: 2019 | S6: 2020 | T6: 2021 | U6: 2022 | V6: (19-18) | W6: (20-19) | X6: (21-20) | Y6: (21-18)
A7: 1 | B7: 2 | C7: 3 | D7: 4 | E7: 5 | F7: 6 | G7: 7 | H7: 8 | I7: 9 | J7: 10 | K7: 11 | L7: 12 | M7: 13 | N7: 14 | O7: 15 | P7: 16 | Q7: 17 | R7: 18 | S7: 19 | T7: 20 | U7: 21 | V7: 22 | W7: 23 | X7: 24 | Y7: 25
B8: %% | F8: pkt. proc. | J8: %% | N8: pkt. proc. | R8: %% | V8: pkt. proc.
A9: WB1 | B9: 88.32171975 | C9: 86.19503185 | D9: 89.87958599 | E9: 89.48366242 | F9: =C9-B9 -> -2.126687898 | G9: 3.68455414 | H9: =E9-D9 -> -0.3959235669 | I9: =E9-B9 -> 1.161942675 | J9: 53.85 | K9: 61.26 | L9: 64.78 | M9: 50.8 | N9: =K9-J9 -> 7.41 | O9: 3.52 | P9: =M9-L9 -> -13.98 | Q9: =M9-J9 -> -3.05 | R9: 99.66 | S9: 98.65 | T9: 99.93 | U9: 99.92 | V9: =S9-R9 -> -1.01 | W9: =T9-S9 -> 1.28 | X9: =U9-T9 -> -0.01 | Y9: =U9-R9 -> 0.26
A10: WB2 | B10: 64.35050955 | C10: 67.09356688 | D10: 66.3206051 | E10: 63.29216561 | F10: 2.743057325 | G10: -0.7729617834 | H10: -3.02843949 | I10: =E10-B10 -> -1.058343949 | J10: 30.8 | K10: 33.38 | L10: 36.39 | M10: 33.29 | N10: 2.58 | O10: 3.01 | P10: -3.1 | Q10: =M10-J10 -> 2.49 | R10: 85.57 | S10: 87.27 | T10: 85.76 | U10: 80.58 | V10: 1.7 | W10: -1.51 | X10: -5.18 | Y10: =U10-R10 -> -4.99
A11: WB3 | B11: 9.991146497 | C11: 9.122961783 | D11: 11.09643312 | E11: 8.401878981 | F11: -0.8681847134 | G11: 1.973471338 | H11: -2.69455414 | I11: -1.589267516 | J11: -4.33 | K11: -2.37 | L11: 1.08 | M11: -3.36 | N11: 1.96 | O11: 3.45 | P11: -4.44 | Q11: 0.97 | R11: 32.91 | S11: 36.6 | T11: 29.57 | U11: 26.87 | V11: 3.69 | W11: -7.03 | X11: -2.7 | Y11: -6.04
A12: WB4 | B12: 17.36334395 | C12: 16.07579618 | D12: 15.69226115 | E12: 19.09289809 | F12: -1.287547771 | G12: -0.3835350318 | H12: 3.400636943 | I12: 1.72955414 | J12: 1.38 | K12: 2.05 | L12: 2.08 | M12: 2.03 | N12: 0.67 | O12: 0.03 | P12: -0.05 | Q12: 0.65 | R12: 44.8 | S12: 53.14 | T12: 43.32 | U12: 55.09 | V12: 8.34 | W12: -9.82 | X12: 11.77 | Y12: 10.29
A13: WB5 | B13: 61.78394904 | C13: 62.5033758 | D13: 63.1793949 | E13: 61.57165605 | F13: 0.7194267516 | G13: 0.6760191083 | H13: -1.607738854 | I13: -0.2122929936 | J13: 37.96 | K13: 36.64 | L13: 37.19 | M13: 34.67 | N13: -1.32 | O13: 0.55 | P13: -2.52 | Q13: -3.29 | R13: 74.75 | S13: 74.86 | T13: 74.27 | U13: 72.98 | V13: 0.11 | W13: -0.59 | X13: -1.29 | Y13: -1.77
A14: WB6 | B14: 9.073757962 | C14: 8.375636943 | D14: 10.49535032 | E14: 8.003407643 | F14: -0.6981210191 | G14: 2.119713376 | H14: -2.491942675 | I14: -1.070350318 | J14: -2.92 | K14: -2.07 | L14: 1.64 | M14: -3.2 | N14: 0.85 | O14: 3.71 | P14: -4.84 | Q14: -0.28 | R14: 28.69 | S14: 35.3 | T14: 27.65 | U14: 36.21 | V14: 6.61 | W14: -7.65 | X14: 8.56 | Y14: 7.52
A15: WB7 | B15: 142.1666561 | C15: 170.2524522 | D15: 155.0448408 | E15: 100.8534076 | F15: 28.08579618 | G15: -15.20761146 | H15: -54.19143312 | I15: -41.31324841 | J15: -9.98 | K15: 40.35 | L15: 46.02 | M15: -26.05 | N15: 50.33 | O15: 5.67 | P15: -72.07 | Q15: -16.07 | R15: 1147.74 | S15: 785.48 | T15: 654.83 | U15: 590.52 | V15: -362.26 | W15: -130.65 | X15: -64.31 | Y15: -557.22
A16: WB8 | B16: 9.83366242 | C16: 14.5794586 | D16: 18.02117834 | E16: 14.42044586 | F16: 4.745796178 | G16: 3.441719745 | H16: -3.600732484 | I16: 4.586783439 | J16: 0.49 | K16: 0 | L16: -2.26 | M16: 0 | N16: -0.49 | O16: -2.26 | P16: 2.26 | Q16: -0.49 | R16: 32.08 | S16: 43.64 | T16: 65.52 | U16: 64.43 | V16: 11.56 | W16: 21.88 | X16: -1.09 | Y16: 32.35
A17: WB9 | B17: 151.0115924 | C17: 201.4857325 | D17: 224.7784076 | E17: 179.173758 | F17: 50.47414013 | G17: 23.29267516 | H17: -45.60464968 | I17: 28.16216561 | J17: -0.06 | K17: 32 | L17: 58.11 | M17: 49.9 | N17: 32.06 | O17: 26.11 | P17: -8.21 | Q17: 49.96 | R17: 586.55 | S17: 783.7 | T17: 774.06 | U17: 704.14 | V17: 197.15 | W17: -9.64 | X17: -69.92 | Y17: 117.59
A18: WB10 | B18: 161.8383121 | C18: 222.6696497 | D18: 252.7117197 | E18: 192.9335987 | F18: 60.83133758 | G18: 30.04207006 | H18: -59.77812102 | I18: 31.09528662 | J18: -279.7 | K18: -409.02 | L18: 0.94 | M18: -49.51 | N18: -129.32 | O18: 409.96 | P18: -50.45 | Q18: 230.19 | R18: 1157.27 | S18: 997.66 | T18: 1127.03 | U18: 1367.8 | V18: -159.61 | W18: 129.37 | X18: 240.77 | Y18: 210.53
A19: WB11 | B19: 68.72949045 | C19: 52.38073248 | D19: 82.08933121 | E19: 58.90506369 | F19: -16.34875796 | G19: 29.70859873 | H19: -23.18426752 | I19: -9.824426752 | J19: -337.15 | K19: -501.02 | L19: 8.87 | M19: -326.44 | N19: -163.87 | O19: 509.89 | P19: -335.31 | Q19: 10.71 | R19: 259.73 | S19: 164.34 | T19: 10595.1 | U19: 143.93 | V19: -95.39 | W19: 10430.76 | X19: -10451.17 | Y19: -115.8
A20: WB12 | B20: 13.08038217 | C20: 12.28894904 | D20: 15.0961465 | E20: 11.86579618 | F20: -0.791433121 | G20: 2.807197452 | H20: -3.230350318 | I20: -1.214585987 | J20: -0.6 | K20: -3.92 | L20: 3.49 | M20: -3.32 | N20: -3.32 | O20: 7.41 | P20: -6.81 | Q20: -2.72 | R20: 40.33 | S20: 59.79 | T20: 36.71 | U20: 59.03 | V20: 19.46 | W20: -23.08 | X20: 22.32 | Y20: 18.7
A22: Tablica 2. WSKAŹNIKI NA MIESZKAŃCA - zestawienie zbiorcze
A23: Wskaźnik | B23: średnia arytmetyczna | J23: wartości minimalne | R23: wartości maksymalne
B24: 2019 | C24: 2020 | D24: 2021 | E24: 2022 | F24: (3:2) | G24: (4:3) | H24: (5:4) | I24: (5:2) | J24: 2019 | K24: 2020 | L24: 2021 | M24: 2022 | N24: (11:10) | O24: (12:11) | P24: (13:12) | Q24: (13:10) | R24: 2019 | S24: 2020 | T24: 2021 | U24: 2022 | V24: (19:18) | W24: (20:19) | X24: (21:20) | Y24: (21:18)
A25: 1 | B25: 2 | C25: 3 | D25: 4 | E25: 5 | F25: 6 | G25: 7 | H25: 8 | I25: 9 | J25: 10 | K25: 11 | L25: 12 | M25: 13 | N25: 14 | O25: 15 | P25: 16 | Q25: 17 | R25: 18 | S25: 19 | T25: 20 | U25: 21 | V25: 22 | W25: 23 | X25: 24 | Y25: 25
B26: zł | F26: %% | J26: zł | N26: %% | R26: zł | V26: %%
A27: WL1 | B27: 713.2403185 | C27: 819.9185987 | D27: 880.7100318 | E27: 938.9806688 | F27: =C27/B27*100 -> 114.9568494 | G27: 107.4143254 | H27: 106.6163249 | I27: =E27/B27*100 -> 131.6499705 | J27: 250.89 | K27: 285.41 | L27: 319.14 | M27: 267.8 | N27: =K27/J27*100 -> 113.7590179 | O27: =L27/K27*100 -> 111.8180863 | P27: =M27/L27*100 -> 83.91301623 | Q27: =M27/J27*100 -> 106.7400056 | R27: 1575.4 | S27: 1712.73 | T27: 1762.29 | U27: 1936.51 | V27: =S27/R27*100 -> 108.7171512 | W27: =T27/S27*100 -> 102.893626 | X27: =U27/T27*100 -> 109.8860006 | Y27: =U27/R27*100 -> 122.9217976
A28: WL2 | B28: 105.4356369 | C28: 106.5458917 | D28: 140.2416561 | E28: 120.8924522 | F28: 101.0530166 | G28: 131.6255876 | H28: 86.20295541 | I28: =E28/B28*100 -> 114.6599534 | J28: -51.08 | K28: -31.42 | L28: 13.65 | M28: -46.1 | N28: =K28/J28*100 -> 61.51135474 | O28: =L28/K28*100 -> -43.44366645 | P28: =M28/L28*100 -> -337.7289377 | Q28: =M28/J28*100 -> 90.25058731 | R28: 253.12 | S28: 632.66 | T28: 314.02 | U28: 452.21 | V28: 249.9446903 | W28: =T28/S28*100 -> 49.63487497 | X28: =U28/T28*100 -> 144.0067512 | Y28: =U28/R28*100 -> 178.6543932
A29: WL3 | B29: 272.8525478 | C29: 270.4506369 | D29: 259.1451911 | E29: 256.5332484 | F29: 99.11970372 | G29: 95.81977473 | H29: 98.99209294 | I29: 94.01900422 | J29: 0 | K29: 0 | L29: 0 | M29: 0 | R29: 1503.44 | S29: 1457.75 | T29: 1419.71 | U29: 1332.52 | V29: 96.96096951 | W29: =T29/S29*100 -> 97.39049906 | X29: 93.85860493 | Y29: 88.63140531
A30: WL4 | B30: 331.286879 | C30: 430.0744268 | D30: 501.7587261 | E30: 572.7719108 | F30: 129.8193361 | G30: 116.6678823 | H30: 114.152855 | I30: 172.8930263 | J30: -0.58 | K30: 59.46 | L30: 133.1 | M30: 151.26 | N30: =K30/J30*100 -> -10251.72414 | O30: =L30/K30*100 -> 223.847965 | P30: 113.6438768 | Q30: -26079.31034 | R30: 1333.96 | S30: 1140.24 | T30: 1244.75 | U30: 1973.47 | V30: 85.47782542 | W30: =T30/S30*100 -> 109.1656143 | X30: 158.5434826 | Y30: 147.9407179
A31: WL5 | B31: 289.5886306 | C31: 395.9169427 | D31: 468.2528344 | E31: 534.5186306 | F31: 136.7170189 | G31: 118.2704714 | H31: 114.1517128 | I31: 184.5785967 | J31: -694.25 | K31: -313.25 | L31: 1.52 | M31: -88.63 | N31: =K31/J31*100 -> 45.12063378 | O31: =L31/K31*100 -> -0.485235435 | P31: -5830.921053 | Q31: 12.76629456 | R31: 1333.96 | S31: 1092.76 | T31: 1232.72 | U31: 1945.55 | V31: 81.91849831 | W31: =T31/S31*100 -> 112.8079359 | X31: 157.8257836 | Y31: 145.8477016
A33: Tablica 3. WSKAŹNIKI DLA ZOBOWIĄZAŃ WG TYTUŁÓW DŁUŻNYCH - zestawienie zbiorcze
A34: Wskaźnik | B34: średnia arytmetyczna | J34: wartości minimalne | R34: wartości maksymalne
B35: 2019 | C35: 2020 | D35: 2021 | E35: 2022 | F35: (3-2) | G35: (4-3) | H35: (5-4) | I35: (5-2) | J35: 2019 | K35: 2020 | L35: 2021 | M35: 2022 | N35: (11-10) | O35: (12-11) | P35: (13-12) | Q35: (13-10) | R35: 2019 | S35: 2020 | T35: 2021 | U35: 2022 | V35: (19-18) | W35: (20-19) | X35: (21-20) | Y35: (21-18)
A36: 1 | B36: 2 | C36: 3 | D36: 4 | E36: 5 | F36: 6 | G36: 7 | H36: 8 | I36: 9 | J36: 10 | K36: 11 | L36: 12 | M36: 13 | N36: 14 | O36: 15 | P36: 16 | Q36: 17 | R36: 18 | S36: 19 | T36: 20 | U36: 21 | V36: 22 | W36: 23 | X36: 24 | Y36: 25
B37: %% | F37: pkt. proc. | J37: %% | N37: pkt. proc. | R37: %% | V37: pkt. proc.
A38: WZ1 | B38: 21.83089172 | C38: 19.12691083 | D38: 17.4256051 | E38: 15.49767516 | F38: =C38-B38 -> -2.703980892 | G38: -1.701305732 | H38: -1.927929936 | I38: =E38-B38 -> -6.333216561 | J38: 0 | K38: 0 | L38: 0 | M38: 0 | R38: 127.6 | S38: 111.56 | T38: 99.06 | U38: 82.17 | V38: =S38-R38 -> -16.04 | W38: =T38-S38 -> -12.5 | X38: =U38-T38 -> -16.89 | Y38: =U38-R38 -> -45.43
A39: WZ3 | B39: 3.935796178 | C39: 2.858535032 | D39: 2.568407643 | E39: 3.22 | F39: -1.077261146 | G39: -0.2901273885 | H39: 0.6515923567 | I39: =E39-B39 -> -0.7157961783 | J39: 0 | K39: 0 | L39: 0 | M39: 0 | R39: 62.11 | S39: 34.59 | T39: 20.48 | U39: 30.88 | V39: -27.52 | W39: =T39-S39 -> -14.11 | X39: =U39-T39 -> 10.4 | Y39: =U39-R39 -> -31.23
A40: WZ5 | B40: 5.651050955 | C40: 4.254968153 | D40: 3.596178344 | E40: 4.599808917 | F40: -1.396082803 | G40: -0.6587898089 | H40: 1.003630573 | I40: -1.051242038 | J40: 0 | K40: 0 | L40: 0 | M40: 0 | R40: 78.08 | S40: 47.93 | T40: 26.97 | U40: 46.02 | V40: -30.15 | W40: =T40-S40 -> -20.96 | X40: 19.05 | Y40: -32.06
A41: WZ7 | B41: 0.6808917197 | C41: 0.4224522293 | D41: 0.6879299363 | E41: 0.4584394904 | F41: -0.2584394904 | G41: 0.265477707 | H41: -0.2294904459 | I41: -0.2224522293 | J41: 0 | K41: 0 | L41: 0 | M41: 0 | R41: 100 | S41: 100 | T41: 100 | U41: 100 | V41: 0 | W41: =T41-S41 -> 0 | X41: 0 | Y41: 0

Sheet Tab_10 województwa
Q1: powrót do spisu tablic
A2: WOJEWÓDZTWA
A4: Tablica 1. WSKAŹNIKI BUDŻETOWE - zestawienie zbiorcze
A5: Wskaźnik | B5: średnia arytmetyczna | J5: wartości minimalne | R5: wartości maksymalne
B6: 2019 | C6: 2020 | D6: 2021 | E6: 2022 | F6: (3-2) | G6: (4-3) | H6: (5-4) | I6: (5-2) | J6: 2019 | K6: 2020 | L6: 2021 | M6: 2022 | N6: (11-10) | O6: (12-11) | P6: (13-12) | Q6: (13-10) | R6: 2019 | S6: 2020 | T6: 2021 | U6: 2022 | V6: (19-18) | W6: (20-19) | X6: (21-20) | Y6: (21-18)
A7: 1 | B7: 2 | C7: 3 | D7: 4 | E7: 5 | F7: 6 | G7: 7 | H7: 8 | I7: 9 | J7: 10 | K7: 11 | L7: 12 | M7: 13 | N7: 14 | O7: 15 | P7: 16 | Q7: 17 | R7: 18 | S7: 19 | T7: 20 | U7: 21 | V7: 22 | W7: 23 | X7: 24 | Y7: 25
B8: %% | F8: pkt. proc. | J8: %% | N8: pkt. proc. | R8: %% | V8: pkt. proc.
A9: WB1 | B9: 77.72125 | C9: 78.7 | D9: 83.360625 | E9: 86.07125 | F9: =C9-B9 -> 0.97875 | G9: 4.660625 | H9: =E9-D9 -> 2.710625 | I9: =E9-B9 -> 8.35 | J9: 50.75 | K9: 62.08 | L9: 70.17 | M9: 75.88 | N9: =K9-J9 -> 11.33 | O9: 8.09 | P9: =M9-L9 -> 5.71 | Q9: =M9-J9 -> 25.13 | R9: 93.35 | S9: 95.5 | T9: 93.17 | U9: 95.91 | V9: =S9-R9 -> 2.15 | W9: =T9-S9 -> -2.33 | X9: =U9-T9 -> 2.74 | Y9: =U9-R9 -> 2.56
A10: WB2 | B10: 45.88875 | C10: 49.881875 | D10: 44.53875 | E10: 45.854375 | F10: 3.993125 | G10: -5.343125 | H10: 1.315625 | I10: =E10-B10 -> -0.034375 | J10: 10.05 | K10: 13.33 | L10: 12.97 | M10: 10.49 | N10: 3.28 | O10: -0.36 | P10: -2.48 | Q10: =M10-J10 -> 0.44 | R10: 70.04 | S10: 68.6 | T10: 66.69 | U10: 65.05 | V10: -1.44 | W10: -1.91 | X10: -1.64 | Y10: =U10-R10 -> -4.99
A11: WB3 | B11: 22.791875 | C11: 25.101875 | D11: 30.405 | E11: 26.283125 | F11: 2.31 | G11: 5.303125 | H11: -4.121875 | I11: 3.49125 | J11: 14.05 | K11: 16.36 | L11: 22.02 | M11: 17.51 | N11: 2.31 | O11: 5.66 | P11: -4.51 | Q11: 3.46 | R11: 29.19 | S11: 35.3 | T11: 37.71 | U11: 36.61 | V11: 6.11 | W11: 2.41 | X11: -1.1 | Y11: 7.42
A12: WB4 | B12: 38.915625 | C12: 36.959375 | D12: 35.76125 | E12: 33.866875 | F12: -1.95625 | G12: -1.198125 | H12: -1.894375 | I12: -5.04875 | J12: 26.85 | K12: 22.77 | L12: 23.4 | M12: 25.18 | N12: -4.08 | O12: 0.63 | P12: 1.78 | Q12: -1.67 | R12: 63.72 | S12: 50.49 | T12: 46.43 | U12: 47.01 | V12: -13.23 | W12: -4.06 | X12: 0.58 | Y12: -16.71
A13: WB5 | B13: 20.268125 | C13: 19.441875 | D13: 20.063125 | E13: 19.466875 | F13: -0.82625 | G13: 0.62125 | H13: -0.59625 | I13: -0.80125 | J13: 15.75 | K13: 14.78 | L13: 15.61 | M13: 14.55 | N13: -0.97 | O13: 0.83 | P13: -1.06 | Q13: -1.2 | R13: 24.94 | S13: 23.77 | T13: 24.48 | U13: 24.69 | V13: -1.17 | W13: 0.71 | X13: 0.21 | Y13: -0.25
A14: WB6 | B14: 18.144375 | C14: 20.351875 | D14: 25.8775 | E14: 22.839375 | F14: 2.2075 | G14: 5.525625 | H14: -3.038125 | I14: 4.695 | J14: 10.43 | K14: 12.58 | L14: 17.63 | M14: 14.55 | N14: 2.15 | O14: 5.05 | P14: -3.08 | Q14: 4.12 | R14: 27.62 | S14: 28.3 | T14: 32.2 | U14: 32.46 | V14: 0.68 | W14: 3.9 | X14: 0.26 | Y14: 4.84
A15: WB7 | B15: 106.448125 | C15: 122.6875 | D15: 133.458125 | E15: 114.275625 | F15: 16.239375 | G15: 10.770625 | H15: -19.1825 | I15: 7.8275 | J15: 82 | K15: 90.8 | L15: 100.15 | M15: 87.5 | N15: 8.8 | O15: 9.35 | P15: -12.65 | Q15: 5.5 | R15: 142.36 | S15: 189.36 | T15: 170.62 | U15: 177.81 | V15: 47 | W15: -18.74 | X15: 7.19 | Y15: 35.45
A16: WB8 | B16: 8.9125 | C16: 14.573125 | D16: 20.635 | E16: 19.63875 | F16: 5.660625 | G16: 6.061875 | H16: -0.99625 | I16: 10.72625 | J16: 1.72 | K16: 6 | L16: 8.49 | M16: 6.72 | N16: 4.28 | O16: 2.49 | P16: -1.77 | Q16: 5 | R16: 22.23 | S16: 30.92 | T16: 36.23 | U16: 46.27 | V16: 8.69 | W16: 5.31 | X16: 10.04 | Y16: 24.04
A17: WB9 | B17: 113.673125 | C17: 128.763125 | D17: 159.41625 | E17: 161.45875 | F17: 15.09 | G17: 30.653125 | H17: 2.0425 | I17: 47.785625 | J17: 87.42 | K17: 103.73 | L17: 113.6 | M17: 106.05 | N17: 16.31 | O17: 9.87 | P17: -7.55 | Q17: 18.63 | R17: 145.87 | S17: 177.26 | T17: 250.68 | U17: 282.26 | V17: 31.39 | W17: 73.42 | X17: 31.58 | Y17: 136.39
A18: WB10 | B18: 115.81375 | C18: 132.4475 | D18: 167.031875 | E18: 167.275 | F18: 16.63375 | G18: 34.584375 | H18: 0.243125 | I18: 51.46125 | J18: 84.69 | K18: 104.29 | L18: 115.9 | M18: 107.38 | N18: 19.6 | O18: 11.61 | P18: -8.52 | Q18: 22.69 | R18: 159.37 | S18: 186.3 | T18: 263.95 | U18: 298.15 | V18: 26.93 | W18: 77.65 | X18: 34.2 | Y18: 138.78
A19: WB11 | B19: 88.784375 | C19: 77.8925 | D19: 63.9 | E19: 63.7575 | F19: -10.891875 | G19: -13.9925 | H19: -0.1425 | I19: -25.026875 | J19: 62.75 | K19: 53.68 | L19: 37.89 | M19: 33.54 | N19: -9.07 | O19: -15.79 | P19: -4.35 | Q19: -29.21 | R19: 118.07 | S19: 95.89 | T19: 86.28 | U19: 93.12 | V19: -22.18 | W19: -9.61 | X19: 6.84 | Y19: -24.95
A20: WB12 | B20: 31.799375 | C20: 34.06625 | D20: 40.3475 | E20: 34.63875 | F20: 2.266875 | G20: 6.28125 | H20: -5.70875 | I20: 2.839375 | J20: 22.05 | K20: 26.1 | L20: 29.75 | M20: 23.56 | N20: 4.05 | O20: 3.65 | P20: -6.19 | Q20: 1.51 | R20: 41.65 | S20: 48.46 | T20: 48.87 | U20: 46.56 | V20: 6.81 | W20: 0.41 | X20: -2.31 | Y20: 4.91
A22: Tablica 2. WSKAŹNIKI NA MIESZKAŃCA - zestawienie zbiorcze
A23: Wskaźnik | B23: średnia arytmetyczna | J23: wartości minimalne | R23: wartości maksymalne
B24: 2019 | C24: 2020 | D24: 2021 | E24: 2022 | F24: (3:2) | G24: (4:3) | H24: (5:4) | I24: (5:2) | J24: 2019 | K24: 2020 | L24: 2021 | M24: 2022 | N24: (11:10) | O24: (12:11) | P24: (13:12) | Q24: (13:10) | R24: 2019 | S24: 2020 | T24: 2021 | U24: 2022 | V24: (19:18) | W24: (20:19) | X24: (21:20) | Y24: (21:18)
A25: 1 | B25: 2 | C25: 3 | D25: 4 | E25: 5 | F25: 6 | G25: 7 | H25: 8 | I25: 9 | J25: 10 | K25: 11 | L25: 12 | M25: 13 | N25: 14 | O25: 15 | P25: 16 | Q25: 17 | R25: 18 | S25: 19 | T25: 20 | U25: 21 | V25: 22 | W25: 23 | X25: 24 | Y25: 25
B26: zł | F26: %% | J26: zł | N26: %% | R26: zł | V26: %%
A27: WL1 | B27: 173.8625 | C27: 218.954375 | D27: 220.8225 | E27: 257.828125 | F27: =C27/B27*100 -> 125.9353656 | G27: 100.8532029 | H27: 116.7580862 | I27: =E27/B27*100 -> 148.2942699 | J27: 57.54 | K27: 82.66 | L27: 86.17 | M27: 82.03 | N27: =K27/J27*100 -> 143.6565867 | O27: 104.2463102 | P27: 95.19554369 | Q27: =M27/J27*100 -> 142.5616962 | R27: 266.97 | S27: 351.91 | T27: 346.4 | U27: 377.57 | V27: =S27/R27*100 -> 131.8163089 | W27: =T27/S27*100 -> 98.43425876 | X27: =U27/T27*100 -> 108.9982679 | Y27: =U27/R27*100 -> 141.4278758
A28: WL2 | B28: 88.2725 | C28: 110.19 | D28: 150.935 | E28: 147.070625 | F28: 124.8293636 | G28: 136.9770397 | H28: 97.43970915 | I28: =E28/B28*100 -> 166.6097879 | J28: 52.5 | K28: 64.86 | L28: 102.92 | M28: 95.55 | N28: 123.5428571 | O28: 158.6802344 | P28: 92.83909833 | Q28: =M28/J28*100 -> 182 | R28: 167.13 | S28: 158.62 | T28: 191.88 | U28: 202.65 | V28: 94.90815533 | W28: =T28/S28*100 -> 120.968352 | X28: =U28/T28*100 -> 105.6128831 | Y28: =U28/R28*100 -> 121.2529169
A29: WL3 | B29: 163.13875 | C29: 166.84375 | D29: 156.805625 | E29: 143.089375 | F29: 102.2710729 | G29: 93.98351751 | H29: 91.25270538 | I29: 87.71023132 | J29: 99.82 | K29: 81.57 | L29: 62.83 | M29: 44.59 | N29: 81.71709076 | O29: 77.02586735 | P29: 70.96928219 | Q29: 44.67040673 | R29: 333.89 | S29: 328.86 | T29: 290.13 | U29: 255.27 | V29: 98.49351583 | W29: =T29/S29*100 -> 88.22295202 | X29: 87.98469652 | Y29: 76.45332295
A30: WL4 | B30: 251.241875 | C30: 279.01375 | D30: 337.86875 | E30: 372.855 | F30: 111.05384 | G30: 121.0939425 | H30: 110.3549825 | I30: 148.4047992 | J30: 153.69 | K30: 180.47 | L30: 192.08 | M30: 208.6 | N30: 117.4246861 | O30: 106.4332022 | P30: 108.6005831 | Q30: 135.7277637 | R30: 548.61 | S30: 444.57 | T30: 505.41 | U30: 657.92 | V30: 81.03570843 | W30: =T30/S30*100 -> 113.6851339 | X30: 130.1755011 | Y30: 119.9249011
A31: WL5 | B31: 228.309375 | C31: 256.95125 | D31: 312.299375 | E31: 353.67 | F31: 112.5452032 | G31: 121.5403214 | H31: 113.2471046 | I31: 154.9082249 | J31: 126.29 | K31: 159.73 | L31: 175.79 | M31: 192.61 | N31: 126.4787394 | O31: 110.0544669 | P31: 109.5682348 | Q31: 152.514055 | R31: 540 | S31: 437.44 | T31: 489.55 | U31: 647.56 | V31: 81.00740741 | W31: =T31/S31*100 -> 111.9124909 | X31: 132.2765805 | Y31: 119.9185185
A33: Tablica 3. WSKAŹNIKI DLA ZOBOWIĄZAŃ WG TYTUŁÓW DŁUŻNYCH - zestawienie zbiorcze
A34: Wskaźnik | B34: średnia arytmetyczna | J34: wartości minimalne | R34: wartości maksymalne
B35: 2019 | C35: 2020 | D35: 2021 | E35: 2022 | F35: (3-2) | G35: (4-3) | H35: (5-4) | I35: (5-2) | J35: 2019 | K35: 2020 | L35: 2021 | M35: 2022 | N35: (11-10) | O35: (12-11) | P35: (13-12) | Q35: (13-10) | R35: 2019 | S35: 2020 | T35: 2021 | U35: 2022 | V35: (19-18) | W35: (20-19) | X35: (21-20) | Y35: (21-18)
A36: 1 | B36: 2 | C36: 3 | D36: 4 | E36: 5 | F36: 6 | G36: 7 | H36: 8 | I36: 9 | J36: 10 | K36: 11 | L36: 12 | M36: 13 | N36: 14 | O36: 15 | P36: 16 | Q36: 17 | R36: 18 | S36: 19 | T36: 20 | U36: 21 | V36: 22 | W36: 23 | X36: 24 | Y36: 25
B37: %% | F37: pkt. proc. | J37: %% | N37: pkt. proc. | R37: %% | V37: pkt. proc.
A38: WZ1 | B38: 33.414375 | C38: 30.17875 | D38: 25.953125 | E38: 21.81625 | F38: =C38-B38 -> -3.235625 | G38: -4.225625 | H38: -4.136875 | I38: =E38-B38 -> -11.598125 | J38: 17.95 | K38: 12.67 | L38: 9.73 | M38: 6.24 | N38: =K38-J38 -> -5.28 | O38: -2.94 | P38: =M38-L38 -> -3.49 | Q38: =L38-J38 -> -8.22 | R38: 63.47 | S38: 66.04 | T38: 44.35 | U38: 39.03 | V38: =S38-R38 -> 2.57 | W38: =T38-S38 -> -21.69 | X38: =U38-T38 -> -5.32 | Y38: =U38-R38 -> -24.44
A39: WZ3 | B39: 5.49625 | C39: 4.644375 | D39: 4.594375 | E39: 4.118125 | F39: -0.851875 | G39: -0.05 | H39: -0.47625 | I39: =E39-B39 -> -1.378125 | J39: 1.51 | K39: 1.5 | L39: 1.6 | M39: 2.08 | N39: -0.01 | O39: 0.1 | P39: 0.48 | Q39: =L39-J39 -> 0.09 | R39: 12.62 | S39: 12.18 | T39: 12.73 | U39: 9.14 | V39: -0.44 | W39: =T39-S39 -> 0.55 | X39: =U39-T39 -> -3.59 | Y39: =U39-R39 -> -3.48
A40: WZ5 | B40: 9.25625 | C40: 7.849375 | D40: 6.99625 | E40: 5.9675 | F40: -1.406875 | G40: -0.853125 | H40: -1.02875 | I40: -3.28875 | J40: 3.98 | K40: 3.13 | L40: 2.59 | M40: 2.9 | N40: -0.85 | O40: -0.54 | P40: 0.31 | Q40: =L40-J40 -> -1.39 | R40: 26.12 | S40: 19.62 | T40: 17.38 | U40: 13.7 | V40: -6.5 | W40: =T40-S40 -> -2.24 | X40: -3.68 | Y40: -12.42
A41: WZ7 | B41: 0.020625 | C41: 0.021875 | D41: 0.02375 | E41: 0.01625 | F41: 0.00125 | G41: 0.001875 | H41: -0.0075 | I41: -0.004375 | J41: 0 | K41: 0 | L41: 0 | M41: 0 | N41: 0 | O41: 0 | P41: 0 | Q41: =L41-J41 -> 0 | R41: 0.19 | S41: 0.21 | T41: 0.24 | U41: 0.25 | V41: 0.02 | W41: =T41-S41 -> 0.03 | X41: 0.01 | Y41: 0.06

Sheet Tab_11 JST jednostkowo
M2: powrót do spisu tablic
A3: Dane 1: WSKAŹNIKI DLA POSZCZEGÓLNYCH JEDNOSTEK W LATACH 2019-2022
M6: Db/Do | Q6: Tb/Db | U6: No/Db | Y6: Wm/Wo | AC6: Ww/Wb | AG6: (No+Sm)/Do | AK6: (No+Dm) / Wm | AO6: ((Do+P) - (Wo+R)) / Do | AS6: (Pbzwr + (Do-Wb)) / (Wm+Rs) | AW6: (Pbzwr + (Do-Wb-Rs)) / Wm | BA6: Wm / (Pbzwr +(Do-Wb-Rs)) | BE6: ((Db-Dbe) - (Wb-Wbe-Wbd)+Sm) / (Db-Dbd) | BI6: Tb/Ludn | BM6: No/Ludn | BQ6: Zo/Ludn | BU6: (Pbzwr+(Do-Wb))/ L | BY6: (Pbzwr +(Do-Wb-Rs))/ L | CC6: Zo/Do | CG6: (Rs+O) / Do | CK6: (Rs+O) / (Db-Dbd) | CO6: Zw/Zo
I7: 2019 | J7: 2020 | K7: 2021 | L7: 2022 | M7: 2019 | N7: 2020 | O7: 2021 | P7: 2022 | Q7: 2019 | R7: 2020 | S7: 2021 | T7: 2022 | U7: 2019 | V7: 2020 | W7: 2021 | X7: 2022 | Y7: 2019 | Z7: 2020 | AA7: 2021 | AB7: 2022 | AC7: 2019 | AD7: 2020 | AE7: 2021 | AF7: 2022 | AG7: 2019 | AH7: 2020 | AI7: 2021 | AJ7: 2022 | AK7: 2019 | AL7: 2020 | AM7: 2021 | AN7: 2022 | AO7: 2019 | AP7: 2020 | AQ7: 2021 | AR7: 2022 | AS7: 2019 | AT7: 2020 | AU7: 2021 | AV7: 2022 | AW7: 2019 | AX7: 2020 | AY7: 2021 | AZ7: 2022 | BA7: 2019 | BB7: 2020 | BC7: 2021 | BD7: 2022 | BE7: 2019 | BF7: 2020 | BG7: 2021 | BH7: 2022 | BI7: 2019 | BJ7: 2020 | BK7: 2021 | BL7: 2022 | BM7: 2019 | BN7: 2020 | BO7: 2021 | BP7: 2022 | BQ7: 2019 | BR7: 2020 | BS7: 2021 | BT7: 2022 | BU7: 2019 | BV7: 2020 | BW7: 2021 | BX7: 2022 | BY7: 2019 | BZ7: 2020 | CA7: 2021 | CB7: 2022 | CC7: 2019 | CD7: 2020 | CE7: 2021 | CF7: 2022 | CG7: 2019 | CH7: 2020 | CI7: 2021 | CJ7: 2022 | CK7: 2019 | CL7: 2020 | CM7: 2021 | CN7: 2022 | CO7: 2019 | CP7: 2020 | CQ7: 2021 | CR7: 2022
A8: WK | B8: PK | C8: GK | D8: GT | E8: TYPS | F8: KodGUS6 | G8: KODGUS | H8: NazwaJST | I8: Ludn[3] | J8: Ludn[2] | K8: Ludn[1] | L8: Ludn[0] | M8: WB1[3] | N8: WB1[2] | O8: WB1[1] | P8: WB1[0] | Q8: WB2[3] | R8: WB2[2] | S8: WB2[1] | T8: WB2[0] | U8: WB3[3] | V8: WB3[2] | W8: WB3[1] | X8: WB3[0] | Y8: WB4[3] | Z8: WB4[2] | AA8: WB4[1] | AB8: WB4[0] | AC8: WB5[3] | AD8: WB5[2] | AE8: WB5[1] | AF8: WB5[0] | AG8: WB6[3] | AH8: WB6[2] | AI8: WB6[1] | AJ8: WB6[0] | AK8: WB7[3] | AL8: WB7[2] | AM8: WB7[1] | AN8: WB7[0] | AO8: WB8[3] | AP8: WB8[2] | AQ8: WB8[1] | AR8: WB8[0] | AS8: WB9[3] | AT8: WB9[2] | AU8: WB9[1] | AV8: WB9[0] | AW8: WB10[3] | AX8: WB10[2] | AY8: WB10[1] | AZ8: WB10[0] | BA8: WB11[3] | BB8: WB11[2] | BC8: WB11[1] | BD8: WB11[0] | BE8: WB12[3] | BF8: WB12[2] | BG8: WB12[1] | BH8: WB12[0] | BI8: WL1[3] | BJ8: WL1[2] | BK8: WL1[1] | BL8: WL1[0] | BM8: WL2[3] | BN8: WL2[2] | BO8: WL2[1] | BP8: WL2[0] | BQ8: WL3[3] | BR8: WL3[2] | BS8: WL3[1] | BT8: WL3[0] | BU8: WL4[3] | BV8: WL4[2] | BW8: WL4[1] | BX8: WL4[0] | BY8: WL5[3] | BZ8: WL5[2] | CA8: WL5[1] | CB8: WL5[0] | CC8: WZ1[3] | CD8: WZ1[2] | CE8: WZ1[1] | CF8: WZ1[0] | CG8: WZ3[3] | CH8: WZ3[2] | CI8: WZ3[1] | CJ8: WZ3[0] | CK8: WZ5[3] | CL8: WZ5[2] | CM8: WZ5[1] | CN8: WZ5[0] | CO8: WZ7[3] | CP8: WZ7[2] | CQ8: WZ7[1] | CR8: WZ7[0]
A9: 2 | B9: 1 | C9: 1 | D9: 1 | E9: G | F9: 020101 | G9: 201011 | H9: BOLESŁAWIEC | I9: 38852 | J9: 38717 | K9: 38280 | L9: 37355 | M9: 93.18 | N9: 93.37 | O9: 91.73 | P9: 92.24 | Q9: 42.64 | R9: 44.89 | S9: 43.46 | T9: 39.65 | U9: 5.02 | V9: 2.93 | W9: 9.98 | X9: 8.71 | Y9: 6.1 | Z9: 2.97 | AA9: 13.61 | AB9: 15.04 | AC9: 32.7 | AD9: 31.52 | AE9: 31.22 | AF9: 32.56 | AG9: 7.73 | AH9: 5.51 | AI9: 14.26 | AJ9: 11.19 | AK9: 199.82 | AL9: 337.18 | AM9: 133.9 | AN9: 105.97 | AO9: 0.55 | AP9: 6.07 | AQ9: 12.17 | AR9: 0 | AS9: 109.66 | AT9: 188.73 | AU9: 137.21 | AV9: 165.39 | AW9: 118.88 | AX9: 319.66 | AY9: 147.27 | AZ9: 173.54 | BA9: 84.12 | BB9: 31.28 | BC9: 67.9 | BD9: 57.62 | BE9: 11.43 | BF9: 8.47 | BG9: 21.65 | BH9: 16.29 | BI9: 1947.46 | BJ9: 2178.98 | BK9: 2422.68 | BL9: 2325.34 | BM9: 229.17 | BN9: 142.43 | BO9: 556.19 | BP9: 510.82 | BQ9: 904.95 | BR9: 694.45 | BS9: 853.93 | BT9: 1160.45 | BU9: 604 | BV9: 674.98 | BW9: 1378.46 | BX9: 1763.14 | BY9: 335.04 | BZ9: 461.79 | CA9: 1164.78 | CB9: 1644.95 | CC9: 18.47 | CD9: 13.36 | CE9: 14.05 | CF9: 18.25 | CG9: 6.1 | CH9: 4.48 | CI9: 3.71 | CJ9: 2.58 | CK9: 9.01 | CL9: 6.92 | CM9: 5.53 | CN9: 3.77 | CO9: 0 | CP9: 0 | CQ9: 0 | CR9: 0
A10: 2 | B10: 1 | C10: 2 | D10: 2 | E10: G | F10: 020102 | G10: 201022 | H10: BOLESŁAWIEC | I10: 14641 | J10: 14778 | K10: 14999 | L10: 15181 | M10: 89.96 | N10: 91.4 | O10: 98.23 | P10: 97.92 | Q10: 48.81 | R10: 50.16 | S10: 48.43 | T10: 47.96 | U10: 17.28 | V10: 19.64 | W10: 20 | X10: 19.01 | Y10: 29.71 | Z10: 18.43 | AA10: 13.81 | AB10: 10.7 | AC10: 31.92 | AD10: 30.47 | AE10: 30.54 | AF10: 31.22 | AG10: 17.03 | AH10: 20.66 | AI10: 20.55 | AJ10: 19.77 | AK10: 81.37 | AL10: 159.96 | AM10: 170.11 | AN10: 217.8 | AO10: 2.66 | AP10: 12.18 | AQ10: 5.01 | AR10: 5.77 | AS10: 165 | AT10: 270.51 | AU10: 382.68 | AV10: 569.11 | AW10: 165.18 | AX10: 271.35 | AY10: 384.42 | AZ10: 570.73 | BA10: 60.54 | BB10: 36.85 | BC10: 26.01 | BD10: 17.52 | BE10: 29.05 | BF10: 32.18 | BG10: 29.53 | BH10: 29.08 | BI10: 2159.75 | BJ10: 2491.46 | BK10: 2676.99 | BL10: 2779.28 | BM10: 764.87 | BN10: 975.73 | BO10: 1105.69 | BP10: 1101.9 | BQ10: 15.44 | BR10: 10.86 | BS10: 3.94 | BT10: 1.95 | BU10: 2560.13 | BV10: 2452.03 | BW10: 2728.07 | BX10: 3212.16 | BY10: 2555.66 | BZ10: 2447.6 | CA10: 2723.7 | CB10: 3210.22 | CC10: 0.31 | CD10: 0.2 | CE10: 0.07 | CF10: 0.03 | CG10: 0.1 | CH10: 0.09 | CI10: 0.08 | CJ10: 0.03 | CK10: 0.16 | CL10: 0.14 | CM10: 0.12 | CN10: 0.05 | CO10: 0 | CP10: 0 | CQ10: 0 | CR10: 0
A11: 2 | B11: 1 | C11: 3 | D11: 2 | E11: G | F11: 020103 | G11: 201032 | H11: GROMADKA | I11: 5355 | J11: 5337 | K11: 5290 | L11: 5052 | M11: 61.8 | N11: 71.77 | O11: 77.11 | P11: 59.72 | Q11: 47.12 | R11: 46.78 | S11: 42.12 | T11: 38.84 | U11: 10.94 | V11: 13.17 | W11: 18.11 | X11: 11.77 | Y11: 23.52 | Z11: 18.93 | AA11: 35.25 | AB11: 33.79 | AC11: 36.88 | AD11: 37.72 | AE11: 37.7 | AF11: 34.69 | AG11: 29.9 | AH11: 27.65 | AI11: 22.1 | AJ11: 38.93 | AK11: 265.68 | AL11: 258.94 | AM11: 107.22 | AN11: 175.87 | AO11: 14.41 | AP11: 35.79 | AQ11: 49.82 | AR11: 33.92 | AS11: 245.48 | AT11: 367.34 | AU11: 242.21 | AV11: 297.93 | AW11: 272.23 | AX11: 397.36 | AY11: 244.93 | AZ11: 301.25 | BA11: 36.73 | BB11: 25.17 | BC11: 40.83 | BD11: 33.2 | BE11: 67.24 | BF11: 54.04 | BG11: 38.75 | BH11: 93.17 | BI11: 2404.37 | BJ11: 2676.08 | BK11: 2816.23 | BL11: 3070.57 | BM11: 558.25 | BN11: 753.64 | BO11: 1211.21 | BP11: 930.12 | BQ11: 308.59 | BR11: 179.03 | BS11: 123.67 | BT11: 69.77 | BU11: 4060.78 | BV11: 4740.27 | BW11: 7357.4 | BX11: 10784.83 | BY11: 3803.87 | BZ11: 4610.02 | CA11: 7300.45 | CB11: 10725.2 | CC11: 3.74 | CD11: 2.25 | CE11: 1.43 | CF11: 0.53 | CG11: 3.28 | CH11: 1.69 | CI11: 0.67 | CJ11: 0.5 | CK11: 7.26 | CL11: 3.3 | CM11: 1.16 | CN11: 1.17 | CO11: 0 | CP11: 0 | CQ11: 0 | CR11: 0
A12: 2 | B12: 1 | C12: 4 | D12: 3 | E12: G | F12: 020104 | G12: 201043 | H12: NOWOGRODZIEC | I12: 15214 | J12: 15202 | K12: 15209 | L12: 14730 | M12: 81.75 | N12: 89.73 | O12: 94.66 | P12: 99.09 | Q12: 54.01 | R12: 58.12 | S12: 54.33 | T12: 53.03 | U12: 10 | V12: 5.24 | W12: 11.19 | X12: 12.04 | Y12: 23.03 | Z12: 13.35 | AA12: 9.84 | AB12: 20.98 | AC12: 37.57 | AD12: 36.64 | AE12: 39.5 | AF12: 38.67 | AG12: 18.16 | AH12: 5.24 | AI12: 10.96 | AJ12: 12.27 | AK12: 120 | AL12: 114.34 | AM12: 173.73 | AN12: 55.48 | AO12: 15.91 | AP12: 16.5 | AQ12: 19.95 | AR12: 12.36 | AS12: 146.04 | AT12: 206.52 | AU12: 270.41 | AV12: 120.28 | AW12: 149.39 | AX12: 226 | AY12: 317.56 | AZ12: 122.27 | BA12: 66.94 | BB12: 44.25 | BC12: 31.49 | BD12: 81.79 | BE12: 32.51 | BF12: 9.27 | BG12: 16.76 | BH12: 18.62 | BI12: 2324.32 | BJ12: 2577.05 | BK12: 2664.97 | BL12: 3166.25 | BM12: 430.39 | BN12: 232.31 | BO12: 548.83 | BP12: 718.68 | BQ12: 1659.48 | BR12: 1543.1 | BS12: 1411.79 | BT12: 1716.76 | BU12: 1815.78 | BV12: 1581 | BW12: 1640.79 | BX12: 1841.29 | BY12: 1731.51 | BZ12: 1462.67 | CA12: 1509.29 | CB12: 1704.99 | CC12: 31.52 | CD12: 31.22 | CE12: 27.25 | CF12: 28.49 | CG12: 2.47 | CH12: 3.09 | CI12: 2.92 | CJ12: 3.67 | CK12: 4.41 | CL12: 5.47 | CM12: 4.52 | CN12: 5.6 | CO12: 0.19 | CP12: 0.25 | CQ12: 0.33 | CR12: 0.35
A13: 2 | B13: 1 | C13: 5 | D13: 2 | E13: G | F13: 020105 | G13: 201052 | H13: OSIECZNICA | I13: 7396 | J13: 7364 | K13: 7268 | L13: 7297 | M13: 94.63 | N13: 95.72 | O13: 95.03 | P13: 98.73 | Q13: 50.79 | R13: 49.63 | S13: 55.8 | T13: 47.39 | U13: 20.15 | V13: 25.38 | W13: 12.33 | X13: 24.74 | Y13: 21.99 | Z13: 5.83 | AA13: 7.26 | AB13: 10.25 | AC13: 38.81 | AD13: 37.35 | AE13: 37.43 | AF13: 38.12 | AG13: 19.37 | AH13: 25.1 | AI13: 11.8 | AJ13: 25.3 | AK13: 114.68 | AL13: 645.74 | AM13: 255.91 | AN13: 302.79 | AO13: 46.9 | AP13: 64.65 | AQ13: 79.96 | AR13: 83.88 | AS13: 283.38 | AT13: 1151.53 | AU13: 1326.28 | AV13: 1088.56 | AW13: 302.24 | AX13: 1561.29 | AY13: 1326.71 | AZ13: 1088.56 | BA13: 33.09 | BB13: 6.4 | BC13: 7.54 | BD13: 9.19 | BE13: 28.54 | BF13: 35.97 | BG13: 17.69 | BH13: 35.61 | BI13: 2774.14 | BJ13: 3058.42 | BK13: 3198.55 | BL13: 3371.76 | BM13: 1100.47 | BN13: 1563.95 | BO13: 706.73 | BP13: 1759.86 | BQ13: 146.88 | BR13: 36.53 | BS13: 0 | BT13: 0 | BU13: 3843.18 | BV13: 4557.96 | BW13: 5216.81 | BX13: 6655.6 | BY13: 3716.73 | BZ13: 4446.97 | CA13: 5216.67 | CB13: 6655.6 | CC13: 2.54 | CD13: 0.57 | CE13: 0 | CF13: 0 | CG13: 2.26 | CH13: 1.75 | CI13: 0.02 | CJ13: 0 | CK13: 3.22 | CL13: 2.53 | CM13: 0.03 | CN13: 0 | CO13: 0 | CP13: 0 | CQ13: 0 | CR13: 0
A14: 2 | B14: 1 | C14: 6 | D14: 2 | E14: G | F14: 020106 | G14: 201062 | H14: WARTA BOLESŁAWIECKA | I14: 8650 | J14: 8634 | K14: 8528 | L14: 8407 | M14: 98.18 | N14: 97.2 | O14: 97.15 | P14: 95.51 | Q14: 55.59 | R14: 57.5 | S14: 57.14 | T14: 55.73 | U14: 9.43 | V14: 7.89 | W14: 8.41 | X14: 7.19 | Y14: 9.19 | Z14: 10.38 | AA14: 6.85 | AB14: 13.37 | AC14: 32.67 | AD14: 31.1 | AE14: 31.61 | AF14: 30.75 | AG14: 9.43 | AH14: 7.71 | AI14: 8.18 | AJ14: 7.09 | AK14: 122.97 | AL14: 101.06 | AM14: 168.44 | AN14: 83.02 | AO14: 25.58 | AP14: 23.61 | AQ14: 25.98 | AR14: 20.63 | AS14: 367.87 | AT14: 322.52 | AU14: 490.02 | AV14: 250.88 | AW14: 377.56 | AX14: 327.77 | AY14: 497.13 | AZ14: 250.88 | BA14: 26.49 | BB14: 30.51 | BC14: 20.12 | BD14: 39.86 | BE14: 11.7 | BF14: 12.16 | BG14: 12.8 | BH14: 11.43 | BI14: 2602.63 | BJ14: 2875.69 | BK14: 3157.46 | BL14: 3504.38 | BM14: 441.31 | BN14: 394.83 | BO14: 464.73 | BP14: 451.94 | BQ14: 42.46 | BR14: 29.96 | BS14: 0 | BT14: 0 | BU14: 1636.27 | BV14: 1760.71 | BW14: 1856.65 | BX14: 2258.72 | BY14: 1620.75 | BZ14: 1748.12 | CA14: 1849.86 | CB14: 2258.72 | CC14: 0.89 | CD14: 0.58 | CE14: 0 | CF14: 0 | CG14: 0.35 | CH14: 0.26 | CI14: 0.13 | CJ14: 0 | CK14: 0.55 | CL14: 0.42 | CM14: 0.21 | CN14: 0 | CO14: 0 | CP14: 0.04 | CQ14: 0 | CR14: 0
A15: 2 | B15: 2 | C15: 1 | D15: 1 | E15: G | F15: 020201 | G15: 202011 | H15: BIELAWA | I15: 29971 | J15: 29713 | K15: 29318 | L15: 28475 | M15: 85.43 | N15: 86.48 | O15: 89.23 | P15: 90.28 | Q15: 54.54 | R15: 60.8 | S15: 60.42 | T15: 61.38 | U15: 7.64 | V15: 1.63 | W15: 7.96 | X15: 1.76 | Y15: 12.91 | Z15: 15.96 | AA15: 10.61 | AB15: 21.68 | AC15: 25.9 | AD15: 26.72 | AE15: 28.35 | AF15: 27.74 | AG15: 9.37 | AH15: 4.71 | AI15: 10.57 | AJ15: 7.79 | AK15: 180.35 | AL15: 92.41 | AM15: 183.29 | AN15: 46.08 | AO15: 13.61 | AP15: 10.7 | AQ15: 16.39 | AR15: 4.06 | AS15: 181 | AT15: 157.47 | AU15: 239.17 | AV15: 101.77 | AW15: 195.2 | AX15: 164.79 | AY15: 266.96 | AZ15: 101.91 | BA15: 51.23 | BB15: 60.68 | BC15: 37.46 | BD15: 98.13 | BE15: 15.87 | BF15: 7.68 | BG15: 17.61 | BH15: 13.34 | BI15: 2451.9 | BJ15: 2763.46 | BK15: 3040.02 | BL15: 3385.76 | BM15: 343.56 | BN15: 73.91 | BO15: 400.23 | BP15: 96.99 | BQ15: 1476.18 | BR15: 1392.45 | BS15: 1305.72 | BT15: 1449.54 | BU15: 1309.5 | BV15: 1507.22 | BW15: 1577.34 | BX15: 1642.62 | BY15: 1201.58 | BZ15: 1399.06 | CA15: 1467.56 | CB15: 1528.3 | CC15: 28.05 | CD15: 26.49 | CE15: 23.16 | CF15: 23.72 | CG15: 2.88 | CH15: 2.77 | CI15: 2.34 | CJ15: 3.1 | CK15: 4.82 | CL15: 4.93 | CM15: 3.87 | CN15: 5.35 | CO15: 0.04 | CP15: 0 | CQ15: 0 | CR15: 0
A16: 2 | B16: 2 | C16: 2 | D16: 1 | E16: G | F16: 020202 | G16: 202021 | H16: DZIERŻONIÓW | I16: 33239 | J16: 33075 | K16: 32647 | L16: 31256 | M16: 89.14 | N16: 89.23 | O16: 88.17 | P16: 92.92 | Q16: 47.78 | R16: 50.21 | S16: 50.63 | T16: 48.02 | U16: 8.06 | V16: 8.86 | W16: 13.35 | X16: 7.36 | Y16: 16.92 | Z16: 12.83 | AA16: 13.71 | AB16: 18.54 | AC16: 33.21 | AD16: 32.61 | AE16: 34.48 | AF16: 35.28 | AG16: 9.04 | AH16: 9.36 | AI16: 13.56 | AJ16: 10.16 | AK16: 108.1 | AL16: 156.14 | AM16: 194.39 | AN16: 71.07 | AO16: 6.31 | AP16: 8.24 | AQ16: 14.32 | AR16: 9.16 | AS16: 120.01 | AT16: 144.84 | AU16: 185.29 | AV16: 116.6 | AW16: 126.17 | AX16: 163.81 | AY16: 217.94 | AZ16: 120.75 | BA16: 79.26 | BB16: 61.04 | BC16: 45.88 | BD16: 82.82 | BE16: 14.49 | BF16: 14.81 | BG16: 22.19 | BH16: 15.62 | BI16: 1939.93 | BJ16: 2164.65 | BK16: 2397.04 | BL16: 2456.52 | BM16: 327.22 | BN16: 382.18 | BO16: 631.86 | BP16: 376.73 | BQ16: 1820.18 | BR16: 1612.27 | BS16: 1379.12 | BT16: 1448.27 | BU16: 1193.53 | BV16: 1191.49 | BW16: 1670.5 | BX16: 1571.77 | BY16: 959.52 | BZ16: 946.94 | CA16: 1420.87 | CB16: 1302.67 | CC16: 39.96 | CD16: 33.37 | CE16: 25.68 | CF16: 26.3 | CG16: 6.21 | CH16: 5.72 | CI16: 4.95 | CJ16: 6.27 | CK16: 9.96 | CL16: 9.63 | CM16: 8.06 | CN16: 9.58 | CO16: 0 | CP16: 0 | CQ16: 0 | CR16: 0
A17: 2 | B17: 2 | C17: 3 | D17: 3 | E17: G | F17: 020203 | G17: 202033 | H17: PIESZYCE | I17: 9466 | J17: 9397 | K17: 9269 | L17: 9026 | M17: 87.11 | N17: 90.71 | O17: 79.97 | P17: 81.56 | Q17: 58.19 | R17: 63.35 | S17: 62.27 | T17: 60.92 | U17: 8.79 | V17: 8.12 | W17: 11.02 | X17: 6.5 | Y17: 14.74 | Z17: 12.28 | AA17: 16.64 | AB17: 23.92 | AC17: 30.99 | AD17: 29.29 | AE17: 32.19 | AF17: 29.47 | AG17: 10.15 | AH17: 11.96 | AI17: 12.08 | AJ17: 7.28 | AK17: 149.62 | AL17: 142.62 | AM17: 203.09 | AN17: 99.01 | AO17: 7.52 | AP17: 9.01 | AQ17: 22.32 | AR17: 17.51 | AS17: 128.67 | AT17: 161.44 | AU17: 215.11 | AV17: 167.71 | AW17: 137.95 | AX17: 178.83 | AY17: 236.15 | AZ17: 173.17 | BA17: 72.49 | BB17: 55.92 | BC17: 42.35 | BD17: 57.75 | BE17: 19.01 | BF17: 20.72 | BG17: 22.94 | BH17: 14.49 | BI17: 2184.61 | BJ17: 2487.81 | BK17: 2700.55 | BL17: 3133.23 | BM17: 330.1 | BN17: 318.71 | BO17: 478.1 | BP17: 334.12 | BQ17: 1114.96 | BR17: 980.1 | BS17: 1014.67 | BT17: 920.12 | BU17: 1008.14 | BV17: 1046.73 | BW17: 1959.96 | BX17: 2740.32 | BY17: 816.49 | BZ17: 903.69 | CA17: 1819.17 | CB17: 2618.45 | CC17: 25.87 | CD17: 22.64 | CE17: 18.71 | CF17: 14.59 | CG17: 5.24 | CH17: 3.79 | CI17: 2.87 | CJ17: 2.95 | CK17: 9.22 | CL17: 6.88 | CM17: 5.5 | CN17: 5.96 | CO17: 0 | CP17: 0 | CQ17: 0 | CR17: 0
A18: 2 | B18: 2 | C18: 4 | D18: 1 | E18: G | F18: 020204 | G18: 202041 | H18: PIŁAWA GÓRNA | I18: 6412 | J18: 6382 | K18: 6333 | L18: 6016 | M18: 85.91 | N18: 80.05 | O18: 86.27 | P18: 91.84 | Q18: 58.41 | R18: 59.81 | S18: 61.76 | T18: 55.73 | U18: 8.54 | V18: 7.03 | W18: 12.3 | X18: 7.82 | Y18: 22.34 | Z18: 7.18 | AA18: 23.84 | AB18: 20.16 | AC18: 32.66 | AD18: 33.03 | AE18: 36.54 | AF18: 35.93 | AG18: 8.29 | AH18: 7.6 | AI18: 12 | AJ18: 7.93 | AK18: 94.84 | AL18: 444.27 | AM18: 102.76 | AN18: 71.77 | AO18: 6.68 | AP18: 24.25 | AQ18: 24 | AR18: 14.97 | AS18: 115.83 | AT18: 428.37 | AU18: 193.42 | AV18: 164.47 | AW18: 117.02 | AX18: 521.11 | AY18: 200.28 | AZ18: 170.02 | BA18: 85.46 | BB18: 19.19 | BC18: 49.93 | BD18: 58.82 | BE18: 14.69 | BF18: 13.89 | BG18: 21.91 | BH18: 13.23 | BI18: 2318.59 | BJ18: 2480.84 | BK18: 2707.23 | BL18: 2874 | BM18: 339.17 | BN18: 291.5 | BO18: 539.16 | BP18: 403.51 | BQ18: 773.19 | BR18: 692.57 | BS18: 619.57 | BT18: 548.87 | BU18: 1300.33 | BV18: 1638.98 | BW18: 2498.6 | BX18: 2144.54 | BY18: 1221.92 | BZ18: 1554.72 | CA18: 2410.17 | CB18: 2041.19 | CC18: 16.73 | CD18: 13.37 | CE18: 12.19 | CF18: 9.78 | CG18: 2.12 | CH18: 1.96 | CI18: 1.92 | CJ18: 2.43 | CK18: 3.76 | CL18: 3.82 | CM18: 3.52 | CN18: 4.02 | CO18: 0 | CP18: 0 | CQ18: 0 | CR18: 0
A19: 2 | B19: 2 | C19: 5 | D19: 2 | E19: G | F19: 020205 | G19: 202052 | H19: DZIERŻONIÓW | I19: 9114 | J19: 9072 | K19: 8973 | L19: 9193 | M19: 89.53 | N19: 86.91 | O19: 84.48 | P19: 94.18 | Q19: 58.08 | R19: 60.11 | S19: 59.77 | T19: 56.49 | U19: 9.55 | V19: 13.1 | W19: 11.23 | X19: 7.77 | Y19: 21.14 | Z19: 12.27 | AA19: 15.75 | AB19: 10.71 | AC19: 37.66 | AD19: 34.52 | AE19: 37.78 | AF19: 36.35 | AG19: 9.75 | AH19: 12.33 | AI19: 12.02 | AJ19: 8.94 | AK19: 87.64 | AL19: 231.63 | AM19: 178.42 | AN19: 126.14 | AO19: 4.58 | AP19: 12.76 | AQ19: 24.35 | AR19: 25.24 | AS19: 96.57 | AT19: 183.21 | AU19: 236.33 | AV19: 316.14 | AW19: 96.26 | AX19: 222.39 | AY19: 251.97 | AZ19: 345.27 | BA19: 103.89 | BB19: 44.97 | BC19: 39.69 | BD19: 28.96 | BE19: 16.96 | BF19: 21.91 | BG19: 21.7 | BH19: 16.21 | BI19: 2373.02 | BJ19: 2752.09 | BK19: 2954.09 | BL19: 3091.63 | BM19: 390.08 | BN19: 599.68 | BO19: 554.98 | BP19: 425.27 | BQ19: 1315.45 | BR19: 1059.52 | BS19: 1155.47 | BT19: 1046.23 | BU19: 1042.26 | BV19: 1499.62 | BW19: 2160.24 | BX19: 2171.23 | BY19: 953.38 | BZ19: 1237.6 | CA19: 2066.18 | CB19: 2089.65 | CC19: 28.83 | CD19: 20.11 | CE19: 19.75 | CF19: 18.01 | CG19: 2.69 | CH19: 5.46 | CI19: 1.83 | CJ19: 2.47 | CK19: 4.54 | CL19: 10.07 | CM19: 3.3 | CN19: 4.11 | CO19: 0 | CP19: 0 | CQ19: 0 | CR19: 0
A20: 2 | B20: 2 | C20: 6 | D20: 2 | E20: G | F20: 020206 | G20: 202062 | H20: ŁAGIEWNIKI | I20: 7443 | J20: 7430 | K20: 7413 | L20: 7214 | M20: 97.97 | N20: 82.44 | O20: 83.74 | P20: 94 | Q20: 62.56 | R20: 64.08 | S20: 60.71 | T20: 57.44 | U20: 12.01 | V20: 11.38 | W20: 14.95 | X20: 7.23 | Y20: 5.2 | Z20: 9.16 | AA20: 11.76 | AB20: 25.32 | AC20: 38.46 | AD20: 35.56 | AE20: 36.54 | AF20: 34.05 | AG20: 11.95 | AH20: 9.43 | AI20: 12.7 | AJ20: 7.18 | AK20: 291.79 | AL20: 365.9 | AM20: 303.1 | AN20: 43.29 | AO20: 14.35 | AP20: 28.85 | AQ20: 45.23 | AR20: 27.8 | AS20: 308.12 | AT20: 420.15 | AU20: 510.36 | AV20: 189.45 | AW20: 403.44 | AX20: 491.78 | AY20: 576.35 | AZ20: 194.04 | BA20: 24.79 | BB20: 20.33 | BC20: 17.35 | BD20: 51.54 | BE20: 17.81 | BF20: 16.56 | BG20: 22.4 | BH20: 12.6 | BI20: 2743.47 | BJ20: 3113.88 | BK20: 3155.73 | BL20: 3378.11 | BM20: 526.89 | BN20: 553.08 | BO20: 777.32 | BP20: 425.17 | BQ20: 742.37 | BR20: 646.57 | BS20: 553.28 | BT20: 473.78 | BU20: 950.77 | BV20: 2231.67 | BW20: 3491.42 | BX20: 3684.49 | BY20: 853.83 | BZ20: 2134.56 | CA20: 3396.65 | CB20: 3589.73 | CC20: 16.58 | CD20: 10.97 | CE20: 8.91 | CF20: 7.57 | CG20: 2.66 | CH20: 1.89 | CI20: 1.64 | CJ20: 2.03 | CK20: 3.91 | CL20: 3.51 | CM20: 2.85 | CN20: 3.45 | CO20: 0 | CP20: 0 | CQ20: 0 | CR20: 0
A21: 2 | B21: 2 | C21: 7 | D21: 3 | E21: G | F21: 020207 | G21: 202073 | H21: NIEMCZA | I21: 5473 | J21: 5450 | K21: 5387 | L21: 5136 | M21: 93.6 | N21: 72.28 | O21: 83.42 | P21: 88.31 | Q21: 61.96 | R21: 65.21 | S21: 60.66 | T21: 55.8 | U21: 8.32 | V21: 3.13 | W21: 6.57 | X21: 8.71 | Y21: 15.86 | Z21: 16.42 | AA21: 17.73 | AB21: 23.17 | AC21: 29.34 | AD21: 27.9 | AE21: 30.21 | AF21: 29.19 | AG21: 8.04 | AH21: 3.16 | AI21: 7.19 | AJ21: 8.34 | AK21: 87.73 | AL21: 218.04 | AM21: 131.32 | AN21: 79.72 | AO21: 1.6 | AP21: 14.67 | AQ21: 25.63 | AR21: 11.74 | AS21: 78.7 | AT21: 180.93 | AU21: 201.44 | AV21: 140.18 | AW21: 74.61 | AX21: 201.56 | AY21: 211.95 | AZ21: 148.26 | BA21: 134.04 | BB21: 49.61 | BC21: 47.18 | BD21: 67.45 | BE21: 13.14 | BF21: 6.88 | BG21: 13.24 | BH21: 14.68 | BI21: 2600.37 | BJ21: 2734.53 | BK21: 2850.23 | BL21: 3460.84 | BM21: 349.03 | BN21: 131.4 | BO21: 308.75 | BP21: 540.3 | BQ21: 1444.83 | BR21: 1302.59 | BS21: 1602.78 | BT21: 1337.46 | BU21: 680.47 | BV21: 1811.27 | BW21: 2103.14 | BX21: 2875.35 | BY21: 540.96 | BZ21: 1607.88 | CA21: 2005.07 | CB21: 2531.7 | CC21: 32.22 | CD21: 22.45 | CE21: 28.46 | CF21: 19.05 | CG21: 3.98 | CH21: 4.02 | CI21: 2.17 | CJ21: 6.39 | CK21: 6.51 | CL21: 8.67 | CM21: 3.8 | CN21: 11.22 | CO21: 0 | CP21: 0 | CQ21: 0 | CR21: 0
A22: 2 | B22: 3 | C22: 1 | D22: 1 | E22: G | F22: 020301 | G22: 203011 | H22: GŁOGÓW | I22: 67317 | J22: 66627 | K22: 65757 | L22: 63240 | M22: 90.38 | N22: 90.91 | O22: 92.33 | P22: 90.24 | Q22: 37.4 | R22: 40.46 | S22: 39.95 | T22: 33.15 | U22: 8.53 | V22: 7.9 | W22: 9.34 | X22: 2.33 | Y22: 23.45 | Z22: 12.85 | AA22: 15.17 | AB22: 16.39 | AC22: 36.37 | AD22: 36.93 | AE22: 37.11 | AF22: 39.76 | AG22: 9.3 | AH22: 8.9 | AI22: 13.79 | AJ22: 3.09 | AK22: 68.44 | AL22: 131.8 | AM22: 108.9 | AN22: 68.68 | AO22: 2.71 | AP22: 6.69 | AQ22: 10.69 | AR22: 8.65 | AS22: 70.59 | AT22: 112.61 | AU22: 125.71 | AV22: 111.1 | AW22: 67.74 | AX22: 117.1 | AY22: 130.89 | AZ22: 113.33 | BA22: 147.61 | BB22: 85.4 | BC22: 76.4 | BD22: 88.24 | BE22: 12.98 | BF22: 13.47 | BG22: 19.84 | BH22: 4.25 | BI22: 1863.91 | BJ22: 2145.55 | BK22: 2312.76 | BL22: 1862.85 | BM22: 425.22 | BN22: 418.89 | BO22: 540.78 | BP22: 130.98 | BQ22: 2654.8 | BR22: 2677.38 | BS22: 2894.74 | BT22: 3182.12 | BU22: 1081.47 | BV22: 1100.06 | BW22: 1417.43 | BX22: 1435.49 | BY22: 946.09 | BZ22: 843.34 | CA22: 1228.33 | CB22: 1219.09 | CC22: 48.15 | CD22: 45.9 | CE22: 46.16 | CF22: 51.09 | CG22: 3.57 | CH22: 5.3 | CI22: 3.55 | CJ22: 6.35 | CK22: 5.18 | CL22: 8.01 | CM22: 5.1 | CN22: 8.72 | CO22: 0 | CP22: 0 | CQ22: 0 | CR22: 0
A23: 2 | B23: 3 | C23: 2 | D23: 2 | E23: G | F23: 020302 | G23: 203022 | H23: GŁOGÓW | I23: 6767 | J23: 6793 | K23: 6905 | L23: 7101 | M23: 92.78 | N23: 91.94 | O23: 87.76 | P23: 86.6 | Q23: 41.52 | R23: 45.23 | S23: 45.77 | T23: 44.16 | U23: 13.28 | V23: 8.81 | W23: 12.43 | X23: 6.09 | Y23: 17.3 | Z23: 17.95 | AA23: 21.81 | AB23: 24.27 | AC23: 32.36 | AD23: 34.44 | AE23: 35.43 | AF23: 35.59 | AG23: 12.42 | AH23: 8.25 | AI23: 11.06 | AJ23: 5.96 | AK23: 116.13 | AL23: 88.14 | AM23: 108 | AN23: 71.67 | AO23: 11.7 | AP23: 12.02 | AQ23: 18.61 | AR23: 14.54 | AS23: 164.33 | AT23: 134.75 | AU23: 143.79 | AV23: 130.76 | AW23: 172.68 | AX23: 138.97 | AY23: 147.61 | AZ23: 133.14 | BA23: 57.91 | BB23: 71.96 | BC23: 67.74 | BD23: 75.11 | BE23: 18.43 | BF23: 13.43 | BG23: 16.91 | BH23: 10.48 | BI23: 2307.24 | BJ23: 2512.81 | BK23: 2769.69 | BL23: 2644.26 | BM23: 738.05 | BN23: 489.43 | BO23: 752.33 | BP23: 364.92 | BQ23: 780.11 | BR23: 937.02 | BS23: 1372.03 | BT23: 1602.96 | BU23: 1871.08 | BV23: 1674.47 | BW23: 2310.56 | BX23: 2539.37 | BY23: 1740.3 | BZ23: 1539.95 | CA23: 2181.48 | CB23: 2399.77 | CC23: 13.03 | CD23: 15.51 | CE23: 19.9 | CF23: 23.18 | CG23: 2.59 | CH23: 2.49 | CI23: 2.05 | CJ23: 3.12 | CK23: 3.82 | CL23: 3.92 | CM23: 3.29 | CN23: 5.1 | CO23: 0 | CP23: 0 | CQ23: 0 | CR23: 0
A24: 2 | B24: 3 | C24: 3 | D24: 2 | E24: G | F24: 020303 | G24: 203032 | H24: JERZMANOWA | I24: 5091 | J24: 5269 | K24: 5439 | L24: 5697 | M24: 91.95 | N24: 87.43 | O24: 95.46 | P24: 95.64 | Q24: 27.13 | R24: 28.53 | S24: 29.04 | T24: 25.75 | U24: 19.06 | V24: 18.36 | W24: 21.1 | X24: 13.02 | Y24: 29.33 | Z24: 31.43 | AA24: 12.63 | AB24: 23.24 | AC24: 32.25 | AD24: 32.89 | AE24: 34.05 | AF24: 34.22 | AG24: 17.55 | AH24: 16.07 | AI24: 20.15 | AJ24: 12.46 | AK24: 82.81 | AL24: 87.45 | AM24: 226.67 | AN24: 66.7 | AO24: 4.86 | AP24: 12.04 | AQ24: 19.13 | AR24: 10.39 | AS24: 91.26 | AT24: 96.39 | AU24: 274.15 | AV24: 135.85 | AW24: 90.76 | AX24: 96.26 | AY24: 310.58 | AZ24: 141.22 | BA24: 110.18 | BB24: 103.89 | BC24: 32.2 | BD24: 70.81 | BE24: 23.37 | BF24: 22.74 | BG24: 25.35 | BH24: 16.84 | BI24: 2563.85 | BJ24: 2957.12 | BK24: 3357.08 | BL24: 2889.89 | BM24: 1801.09 | BN24: 1902.57 | BO24: 2438.78 | BP24: 1460.53 | BQ24: 3627.81 | BR24: 4910.9 | BS24: 4481.62 | BT24: 3839.19 | BU24: 3060.23 | BV24: 3875.31 | BW24: 4370.37 | BX24: 4617.55 | BY24: 2881.31 | BZ24: 3734.13 | CA24: 4094.59 | CB24: 4174.24 | CC24: 35.29 | CD24: 41.43 | CE24: 37.01 | CF24: 32.72 | CG24: 2.54 | CH24: 1.92 | CI24: 2.86 | CJ24: 5.79 | CK24: 3.29 | CL24: 2.69 | CM24: 3.69 | CN24: 7.21 | CO24: 0 | CP24: 0 | CQ24: 0 | CR24: 0.1
A25: 2 | B25: 3 | C25: 4 | D25: 2 | E25: G | F25: 020304 | G25: 203042 | H25: KOTLA | I25: 4426 | J25: 4458 | K25: 4418 | L25: 4355 | M25: 89.01 | N25: 83.67 | O25: 91.09 | P25: 91.39 | Q25: 58.24 | R25: 56.76 | S25: 55.05 | T25: 52.88 | U25: 4.46 | V25: 8.51 | W25: 12.06 | X25: 3.72 | Y25: 10.02 | Z25: 7.01 | AA25: 8.3 | AB25: 22.86 | AC25: 38.37 | AD25: 37 | AE25: 35.6 | AF25: 31.62 | AG25: 3.99 | AH25: 8.79 | AI25: 11.3 | AJ25: 3.76 | AK25: 157.96 | AL25: 406.1 | AM25: 274.52 | AN25: 46.06 | AO25: 1.91 | AP25: 17.11 | AQ25: 26.39 | AR25: 6.54 | AS25: 89.73 | AT25: 317.41 | AU25: 362.89 | AV25: 124.03 | AW25: 78.68 | AX25: 397.54 | AY25: 469.44 | AZ25: 126.05 | BA25: 127.09 | BB25: 25.15 | BC25: 21.3 | BD25: 79.33 | BE25: 4.61 | BF25: 16.58 | BG25: 18.63 | BH25: 5.08 | BI25: 2936.87 | BJ25: 3142.48 | BK25: 3435.15 | BL25: 3894.28 | BM25: 225.01 | BN25: 471.1 | BO25: 752.31 | BP25: 273.85 | BQ25: 1873.38 | BR25: 1719.11 | BS25: 1533.48 | BT25: 1378.48 | BU25: 999.64 | BV25: 1659.74 | BW25: 2531.7 | BX25: 2826.14 | BY25: 422.12 | BZ25: 1518.91 | CA25: 2330.5 | CB25: 2648.96 | CC25: 33.07 | CD25: 25.98 | CE25: 22.38 | CF25: 17.11 | CG25: 11.22 | CH25: 2.75 | CI25: 3.28 | CJ25: 3.04 | CK25: 19.17 | CL25: 4.96 | CM25: 5.23 | CN25: 5.01 | CO25: 0 | CP25: 0 | CQ25: 0 | CR25: 0
A26: 2 | B26: 3 | C26: 5 | D26: 2 | E26: G | F26: 020305 | G26: 203052 | H26: PĘCŁAW | I26: 2272 | J26: 2241 | K26: 2203 | L26: 2121 | M26: 98.1 | N26: 91.18 | O26: 87.41 | P26: 76.16 | Q26: 67.77 | R26: 69.01 | S26: 68.13 | T26: 56.46 | U26: 3.47 | V26: 7.4 | W26: 9.9 | X26: 17.02 | Y26: 4.44 | Z26: 8.85 | AA26: 3.9 | AB26: 32.01 | AC26: 36.48 | AD26: 34 | AE26: 36.45 | AF26: 32.59 | AG26: 4.62 | AH26: 8.92 | AI26: 8.65 | AJ26: 13.01 | AK26: 120.54 | AL26: 189.85 | AM26: 664.86 | AN26: 123.68 | AO26: 1.88 | AP26: 6.04 | AQ26: 22.23 | AR26: 19.95 | AS26: 129.22 | AT26: 158.37 | AU26: 510.32 | AV26: 163.86 | AW26: 142.77 | AX26: 173.7 | AY26: 795.72 | AZ26: 167.04 | BA26: 70.04 | BB26: 57.57 | BC26: 12.57 | BD26: 59.86 | BE26: 9.17 | BF26: 15.85 | BG26: 17.18 | BH26: 24.84 | BI26: 3246.11 | BJ26: 3606.75 | BK26: 3680.58 | BL26: 4194.46 | BM26: 166.42 | BN26: 386.64 | BO26: 534.73 | BP26: 1264.16 | BQ26: 2135.54 | BR26: 2022.87 | BS26: 1920.42 | BT26: 1850.11 | BU26: 406.65 | BV26: 939.95 | BW26: 1708.67 | BX26: 4992.41 | BY26: 306.92 | BZ26: 816.53 | CA26: 1571.32 | CB26: 4847.86 | CC26: 43.74 | CD26: 35.29 | CE26: 31.07 | CF26: 18.97 | CG26: 3.84 | CH26: 4.07 | CI26: 3.4 | CJ26: 2.9 | CK26: 6.43 | CL26: 7.33 | CM26: 6.45 | CN26: 6.03 | CO26: 0.87 | CP26: 0 | CQ26: 0 | CR26: 0
A27: 2 | B27: 3 | C27: 6 | D27: 2 | E27: G | F27: 020306 | G27: 203062 | H27: ŻUKOWICE | I27: 3446 | J27: 3464 | K27: 3467 | L27: 3452 | M27: 87.35 | N27: 81.6 | O27: 89.23 | P27: 85.82 | Q27: 48.12 | R27: 46.55 | S27: 44.6 | T27: 36.99 | U27: 9.28 | V27: 17.83 | W27: 19.61 | X27: 22.79 | Y27: 22.15 | Z27: 13.36 | AA27: 23.2 | AB27: 32.76 | AC27: 36.13 | AD27: 37.06 | AE27: 36.33 | AF27: 33.77 | AG27: 8.55 | AH27: 15.78 | AI27: 17.69 | AJ27: 20.1 | AK27: 92.1 | AL27: 318.62 | AM27: 130.48 | AN27: 104.48 | AO27: 1.99 | AP27: 21.17 | AQ27: 26.39 | AR27: 19.46 | AS27: 100.84 | AT27: 256.96 | AU27: 208.39 | AV27: 156.9 | AW27: 100.9 | AX27: 304.69 | AY27: 216.28 | AZ27: 160.27 | BA27: 99.1 | BB27: 32.82 | BC27: 46.24 | BD27: 62.39 | BE27: 14.03 | BF27: 27.22 | BG27: 28.1 | BH27: 31.02 | BI27: 2727.36 | BJ27: 3057.96 | BK27: 3359.67 | BL27: 3563.65 | BM27: 526.19 | BN27: 1171.59 | BO27: 1476.78 | BP27: 2195.26 | BQ27: 1490.49 | BR27: 1242.54 | BS27: 1196.16 | BT27: 977.69 | BU27: 1596.75 | BV27: 2789.95 | BW27: 4089.09 | BX27: 6024.75 | BY27: 1475.72 | BZ27: 2536.76 | CA27: 3955.81 | CB27: 5809.79 | CC27: 22.97 | CD27: 15.43 | CE27: 14.17 | CF27: 8.71 | CG27: 2.52 | CH27: 3.58 | CI27: 1.84 | CJ27: 2.51 | CK27: 4.13 | CL27: 6.21 | CM27: 2.9 | CN27: 3.83 | CO27: 0 | CP27: 0 | CQ27: 0 | CR27: 0
A28: 2 | B28: 4 | C28: 1 | D28: 3 | E28: G | F28: 020401 | G28: 204013 | H28: GÓRA | I28: 19956 | J28: 19795 | K28: 19606 | L28: 18704 | M28: 94.66 | N28: 91.06 | O28: 95.05 | P28: 91.54 | Q28: 60.56 | R28: 61.23 | S28: 59.66 | T28: 59.08 | U28: 4.29 | V28: 4.21 | W28: 8.93 | X28: 4.44 | Y28: 10.69 | Z28: 12.57 | AA28: 11.34 | AB28: 19.15 | AC28: 36.65 | AD28: 38.33 | AE28: 39.5 | AF28: 38.39 | AG28: 5.8 | AH28: 5.1 | AI28: 9.77 | AJ28: 4.79 | AK28: 86.64 | AL28: 101.9 | AM28: 121.27 | AN28: 60.41 | AO28: 4.93 | AP28: 4.38 | AQ28: 6.81 | AR28: 3.76 | AS28: 76.31 | AT28: 101.55 | AU28: 108.88 | AV28: 66.74 | AW28: 67.12 | AX28: 102.11 | AY28: 113.05 | AZ28: 54.89 | BA28: 148.99 | BB28: 97.94 | BC28: 88.46 | BD28: 182.19 | BE28: 9.79 | BF28: 9.14 | BG28: 16.2 | BH28: 8.19 | BI28: 2921.06 | BJ28: 3080.73 | BK28: 3231.88 | BL28: 3530.19 | BM28: 206.84 | BN28: 212.07 | BO28: 483.53 | BP28: 265.22 | BQ28: 2388.13 | BR28: 2382.94 | BS28: 2415.88 | BT28: 2906.13 | BU28: 585.38 | BV28: 959.72 | BW28: 1009.77 | BX28: 1224.23 | BY28: 370.95 | BZ28: 707.77 | CA28: 713.58 | CB28: 742.46 | CC28: 46.87 | CD28: 43.12 | CE28: 42.39 | CF28: 44.53 | CG28: 5.47 | CH28: 5.67 | CI28: 5.89 | CJ28: 9.66 | CK28: 9.34 | CL28: 10.2 | CM28: 9.67 | CN28: 17.08 | CO28: 0 | CP28: 0 | CQ28: 0.01 | CR28: 0.01
A29: 2 | B29: 4 | C29: 2 | D29: 2 | E29: G | F29: 020402 | G29: 204022 | H29: JEMIELNO | I29: 3019 | J29: 2971 | K29: 2959 | L29: 2757 | M29: 88.56 | N29: 87.08 | O29: 86.89 | P29: 97.8 | Q29: 73.35 | R29: 73.74 | S29: 74.15 | T29: 64.96 | U29: 6.59 | V29: 8.83 | W29: 5.14 | X29: 14.68 | Y29: 9.62 | Z29: 8.66 | AA29: 11.28 | AB29: 5.31 | AC29: 34.63 | AD29: 33.84 | AE29: 36.16 | AF29: 32.88 | AG29: 11.11 | AH29: 7.8 | AI29: 4.75 | AJ29: 14.52 | AK29: 196.17 | AL29: 273.84 | AM29: 167.7 | AN29: 353.8 | AO29: 11.21 | AP29: 20.46 | AQ29: 23.46 | AR29: 29.58 | AS29: 201.29 | AT29: 299.78 | AU29: 271.94 | AV29: 527.03 | AW29: 227.3 | AX29: 371.87 | AY29: 323.78 | AZ29: 732.15 | BA29: 43.99 | BB29: 26.89 | BC29: 30.88 | BD29: 13.66 | BE29: 21.23 | BF29: 15.31 | BG29: 9.39 | BH29: 22.04 | BI29: 3566.41 | BJ29: 3979.47 | BK29: 4202 | BL29: 5227.62 | BM29: 320.29 | BN29: 476.73 | BO29: 291.38 | BP29: 1181.48 | BQ29: 1345.48 | BR29: 1198.92 | BS29: 997.63 | BT29: 885.75 | BU29: 1223.37 | BV29: 1902.82 | BW29: 2419.77 | BX29: 3004.51 | BY29: 1099.16 | BZ29: 1734.53 | CA29: 2213.62 | CB29: 2819.52 | CC29: 24.51 | CD29: 19.35 | CE29: 15.3 | CF29: 10.76 | CG29: 3.25 | CH29: 3.34 | CI29: 3.61 | CJ29: 3.14 | CK29: 6.21 | CL29: 6.53 | CM29: 6.93 | CN29: 5.28 | CO29: 0 | CP29: 0 | CQ29: 0 | CR29: 0
A30: 2 | B30: 4 | C30: 3 | D30: 2 | E30: G | F30: 020403 | G30: 204032 | H30: NIECHLÓW | I30: 4911 | J30: 4829 | K30: 4799 | L30: 4566 | M30: 96.05 | N30: 83.98 | O30: 86.99 | P30: 96.39 | Q30: 66.57 | R30: 68.03 | S30: 67.32 | T30: 61.89 | U30: 4.67 | V30: 5.54 | W30: 11.99 | X30: 11.54 | Y30: 15.68 | Z30: 12.83 | AA30: 15.26 | AB30: 14.96 | AC30: 36.05 | AD30: 35.22 | AE30: 36.97 | AF30: 34.3 | AG30: 4.67 | AH30: 4.79 | AI30: 10.77 | AJ30: 11.41 | AK30: 49.55 | AL30: 177.09 | AM30: 170.09 | AN30: 98.15 | AO30: 5.47 | AP30: 15.01 | AQ30: 24.85 | AR30: 23.95 | AS30: 91.05 | AT30: 161.73 | AU30: 264.86 | AV30: 248.45 | AW30: 89.76 | AX30: 173.61 | AY30: 280.32 | AZ30: 259.59 | BA30: 111.41 | BB30: 57.6 | BC30: 35.67 | BD30: 38.52 | BE30: 7.77 | BF30: 10.1 | BG30: 20.57 | BH30: 17.7 | BI30: 3067.2 | BJ30: 3347.71 | BK30: 3727.29 | BL30: 4294.01 | BM30: 215.25 | BN30: 272.77 | BO30: 663.99 | BP30: 800.29 | BQ30: 609.95 | BR30: 1006.42 | BS30: 930.4 | BT30: 896.85 | BU30: 850.72 | BV30: 1319.06 | BW30: 2541.55 | BX30: 2884.49 | BY30: 733.14 | BZ30: 1187.47 | CA30: 2459.24 | CB30: 2803.46 | CC30: 12.72 | CD30: 17.18 | CE30: 14.62 | CF30: 12.46 | CG30: 2.68 | CH30: 2.63 | CI30: 1.55 | CJ30: 1.89 | CK30: 4.47 | CL30: 5.12 | CM30: 2.89 | CN30: 3.11 | CO30: 0 | CP30: 0 | CQ30: 0 | CR30: 0
A31: 2 | B31: 4 | C31: 4 | D31: 3 | E31: G | F31: 020404 | G31: 204043 | H31: WĄSOSZ | I31: 7161 | J31: 7103 | K31: 6998 | L31: 6815 | M31: 98.75 | N31: 91.82 | O31: 80.3 | P31: 82.15 | Q31: 63.63 | R31: 62.49 | S31: 60.04 | T31: 54.09 | U31: 9.31 | V31: 5.74 | W31: 11.75 | X31: 9.76 | Y31: 3.84 | Z31: 11.01 | AA31: 19.8 | AB31: 31.11 | AC31: 37.92 | AD31: 36.8 | AE31: 40.02 | AF31: 37.61 | AG31: 9.74 | AH31: 5.46 | AI31: 9.91 | AJ31: 8.44 | AK31: 291.75 | AL31: 125.57 | AM31: 166.56 | AN31: 77.27 | AO31: 4.51 | AP31: 6.08 | AQ31: 14.74 | AR31: 5.86 | AS31: 175.93 | AT31: 145.43 | AU31: 175.66 | AV31: 111.67 | AW31: 225.92 | AX31: 156.75 | AY31: 184.29 | AZ31: 112.26 | BA31: 44.26 | BB31: 63.8 | BC31: 54.26 | BD31: 89.08 | BE31: 16.91 | BF31: 9.51 | BG31: 17.64 | BH31: 16.35 | BI31: 3069.38 | BJ31: 3272.52 | BK31: 3568.11 | BL31: 3708.06 | BM31: 449.02 | BN31: 300.36 | BO31: 698 | BP31: 669.18 | BQ31: 1623.62 | BR31: 1484.74 | BS31: 1359.45 | BT31: 1399.68 | BU31: 510.17 | BV31: 1109.6 | BW31: 2533.41 | BX31: 3279.27 | BY31: 395.06 | BZ31: 957.46 | CA31: 2385.84 | CB31: 3136.25 | CC31: 33.24 | CD31: 26.03 | CE31: 18.37 | CF31: 16.77 | CG31: 3.5 | CH31: 3.5 | CI31: 2.48 | CJ31: 2.45 | CK31: 5.44 | CL31: 5.89 | CM31: 4.62 | CN31: 4.54 | CO31: 0 | CP31: 0 | CQ31: 0 | CR31: 0
A32: 2 | B32: 5 | C32: 1 | D32: 1 | E32: G | F32: 020501 | G32: 205011 | H32: JAWOR | I32: 22890 | J32: 22615 | K32: 22301 | L32: 21077 | M32: 87.83 | N32: 84.23 | O32: 84.95 | P32: 84.84 | Q32: 46.79 | R32: 44.06 | S32: 42.65 | T32: 38.53 | U32: 4.3 | V32: 8.82 | W32: 14.25 | X32: 6.29 | Y32: 17.25 | Z32: 31.49 | AA32: 21.35 | AB32: 23.33 | AC32: 39.47 | AD32: 37.61 | AE32: 37.99 | AF32: 37.86 | AG32: 6.07 | AH32: 8.07 | AI32: 12.83 | AJ32: 6.04 | AK32: 91.06 | AL32: 65.7 | AM32: 137.32 | AN32: 84.71 | AO32: 9.14 | AP32: 6.31 | AQ32: 12.7 | AR32: 13.44 | AS32: 104.08 | AT32: 81.37 | AU32: 153.34 | AV32: 126.36 | AW32: 104.83 | AX32: 79.94 | AY32: 159.52 | AZ32: 128.7 | BA32: 95.4 | BB32: 125.09 | BC32: 62.69 | BD32: 77.7 | BE32: 9.76 | BF32: 13.18 | BG32: 20.49 | BH32: 9.28 | BI32: 1799.25 | BJ32: 2010 | BK32: 2207.66 | BL32: 2092.66 | BM32: 165.5 | BN32: 402.19 | BO32: 737.5 | BP32: 341.91 | BQ32: 1048.25 | BR32: 1635.36 | BS32: 1575.76 | BT32: 1948.75 | BU32: 945.11 | BV32: 1675.14 | BW32: 2061.52 | BX32: 2131.3 | BY32: 804.18 | BZ32: 1528.61 | CA32: 1921.89 | CB32: 1993.76 | CC32: 23.94 | CD32: 30.2 | CE32: 25.86 | CF32: 30.44 | CG32: 3.86 | CH32: 3.24 | CI32: 2.71 | CJ32: 3.7 | CK32: 6.1 | CL32: 5.41 | CM32: 4.28 | CN32: 5.86 | CO32: 0.29 | CP32: 0 | CQ32: 0 | CR32: 0.19
A33: 2 | B33: 5 | C33: 2 | D33: 3 | E33: G | F33: 020502 | G33: 205023 | H33: BOLKÓW | I33: 10458 | J33: 10363 | K33: 10223 | L33: 9705 | M33: 78.02 | N33: 90.26 | O33: 86.53 | P33: 95.03 | Q33: 65.92 | R33: 61.76 | S33: 60.68 | T33: 59.49 | U33: 6.63 | V33: 9.12 | W33: 6.79 | X33: 4.41 | Y33: 29.53 | Z33: 3.72 | AA33: 9.37 | AB33: 6.99 | AC33: 39.25 | AD33: 38.14 | AE33: 39.78 | AF33: 36.25 | AG33: 5.79 | AH33: 8.93 | AI33: 7.16 | AJ33: 7.84 | AK33: 88.96 | AL33: 567.3 | AM33: 231.97 | AN33: 134.22 | AO33: 2.21 | AP33: 12.05 | AQ33: 21.97 | AR33: 24.6 | AS33: 83.09 | AT33: 136.44 | AU33: 265.17 | AV33: 327.68 | AW33: 79.41 | AX33: 268.9 | AY33: 326.72 | AZ33: 415.64 | BA33: 125.92 | BB33: 37.19 | BC33: 30.61 | BD33: 24.06 | BE33: 11.26 | BF33: 9.53 | BG33: 11.76 | BH33: 11.2 | BI33: 2734.35 | BJ33: 3213.85 | BK33: 3357.33 | BL33: 3827.32 | BM33: 275.06 | BN33: 474.71 | BO33: 375.73 | BP33: 283.82 | BQ33: 1383.65 | BR33: 1118.34 | BS33: 1130.56 | BT33: 1218.35 | BU33: 1641.44 | BV33: 1155.24 | BW33: 1941.32 | BX33: 2100.41 | BY33: 1288.7 | BZ33: 491.25 | CA33: 1742.59 | CB33: 1921.78 | CC33: 26.02 | CD33: 19.4 | CE33: 17.68 | CF33: 18 | CG33: 7.3 | CH33: 11.96 | CI33: 3.29 | CJ33: 3.63 | CK33: 14.11 | CL33: 20.21 | CM33: 5.36 | CN33: 5.64 | CO33: 0 | CP33: 0 | CQ33: 0 | CR33: 0
A34: 2 | B34: 5 | C34: 3 | D34: 2 | E34: G | F34: 020503 | G34: 205032 | H34: MĘCINKA | I34: 4995 | J34: 5006 | K34: 5014 | L34: 5126 | M34: 85.48 | N34: 77.29 | O34: 78.61 | P34: 88.53 | Q34: 49.06 | R34: 51.54 | S34: 50.02 | T34: 47.43 | U34: 8.91 | V34: 6.2 | W34: 7.99 | X34: 9.1 | Y34: 17.87 | Z34: 8.27 | AA34: 16.66 | AB34: 32.75 | AC34: 38.85 | AD34: 35.37 | AE34: 36.32 | AF34: 34.49 | AG34: 9.95 | AH34: 5.55 | AI34: 10.62 | AJ34: 8.9 | AK34: 130.72 | AL34: 420.62 | AM34: 191.38 | AN34: 49.83 | AO34: 3.36 | AP34: 25.29 | AQ34: 32.57 | AR34: 18.79 | AS34: 104.13 | AT34: 313.79 | AU34: 277.06 | AV34: 118.29 | AW34: 106.1 | AX34: 417.4 | AY34: 325.24 | AZ34: 119.77 | BA34: 94.25 | BB34: 23.96 | BC34: 30.75 | BD34: 83.5 | BE34: 16.42 | BF34: 11.88 | BG34: 19.82 | BH34: 14.98 | BI34: 2604.92 | BJ34: 2802.81 | BK34: 2999.49 | BL34: 3336.92 | BM34: 473.2 | BN34: 337 | BO34: 479.2 | BP34: 640.21 | BQ34: 1361.44 | BR34: 1455.14 | BS34: 1152.66 | BT34: 1753.69 | BU34: 1615.76 | BV34: 2142.96 | BW34: 3888.02 | BX34: 3982.63 | BY34: 1116.06 | BZ34: 1920.03 | CA34: 3587.86 | CB34: 3730.97 | CC34: 21.92 | CD34: 20.68 | CE34: 15.11 | CF34: 22.06 | CG34: 8.83 | CH34: 3.69 | CI34: 4.28 | CJ34: 3.76 | CK34: 14.53 | CL34: 7.16 | CM34: 7.84 | CN34: 6.27 | CO34: 0 | CP34: 0 | CQ34: 0 | CR34: 0
A35: 2 | B35: 5 | C35: 4 | D35: 2 | E35: G | F35: 020504 | G35: 205042 | H35: MŚCIWOJÓW | I35: 4065 | J35: 4041 | K35: 4033 | L35: 4009 | M35: 85.28 | N35: 78.46 | O35: 85.67 | P35: 88.23 | Q35: 54.1 | R35: 56.19 | S35: 57.76 | T35: 50.24 | U35: 4.75 | V35: 9.74 | W35: 10.62 | X35: 14.2 | Y35: 13.33 | Z35: 11.32 | AA35: 21.18 | AB35: 17.45 | AC35: 39.12 | AD35: 36.42 | AE35: 37.94 | AF35: 33.6 | AG35: 6.38 | AH35: 15.61 | AI35: 9.14 | AJ35: 12.71 | AK35: 150.32 | AL35: 322.75 | AM35: 113.91 | AN35: 151.89 | AO35: 10.56 | AP35: 24.83 | AQ35: 23.7 | AR35: 22.52 | AS35: 88.68 | AT35: 296.92 | AU35: 194.54 | AV35: 221 | AW35: 78.62 | AX35: 376.14 | AY35: 215.36 | AZ35: 242.43 | BA35: 127.2 | BB35: 26.59 | BC35: 46.43 | BD35: 41.25 | BE35: 11.58 | BF35: 31.63 | BG35: 16.57 | BH35: 21.72 | BI35: 2105.65 | BJ35: 2572.16 | BK35: 2847.83 | BL35: 3515.6 | BM35: 185.04 | BN35: 445.97 | BO35: 523.64 | BP35: 993.96 | BQ35: 1271.54 | BR35: 1092.74 | BS35: 840.34 | BT35: 588.43 | BU35: 954.87 | BV35: 2196.23 | BW35: 2810.07 | BX35: 3301.45 | BY35: 448.28 | BZ35: 1984.03 | CA35: 2549.43 | CB35: 3076.67 | CC35: 27.86 | CD35: 18.73 | CE35: 14.6 | CF35: 7.42 | CG35: 11.72 | CH35: 4.18 | CI35: 4.83 | CJ35: 3.33 | CK35: 21.29 | CL35: 8.42 | CM35: 8.59 | CN35: 5.77 | CO35: 0 | CP35: 2.37 | CQ35: 3.8 | CR35: 0
A36: 2 | B36: 5 | C36: 5 | D36: 2 | E36: G | F36: 020505 | G36: 205052 | H36: PASZOWICE | I36: 3976 | J36: 3998 | K36: 4026 | L36: 4139 | M36: 88.47 | N36: 84.38 | O36: 82.34 | P36: 95.98 | Q36: 56.49 | R36: 57.63 | S36: 60.02 | T36: 51.32 | U36: 9.85 | V36: 6.34 | W36: 2.61 | X36: 13.21 | Y36: 6.1 | Z36: 27.94 | AA36: 9.24 | AB36: 21.58 | AC36: 40.96 | AD36: 38.82 | AE36: 39.82 | AF36: 37.85 | AG36: 8.84 | AH36: 5.82 | AI36: 2.47 | AJ36: 12.72 | AK36: 390.62 | AL36: 68.44 | AM36: 242.75 | AN36: 72.85 | AO36: 17.49 | AP36: 19.27 | AQ36: 24.22 | AR36: 29.11 | AS36: 353.25 | AT36: 113.74 | AU36: 274.03 | AV36: 190.53 | AW36: 437.41 | AX36: 114.47 | AY36: 396.78 | AZ36: 196.19 | BA36: 22.86 | BB36: 87.36 | BC36: 25.2 | BD36: 50.97 | BE36: 14.27 | BF36: 9.39 | BG36: 6.08 | BH36: 19.12 | BI36: 2587.77 | BJ36: 2787.35 | BK36: 2957.65 | BL36: 3369.39 | BM36: 451.39 | BN36: 306.67 | BO36: 128.83 | BP36: 867.07 | BQ36: 411.94 | BR36: 1167.55 | BS36: 814.95 | BT36: 1177.85 | BU36: 1263.53 | BV36: 2102.84 | BW36: 2282.28 | BX36: 3173.62 | BY36: 1174.31 | BZ36: 2010.36 | CA36: 1937.8 | CB36: 3075.57 | CC36: 7.96 | CD36: 20.37 | CE36: 13.62 | CF36: 17.22 | CG36: 1.98 | CH36: 1.82 | CI36: 6.02 | CJ36: 2.13 | CK36: 3.22 | CL36: 3.27 | CM36: 10.84 | CN36: 3.24 | CO36: 0 | CP36: 0 | CQ36: 0 | CR36: 0
A37: 2 | B37: 5 | C37: 6 | D37: 2 | E37: G | F37: 020506 | G37: 205062 | H37: WĄDROŻE WIELKIE | I37: 3931 | J37: 3914 | K37: 3860 | L37: 3788 | M37: 91.38 | N37: 92.99 | O37: 91.92 | P37: 92.61 | Q37: 55.41 | R37: 56.59 | S37: 55.29 | T37: 51.58 | U37: 5.83 | V37: 9.08 | W37: 11.95 | X37: 10.83 | Y37: 18.12 | Z37: 4.48 | AA37: 10.89 | AB37: 13.39 | AC37: 39.92 | AD37: 37.92 | AE37: 38.31 | AF37: 35.7 | AG37: 5.49 | AH37: 8.82 | AI37: 13.26 | AJ37: 10.86 | AK37: 73.26 | AL37: 390.2 | AM37: 192.69 | AN37: 136.4 | AO37: 1.07 | AP37: 12.73 | AQ37: 18.45 | AR37: 18.35 | AS37: 84.36 | AT37: 28.73 | AU37: 253.37 | AV37: 223.27 | AW37: 82.52 | AX37: -931.39 | AY37: 286.51 | AZ37: 243.76 | BA37: 121.18 | BB37: -10.74 | BC37: 34.9 | BD37: 41.02 | BE37: 8.61 | BF37: 14.07 | BG37: 20.98 | BH37: 17 | BI37: 2959.09 | BJ37: 3246.94 | BK37: 3545.61 | BL37: 3959.31 | BM37: 311.38 | BN37: 521.11 | BO37: 766.32 | BP37: 831.01 | BQ37: 3274.11 | BR37: 3302.13 | BS37: 3199.2 | BT37: 3084.1 | BU37: 1048.72 | BV37: 1016.32 | BW37: 2126.72 | BX37: 2754.99 | BY37: 918.48 | BZ37: -2276.23 | CA37: 1977.59 | CB37: 2579.08 | CC37: 56.02 | CD37: 53.52 | CE37: 45.86 | CF37: 37.21 | CG37: 3.99 | CH37: 54.51 | CI37: 2.67 | CJ37: 4.34 | CK37: 6.21 | CL37: 85.83 | CM37: 4.17 | CN37: 6.81 | CO37: 0 | CP37: 0 | CQ37: 0 | CR37: 0
A38: 2 | B38: 6 | C38: 1 | D38: 1 | E38: G | F38: 020601 | G38: 206011 | H38: KARPACZ | I38: 4593 | J38: 4541 | K38: 4434 | L38: 4333 | M38: 83.08 | N38: 96.37 | O38: 85.34 | P38: 98.52 | Q38: 24.22 | R38: 27.24 | S38: 26.68 | T38: 28.2 | U38: 9.29 | V38: 10.45 | W38: 22.86 | X38: 19.76 | Y38: 24.45 | Z38: 15.42 | AA38: 15.68 | AB38: 15.29 | AC38: 30.73 | AD38: 31.85 | AE38: 30.71 | AF38: 28.25 | AG38: 8.37 | AH38: 11.06 | AI38: 19.97 | AJ38: 20.33 | AK38: 101.06 | AL38: 87.02 | AM38: 279.01 | AN38: 146.79 | AO38: 0.07 | AP38: 0.78 | AQ38: 11.42 | AR38: 11.65 | AS38: 100.57 | AT38: 81.71 | AU38: 207.95 | AV38: 143.67 | AW38: 100.71 | AX38: 80.23 | AY38: 247.18 | AZ38: 181.64 | BA38: 99.29 | BB38: 124.65 | BC38: 40.46 | BD38: 55.05 | BE38: 11.44 | BF38: 13.3 | BG38: 27.03 | BH38: 25.6 | BI38: 2002.31 | BJ38: 2228 | BK38: 2798.81 | BL38: 3696.21 | BM38: 768.46 | BN38: 854.58 | BO38: 2397.67 | BP38: 2589.59 | BQ38: 4068.91 | BR38: 4253.77 | BS38: 3552.29 | BT38: 1993.49 | BU38: 3039.68 | BV38: 1179.71 | BW38: 4267.55 | BX38: 5097.45 | BY38: 2443.97 | BZ38: 1071.42 | CA38: 3720.58 | CB38: 3447.32 | CC38: 40.89 | CD38: 50.13 | CE38: 28.9 | CF38: 14.98 | CG38: 6.88 | CH38: 2.11 | CI38: 4.88 | CJ38: 13.73 | CK38: 9.4 | CL38: 2.57 | CM38: 6.78 | CN38: 17.45 | CO38: 0 | CP38: 0 | CQ38: 0.01 | CR38: 0.44
A39: 2 | B39: 6 | C39: 2 | D39: 1 | E39: G | F39: 020602 | G39: 206021 | H39: KOWARY | I39: 10869 | J39: 10741 | K39: 10565 | L39: 10003 | M39: 96.45 | N39: 90.24 | O39: 87.37 | P39: 93.12 | Q39: 53.55 | R39: 55.41 | S39: 53.32 | T39: 52.09 | U39: 5.98 | V39: 4.81 | W39: 9.72 | X39: 4.76 | Y39: 11.79 | Z39: 6.92 | AA39: 5.8 | AB39: 14.95 | AC39: 34.93 | AD39: 33.09 | AE39: 33.42 | AF39: 33.08 | AG39: 7.56 | AH39: 6.93 | AI39: 17.45 | AJ39: 6.75 | AK39: 76.84 | AL39: 220.64 | AM39: 435.21 | AN39: 72.57 | AO39: 5.01 | AP39: 10.53 | AQ39: 19.11 | AR39: 14.79 | AS39: 142.91 | AT39: 229.18 | AU39: 267.99 | AV39: 196.8 | AW39: 151.59 | AX39: 271.38 | AY39: 499.67 | AZ39: 196.8 | BA39: 65.97 | BB39: 36.85 | BC39: 20.01 | BD39: 50.81 | BE39: 11.12 | BF39: 11.5 | BG39: 29.05 | BH39: 11.81 | BI39: 2106.55 | BJ39: 2402.99 | BK39: 2658.07 | BL39: 2863.19 | BM39: 235.06 | BN39: 208.43 | BO39: 484.72 | BP39: 261.72 | BQ39: 714.54 | BR39: 880.12 | BS39: 472.63 | BT39: 486.04 | BU39: 849.83 | BV39: 933.73 | BW39: 1765.87 | BX39: 1811.52 | BY39: 749.73 | BZ39: 833.41 | CA39: 1383.91 | CB39: 1811.52 | CC39: 17.52 | CD39: 18.31 | CE39: 8.28 | CF39: 8.23 | CG39: 2.97 | CH39: 2.4 | CI39: 6.83 | CJ39: 0.21 | CK39: 4.58 | CL39: 4.11 | CM39: 11.56 | CN39: 0.33 | CO39: 6.68 | CP39: 4.95 | CQ39: 8.25 | CR39: 10.6
A40: 2 | B40: 6 | C40: 3 | D40: 1 | E40: G | F40: 020603 | G40: 206031 | H40: PIECHOWICE | I40: 6194 | J40: 6121 | K40: 6037 | L40: 5834 | M40: 97.07 | N40: 93.35 | O40: 88.92 | P40: 97.69 | Q40: 37.39 | R40: 40.26 | S40: 38.14 | T40: 37.86 | U40: 7.69 | V40: 9.49 | W40: 9.86 | X40: 9.57 | Y40: 14.85 | Z40: 10.58 | AA40: 13.91 | AB40: 19.62 | AC40: 33.15 | AD40: 33.01 | AE40: 34.27 | AF40: 32.21 | AG40: 8.15 | AH40: 9.1 | AI40: 13 | AJ40: 11.11 | AK40: 66.54 | AL40: 155.13 | AM40: 153.24 | AN40: 54.04 | AO40: 9.69 | AP40: 10.74 | AQ40: 16.11 | AR40: 13.08 | AS40: 149.62 | AT40: 188.32 | AU40: 221.77 | AV40: 128.08 | AW40: 159.59 | AX40: 212.74 | AY40: 224.4 | AZ40: 128.08 | BA40: 62.66 | BB40: 47.01 | BC40: 44.56 | BD40: 78.07 | BE40: 11.71 | BF40: 11.7 | BG40: 20.41 | BH40: 16.19 | BI40: 1655.89 | BJ40: 1971.83 | BK40: 2040.77 | BL40: 2395.39 | BM40: 340.59 | BN40: 464.72 | BO40: 527.32 | BP40: 605.25 | BQ40: 198.55 | BR40: 55.9 | BS40: 0 | BT40: 455.09 | BU40: 1280.79 | BV40: 1260.95 | BW40: 1765.73 | BX40: 1789.15 | BY40: 1137.51 | BZ40: 1115.97 | CA40: 1748.92 | CB40: 1789.15 | CC40: 4.35 | CD40: 1.07 | CE40: 0 | CF40: 7.03 | CG40: 3.32 | CH40: 2.83 | CI40: 0.31 | CJ40: 0.04 | CK40: 4.74 | CL40: 4.46 | CM40: 0.48 | CN40: 0.06 | CO40: 0.03 | CP40: 0.03 | CQ40: 0 | CR40: 0
A41: 2 | B41: 6 | C41: 4 | D41: 1 | E41: G | F41: 020604 | G41: 206041 | H41: SZKLARSKA PORĘBA | I41: 6557 | J41: 6587 | K41: 6584 | L41: 5817 | M41: 91.12 | N41: 82.06 | O41: 77.43 | P41: 86.07 | Q41: 27.74 | R41: 28.19 | S41: 25.54 | T41: 36.05 | U41: 4.15 | V41: 3.86 | W41: 17.09 | X41: 8.89 | Y41: 20.11 | Z41: 27.25 | AA41: 9.16 | AB41: 24.16 | AC41: 31.8 | AD41: 29.89 | AE41: 31.89 | AF41: 26.4 | AG41: 10.29 | AH41: 7.57 | AI41: 20.59 | AJ41: 15.13 | AK41: 57.59 | AL41: 71.44 | AM41: 553.25 | AN41: 86.39 | AO41: 5.21 | AP41: 3.17 | AQ41: 29.29 | AR41: 16.27 | AS41: 84.01 | AT41: 75 | AU41: 429.97 | AV41: 154.35 | AW41: 81.92 | AX41: 70.78 | AY41: 552.61 | AZ41: 165.1 | BA41: 122.07 | BB41: 141.28 | BC41: 18.1 | BD41: 60.57 | BE41: 13.8 | BF41: 11.4 | BG41: 32.5 | BH41: 25.28 | BI41: 1741.02 | BJ41: 1725.16 | BK41: 1919.89 | BL41: 4101.97 | BM41: 260.31 | BN41: 236.38 | BO41: 1284.91 | BP41: 1011.74 | BQ41: 1836.89 | BR41: 2368.5 | BS41: 2134.85 | BT41: 1763.1 | BU41: 1438.59 | BV41: 1932.04 | BW41: 3705.61 | BX41: 6106.61 | BY41: 1240.33 | BZ41: 1560.1 | CA41: 3472.09 | CB41: 5453.35 | CC41: 26.67 | CD41: 31.76 | CE41: 21.99 | CF41: 13.34 | CG41: 3.41 | CH41: 5.6 | CI41: 2.73 | CJ41: 6 | CK41: 4.6 | CL41: 8.55 | CM41: 4.28 | CN41: 10.05 | CO41: 0.01 | CP41: 0.05 | CQ41: 0 | CR41: 0
A42: 2 | B42: 6 | C42: 5 | D42: 2 | E42: G | F42: 020605 | G42: 206052 | H42: JANOWICE WIELKIE | I42: 4302 | J42: 4275 | K42: 4251 | L42: 4102 | M42: 97.81 | N42: 92.59 | O42: 83.53 | P42: 94.3 | Q42: 56.55 | R42: 56.5 | S42: 56.96 | T42: 55.22 | U42: 7.56 | V42: 6.92 | W42: 8.08 | X42: 6.71 | Y42: 3.91 | Z42: 1.97 | AA42: 12.64 | AB42: 13.52 | AC42: 33.53 | AD42: 33.63 | AE42: 37.37 | AF42: 33.48 | AG42: 9.4 | AH42: 6.86 | AI42: 7.74 | AJ42: 7.63 | AK42: 260.38 | AL42: 796.24 | AM42: 208.88 | AN42: 87.41 | AO42: 0.78 | AP42: 7.61 | AQ42: 14.97 | AR42: 9.1 | AS42: 107.88 | AT42: 217.41 | AU42: 201.11 | AV42: 156.64 | AW42: 121.26 | AX42: 551.88 | AY42: 234.69 | AZ42: 166.15 | BA42: 82.47 | BB42: 18.12 | BC42: 42.61 | BD42: 60.19 | BE42: 13.78 | BF42: 10.9 | BG42: 13.01 | BH42: 12.61 | BI42: 2510.18 | BJ42: 2661.82 | BK42: 2911.2 | BL42: 3760.57 | BM42: 335.79 | BN42: 326.2 | BO42: 412.79 | BP42: 456.75 | BQ42: 1086.32 | BR42: 836.49 | BS42: 615.38 | BT42: 470.99 | BU42: 486.52 | BV42: 738.98 | BW42: 1821.71 | BX42: 1817.67 | BY42: 202.7 | BZ42: 487.4 | CA42: 1595.89 | CB42: 1650.92 | CC42: 23.94 | CD42: 16.44 | CE42: 10.06 | CF42: 6.52 | CG42: 7.14 | CH42: 5.43 | CI42: 3.95 | CJ42: 2.88 | CK42: 10.46 | CL42: 8.62 | CM42: 6.73 | CN42: 4.74 | CO42: 0.47 | CP42: 0 | CQ42: 0 | CR42: 0
A43: 2 | B43: 6 | C43: 6 | D43: 2 | E43: G | F43: 020606 | G43: 206062 | H43: JEŻÓW SUDECKI | I43: 7438 | J43: 7477 | K43: 7584 | L43: 7813 | M43: 95.98 | N43: 94.76 | O43: 92.62 | P43: 95.09 | Q43: 47.26 | R43: 49.7 | S43: 47.16 | T43: 44.64 | U43: 22.97 | V43: 17.84 | W43: 23.83 | X43: 17.19 | Y43: 14.29 | Z43: 14.26 | AA43: 22.52 | AB43: 17 | AC43: 28.47 | AD43: 29.44 | AE43: 30.17 | AF43: 29.44 | AG43: 22.27 | AH43: 17.61 | AI43: 23.61 | AJ43: 19.28 | AK43: 211.47 | AL43: 171.08 | AM43: 143.65 | AN43: 131.73 | AO43: 10.74 | AP43: 16.3 | AQ43: 19.7 | AR43: 21.94 | AS43: 148.54 | AT43: 193.92 | AU43: 188.2 | AV43: 216.51 | AW43: 173.42 | AX43: 219.36 | AY43: 199.38 | AZ43: 236.78 | BA43: 57.66 | BB43: 45.59 | BC43: 50.16 | BD43: 42.23 | BE43: 33.66 | BF43: 27.32 | BG43: 35.73 | BH43: 28.81 | BI43: 2181.47 | BJ43: 2479.71 | BK43: 2635.28 | BL43: 2532.35 | BM43: 1060.12 | BN43: 890.29 | BO43: 1331.85 | BP43: 974.96 | BQ43: 511.59 | BR43: 368.7 | BS43: 206.73 | BT43: 14.72 | BU43: 1331.93 | BV43: 1680.17 | BW43: 2623.08 | BX43: 2446.08 | BY43: 1028.03 | BZ43: 1495.55 | CA43: 2466.31 | CB43: 2278.6 | CC43: 10.64 | CD43: 7 | CE43: 3.43 | CF43: 0.25 | CG43: 6.65 | CH43: 3.64 | CI43: 2.67 | CJ43: 2.87 | CK43: 10.01 | CL43: 5.68 | CM43: 4.01 | CN43: 4.32 | CO43: 0 | CP43: 0 | CQ43: 0 | CR43: 0
A44: 2 | B44: 6 | C44: 7 | D44: 2 | E44: G | F44: 020607 | G44: 206072 | H44: MYSŁAKOWICE | I44: 10160 | J44: 10142 | K44: 10081 | L44: 9801 | M44: 86.16 | N44: 94.46 | O44: 90.83 | P44: 93.26 | Q44: 50.84 | R44: 53.32 | S44: 51.45 | T44: 52.91 | U44: 7.18 | V44: 4.86 | W44: 6.98 | X44: 3.53 | Y44: 23.16 | Z44: 4.32 | AA44: 10.9 | AB44: 24.26 | AC44: 33.77 | AD44: 33.52 | AE44: 34.48 | AF44: 32.63 | AG44: 7.09 | AH44: 4.98 | AI44: 7.75 | AJ44: 6.24 | AK44: 83.09 | AL44: 249.63 | AM44: 150.1 | AN44: 34.8 | AO44: 6.37 | AP44: 10.58 | AQ44: 13.27 | AR44: 7.41 | AS44: 77.17 | AT44: 269.69 | AU44: 213.1 | AV44: 72.66 | AW44: 75.13 | AX44: 360.78 | AY44: 228.47 | AZ44: 70.86 | BA44: 133.11 | BB44: 27.72 | BC44: 43.77 | BD44: 141.12 | BE44: 11.61 | BF44: 7.58 | BG44: 12.84 | BH44: 10.07 | BI44: 2289 | BJ44: 2611.92 | BK44: 2715.24 | BL44: 3184.68 | BM44: 323.14 | BN44: 238.17 | BO44: 368.45 | BP44: 212.26 | BQ44: 931.83 | BR44: 820.55 | BS44: 743.97 | BT44: 1663.1 | BU44: 1059.07 | BV44: 871.99 | BW44: 1453.06 | BX44: 1440.44 | BY44: 946.27 | BZ44: 759.05 | CA44: 1371.52 | CB44: 1318 | CC44: 17.83 | CD44: 15.82 | CE44: 12.8 | CF44: 25.77 | CG44: 2.48 | CH44: 2.71 | CI44: 1.63 | CJ44: 2.47 | CK44: 4.21 | CL44: 4.36 | CM44: 2.58 | CN44: 4.1 | CO44: 0 | CP44: 0 | CQ44: 0 | CR44: 0
A45: 2 | B45: 6 | C45: 8 | D45: 2 | E45: G | F45: 020608 | G45: 206082 | H45: PODGÓRZYN | I45: 8260 | J45: 8262 | K45: 8238 | L45: 8145 | M45: 88.36 | N45: 87.34 | O45: 83.14 | P45: 90.12 | Q45: 47.88 | R45: 48.03 | S45: 47.28 | T45: 47.51 | U45: 1.85 | V45: 9.06 | W45: 7.99 | X45: 6.17 | Y45: 23.5 | Z45: 9.5 | AA45: 12.98 | AB45: 21.79 | AC45: 34.89 | AD45: 35.12 | AE45: 36.96 | AF45: 33.82 | AG45: 4.86 | AH45: 12.18 | AI45: 14.44 | AJ45: 9.29 | AK45: 49.81 | AL45: 246.77 | AM45: 206.04 | AN45: 65.52 | AO45: 1.61 | AP45: 11.32 | AQ45: 32.24 | AR45: 18.88 | AS45: 24.38 | AT45: 211.14 | AU45: 254.42 | AV45: 172.72 | AW45: -146.08 | AX45: 238.79 | AY45: 279.04 | AZ45: 180.14 | BA45: -68.46 | BB45: 41.88 | BC45: 35.84 | BD45: 55.51 | BE45: 7.45 | BF45: 20.46 | BG45: 25.2 | BH45: 14.32 | BI45: 2165.48 | BJ45: 2448.75 | BK45: 2624.71 | BL45: 3169.28 | BM45: 83.71 | BN45: 461.78 | BO45: 443.66 | BP45: 411.73 | BQ45: 3042.98 | BR45: 2904.87 | BS45: 3749.48 | BT45: 3528.33 | BU45: 1082.07 | BV45: 1283 | BW45: 2246.44 | BX45: 3319.72 | BY45: -1992.24 | BZ45: 1161.97 | CA45: 2125.05 | CB45: 3141.7 | CC45: 59.45 | CD45: 49.76 | CE45: 56.15 | CF45: 47.67 | CG45: 63.1 | CH45: 3.44 | CI45: 2.7 | CJ45: 5.28 | CK45: 105.59 | CL45: 5.82 | CM45: 4.58 | CN45: 8.77 | CO45: 0 | CP45: 0 | CQ45: 0 | CR45: 0
A46: 2 | B46: 6 | C46: 9 | D46: 2 | E46: G | F46: 020609 | G46: 206092 | H46: STARA KAMIENICA | I46: 5266 | J46: 5242 | K46: 5230 | L46: 5297 | M46: 94.99 | N46: 93.25 | O46: 86.22 | P46: 94.74 | Q46: 54.42 | R46: 54.74 | S46: 54.36 | T46: 56.85 | U46: 3.76 | V46: 6.15 | W46: 7.42 | X46: 7.35 | Y46: 7.26 | Z46: 9.08 | AA46: 4.88 | AB46: 16.92 | AC46: 38.05 | AD46: 37 | AE46: 40.59 | AF46: 35.4 | AG46: 3.66 | AH46: 5.87 | AI46: 7.19 | AJ46: 7.04 | AK46: 119.98 | AL46: 142.79 | AM46: 492.71 | AN46: 68.38 | AO46: 1.19 | AP46: 4.7 | AQ46: 16.47 | AR46: 5.92 | AS46: 106.58 | AT46: 86.41 | AU46: 302.75 | AV46: 126.72 | AW46: 109.23 | AX46: 75.45 | AY46: 502.17 | AZ46: 131.45 | BA46: 91.55 | BB46: 132.54 | BC46: 19.91 | BD46: 76.07 | BE46: 3.52 | BF46: 9.42 | BG46: 12.15 | BH46: 10.83 | BI46: 2605.06 | BJ46: 2913.97 | BK46: 3132.66 | BL46: 4053.18 | BM46: 179.82 | BN46: 327.41 | BO46: 427.29 | BP46: 523.83 | BQ46: 3286.38 | BR46: 3320.61 | BS46: 3062.04 | BT46: 2804.89 | BU46: 538.3 | BV46: 778.83 | BW46: 1643.19 | BX46: 2006.49 | BY46: 393.71 | BZ46: 376.55 | CA46: 1374.05 | CB46: 1768.44 | CC46: 65.22 | CD46: 58.17 | CE46: 45.82 | CF46: 37.27 | CG46: 5.55 | CH46: 8.76 | CI46: 5.38 | CJ46: 5.91 | CK46: 8.85 | CL46: 14.27 | CM46: 9.21 | CN46: 9.92 | CO46: 0 | CP46: 0 | CQ46: 0.1 | CR46: 0
A47: 2 | B47: 7 | C47: 1 | D47: 1 | E47: G | F47: 020701 | G47: 207011 | H47: KAMIENNA GÓRA | I47: 19010 | J47: 18728 | K47: 18425 | L47: 17555 | M47: 85.62 | N47: 84.99 | O47: 82.67 | P47: 88.29 | Q47: 51.89 | R47: 53.88 | S47: 54.21 | T47: 53.09 | U47: 1.27 | V47: 2.24 | W47: 4.34 | X47: -2.51 | Y47: 26.77 | Z47: 21.15 | AA47: 14.77 | AB47: 14.46 | AC47: 38.37 | AD47: 34.83 | AE47: 38.17 | AF47: 38.47 | AG47: 2.71 | AH47: 3.79 | AI47: 10.88 | AJ47: -0.63 | AK47: 50.06 | AL47: 75.88 | AM47: 152.63 | AN47: 62.1 | AO47: 1.01 | AP47: 3.91 | AQ47: 14.79 | AR47: 7.22 | AS47: 43.98 | AT47: 73.61 | AU47: 162.35 | AV47: 139.68 | AW47: 32.42 | AX47: 71.25 | AY47: 168.4 | AZ47: 147.2 | BA47: 308.45 | BB47: 140.35 | BC47: 59.38 | BD47: 67.94 | BE47: 4.27 | BF47: 6.84 | BG47: 18.9 | BH47: -0.93 | BI47: 2150.33 | BJ47: 2370.45 | BK47: 2636.31 | BL47: 2856.19 | BM47: 52.48 | BN47: 98.38 | BO47: 211 | BP47: -134.91 | BQ47: 2044.66 | BR47: 2458.64 | BS47: 2778.18 | BT47: 2781.04 | BU47: 793.62 | BV47: 925.27 | BW47: 1435.79 | BX47: 1549.28 | BY47: 484.9 | BZ47: 822.23 | CA47: 1357.47 | CB47: 1372.51 | CC47: 42.24 | CD47: 47.49 | CE47: 47.23 | CF47: 45.63 | CG47: 7.12 | CH47: 3.11 | CI47: 2.03 | CJ47: 5.46 | CK47: 11.67 | CL47: 5.39 | CM47: 3.51 | CN47: 8.89 | CO47: 3.13 | CP47: 0.7 | CQ47: 0.39 | CR47: 1.92
A48: 2 | B48: 7 | C48: 2 | D48: 2 | E48: G | F48: 020702 | G48: 207022 | H48: KAMIENNA GÓRA | I48: 9019 | J48: 9018 | K48: 8933 | L48: 8857 | M48: 98.67 | N48: 89.66 | O48: 80.81 | P48: 88.39 | Q48: 61.98 | R48: 60.11 | S48: 58.09 | T48: 56.99 | U48: 15.89 | V48: 8.24 | W48: 10.97 | X48: 9.37 | Y48: 17.48 | Z48: 12.97 | AA48: 18.14 | AB48: 19.13 | AC48: 36.83 | AD48: 36.65 | AE48: 38.12 | AF48: 36.88 | AG48: 16.39 | AH48: 10.01 | AI48: 11.83 | AJ48: 11.12 | AK48: 96.7 | AL48: 144.57 | AM48: 176.02 | AN48: 105.01 | AO48: 3.66 | AP48: 5.81 | AQ48: 17.67 | AR48: 17.23 | AS48: 89.18 | AT48: 122.33 | AU48: 185.07 | AV48: 158.73 | AW48: 84.08 | AX48: 131.35 | AY48: 194.53 | AZ48: 171.62 | BA48: 118.93 | BB48: 76.14 | BC48: 51.41 | BD48: 58.27 | BE48: 14.67 | BF48: 17.19 | BG48: 20.74 | BH48: 16.62 | BI48: 3136.86 | BJ48: 3042.69 | BK48: 3276.97 | BL48: 3733.11 | BM48: 804.15 | BN48: 416.89 | BO48: 618.74 | BP48: 614.03 | BQ48: 785.23 | BR48: 616.69 | BS48: 680.72 | BT48: 649.24 | BU48: 1183.52 | BV48: 1188.81 | BW48: 2288.56 | BX48: 2718.22 | BY48: 758.38 | BZ48: 909.3 | CA48: 2164.81 | CB48: 2409.93 | CC48: 15.31 | CD48: 10.92 | CE48: 9.75 | CF48: 8.76 | CG48: 8.59 | CH48: 5.16 | CI48: 1.89 | CJ48: 4.52 | CK48: 13.45 | CL48: 8.67 | CM48: 3.32 | CN48: 7.64 | CO48: 0 | CP48: 0 | CQ48: 0 | CR48: 0
A49: 2 | B49: 7 | C49: 3 | D49: 3 | E49: G | F49: 020703 | G49: 207033 | H49: LUBAWKA | I49: 10901 | J49: 10802 | K49: 10694 | L49: 10265 | M49: 98.77 | N49: 94.81 | O49: 89.54 | P49: 98.62 | Q49: 66.47 | R49: 65.97 | S49: 62.81 | T49: 63.97 | U49: 14.38 | V49: 9.67 | W49: 13.32 | X49: 5.44 | Y49: 10.12 | Z49: 9.37 | AA49: 10.22 | AB49: 3.29 | AC49: 38.17 | AD49: 36.28 | AE49: 37.7 | AF49: 34.44 | AG49: 14.75 | AH49: 9.71 | AI49: 14.47 | AJ49: 6.05 | AK49: 162.1 | AL49: 162.11 | AM49: 253.24 | AN49: 213.04 | AO49: 10.41 | AP49: 14.6 | AQ49: 24.02 | AR49: 24.54 | AS49: 162.29 | AT49: 243.3 | AU49: 309.26 | AV49: 537.13 | AW49: 203.48 | AX49: 258.53 | AY49: 368.22 | AZ49: 874.68 | BA49: 49.15 | BB49: 38.68 | BC49: 27.16 | BD49: 11.43 | BE49: 15.17 | BF49: 13.99 | BG49: 24.16 | BH49: 9.54 | BI49: 2711.96 | BJ49: 2861.14 | BK49: 2998.49 | BL49: 3597.92 | BM49: 586.86 | BN49: 419.21 | BO49: 635.93 | BP49: 306.16 | BQ49: 1078.33 | BR49: 1071.17 | BS49: 966.71 | BT49: 866.71 | BU49: 1060.73 | BV49: 1090.02 | BW49: 1868.09 | BX49: 1719.65 | BY49: 800.59 | BZ49: 1046.97 | CA49: 1735.3 | CB49: 1580.15 | CC49: 26.1 | CD49: 23.42 | CE49: 18.13 | CF49: 15.2 | CG49: 7.11 | CH49: 1.44 | CI49: 2.76 | CJ49: 3.31 | CK49: 10.94 | CL49: 2.37 | CM49: 4.41 | CN49: 5.36 | CO49: 0 | CP49: 0 | CQ49: 0.09 | CR49: 0
A50: 2 | B50: 7 | C50: 4 | D50: 2 | E50: G | F50: 020704 | G50: 207042 | H50: MARCISZÓW | I50: 4499 | J50: 4507 | K50: 4464 | L50: 4308 | M50: 99.68 | N50: 95.53 | O50: 84.69 | P50: 98.17 | Q50: 67.91 | R50: 66.12 | S50: 67.58 | T50: 61.76 | U50: 16.13 | V50: 9.51 | W50: 6.03 | X50: 5.79 | Y50: 2.33 | Z50: 7.36 | AA50: 11.72 | AB50: 11.28 | AC50: 42.37 | AD50: 40.11 | AE50: 42.03 | AF50: 35.45 | AG50: 16.21 | AH50: 10.8 | AI50: 6.03 | AJ50: 6.41 | AK50: 821.75 | AL50: 197.29 | AM50: 193.2 | AN50: 63.9 | AO50: 11.11 | AP50: 11.74 | AQ50: 21.96 | AR50: 15.8 | AS50: 181.05 | AT50: 195.04 | AU50: 211.38 | AV50: 183.49 | AW50: 657.06 | AX50: 270.91 | AY50: 253.47 | AZ50: 205.28 | BA50: 15.22 | BB50: 36.91 | BC50: 39.45 | BD50: 48.71 | BE50: 12.08 | BF50: 16.82 | BG50: 10.47 | BH50: 10.05 | BI50: 3295.86 | BJ50: 3236.11 | BK50: 3353.33 | BL50: 4105.84 | BM50: 782.62 | BN50: 465.49 | BO50: 299.45 | BP50: 384.76 | BQ50: 1550.65 | BR50: 1266.98 | BS50: 1381.21 | BT50: 1455.7 | BU50: 1208.47 | BV50: 1234.29 | BW50: 1803.72 | BX50: 1841.68 | BY50: 638.09 | BZ50: 953.38 | CA50: 1569.72 | CB50: 1634.02 | CC50: 31.85 | CD50: 24.73 | CE50: 23.57 | CF50: 21.49 | CG50: 12.67 | CH50: 5.94 | CI50: 4.23 | CJ50: 4.33 | CK50: 20.04 | CL50: 9.25 | CM50: 7.34 | CN50: 6.8 | CO50: 0 | CP50: 0 | CQ50: 0 | CR50: 0
A51: 2 | B51: 8 | C51: 1 | D51: 1 | E51: G | F51: 020801 | G51: 208011 | H51: DUSZNIKI-ZDRÓJ | I51: 4584 | J51: 4476 | K51: 4369 | L51: 4124 | M51: 87 | N51: 73.61 | O51: 83.29 | P51: 42.9 | Q51: 42.14 | R51: 44.63 | S51: 45.92 | T51: 47.1 | U51: 2.62 | V51: -1.31 | W51: 7.18 | X51: -4.17 | Y51: 15.11 | Z51: 17.56 | AA51: 7.19 | AB51: 8.44 | AC51: 38.73 | AD51: 39.29 | AE51: 41.27 | AF51: 31.51 | AG51: 8.8 | AH51: 9.93 | AI51: 8.67 | AJ51: 52.13 | AK51: 101.38 | AL51: 159.97 | AM51: 379.09 | AN51: 1343.31 | AO51: 1.67 | AP51: 6.08 | AQ51: 19.51 | AR51: 8.06 | AS51: 71.47 | AT51: 114.47 | AU51: 238.81 | AV51: 360.21 | AW51: 59.37 | AX51: 121.3 | AY51: 376.4 | AZ51: 1201.21 | BA51: 168.44 | BB51: 82.44 | BC51: 26.57 | BD51: 8.32 | BE51: 12.53 | BF51: 18.57 | BG51: 14.27 | BH51: 186.05 | BI51: 2085.35 | BJ51: 2345.78 | BK51: 2784.83 | BL51: 4075.12 | BM51: 129.72 | BN51: -68.97 | BO51: 435.67 | BP51: -360.85 | BQ51: 3238.81 | BR51: 2683.2 | BS51: 2532.85 | BT51: 0 | BU51: 872.67 | BV51: 1912.04 | BW51: 2073.08 | BX51: 12656.33 | BY51: 509.08 | BZ51: 1376.13 | CA51: 1640.95 | CB51: 9973.01 | CC51: 56.94 | CD51: 37.58 | CE51: 34.78 | CF51: 0 | CG51: 7.93 | CH51: 8.43 | CI51: 6.52 | CJ51: 13.78 | CK51: 12.02 | CL51: 15.66 | CM51: 10.72 | CN51: 49.08 | CO51: 0 | CP51: 0 | CQ51: 0 | CR51: 0
A52: 2 | B52: 8 | C52: 2 | D52: 1 | E52: G | F52: 020802 | G52: 208021 | H52: KŁODZKO | I52: 26845 | J52: 26574 | K52: 26172 | L52: 25239 | M52: 91.55 | N52: 88.74 | O52: 87.56 | P52: 93.65 | Q52: 48.28 | R52: 52.19 | S52: 50.97 | T52: 48.13 | U52: 9.8 | V52: 5.81 | W52: 7.44 | X52: 4.09 | Y52: 14.5 | Z52: 13.38 | AA52: 14.94 | AB52: 11.55 | AC52: 36.22 | AD52: 36.02 | AE52: 35.96 | AF52: 36.35 | AG52: 10.3 | AH52: 7.13 | AI52: 9.19 | AJ52: 5.43 | AK52: 124.36 | AL52: 127.2 | AM52: 133.17 | AN52: 86.85 | AO52: 6.48 | AP52: 12.9 | AQ52: 19.43 | AR52: 20.09 | AS52: 101.94 | AT52: 132 | AU52: 179.47 | AV52: 199.12 | AW52: 102.66 | AX52: 142.02 | AY52: 195.07 | AZ52: 229.11 | BA52: 97.41 | BB52: 70.41 | BC52: 51.26 | BD52: 43.65 | BE52: 15.92 | BF52: 11.87 | BG52: 15.18 | BH52: 8.56 | BI52: 2004.47 | BJ52: 2306.78 | BK52: 2509.7 | BL52: 2523.6 | BM52: 406.68 | BN52: 256.76 | BO52: 366.55 | BP52: 214.58 | BQ52: 1029.12 | BR52: 1181.96 | BS52: 1343.84 | BT52: 1440.79 | BU52: 889.83 | BV52: 1114.48 | BW52: 1718.5 | BX52: 1703 | BY52: 652.06 | BZ52: 913.11 | CA52: 1561.43 | CB52: 1504.32 | CC52: 22.69 | CD52: 23.73 | CE52: 23.9 | CF52: 25.73 | CG52: 5.67 | CH52: 4.29 | CI52: 3 | CJ52: 4.86 | CK52: 8.7 | CL52: 7.21 | CM52: 4.8 | CN52: 7.17 | CO52: 0 | CP52: 0 | CQ52: 0 | CR52: 0
A53: 2 | B53: 8 | C53: 3 | D53: 1 | E53: G | F53: 020803 | G53: 208031 | H53: KUDOWA-ZDRÓJ | I53: 9892 | J53: 9852 | K53: 9693 | L53: 9449 | M53: 84.74 | N53: 84.82 | O53: 84.58 | P53: 84.43 | Q53: 48.46 | R53: 54.2 | S53: 52.1 | T53: 50.28 | U53: 3.28 | V53: 3.91 | W53: 9.64 | X53: 7.31 | Y53: 16.7 | Z53: 16.18 | AA53: 19.3 | AB53: 16.82 | AC53: 36.19 | AD53: 34.94 | AE53: 36.58 | AF53: 33.78 | AG53: 5.44 | AH53: 6.61 | AI53: 12.52 | AJ53: 13.15 | AK53: 109.79 | AL53: 117.59 | AM53: 128.98 | AN53: 137.32 | AO53: 2.82 | AP53: 5.94 | AQ53: 11.52 | AR53: 12.91 | AS53: 78.38 | AT53: 104.78 | AU53: 128.11 | AV53: 159.56 | AW53: 69.09 | AX53: 106.13 | AY53: 134.91 | AZ53: 175.04 | BA53: 144.74 | BB53: 94.23 | BC53: 74.13 | BD53: 57.13 | BE53: 8.59 | BF53: 11.42 | BG53: 20.74 | BH53: 21.77 | BI53: 2210.94 | BJ53: 2641.52 | BK53: 2780.06 | BL53: 3138.1 | BM53: 149.58 | BN53: 190.64 | BO53: 514.16 | BP53: 456.15 | BQ53: 2132.22 | BR53: 2234.94 | BS53: 2285.62 | BT53: 2129.34 | BU53: 991.12 | BV53: 1215.37 | BW53: 1834.33 | BX53: 2352.57 | BY53: 611.06 | BZ53: 959.18 | CA53: 1555.57 | CB53: 2048.46 | CC53: 39.6 | CD53: 38.9 | CE53: 36.23 | CF53: 28.8 | CG53: 8.15 | CH53: 5.25 | CI53: 4.93 | CJ53: 5.92 | CK53: 12.93 | CL53: 9.14 | CM53: 7.98 | CN53: 9.99 | CO53: 0.06 | CP53: 0 | CQ53: 0.06 | CR53: 0
A54: 2 | B54: 8 | C54: 4 | D54: 1 | E54: G | F54: 020804 | G54: 208041 | H54: NOWA RUDA | I54: 22067 | J54: 21752 | K54: 21386 | L54: 20831 | M54: 90.06 | N54: 88.49 | O54: 83.98 | P54: 89.78 | Q54: 49.53 | R54: 51.69 | S54: 50.96 | T54: 53.75 | U54: 3.38 | V54: 1.35 | W54: 2.41 | X54: -5.35 | Y54: 15.41 | Z54: 15.61 | AA54: 9.97 | AB54: 8.21 | AC54: 27.48 | AD54: 27.45 | AE54: 28.07 | AF54: 25.77 | AG54: 5.81 | AH54: 3.52 | AI54: 5.72 | AJ54: 0.11 | AK54: 81.9 | AL54: 78.72 | AM54: 198.74 | AN54: 64.02 | AO54: 2.38 | AP54: 2.08 | AQ54: 11.85 | AR54: 7.4 | AS54: 79.45 | AT54: 77.21 | AU54: 167.57 | AV54: 146.9 | AW54: 75.15 | AX54: 72.64 | AY54: 188.21 | AZ54: 162.68 | BA54: 133.06 | BB54: 137.67 | BC54: 53.13 | BD54: 61.47 | BE54: 8.49 | BF54: 7.47 | BG54: 9.96 | BH54: 0.25 | BI54: 1947.06 | BJ54: 2130.01 | BK54: 2320.48 | BL54: 2840.7 | BM54: 132.88 | BN54: 55.67 | BO54: 109.62 | BP54: -282.89 | BQ54: 1834.05 | BR54: 2045.13 | BS54: 2131.44 | BT54: 2196.31 | BU54: 664.7 | BV54: 697.07 | BW54: 1076.99 | BX54: 978.46 | BY54: 519.91 | BZ54: 546.1 | CA54: 926.6 | CB54: 810.75 | CC54: 42.02 | CD54: 43.91 | CE54: 39.31 | CF54: 37.31 | CG54: 4.68 | CH54: 4.42 | CI54: 3.51 | CJ54: 4.97 | CK54: 7.29 | CL54: 7.27 | CM54: 5.85 | CN54: 8.57 | CO54: 0 | CP54: 1.7 | CQ54: 2 | CR54: 3.76
A55: 2 | B55: 8 | C55: 5 | D55: 1 | E55: G | F55: 020805 | G55: 208051 | H55: POLANICA-ZDRÓJ | I55: 6324 | J55: 6275 | K55: 6167 | L55: 6064 | M55: 93.93 | N55: 73.4 | O55: 77.5 | P55: 72.27 | Q55: 37.3 | R55: 41.16 | S55: 40.45 | T55: 37.08 | U55: 10.5 | V55: 7.41 | W55: 10.15 | X55: 8.69 | Y55: 12.73 | Z55: 24.71 | AA55: 33.63 | AB55: 31.48 | AC55: 31.1 | AD55: 29.49 | AE55: 29.92 | AF55: 27.4 | AG55: 14.13 | AH55: 12.59 | AI55: 14.67 | AJ55: 13.9 | AK55: 129.9 | AL55: 143.63 | AM55: 86.04 | AN55: 112.19 | AO55: 5.25 | AP55: 10.42 | AQ55: 5.18 | AR55: 7.64 | AS55: 129.9 | AT55: 139.54 | AU55: 113.12 | AV55: 125.45 | AW55: 137.12 | AX55: 145.64 | AY55: 113.31 | AZ55: 125.64 | BA55: 72.93 | BB55: 68.66 | BC55: 88.26 | BD55: 79.59 | BE55: 20.1 | BF55: 23.11 | BG55: 26.89 | BH55: 26.8 | BI55: 1886.16 | BJ55: 2214.42 | BK55: 2413.23 | BL55: 2553.55 | BM55: 531.21 | BN55: 398.94 | BO55: 605.59 | BP55: 598.23 | BQ55: 335.88 | BR55: 127.76 | BS55: 59.29 | BT55: 67.48 | BU55: 1065.03 | BV55: 2633.5 | BW55: 3117.11 | BX55: 3651.24 | BY55: 905.48 | BZ55: 2381.35 | CA55: 3078.14 | CB55: 3629.88 | CC55: 6.24 | CD55: 1.74 | CE55: 0.77 | CF55: 0.71 | CG55: 3.21 | CH55: 3.57 | CI55: 0.55 | CJ55: 0.3 | CK55: 4.58 | CL55: 7.01 | CM55: 0.99 | CN55: 0.57 | CO55: 0 | CP55: 0 | CQ55: 1.09 | CR55: 0
A56: 2 | B56: 8 | C56: 6 | D56: 3 | E56: G | F56: 020806 | G56: 208063 | H56: BYSTRZYCA KŁODZKA | I56: 18925 | J56: 18729 | K56: 18492 | L56: 17582 | M56: 94.23 | N56: 87.1 | O56: 85.66 | P56: 91.56 | Q56: 58.47 | R56: 60.83 | S56: 60 | T56: 61.64 | U56: 8.06 | V56: 10.04 | W56: 11.86 | X56: 5.16 | Y56: 19.3 | Z56: 11.46 | AA56: 16.89 | AB56: 13.48 | AC56: 29.17 | AD56: 26.38 | AE56: 27.98 | AF56: 25.45 | AG56: 8.67 | AH56: 8.99 | AI56: 11.01 | AJ56: 7.4 | AK56: 64.48 | AL56: 213.45 | AM56: 159.68 | AN56: 97.3 | AO56: 2.24 | AP56: 12.89 | AQ56: 10.39 | AR56: 7.45 | AS56: 60.38 | AT56: 160.82 | AU56: 138.85 | AV56: 148.21 | AW56: 52.93 | AX56: 189.76 | AY56: 167.74 | AZ56: 155.18 | BA56: 188.94 | BB56: 52.7 | BC56: 59.62 | BD56: 64.44 | BE56: 12.55 | BF56: 14.76 | BG56: 17.84 | BH56: 12.81 | BI56: 2668.82 | BJ56: 2984.46 | BK56: 3185.98 | BL56: 3940.69 | BM56: 367.87 | BN56: 492.65 | BO56: 629.94 | BP56: 329.68 | BQ56: 1723.03 | BR56: 1682.75 | BS56: 997.13 | BT56: 912.18 | BU56: 720.06 | BV56: 1355.94 | BW56: 2302.6 | BX56: 1602.67 | BY56: 531.33 | BZ56: 1084.06 | CA56: 1595.41 | CB56: 1466.11 | CC56: 35.57 | CD56: 29.87 | CE56: 16.08 | CF56: 13.06 | CG56: 4.5 | CH56: 5.33 | CI56: 11.65 | CJ56: 2.75 | CK56: 6.65 | CL56: 8.94 | CM56: 18.99 | CN56: 4.61 | CO56: 0 | CP56: 0 | CQ56: 0 | CR56: 0
A57: 2 | B57: 8 | C57: 7 | D57: 2 | E57: G | F57: 020807 | G57: 208072 | H57: KŁODZKO | I57: 17142 | J57: 17079 | K57: 16931 | L57: 16587 | M57: 90.01 | N57: 85.07 | O57: 83.29 | P57: 90.54 | Q57: 60.56 | R57: 64.14 | S57: 60.2 | T57: 61.12 | U57: 5.2 | V57: 3.19 | W57: 5.6 | X57: 4.54 | Y57: 15.5 | Z57: 15.61 | AA57: 13.14 | AB57: 22.45 | AC57: 36.44 | AD57: 34.98 | AE57: 36.16 | AF57: 34.71 | AG57: 5.39 | AH57: 4.05 | AI57: 5.78 | AJ57: 4.94 | AK57: 93.67 | AL57: 115.79 | AM57: 179.71 | AN57: 54.24 | AO57: 3.21 | AP57: 10.87 | AQ57: 15.52 | AR57: 3.57 | AS57: 75.65 | AT57: 97.04 | AU57: 200.46 | AV57: 102.97 | AW57: 65.74 | AX57: 95.92 | AY57: 230.47 | AZ57: 103.34 | BA57: 152.12 | BB57: 104.25 | BC57: 43.39 | BD57: 96.77 | BE57: 8.78 | BF57: 7.11 | BG57: 10.22 | BH57: 8.77 | BI57: 2574.74 | BJ57: 3057.82 | BK57: 3213.25 | BL57: 3662.63 | BM57: 220.9 | BN57: 151.97 | BO57: 298.85 | BP57: 272.14 | BQ57: 2179.92 | BR57: 2501.79 | BS57: 2302.59 | BT57: 2305.03 | BU57: 786.9 | BV57: 1141.02 | BW57: 1984.07 | BX57: 1916.46 | BY57: 486.07 | BZ57: 819.24 | CA57: 1756.34 | CB57: 1710.86 | CC57: 46.15 | CD57: 44.64 | CE57: 35.93 | CF57: 34.83 | CG57: 7.48 | CH57: 6.37 | CI57: 4.01 | CJ57: 5.11 | CK57: 12.35 | CL57: 11.87 | CM57: 7.02 | CN57: 8.86 | CO57: 0 | CP57: 0 | CQ57: 0.04 | CR57: 0
A58: 2 | B58: 8 | C58: 8 | D58: 3 | E58: G | F58: 020808 | G58: 208083 | H58: LĄDEK-ZDRÓJ | I58: 8233 | J58: 8171 | K58: 8033 | L58: 7622 | M58: 59.45 | N58: 78.07 | O58: 72.65 | P58: 80.73 | Q58: 53.01 | R58: 56.05 | S58: 56.55 | T58: 55.54 | U58: 3.1 | V58: 2.42 | W58: 0.8 | X58: 6.01 | Y58: 41.34 | Z58: 20.1 | AA58: 16.49 | AB58: 15.22 | AC58: 33.74 | AD58: 32.05 | AE58: 33.31 | AF58: 29.71 | AG58: 9.38 | AH58: 14.22 | AI58: 8.71 | AJ58: 13.36 | AK58: 104.42 | AL58: 124.3 | AM58: 196.23 | AN58: 177.17 | AO58: 3.87 | AP58: 9.11 | AQ58: 26.35 | AR58: 29.39 | AS58: 97.37 | AT58: 116.44 | AU58: 191.69 | AV58: 246.45 | AW58: 97.16 | AX58: 121.05 | AY58: 221.46 | AZ58: 291.16 | BA58: 102.92 | BB58: 82.61 | BC58: 45.15 | BD58: 34.35 | BE58: 22.86 | BF58: 26.85 | BG58: 17.92 | BH58: 25.52 | BI58: 2286.39 | BJ58: 2611.12 | BK58: 2766.21 | BL58: 3565.51 | BM58: 133.52 | BN58: 112.56 | BO58: 38.98 | BP58: 386.08 | BQ58: 2208.99 | BR58: 2208.62 | BS58: 2545.33 | BT58: 2619.6 | BU58: 3095.71 | BV58: 1704.38 | BW58: 2434 | BX58: 3482.93 | BY58: 2861.53 | BZ58: 1384.14 | CA58: 2122.8 | CB58: 3152.44 | CC58: 30.45 | CD58: 37.01 | CE58: 37.8 | CF58: 32.95 | CG58: 4.08 | CH58: 6.05 | CI58: 5.04 | CJ58: 5.89 | CK58: 9.83 | CL58: 11.64 | CM58: 10.03 | CN58: 11.41 | CO58: 0 | CP58: 0 | CQ58: 0 | CR58: 0
A59: 2 | B59: 8 | C59: 9 | D59: 2 | E59: G | F59: 020809 | G59: 208092 | H59: LEWIN KŁODZKI | I59: 1940 | J59: 1930 | K59: 1928 | L59: 1960 | M59: 62.74 | N59: 70.57 | O59: 67.46 | P59: 82.92 | Q59: 58.89 | R59: 60.59 | S59: 63.01 | T59: 49.65 | U59: 6.29 | V59: 7.91 | W59: 14.32 | X59: 20.49 | Y59: 37.4 | Z59: 35.27 | AA59: 28.14 | AB59: 35.65 | AC59: 43.14 | AD59: 40.04 | AE59: 41.92 | AF59: 38.68 | AG59: 9.29 | AH59: 8.29 | AI59: 12.09 | AJ59: 20.01 | AK59: 117.32 | AL59: 98.87 | AM59: 186.49 | AN59: 93.26 | AO59: 6.37 | AP59: 8.94 | AQ59: 24.48 | AR59: 19.18 | AS59: 115.15 | AT59: 107.78 | AU59: 197.49 | AV59: 149.5 | AW59: 118.14 | AX59: 108.46 | AY59: 208.19 | AZ59: 152.51 | BA59: 84.65 | BB59: 92.2 | BC59: 48.03 | BD59: 65.57 | BE59: 20.67 | BF59: 17.52 | BG59: 27.62 | BH59: 32.76 | BI59: 2855.08 | BJ59: 3279.89 | BK59: 3946.74 | BL59: 3856.4 | BM59: 305.11 | BN59: 428.2 | BO59: 897.22 | BP59: 1591.08 | BQ59: 632.79 | BR59: 860.25 | BS59: 619.02 | BT59: 400.52 | BU59: 3741.76 | BV59: 3180.38 | BW59: 4605 | BX59: 5427.36 | BY59: 3206.2 | BZ59: 2946.16 | CA59: 4374.44 | CB59: 5218.97 | CC59: 8.19 | CD59: 11.21 | CE59: 6.67 | CF59: 4.28 | CG59: 7.24 | CH59: 3.4 | CI59: 2.68 | CJ59: 2.55 | CK59: 15.86 | CL59: 7.12 | CM59: 6.11 | CN59: 4.21 | CO59: 1.43 | CP59: 1.34 | CQ59: 0 | CR59: 0
A60: 2 | B60: 8 | C60: 10 | D60: 3 | E60: G | F60: 020810 | G60: 208103 | H60: MIĘDZYLESIE | I60: 7186 | J60: 7155 | K60: 7062 | L60: 6853 | M60: 92.77 | N60: 92.92 | O60: 78.96 | P60: 93.14 | Q60: 67.3 | R60: 69.16 | S60: 67.1 | T60: 53.69 | U60: 6.9 | V60: 4.62 | W60: 7.36 | X60: 23.63 | Y60: 9.59 | Z60: 7.84 | AA60: 16.54 | AB60: 19.97 | AC60: 40.41 | AD60: 37.31 | AE60: 39.44 | AF60: 35.52 | AG60: 6.83 | AH60: 4.79 | AI60: 6.32 | AJ60: 22.21 | AK60: 148.66 | AL60: 150.74 | AM60: 185.25 | AN60: 162.6 | AO60: 2.45 | AP60: 3.5 | AQ60: 15.11 | AR60: 22.97 | AS60: 118.96 | AT60: 134.92 | AU60: 203.43 | AV60: 229.36 | AW60: 126.71 | AX60: 146.44 | AY60: 204.24 | AZ60: 229.36 | BA60: 78.92 | BB60: 68.29 | BC60: 48.96 | BD60: 43.6 | BE60: 10.87 | BF60: 7.84 | BG60: 12.09 | BH60: 33.59 | BI60: 2758.74 | BJ60: 3225.08 | BK60: 3293.16 | BL60: 4083.02 | BM60: 282.9 | BN60: 215.39 | BO60: 361.28 | BP60: 1796.88 | BQ60: 145.61 | BR60: 21.3 | BS60: 0 | BT60: 0 | BU60: 678.92 | BV60: 679.43 | BW60: 1846.98 | BX60: 3325.04 | BY60: 513.25 | BZ60: 554.48 | CA60: 1839.95 | CB60: 3325.04 | CC60: 3.3 | CD60: 0.42 | CE60: 0 | CF60: 0 | CG60: 4.1 | CH60: 2.6 | CI60: 0.12 | CJ60: 0 | CK60: 6.31 | CL60: 4.27 | CM60: 0.21 | CN60: 0 | CO60: 0 | CP60: 0 | CQ60: 0 | CR60: 0
A61: 2 | B61: 8 | C61: 11 | D61: 2 | E61: G | F61: 020811 | G61: 208112 | H61: NOWA RUDA | I61: 11599 | J61: 11478 | K61: 11366 | L61: 10796 | M61: 81.84 | N61: 85.86 | O61: 73.68 | P61: 87.43 | Q61: 60.86 | R61: 62.82 | S61: 61.55 | T61: 61.66 | U61: 8.83 | V61: 7.38 | W61: 9.33 | X61: 5.32 | Y61: 25.84 | Z61: 9.34 | AA61: 16.42 | AB61: 26.06 | AC61: 33.32 | AD61: 32.9 | AE61: 33.75 | AF61: 29.65 | AG61: 8.61 | AH61: 7.71 | AI61: 9.11 | AJ61: 6.82 | AK61: 97.64 | AL61: 250 | AM61: 252.88 | AN61: 59.01 | AO61: 6.33 | AP61: 14.38 | AQ61: 28.68 | AR61: 14.48 | AS61: 102.09 | AT61: 216.33 | AU61: 287.08 | AV61: 145.7 | AW61: 102.33 | AX61: 275.53 | AY61: 321.45 | AZ61: 149.61 | BA61: 97.72 | BB61: 36.29 | BC61: 31.11 | BD61: 66.84 | BE61: 14.31 | BF61: 13.07 | BG61: 16.85 | BH61: 12.39 | BI61: 2656.36 | BJ61: 2959.41 | BK61: 3205.29 | BL61: 4029.92 | BM61: 385.48 | BN61: 347.86 | BO61: 485.77 | BP61: 347.55 | BQ61: 1490.99 | BR61: 1272.76 | BS61: 1112.84 | BT61: 984.7 | BU61: 1574.95 | BV61: 1467.5 | BW61: 3152.81 | BX61: 3450.47 | BY61: 1418.63 | BZ61: 1238.7 | CA61: 2982.39 | CB61: 3263.92 | CC61: 27.96 | CD61: 23.2 | CE61: 15.74 | CF61: 13.17 | CG61: 3.88 | CH61: 4.93 | CI61: 2.73 | CJ61: 3.4 | CK61: 6.5 | CL61: 8.14 | CM61: 5.06 | CN61: 5.82 | CO61: 0.02 | CP61: 0.01 | CQ61: 0 | CR61: 0
A62: 2 | B62: 8 | C62: 12 | D62: 3 | E62: G | F62: 020812 | G62: 208123 | H62: RADKÓW | I62: 9048 | J62: 9018 | K62: 8916 | L62: 8549 | M62: 83.26 | N62: 81.2 | O62: 82.98 | P62: 88.97 | Q62: 50.85 | R62: 54.27 | S62: 52.1 | T62: 50.61 | U62: 6.99 | V62: 5.43 | W62: 6.96 | X62: 7.66 | Y62: 22.54 | Z62: 8.91 | AA62: 17.97 | AB62: 15.82 | AC62: 39.5 | AD62: 38.11 | AE62: 40.98 | AF62: 37.49 | AG62: 8.37 | AH62: 9.03 | AI62: 10.71 | AJ62: 11.7 | AK62: 100.06 | AL62: 308.84 | AM62: 134.73 | AN62: 115.57 | AO62: 2.75 | AP62: 14.36 | AQ62: 16.55 | AR62: 14.82 | AS62: 96.7 | AT62: 225.48 | AU62: 177.84 | AV62: 192.77 | AW62: 96.11 | AX62: 290.91 | AY62: 194.04 | AZ62: 201.81 | BA62: 104.05 | BB62: 34.37 | BC62: 51.54 | BD62: 49.55 | BE62: 14.9 | BF62: 16.43 | BG62: 19.01 | BH62: 19.88 | BI62: 2531.93 | BJ62: 2848 | BK62: 2993.75 | BL62: 3661.44 | BM62: 348.06 | BN62: 285.01 | BO62: 399.84 | BP62: 554.28 | BQ62: 2232.95 | BR62: 1982.87 | BS62: 1843.43 | BT62: 1795.27 | BU62: 1539.06 | BV62: 1665.72 | BW62: 2516.87 | BX62: 2655.67 | BY62: 1295.5 | BZ62: 1412.53 | CA62: 2273.18 | CB62: 2533.38 | CC62: 37.34 | CD62: 30.69 | CE62: 26.62 | CF62: 22.08 | CG62: 5.21 | CH62: 4.81 | CI62: 4 | CJ62: 2.62 | CK62: 8.81 | CL62: 8.66 | CM62: 6.68 | CN62: 4.28 | CO62: 0 | CP62: 0 | CQ62: 0 | CR62: 0.01
A63: 2 | B63: 8 | C63: 13 | D63: 3 | E63: G | F63: 020813 | G63: 208133 | H63: STRONIE ŚLĄSKIE | I63: 7539 | J63: 7446 | K63: 7407 | L63: 6873 | M63: 83.67 | N63: 90.98 | O63: 69.84 | P63: 74.16 | Q63: 51.16 | R63: 55.13 | S63: 55.17 | T63: 50.32 | U63: 8.06 | V63: 0.87 | W63: 4.11 | X63: 9.78 | Y63: 28.35 | Z63: 15.74 | AA63: 34.59 | AB63: 35.63 | AC63: 37.11 | AD63: 35.75 | AE63: 35.06 | AF63: 33.13 | AG63: 12.25 | AH63: 5.7 | AI63: 15.66 | AJ63: 11.45 | AK63: 75.8 | AL63: 58.23 | AM63: 93.27 | AN63: 89.34 | AO63: 6.29 | AP63: 2.33 | AQ63: 12.18 | AR63: 4.16 | AS63: 118.96 | AT63: 80.27 | AU63: 91.39 | AV63: 110.5 | AW63: 120.65 | AX63: 76.16 | AY63: 90.79 | AZ63: 111.23 | BA63: 82.89 | BB63: 131.31 | BC63: 110.14 | BD63: 89.9 | BE63: 23.37 | BF63: 10.14 | BG63: 32.56 | BH63: 22.23 | BI63: 1904.42 | BJ63: 2172.78 | BK63: 2455.42 | BL63: 2900.44 | BM63: 300.14 | BN63: 34.48 | BO63: 182.8 | BP63: 563.51 | BQ63: 461.6 | BR63: 589.83 | BS63: 1414.58 | BT63: 1325.43 | BU63: 1754.17 | BV63: 708.19 | BW63: 2206.49 | BX63: 3400.89 | BY63: 1633.96 | BZ63: 555.86 | CA63: 2049.34 | CB63: 3201.83 | CC63: 10.38 | CD63: 13.62 | CE63: 22.2 | CF63: 17.05 | CG63: 3.05 | CH63: 3.73 | CI63: 2.62 | CJ63: 3.66 | CK63: 5.23 | CL63: 6.25 | CM63: 5.51 | CN63: 7.12 | CO63: 0 | CP63: 0 | CQ63: 0 | CR63: 0
A64: 2 | B64: 8 | C64: 14 | D64: 3 | E64: G | F64: 020814 | G64: 208143 | H64: SZCZYTNA | I64: 7276 | J64: 7256 | K64: 7153 | L64: 6976 | M64: 92.75 | N64: 88.32 | O64: 83.03 | P64: 93.24 | Q64: 60.99 | R64: 63.53 | S64: 60.96 | T64: 59.36 | U64: 9.05 | V64: 7.11 | W64: 9.27 | X64: 2.49 | Y64: 14 | Z64: 9.07 | AA64: 19.4 | AB64: 16.58 | AC64: 34.19 | AD64: 33.66 | AE64: 36.67 | AF64: 32.31 | AG64: 9.63 | AH64: 8.29 | AI64: 9.13 | AJ64: 3.25 | AK64: 113.87 | AL64: 219.52 | AM64: 136.07 | AN64: 50.28 | AO64: 3.04 | AP64: 10.46 | AQ64: 12.96 | AR64: 10.57 | AS64: 108.3 | AT64: 171.38 | AU64: 160.27 | AV64: 107.08 | AW64: 111 | AX64: 205.41 | AY64: 169.75 | AZ64: 108.12 | BA64: 90.09 | BB64: 48.68 | BC64: 58.91 | BD64: 92.49 | BE64: 16.08 | BF64: 14.79 | BG64: 15.92 | BH64: 4.78 | BI64: 2390.5 | BJ64: 2629.17 | BK64: 2809.17 | BL64: 3338.14 | BM64: 354.78 | BN64: 294.05 | BO64: 427.09 | BP64: 140.19 | BQ64: 702.16 | BR64: 607.34 | BS64: 475.66 | BT64: 877.56 | BU64: 832.59 | BV64: 969.96 | BW64: 1866.16 | BX64: 1337.52 | BY64: 644.28 | BZ64: 787.22 | CA64: 1707.98 | CB64: 1178.59 | CC64: 16.62 | CD64: 12.96 | CE64: 8.57 | CF64: 14.55 | CG64: 5 | CH64: 4.18 | CI64: 3.01 | CJ64: 3.11 | CK64: 8 | CL64: 7.3 | CM64: 5.21 | CN64: 5.1 | CO64: 0 | CP64: 0 | CQ64: 0 | CR64: 0
A65: 2 | B65: 9 | C65: 1 | D65: 1 | E65: G | F65: 020901 | G65: 209011 | H65: CHOJNÓW | I65: 13355 | J65: 13288 | K65: 13107 | L65: 12532 | M65: 95.88 | N65: 95.59 | O65: 92.71 | P65: 87.4 | Q65: 52.24 | R65: 56.32 | S65: 53.1 | T65: 50.07 | U65: 8.01 | V65: 4.29 | W65: 10.82 | X65: 6.15 | Y65: 8.13 | Z65: 6.27 | AA65: 7.09 | AB65: 12.39 | AC65: 41.48 | AD65: 37.7 | AE65: 38.69 | AF65: 39.03 | AG65: 11.02 | AH65: 6.36 | AI65: 14.45 | AJ65: 9.79 | AK65: 151.11 | AL65: 139.25 | AM65: 274.38 | AN65: 154.96 | AO65: 19.23 | AP65: 15.4 | AQ65: 21.53 | AR65: 25.51 | AS65: 245.8 | AT65: 264.81 | AU65: 306.62 | AV65: 305.14 | AW65: 278.57 | AX65: 306.63 | AY65: 429.54 | AZ65: 319.89 | BA65: 35.9 | BB65: 32.61 | BC65: 23.28 | BD65: 31.26 | BE65: 16.89 | BF65: 10.47 | BG65: 21.94 | BH65: 14.85 | BI65: 2269.66 | BJ65: 2434.12 | BK65: 2620.06 | BL65: 2609.44 | BM65: 347.87 | BN65: 185.56 | BO65: 533.97 | BP65: 320.61 | BQ65: 387.02 | BR65: 443.72 | BS65: 288.67 | BT65: 234.65 | BU65: 1064.98 | BV65: 918.26 | BW65: 1643.27 | BX65: 2262.94 | BY65: 985.46 | BZ65: 848.08 | CA65: 1443.37 | CB65: 2213.19 | CC65: 8.54 | CD65: 9.81 | CE65: 5.42 | CF65: 3.93 | CG65: 1.96 | CH65: 1.76 | CI65: 3.87 | CJ65: 1.09 | CK65: 2.93 | CL65: 2.77 | CM65: 5.88 | CN65: 1.72 | CO65: 0 | CP65: 0 | CQ65: 0 | CR65: 0
A66: 2 | B66: 9 | C66: 2 | D66: 2 | E66: G | F66: 020902 | G66: 209022 | H66: CHOJNÓW | I66: 9634 | J66: 9555 | K66: 9495 | L66: 9525 | M66: 90.18 | N66: 89.28 | O66: 81.72 | P66: 78.57 | Q66: 56.28 | R66: 54.84 | S66: 52.99 | T66: 53.32 | U66: 3.96 | V66: 8.41 | W66: 8.64 | X66: -5.79 | Y66: 14.01 | Z66: 13.12 | AA66: 16.02 | AB66: 23.81 | AC66: 33.57 | AD66: 34.27 | AE66: 37.64 | AF66: 34.84 | AG66: 9.15 | AH66: 9.97 | AI66: 19.88 | AJ66: 6.87 | AK66: 94.9 | AL66: 147.55 | AM66: 177.92 | AN66: 65.02 | AO66: 1.1 | AP66: 7.71 | AQ66: 14.23 | AR66: 2.44 | AS66: 100.05 | AT66: 122.95 | AU66: 164.19 | AV66: 101.22 | AW66: 100.06 | AX66: 129.01 | AY66: 183.43 | AZ66: 101.42 | BA66: 99.94 | BB66: 77.52 | BC66: 54.52 | BD66: 98.6 | BE66: 18.17 | BF66: 17.18 | BG66: 35.29 | BH66: 14.18 | BI66: 2605.67 | BJ66: 2889.35 | BK66: 3019.55 | BL66: 3367.87 | BM66: 183.39 | BN66: 443.16 | BO66: 492.09 | BP66: -365.63 | BQ66: 1606.65 | BR66: 1670.48 | BS66: 1547.73 | BT66: 1375.21 | BU66: 978.01 | BV66: 1133.07 | BW66: 2118.7 | BX66: 2451.64 | BY66: 725.1 | BZ66: 940.5 | CA66: 1821.15 | CB66: 2117.24 | CC66: 31.29 | CD66: 28.31 | CE66: 22.2 | CF66: 17.11 | CG66: 5.98 | CH66: 3.99 | CI66: 4.73 | CJ66: 4.88 | CK66: 10.08 | CL66: 6.86 | CM66: 8.37 | CN66: 9.81 | CO66: 0.01 | CP66: 0 | CQ66: 0.01 | CR66: 0.02
A67: 2 | B67: 9 | C67: 3 | D67: 2 | E67: G | F67: 020903 | G67: 209032 | H67: KROTOSZYCE | I67: 3326 | J67: 3322 | K67: 3294 | L67: 3338 | M67: 96.26 | N67: 86.38 | O67: 92.69 | P67: 77.77 | Q67: 45.94 | R67: 46.84 | S67: 50.08 | T67: 44.57 | U67: 3.98 | V67: 6.69 | W67: 8.91 | X67: 8.53 | Y67: 11.27 | Z67: 15.89 | AA67: 15.79 | AB67: 32.46 | AC67: 39.38 | AD67: 35.5 | AE67: 37.69 | AF67: 33.78 | AG67: 6.44 | AH67: 6.64 | AI67: 9.11 | AJ67: 8.02 | AK67: 64.53 | AL67: 127.37 | AM67: 98.44 | AN67: 84.43 | AO67: 1.28 | AP67: 8.75 | AQ67: 9 | AR67: 9.35 | AS67: 67.04 | AT67: 118.11 | AU67: 116.16 | AV67: 99.67 | AW67: 59.84 | AX67: 120.57 | AY67: 121.18 | AZ67: 99.66 | BA67: 167.13 | BB67: 82.94 | BC67: 82.52 | BD67: 100.35 | BE67: 9.34 | BF67: 11.31 | BG67: 14.67 | BH67: 14.56 | BI67: 2279.7 | BJ67: 2586.79 | BK67: 3071.36 | BL67: 3256.23 | BM67: 197.55 | BN67: 369.28 | BO67: 546.73 | BP67: 622.96 | BQ67: 878.91 | BR67: 1106.36 | BS67: 1255.11 | BT67: 1939.2 | BU67: 494.25 | BV67: 1305.96 | BW67: 1594.59 | BX67: 3389.19 | BY67: 361.93 | BZ67: 1173.48 | CA67: 1268.92 | CB67: 3200.46 | CC67: 17.05 | CD67: 17.31 | CE67: 18.97 | CF67: 20.64 | CG67: 2.99 | CH67: 2.39 | CI67: 5.32 | CJ67: 2.96 | CK67: 4.34 | CL67: 3.99 | CM67: 8.44 | CN67: 5.32 | CO67: 0 | CP67: 0 | CQ67: 0.01 | CR67: 0
A68: 2 | B68: 9 | C68: 4 | D68: 2 | E68: G | F68: 020904 | G68: 209042 | H68: KUNICE | I68: 6960 | J68: 7098 | K68: 7216 | L68: 7554 | M68: 98.56 | N68: 93.76 | O68: 98.73 | P68: 98.49 | Q68: 42.39 | R68: 45.19 | S68: 44.03 | T68: 40.69 | U68: 10.93 | V68: 4.53 | W68: 10.14 | X68: 5.87 | Y68: 13.83 | Z68: 12.32 | AA68: 8.61 | AB68: 7.07 | AC68: 34.86 | AD68: 32.85 | AE68: 35.4 | AF68: 34.73 | AG68: 10.96 | AH68: 4.87 | AI68: 10.05 | AJ68: 5.84 | AK68: 86.64 | AL68: 83.35 | AM68: 134.93 | AN68: 103.32 | AO68: 11.35 | AP68: 9.51 | AQ68: 13.86 | AR68: 10.05 | AS68: 102.53 | AT68: 130.72 | AU68: 179.33 | AV68: 198.02 | AW68: 103.23 | AX68: 138.9 | AY68: 206.43 | AZ68: 242.5 | BA68: 96.87 | BB68: 72 | BC68: 48.44 | BD68: 41.24 | BE68: 14.73 | BF68: 8.84 | BG68: 14.03 | BH68: 7.57 | BI68: 2355.47 | BJ68: 2585.82 | BK68: 2845.9 | BL68: 2670.65 | BM68: 607.38 | BN68: 259.3 | BO68: 655.66 | BP68: 385.01 | BQ68: 1960.78 | BR68: 2000.14 | BS68: 2104.77 | BT68: 1797.26 | BU68: 1041.93 | BV68: 1270.63 | BW68: 1317.4 | BX68: 1353.37 | BY68: 820.23 | BZ68: 1066.34 | CA68: 1130.31 | CB68: 1140.04 | CC68: 34.78 | CD68: 32.77 | CE68: 32.15 | CF68: 26.97 | CG68: 4.66 | CH68: 3.93 | CI68: 3.28 | CJ68: 5.12 | CK68: 6.47 | CL68: 5.95 | CM68: 4.57 | CN68: 6.86 | CO68: 0 | CP68: 0 | CQ68: 0 | CR68: 0
A69: 2 | B69: 9 | C69: 5 | D69: 2 | E69: G | F69: 020905 | G69: 209052 | H69: LEGNICKIE POLE | I69: 5233 | J69: 5191 | K69: 5227 | L69: 5275 | M69: 87.81 | N69: 87.34 | O69: 91.21 | P69: 88.69 | Q69: 35.38 | R69: 37.18 | S69: 36.52 | T69: 32.89 | U69: 12.86 | V69: 8.46 | W69: 11.37 | X69: 16.9 | Y69: 16.73 | Z69: 24.19 | AA69: 17.32 | AB69: 27.73 | AC69: 31.3 | AD69: 30.19 | AE69: 33.63 | AF69: 32.16 | AG69: 11.3 | AH69: 7.43 | AI69: 10.82 | AJ69: 17.95 | AK69: 152.84 | AL69: 78.57 | AM69: 113.14 | AN69: 92.99 | AO69: 16.84 | AP69: 10.84 | AQ69: 13.15 | AR69: 12.02 | AS69: 182.97 | AT69: 138.46 | AU69: 136.17 | AV69: 116.33 | AW69: 197.04 | AX69: 142.49 | AY69: 141.58 | AZ69: 117.86 | BA69: 50.75 | BB69: 70.18 | BC69: 70.63 | BD69: 84.84 | BE69: 16.85 | BF69: 11.68 | BG69: 15.84 | BH69: 27.09 | BI69: 2154.76 | BJ69: 2417.73 | BK69: 2571.15 | BL69: 2977.06 | BM69: 783.39 | BN69: 550.3 | BO69: 800.66 | BP69: 1529.54 | BQ69: 1019.59 | BR69: 828.92 | BS69: 1099.03 | BT69: 1583.16 | BU69: 2280.51 | BV69: 2905.76 | BW69: 2046.37 | BX69: 3672.42 | BY69: 2099.91 | BZ69: 2706.85 | CA69: 1850.73 | CB69: 3401.65 | CC69: 14.7 | CD69: 11.13 | CE69: 14.24 | CF69: 15.51 | CG69: 2.99 | CH69: 2.92 | CI69: 2.65 | CJ69: 3.22 | CK69: 4.48 | CL69: 4.56 | CM69: 3.89 | CN69: 4.85 | CO69: 0 | CP69: 0 | CQ69: 0 | CR69: 0.42
A70: 2 | B70: 9 | C70: 6 | D70: 2 | E70: G | F70: 020906 | G70: 209062 | H70: MIŁKOWICE | I70: 6721 | J70: 6802 | K70: 6836 | L70: 7128 | M70: 91.93 | N70: 94.38 | O70: 85.16 | P70: 94.89 | Q70: 55.59 | R70: 58.27 | S70: 51.9 | T70: 50.69 | U70: 7.71 | V70: 9.22 | W70: 9.8 | X70: -1.2 | Y70: 12.47 | Z70: 15.11 | AA70: 7.98 | AB70: 14.06 | AC70: 29.95 | AD70: 28.58 | AE70: 28.95 | AF70: 24.42 | AG70: 11.27 | AH70: 8.74 | AI70: 22.78 | AJ70: 3.21 | AK70: 125.42 | AL70: 93.91 | AM70: 347.93 | AN70: 25.31 | AO70: 11.46 | AP70: 17.83 | AQ70: 27.7 | AR70: 9.75 | AS70: 156.54 | AT70: 133.88 | AU70: 379.8 | AV70: 150.29 | AW70: 167.45 | AX70: 141.49 | AY70: 515.6 | AZ70: 162.06 | BA70: 59.72 | BB70: 70.68 | BC70: 19.4 | BD70: 61.71 | BE70: 18.81 | BF70: 14.93 | BG70: 39.9 | BH70: 4.94 | BI70: 2464.4 | BJ70: 2812.53 | BK70: 2782.75 | BL70: 3196.3 | BM70: 341.89 | BN70: 444.85 | BO70: 525.55 | BP70: -75.51 | BQ70: 1609.88 | BR70: 2003.53 | BS70: 1789.94 | BT70: 1472.22 | BU70: 1088.26 | BV70: 1278.54 | BW70: 2366.78 | BX70: 1936.38 | BY70: 975.78 | BZ70: 1103.29 | CA70: 2163.15 | CB70: 1691.99 | CC70: 33.38 | CD70: 39.18 | CE70: 28.43 | CF70: 22.16 | CG70: 3.31 | CH70: 4.3 | CI70: 3.87 | CJ70: 4.97 | CK70: 5.58 | CL70: 7.38 | CM70: 6.72 | CN70: 8.28 | CO70: 0 | CP70: 0 | CQ70: 0 | CR70: 0
A71: 2 | B71: 9 | C71: 7 | D71: 3 | E71: G | F71: 020907 | G71: 209073 | H71: PROCHOWICE | I71: 7450 | J71: 7376 | K71: 7308 | L71: 7231 | M71: 93.69 | N71: 89 | O71: 90.76 | P71: 95.27 | Q71: 50.4 | R71: 51.69 | S71: 51.34 | T71: 48.73 | U71: 6.74 | V71: 1.53 | W71: 7.99 | X71: 6.28 | Y71: 12.87 | Z71: 9.97 | AA71: 17.64 | AB71: 13.04 | AC71: 35.31 | AD71: 35.71 | AE71: 36.46 | AF71: 35.17 | AG71: 7.33 | AH71: 2.24 | AI71: 8.42 | AJ71: 7.36 | AK71: 97.79 | AL71: 127.49 | AM71: 92.21 | AN71: 79.98 | AO71: 4.93 | AP71: 4.86 | AQ71: 7.52 | AR71: 11.28 | AS71: 129.58 | AT71: 117.34 | AU71: 99.26 | AV71: 100.75 | AW71: 138.17 | AX71: 125.81 | AY71: 99.13 | AZ71: 100.98 | BA71: 72.38 | BB71: 79.48 | BC71: 100.88 | BD71: 99.03 | BE71: 12.59 | BF71: 4.1 | BG71: 12.51 | BH71: 12.29 | BI71: 2496.23 | BJ71: 2646.23 | BK71: 2906.46 | BL71: 3131.41 | BM71: 333.74 | BN71: 78.53 | BO71: 452.2 | BP71: 403.27 | BQ71: 1721.17 | BR71: 1601.61 | BS71: 1890.33 | BT71: 2378.22 | BU71: 1140.53 | BV71: 974.41 | BW71: 1310.8 | BX71: 1196.73 | BY71: 942.57 | BZ71: 702 | CA71: 1105.69 | CB71: 912.18 | CC71: 32.56 | CD71: 27.84 | CE71: 30.3 | CF71: 35.26 | CG71: 4.57 | CH71: 5.19 | CI71: 3.59 | CJ71: 5.87 | CK71: 7.12 | CL71: 8.77 | CM71: 5.8 | CN71: 9.11 | CO71: 0 | CP71: 0 | CQ71: 0 | CR71: 0
A72: 2 | B72: 9 | C72: 8 | D72: 2 | E72: G | F72: 020908 | G72: 209082 | H72: RUJA | I72: 2639 | J72: 2578 | K72: 2543 | L72: 2440 | M72: 95.85 | N72: 87.28 | O72: 76.93 | P72: 94.77 | Q72: 64.13 | R72: 64.62 | S72: 61.47 | T72: 51.14 | U72: 3.2 | V72: 7.18 | W72: 10.03 | X72: 15.08 | Y72: 3.03 | Z72: 8.9 | AA72: 9.04 | AB72: 18.75 | AC72: 32.82 | AD72: 29.55 | AE72: 29.63 | AF72: 27.39 | AG72: 4.59 | AH72: 6.34 | AI72: 8.14 | AJ72: 14.35 | AK72: 249.23 | AL72: 239.77 | AM72: 447.37 | AN72: 105.11 | AO72: 2.27 | AP72: 15.43 | AQ72: 34.22 | AR72: 29.85 | AS72: 135.6 | AT72: 195.13 | AU72: 452.68 | AV72: 241.17 | AW72: 178.45 | AX72: 228.78 | AY72: 597.31 | AZ72: 260.68 | BA72: 56.04 | BB72: 43.71 | BC72: 16.74 | BD72: 38.36 | BE72: 7.77 | BF72: 12.13 | BG72: 16.65 | BH72: 22.97 | BI72: 2980.45 | BJ72: 3296.65 | BK72: 3301.66 | BL72: 3836.59 | BM72: 148.68 | BN72: 366.14 | BO72: 538.56 | BP72: 1131.38 | BQ72: 884.96 | BR72: 1048.08 | BS72: 865.39 | BT72: 698.77 | BU72: 419.77 | BV72: 1222.45 | BW72: 3066.9 | BX72: 4036.66 | BY72: 250.69 | BZ72: 1058.75 | CA72: 2869.86 | CB72: 3833.51 | CC72: 18.25 | CD72: 17.93 | CE72: 12.39 | CF72: 8.83 | CG72: 4.16 | CH72: 3.22 | CI72: 3.17 | CJ72: 3 | CK72: 7.05 | CL72: 6.16 | CM72: 6.48 | CN72: 4.81 | CO72: 0 | CP72: 0 | CQ72: 0 | CR72: 0
A73: 2 | B73: 10 | C73: 1 | D73: 1 | E73: G | F73: 021001 | G73: 210011 | H73: LUBAŃ | I73: 21087 | J73: 20879 | K73: 20573 | L73: 19851 | M73: 93.83 | N73: 92.17 | O73: 92.37 | P73: 95.45 | Q73: 45.75 | R73: 48.03 | S73: 46.84 | T73: 46.87 | U73: 4.34 | V73: 5.61 | W73: 8.57 | X73: 3.18 | Y73: 12.77 | Z73: 7.47 | AA73: 6.92 | AB73: 12.39 | AC73: 38.36 | AD73: 36.61 | AE73: 36.88 | AF73: 37.23 | AG73: 6.56 | AH73: 7.09 | AI73: 11.36 | AJ73: 5.01 | AK73: 78.01 | AL73: 185.01 | AM73: 247.45 | AN73: 58.06 | AO73: 2.32 | AP73: 9.04 | AQ73: 16.09 | AR73: 8.92 | AS73: 91.04 | AT73: 147.7 | AU73: 226.61 | AV73: 133.28 | AW73: 88.74 | AX73: 169.63 | AY73: 309.28 | AZ73: 145.52 | BA73: 112.69 | BB73: 58.95 | BC73: 32.33 | BD73: 68.72 | BE73: 9.53 | BF73: 11.19 | BG73: 17.05 | BH73: 7.32 | BI73: 1831.83 | BJ73: 2058.35 | BK73: 2311.18 | BL73: 2452.37 | BM73: 173.95 | BN73: 240.38 | BO73: 422.81 | BP73: 166.54 | BQ73: 1556.42 | BR73: 1615.19 | BS73: 1577.44 | BT73: 1533.77 | BU73: 641.4 | BV73: 704.1 | BW73: 1256.54 | BX73: 1306.56 | BY73: 497.52 | BZ73: 554 | CA73: 1037.51 | CB73: 1042.9 | CC73: 36.47 | CD73: 34.74 | CE73: 29.53 | CF73: 27.98 | CG73: 4.48 | CH73: 4.02 | CI73: 4.57 | CJ73: 6.4 | CK73: 6.61 | CL73: 6.3 | CM73: 6.77 | CN73: 9.35 | CO73: 0 | CP73: 0.04 | CQ73: 0.04 | CR73: 0.03
A74: 2 | B74: 10 | C74: 2 | D74: 1 | E74: G | F74: 021002 | G74: 210021 | H74: ŚWIERADÓW-ZDRÓJ | I74: 4147 | J74: 4054 | K74: 3953 | L74: 4038 | M74: 75.38 | N74: 86.82 | O74: 68.89 | P74: 83.02 | Q74: 41.08 | R74: 45.59 | S74: 42.8 | T74: 39.93 | U74: 8.7 | V74: -0.35 | W74: 0.04 | X74: 7.43 | Y74: 31.96 | Z74: 9.36 | AA74: 22.16 | AB74: 21.63 | AC74: 32.79 | AD74: 34.39 | AE74: 33.17 | AF74: 31.28 | AG74: 14.34 | AH74: 7.17 | AI74: 13.78 | AJ74: 11.45 | AK74: 96.42 | AL74: 142.94 | AM74: 158.78 | AN74: 109.13 | AO74: 1.45 | AP74: 7.74 | AQ74: 13.97 | AR74: 11.01 | AS74: 104.42 | AT74: 93.46 | AU74: 134.41 | AV74: 125.22 | AW74: 105.87 | AX74: 88.15 | AY74: 147.77 | AZ74: 134.08 | BA74: 94.45 | BB74: 113.44 | BC74: 67.67 | BD74: 74.58 | BE74: 21.62 | BF74: 10.59 | BG74: 28.7 | BH74: 19.3 | BI74: 3180.57 | BJ74: 3327.47 | BK74: 3604.73 | BL74: 4347.36 | BM74: 673.29 | BN74: -25.91 | BO74: 3.68 | BP74: 809.51 | BQ74: 5630.58 | BR74: 5744.94 | BS74: 5479.75 | BT74: 4824.17 | BU74: 4613.14 | BV74: 1281.32 | BW74: 4473.36 | BX74: 4708.22 | BY74: 3515.96 | BZ74: 667.11 | CA74: 3542.42 | CB74: 3730.02 | CC74: 54.82 | CD74: 68.34 | CE74: 44.83 | CF74: 36.78 | CG74: 12.62 | CH74: 9.08 | CI74: 8.32 | CJ74: 9.5 | CK74: 23.23 | CL74: 15.23 | CM74: 16.76 | CN74: 16.06 | CO74: 0 | CP74: 0 | CQ74: 0.05 | CR74: 0
A75: 2 | B75: 10 | C75: 3 | D75: 3 | E75: G | F75: 021003 | G75: 210033 | H75: LEŚNA | I75: 10013 | J75: 9937 | K75: 9864 | L75: 9392 | M75: 97.82 | N75: 97.44 | O75: 86.19 | P75: 94.12 | Q75: 66.48 | R75: 66.67 | S75: 65.45 | T75: 63.08 | U75: 4.5 | V75: 2.8 | W75: 3.31 | X75: 5.16 | Y75: 8.21 | Z75: 4.2 | AA75: 11.08 | AB75: 19.61 | AC75: 32.99 | AD75: 33.14 | AE75: 33.9 | AF75: 32.26 | AG75: 5.27 | AH75: 3.51 | AI75: 4.28 | AJ75: 5.31 | AK75: 78.81 | AL75: 127.34 | AM75: 160.38 | AN75: 49.31 | AO75: 7.03 | AP75: 5.7 | AQ75: 8.8 | AR75: 9.19 | AS75: 141.36 | AT75: 195.67 | AU75: 178.13 | AV75: 84.29 | AW75: 151.82 | AX75: 237.07 | AY75: 189.57 | AZ75: 83.3 | BA75: 65.87 | BB75: 42.18 | BC75: 52.75 | BD75: 120.05 | BE75: 8.11 | BF75: 7.24 | BG75: 7.82 | BH75: 8.68 | BI75: 2768.88 | BJ75: 3089.26 | BK75: 3382 | BL75: 3959.17 | BM75: 187.54 | BN75: 129.74 | BO75: 170.98 | BP75: 323.85 | BQ75: 398.27 | BR75: 315.69 | BS75: 226.78 | BT75: 1001.92 | BU75: 629.76 | BV75: 554.12 | BW75: 1271.75 | BX75: 1301.58 | BY75: 539.87 | BZ75: 468.58 | CA75: 1180.5 | CB75: 1209.27 | CC75: 9.35 | CD75: 6.64 | CE75: 3.78 | CF75: 15.03 | CG75: 2.4 | CH75: 1.98 | CI75: 1.6 | CJ75: 1.52 | CK75: 3.7 | CL75: 3.16 | CM75: 2.79 | CN75: 2.52 | CO75: 0.02 | CP75: 0 | CQ75: 0 | CR75: 0
A76: 2 | B76: 10 | C76: 4 | D76: 2 | E76: G | F76: 021004 | G76: 210042 | H76: LUBAŃ | I76: 6601 | J76: 6592 | K76: 6568 | L76: 6519 | M76: 97.09 | N76: 92.71 | O76: 79.02 | P76: 88.6 | Q76: 60.24 | R76: 61.93 | S76: 60.59 | T76: 57.45 | U76: 7.02 | V76: 7.22 | W76: 11.69 | X76: 10.6 | Y76: 12.61 | Z76: 16.35 | AA76: 20.58 | AB76: 16.82 | AC76: 39.55 | AD76: 39.37 | AE76: 41.39 | AF76: 36.98 | AG76: 7.52 | AH76: 6.99 | AI76: 10.1 | AJ76: 10.32 | AK76: 74.7 | AL76: 83.18 | AM76: 167.09 | AN76: 129.86 | AO76: 11.44 | AP76: 13.63 | AQ76: 20.87 | AR76: 22.98 | AS76: 134.23 | AT76: 128.92 | AU76: 204.03 | AV76: 228.45 | AW76: 139.7 | AX76: 132.06 | AY76: 215.41 | AZ76: 243.48 | BA76: 71.58 | BB76: 75.72 | BC76: 46.42 | BD76: 41.07 | BE76: 13.57 | BF76: 12.65 | BG76: 18.32 | BH76: 17.62 | BI76: 2687.45 | BJ76: 3008.02 | BK76: 3205.09 | BL76: 3622.56 | BM76: 313.3 | BN76: 350.82 | BO76: 618.1 | BP76: 668.48 | BQ76: 800.99 | BR76: 1137.89 | BS76: 1009.7 | BT76: 883.96 | BU76: 932.02 | BV76: 1259.1 | BW76: 2739.65 | BX76: 2908.56 | BY76: 836.26 | BZ76: 1163.2 | CA76: 2607.3 | CB76: 2775.21 | CC76: 17.43 | CD76: 21.72 | CE76: 15.08 | CF76: 12.42 | CG76: 2.43 | CH76: 2.19 | CI76: 2.18 | CJ76: 2.65 | CK76: 3.65 | CL76: 3.59 | CM76: 4.07 | CN76: 4.54 | CO76: 0 | CP76: 0 | CQ76: 0 | CR76: 0
A77: 2 | B77: 10 | C77: 5 | D77: 3 | E77: G | F77: 021005 | G77: 210053 | H77: OLSZYNA | I77: 6504 | J77: 6496 | K77: 6431 | L77: 6337 | M77: 91.8 | N77: 85.73 | O77: 95.91 | P77: 98.29 | Q77: 62.12 | R77: 62.77 | S77: 60.91 | T77: 58.1 | U77: 13.08 | V77: 9.79 | W77: 9.48 | X77: 13.7 | Y77: 12.14 | Z77: 15.33 | AA77: 6.91 | AB77: 8.96 | AC77: 36.43 | AD77: 34.95 | AE77: 36.67 | AF77: 34.81 | AG77: 13.82 | AH77: 9.24 | AI77: 12.9 | AJ77: 14.49 | AK77: 183.24 | AL77: 161.91 | AM77: 204.46 | AN77: 181.91 | AO77: 18.66 | AP77: 20.99 | AQ77: 25.46 | AR77: 21.31 | AS77: 224.85 | AT77: 161.86 | AU77: 365.48 | AV77: 237.97 | AW77: 253.63 | AX77: 206.74 | AY77: 494.71 | AZ77: 355.33 | BA77: 39.43 | BB77: 48.37 | BC77: 20.21 | BD77: 28.14 | BE77: 21.78 | BF77: 18.07 | BG77: 20.96 | BH77: 23.34 | BI77: 2657.13 | BJ77: 2850.22 | BK77: 3002.07 | BL77: 3514.45 | BM77: 559.43 | BN77: 444.57 | BO77: 467.21 | BP77: 828.91 | BQ77: 1437.58 | BR77: 1178.63 | BS77: 985.73 | BT77: 524.41 | BU77: 1421.22 | BV77: 2070.95 | BW77: 1800.92 | BX77: 2261.86 | BY77: 1302.82 | BZ77: 1533.01 | CA77: 1639.59 | CB77: 1824.97 | CC77: 30.86 | CD77: 22.25 | CE77: 19.18 | CF77: 8.52 | CG77: 3.16 | CH77: 10.62 | CI77: 3.34 | CJ77: 7.48 | CK77: 5.23 | CL77: 19.54 | CM77: 5.28 | CN77: 12.3 | CO77: 0 | CP77: 0 | CQ77: 0 | CR77: 0.26
A78: 2 | B78: 10 | C78: 6 | D78: 2 | E78: G | F78: 021006 | G78: 210062 | H78: PLATERÓWKA | I78: 1631 | J78: 1621 | K78: 1624 | L78: 1530 | M78: 96.71 | N78: 87.92 | O78: 83.99 | P78: 99.76 | Q78: 51.19 | R78: 51.45 | S78: 52.2 | T78: 40.24 | U78: 1.1 | V78: 3.54 | W78: 3.51 | X78: 22.27 | Y78: 4.98 | Z78: 8.79 | AA78: 5.21 | AB78: 3.66 | AC78: 44.44 | AD78: 42.87 | AE78: 43.11 | AF78: 40.62 | AG78: 1.09 | AH78: 3.18 | AI78: 4.67 | AJ78: 22.46 | AK78: 86.91 | AL78: 185.82 | AM78: 425.65 | AN78: 762.24 | AO78: 0.69 | AP78: 9.93 | AQ78: 22.54 | AR78: 37.79 | AS78: 111.29 | AT78: 180.68 | AU78: 557.36 | AV78: 1231.48 | AW78: 113.82 | AX78: 186.15 | AY78: 606.18 | AZ78: 1382.69 | BA78: 87.85 | BB78: 53.72 | BC78: 16.5 | BD78: 7.23 | BE78: 0.9 | BF78: 6.1 | BG78: 8.09 | BH78: 31.2 | BI78: 2297.42 | BJ78: 2517.92 | BK78: 2839.4 | BL78: 3332.33 | BM78: 49.58 | BN78: 173.17 | BO78: 190.91 | BP78: 1844.32 | BQ78: 30.66 | BR78: 160.39 | BS78: 129.31 | BT78: 104.58 | BU78: 316.83 | BV78: 878.28 | BW78: 1779.44 | BX78: 3413.81 | BY78: 264.71 | BZ78: 847.44 | CA78: 1748.65 | CB78: 3381.13 | CC78: 0.66 | CD78: 2.88 | CE78: 2 | CF78: 1.26 | CG78: 1.17 | CH78: 0.63 | CI78: 0.55 | CJ78: 0.53 | CK78: 1.75 | CL78: 1.07 | CM78: 0.95 | CN78: 0.73 | CO78: 0 | CP78: 0 | CQ78: 0 | CR78: 0
A79: 2 | B79: 10 | C79: 7 | D79: 2 | E79: G | F79: 021007 | G79: 210072 | H79: SIEKIERCZYN | I79: 4510 | J79: 4491 | K79: 4475 | L79: 4450 | M79: 98.14 | N79: 93.71 | O79: 96.43 | P79: 92.36 | Q79: 54.14 | R79: 58.15 | S79: 57.7 | T79: 56.61 | U79: 8.65 | V79: 8.01 | W79: 8.35 | X79: 10.81 | Y79: 5.11 | Z79: 7.74 | AA79: 10.68 | AB79: 16.42 | AC79: 40.64 | AD79: 39.01 | AE79: 40.54 | AF79: 34.6 | AG79: 9.17 | AH79: 8.25 | AI79: 8.64 | AJ79: 11.31 | AK79: 214.36 | AL79: 190.89 | AM79: 109.95 | AN79: 108.88 | AO79: 5.46 | AP79: 10.68 | AQ79: 8.44 | AR79: 8.71 | AS79: 169.87 | AT79: 190.59 | AU79: 162.59 | AV79: 126.87 | AW79: 213.12 | AX79: 222.16 | AY79: 179.85 | AZ79: 131.22 | BA79: 46.92 | BB79: 45.01 | BC79: 55.6 | BD79: 76.21 | BE79: 12.83 | BF79: 12.37 | BG79: 12.16 | BH79: 18.82 | BI79: 2442.46 | BJ79: 2877.09 | BK79: 3057.53 | BL79: 3908.69 | BM79: 390.33 | BN79: 396.13 | BO79: 442.49 | BP79: 746.21 | BQ79: 738.04 | BR79: 719.53 | BS79: 561.97 | BT79: 645.15 | BU79: 610.78 | BV79: 980.64 | BW79: 1204.7 | BX79: 1783.67 | BY79: 473.32 | BZ79: 847.68 | CA79: 1044.57 | CB79: 1587.65 | CC79: 16.05 | CD79: 13.63 | CE79: 10.23 | CF79: 8.63 | CG79: 3.44 | CH79: 2.75 | CI79: 3.08 | CJ79: 3.09 | CK79: 4.92 | CL79: 4.33 | CM79: 4.54 | CN79: 5.11 | CO79: 0 | CP79: 0 | CQ79: 0 | CR79: 0
A80: 2 | B80: 11 | C80: 1 | D80: 1 | E80: G | F80: 021101 | G80: 211011 | H80: LUBIN | I80: 72428 | J80: 72142 | K80: 71278 | L80: 68775 | M80: 97.85 | N80: 92.24 | O80: 92.37 | P80: 91.52 | Q80: 40.06 | R80: 41.17 | S80: 45.08 | T80: 35.36 | U80: 9.46 | V80: 11.22 | W80: 8.07 | X80: 3.86 | Y80: 11.66 | Z80: 7.22 | AA80: 11.48 | AB80: 24.73 | AC80: 35.69 | AD80: 33.57 | AE80: 32.79 | AF80: 32.32 | AG80: 10.03 | AH80: 11.18 | AI80: 12.43 | AJ80: 5.52 | AK80: 97.51 | AL80: 284.06 | AM80: 136.97 | AN80: 41.56 | AO80: 13.56 | AP80: 29.8 | AQ80: 28.35 | AR80: 9.02 | AS80: 148.93 | AT80: 338.56 | AU80: 335.62 | AV80: 129.1 | AW80: 161.03 | AX80: 430.64 | AY80: 385.65 | AZ80: 131.19 | BA80: 62.1 | BB80: 23.22 | BC80: 25.93 | BD80: 76.22 | BE80: 13.64 | BF80: 16.67 | BG80: 18.52 | BH80: 7.67 | BI80: 2022.08 | BJ80: 2245.53 | BK80: 2498.71 | BL80: 2037.19 | BM80: 477.23 | BN80: 611.86 | BO80: 447.39 | BP80: 222.62 | BQ80: 1960.57 | BR80: 2376.13 | BS80: 2261.59 | BT80: 2209.51 | BU80: 1120.57 | BV80: 1769.24 | BW80: 2688.73 | BX80: 2518.22 | BY80: 971.46 | BZ80: 1623.69 | CA80: 2548.43 | CB80: 2387.36 | CC80: 38.01 | CD80: 40.18 | CE80: 37.69 | CF80: 35.1 | CG80: 3.77 | CH80: 3.03 | CI80: 2.89 | CJ80: 4.4 | CK80: 5.18 | CL80: 4.52 | CM80: 4.29 | CN80: 6.02 | CO80: 0 | CP80: 0 | CQ80: 0.01 | CR80: 0
A81: 2 | B81: 11 | C81: 2 | D81: 2 | E81: G | F81: 021102 | G81: 211022 | H81: LUBIN | I81: 16052 | J81: 16328 | K81: 16704 | L81: 17883 | M81: 94.26 | N81: 91.02 | O81: 95.13 | P81: 95.47 | Q81: 30.07 | R81: 33.36 | S81: 33.98 | T81: 30.96 | U81: 10.69 | V81: 8.12 | W81: 12.88 | X81: 8.62 | Y81: 17.04 | Z81: 8.99 | AA81: 15.47 | AB81: 14.52 | AC81: 26.71 | AD81: 24.86 | AE81: 25.27 | AF81: 26.3 | AG81: 10.84 | AH81: 8.33 | AI81: 13.99 | AJ81: 10.83 | AK81: 91.42 | AL81: 198.08 | AM81: 112.92 | AN81: 86.15 | AO81: 6.72 | AP81: 15.94 | AQ81: 14.59 | AR81: 10.3 | AS81: 136.66 | AT81: 230.5 | AU81: 182.16 | AV81: 158.93 | AW81: 139.25 | AX81: 254.39 | AY81: 196.19 | AZ81: 169.53 | BA81: 71.81 | BB81: 39.31 | BC81: 50.97 | BD81: 58.99 | BE81: 14.91 | BF81: 12.49 | BG81: 19.24 | BH81: 14.29 | BI81: 1976.17 | BJ81: 2274.34 | BK81: 2471.56 | BL81: 2052.89 | BM81: 702.28 | BN81: 553.49 | BO81: 937.04 | BP81: 571.61 | BQ81: 2193.74 | BR81: 2282.17 | BS81: 2032.69 | BT81: 1715.9 | BU81: 1764.38 | BV81: 1688.05 | BW81: 2473.6 | BX81: 1929.7 | BY81: 1678.99 | BZ81: 1574.71 | CA81: 2275.5 | CB81: 1744.65 | CC81: 31.47 | CD81: 30.47 | CE81: 26.59 | CF81: 24.7 | CG81: 2.1 | CH81: 2.13 | CI81: 2.94 | CJ81: 4.15 | CK81: 2.84 | CL81: 3.12 | CM81: 4.03 | CN81: 5.64 | CO81: 0 | CP81: 0 | CQ81: 0 | CR81: 0.13
A82: 2 | B82: 11 | C82: 3 | D82: 2 | E82: G | F82: 021103 | G82: 211032 | H82: RUDNA | I82: 7793 | J82: 7794 | K82: 7789 | L82: 7430 | M82: 96.74 | N82: 93.4 | O82: 93.11 | P82: 97.23 | Q82: 30.47 | R82: 33.34 | S82: 31.24 | T82: 20.95 | U82: 11.29 | V82: 10.45 | W82: 15.81 | X82: 28.27 | Y82: 15.42 | Z82: 8.87 | AA82: 10.78 | AB82: 13.55 | AC82: 33.25 | AD82: 33.34 | AE82: 32.84 | AF82: 30.54 | AG82: 12.09 | AH82: 10.45 | AI82: 15.68 | AJ82: 28.4 | AK82: 90.68 | AL82: 200.89 | AM82: 228.27 | AN82: 276.89 | AO82: 33.59 | AP82: 38.98 | AQ82: 45.43 | AR82: 54.38 | AS82: 314.72 | AT82: 578.6 | AU82: 579.85 | AV82: 597.65 | AW82: 314.72 | AX82: 578.6 | AY82: 579.85 | AZ82: 597.65 | BA82: 31.77 | BB82: 17.28 | BC82: 17.25 | BD82: 16.73 | BE82: 15.1 | BF82: 14.37 | BG82: 21.1 | BH82: 34.03 | BI82: 2472.96 | BJ82: 2854.1 | BK82: 3125.29 | BL82: 2975.07 | BM82: 916.53 | BN82: 894.22 | BO82: 1581.45 | BP82: 4014.53 | BQ82: 0.33 | BR82: 0 | BS82: 0 | BT82: 0 | BU82: 4130.53 | BV82: 4318.77 | BW82: 5898.21 | BX82: 9538.73 | BY82: 4130.53 | BZ82: 4318.77 | CA82: 5898.21 | CB82: 9538.73 | CC82: 0 | CD82: 0 | CE82: 0 | CF82: 0 | CG82: 0 | CH82: 0 | CI82: 0 | CJ82: 0 | CK82: 0 | CL82: 0 | CM82: 0 | CN82: 0 | CO82: 100 | CP82: 0 | CQ82: 0 | CR82: 0
A83: 2 | B83: 11 | C83: 4 | D83: 3 | E83: G | F83: 021104 | G83: 211043 | H83: ŚCINAWA | I83: 9938 | J83: 9842 | K83: 9866 | L83: 9490 | M83: 84.17 | N83: 77.61 | O83: 54 | P83: 54.68 | Q83: 54.14 | R83: 55.97 | S83: 49.19 | T83: 49.32 | U83: 7.66 | V83: 3.81 | W83: 17.84 | X83: 7.34 | Y83: 23.82 | Z83: 30.71 | AA83: 60.61 | AB83: 49.21 | AC83: 34 | AD83: 31.63 | AE83: 31.84 | AF83: 29.58 | AG83: 7.14 | AH83: 3.16 | AI83: 13.27 | AJ83: 4.5 | AK83: 91.66 | AL83: 76.61 | AM83: 81.5 | AN83: 100.48 | AO83: 7.16 | AP83: 10.5 | AQ83: 16.3 | AR83: 13.61 | AS83: 80.77 | AT83: 83.57 | AU83: 86.92 | AV83: 100.72 | AW83: 76.93 | AX83: 81.05 | AY83: 86.42 | AZ83: 100.95 | BA83: 129.98 | BB83: 123.37 | BC83: 115.71 | BD83: 99.06 | BE83: 12.54 | BF83: 6.19 | BG83: 34.25 | BH83: 12.42 | BI83: 2461.39 | BJ83: 2638.78 | BK83: 2854.76 | BL83: 3177.61 | BM83: 348.13 | BN83: 179.7 | BO83: 1035.22 | BP83: 472.79 | BQ83: 3548.11 | BR83: 4223.82 | BS83: 6613.84 | BT83: 6442.54 | BU83: 1271.53 | BV83: 1937.09 | BW83: 6622.32 | BX83: 7641.75 | BY83: 1009.93 | BZ83: 1629.55 | CA83: 6340.96 | CB83: 5840.56 | CC83: 65.68 | CD83: 69.52 | CE83: 61.54 | CF83: 54.67 | CG83: 7.48 | CH83: 7.22 | CI83: 3.75 | CJ83: 17.83 | CK83: 13.12 | CL83: 14.12 | CM83: 9.76 | CN83: 47.62 | CO83: 0 | CP83: 0 | CQ83: 0.05 | CR83: 0.01
A84: 2 | B84: 12 | C84: 1 | D84: 3 | E84: G | F84: 021201 | G84: 212013 | H84: GRYFÓW ŚLĄSKI | I84: 9697 | J84: 9623 | K84: 9511 | L84: 9251 | M84: 78.67 | N84: 93.01 | O84: 92.53 | P84: 96.5 | Q84: 57.18 | R84: 62.08 | S84: 61.67 | T84: 55.87 | U84: 11.4 | V84: 10.35 | W84: 13.53 | X84: 13.17 | Y84: 28.76 | Z84: 12.66 | AA84: 11.85 | AB84: 14.28 | AC84: 36.72 | AD84: 35.73 | AE84: 33.64 | AF84: 32.46 | AG84: 9.59 | AH84: 10.83 | AI84: 14.1 | AJ84: 14.32 | AK84: 107.69 | AL84: 137.45 | AM84: 185.86 | AN84: 116.11 | AO84: 12.57 | AP84: 17.52 | AQ84: 20.25 | AR84: 20.77 | AS84: 120.69 | AT84: 139.05 | AU84: 233.48 | AV84: 176.68 | AW84: 129.04 | AX84: 170.19 | AY84: 288.29 | AZ84: 207.74 | BA84: 77.49 | BB84: 58.76 | BC84: 34.69 | BD84: 48.14 | BE84: 18.29 | BF84: 17.31 | BG84: 22.68 | BH84: 23.64 | BI84: 2107.9 | BJ84: 2522.04 | BK84: 2863.21 | BL84: 3053.71 | BM84: 420.25 | BN84: 420.36 | BO84: 628.28 | BP84: 720.05 | BQ84: 1118.54 | BR84: 1098.85 | BS84: 892.33 | BT84: 899.27 | BU84: 2233.7 | BV84: 1319.22 | BW84: 1777.48 | BX84: 1962.89 | BY84: 1701.18 | BZ84: 898.36 | CA84: 1555.87 | CB84: 1642.64 | CC84: 23.87 | CD84: 25.16 | CE84: 17.78 | CF84: 15.88 | CG84: 12.05 | CH84: 10.15 | CI84: 4.7 | CJ84: 6.44 | CK84: 22.67 | CL84: 17.32 | CM84: 7.85 | CN84: 10.33 | CO84: 0.74 | CP84: 0.54 | CQ84: 0.92 | CR84: 1.91
A85: 2 | B85: 12 | C85: 2 | D85: 3 | E85: G | F85: 021202 | G85: 212023 | H85: LUBOMIERZ | I85: 6192 | J85: 6195 | K85: 6138 | L85: 5646 | M85: 84.18 | N85: 90.99 | O85: 76.03 | P85: 91.82 | Q85: 76.44 | R85: 77.17 | S85: 76.36 | T85: 71.32 | U85: 9.19 | V85: 4.56 | W85: 5 | X85: 4.22 | Y85: 32.17 | Z85: 1.76 | AA85: 13.03 | AB85: 18.3 | AC85: 40.99 | AD85: 39.45 | AE85: 40.41 | AF85: 38.17 | AG85: 8.33 | AH85: 5.83 | AI85: 4.69 | AJ85: 5.99 | AK85: 64.95 | AL85: 848.17 | AM85: 256.71 | AN85: 61.19 | AO85: 1.74 | AP85: 4.4 | AQ85: 19.2 | AR85: 9.7 | AS85: 64.97 | AT85: 135.51 | AU85: 247.82 | AV85: 143.31 | AW85: 63.9 | AX85: 383.39 | AY85: 271.71 | AZ85: 148.65 | BA85: 156.49 | BB85: 26.08 | BC85: 36.8 | BD85: 67.27 | BE85: 13.54 | BF85: 9.58 | BG85: 10.17 | BH85: 9.44 | BI85: 3759.23 | BJ85: 3976.84 | BK85: 4328.39 | BL85: 5181.7 | BM85: 451.91 | BN85: 235.01 | BO85: 283.17 | BP85: 306.37 | BQ85: 2099.48 | BR85: 1485.07 | BS85: 1415 | BT85: 1356 | BU85: 1418.29 | BV85: 950.33 | BW85: 2321.74 | BX85: 2509.98 | BY85: 1353.69 | BZ85: 336.93 | CA85: 2191.4 | CB85: 2317.41 | CC85: 35.94 | CD85: 26.22 | CE85: 18.98 | CF85: 17.14 | CG85: 2.02 | CH85: 11.81 | CI85: 2.09 | CJ85: 3.66 | CK85: 3.48 | CL85: 19.69 | CM85: 4.04 | CN85: 6.07 | CO85: 0 | CP85: 0 | CQ85: 0 | CR85: 0
A86: 2 | B86: 12 | C86: 3 | D86: 3 | E86: G | F86: 021203 | G86: 212033 | H86: LWÓWEK ŚLĄSKI | I86: 17239 | J86: 17219 | K86: 17079 | L86: 16267 | M86: 93.9 | N86: 96.75 | O86: 96.94 | P86: 92.05 | Q86: 54.59 | R86: 57.03 | S86: 55.06 | T86: 55.27 | U86: 6.7 | V86: 7.82 | W86: 14.18 | X86: 8.1 | Y86: 13.22 | Z86: 7.97 | AA86: 8.21 | AB86: 13.81 | AC86: 35.77 | AD86: 34.33 | AE86: 34.78 | AF86: 32.56 | AG86: 7.53 | AH86: 9.13 | AI86: 16.01 | AJ86: 9.44 | AK86: 92.85 | AL86: 140.04 | AM86: 225.84 | AN86: 113.64 | AO86: 4.65 | AP86: 3.39 | AQ86: 8.73 | AR86: 6.42 | AS86: 82.69 | AT86: 129.3 | AU86: 178.27 | AV86: 138.63 | AW86: 78.49 | AX86: 144.94 | AY86: 217.2 | AZ86: 147.47 | BA86: 127.41 | BB86: 69 | BC86: 46.04 | BD86: 67.81 | BE86: 12.01 | BF86: 15.23 | BG86: 24.2 | BH86: 15.24 | BI86: 2176.99 | BJ86: 2483.65 | BK86: 2686.11 | BL86: 3049.47 | BM86: 267.29 | BN86: 340.46 | BO86: 691.89 | BP86: 446.75 | BQ86: 1095.6 | BR86: 911.23 | BS86: 732.55 | BT86: 582.78 | BU86: 582.57 | BV86: 689.41 | BW86: 1000.1 | BX86: 1384.64 | BY86: 444.95 | BZ86: 503.83 | CA86: 813.76 | CB86: 1198.49 | CC86: 25.8 | CD86: 20.24 | CE86: 14.56 | CF86: 9.72 | CG86: 3.79 | CH86: 4.62 | CI86: 3.98 | CJ86: 3.68 | CK86: 5.89 | CL86: 7.32 | CM86: 5.95 | CN86: 6.14 | CO86: 0.01 | CP86: 0 | CQ86: 0.03 | CR86: 0
A87: 2 | B87: 12 | C87: 4 | D87: 3 | E87: G | F87: 021204 | G87: 212043 | H87: MIRSK | I87: 8622 | J87: 8496 | K87: 8436 | L87: 8157 | M87: 85.24 | N87: 88.41 | O87: 81.51 | P87: 94.18 | Q87: 70.23 | R87: 69.68 | S87: 68.01 | T87: 65.21 | U87: 5.57 | V87: 10.67 | W87: 8.07 | X87: 12.41 | Y87: 15.32 | Z87: 17.7 | AA87: 7.59 | AB87: 18.6 | AC87: 34.43 | AD87: 33.85 | AE87: 31.8 | AF87: 28.4 | AG87: 5.35 | AH87: 10.15 | AI87: 8.17 | AJ87: 12.93 | AK87: 133.95 | AL87: 123.76 | AM87: 407.58 | AN87: 92.94 | AO87: 6.82 | AP87: 12.96 | AQ87: 26.83 | AR87: 21.57 | AS87: 101.21 | AT87: 115.55 | AU87: 381.68 | AV87: 197.73 | AW87: 102.38 | AX87: 121.93 | AY87: 536.13 | AZ87: 214.43 | BA87: 97.68 | BB87: 82.01 | BC87: 18.65 | BD87: 46.63 | BE87: 9.55 | BF87: 18.34 | BG87: 15.12 | BH87: 22.08 | BI87: 3002.95 | BJ87: 3256.23 | BK87: 3389.35 | BL87: 3988.33 | BM87: 238.19 | BN87: 498.45 | BO87: 402.11 | BP87: 759.29 | BQ87: 1862.12 | BR87: 1983.05 | BS87: 1720.09 | BT87: 1536.69 | BU87: 1447.48 | BV87: 1463.03 | BW87: 2222.62 | BX87: 2833.94 | BY87: 747.7 | BZ87: 1094.48 | CA87: 2016.39 | CB87: 2624.69 | CC87: 37.13 | CD87: 37.52 | CE87: 28.13 | CF87: 23.66 | CG87: 14.96 | CH87: 7.6 | CI87: 3.86 | CJ87: 4.39 | CK87: 27.17 | CL87: 13.38 | CM87: 7.05 | CN87: 7.6 | CO87: 1.47 | CP87: 1.82 | CQ87: 0 | CR87: 0.18
A88: 2 | B88: 12 | C88: 5 | D88: 3 | E88: G | F88: 021205 | G88: 212053 | H88: WLEŃ | I88: 4225 | J88: 4237 | K88: 4195 | L88: 3937 | M88: 82.69 | N88: 68.68 | O88: 76.11 | P88: 98.3 | Q88: 65.56 | R88: 66.98 | S88: 67.16 | T88: 61.37 | U88: 2.96 | V88: 5.16 | W88: 9.49 | X88: 9.36 | Y88: 34.62 | Z88: 26.25 | AA88: 11.25 | AB88: 24.36 | AC88: 38.05 | AD88: 38.35 | AE88: 37.16 | AF88: 33.27 | AG88: 3.05 | AH88: 4.19 | AI88: 9.42 | AJ88: 10.45 | AK88: 46.51 | AL88: 150.43 | AM88: 356.21 | AN88: 38.01 | AO88: 1.49 | AP88: 6.26 | AQ88: 25.2 | AR88: 5.7 | AS88: 46 | AT88: 82.4 | AU88: 237.11 | AV88: 114.93 | AW88: 40.18 | AX88: 66.82 | AY88: 346.8 | AZ88: 116.88 | BA88: 248.89 | BB88: 149.66 | BC88: 28.84 | BD88: 85.56 | BE88: 4.85 | BF88: 9 | BG88: 20.24 | BH88: 16.42 | BI88: 2802.65 | BJ88: 3112.12 | BK88: 3543.92 | BL88: 4258.47 | BM88: 126.54 | BN88: 239.71 | BO88: 500.62 | BP88: 649.81 | BQ88: 3205.5 | BR88: 2719.36 | BS88: 2481.02 | BT88: 2743.63 | BU88: 1119.23 | BV88: 2435.59 | BW88: 2584.51 | BX88: 2631.71 | BY88: 882.54 | BZ88: 1047.79 | CA88: 2100.03 | CB88: 2367.55 | CC88: 62 | CD88: 40.2 | CE88: 35.78 | CF88: 38.87 | CG88: 5.94 | CH88: 21.56 | CI88: 7.66 | CJ88: 5.15 | CK88: 11.17 | CL88: 49.04 | CM88: 15.68 | CN88: 8.31 | CO88: 0 | CP88: 0.01 | CQ88: 0 | CR88: 0
A89: 2 | B89: 13 | C89: 1 | D89: 2 | E89: G | F89: 021301 | G89: 213012 | H89: CIESZKÓW | I89: 4680 | J89: 4660 | K89: 4637 | L89: 4566 | M89: 94.59 | N89: 93.17 | O89: 95.65 | P89: 93.76 | Q89: 70.28 | R89: 70.18 | S89: 68.28 | T89: 63.49 | U89: 7.78 | V89: 8.14 | W89: 9.75 | X89: 11.75 | Y89: 6.72 | Z89: 10.26 | AA89: 13.29 | AB89: 11.31 | AC89: 36.63 | AD89: 36.05 | AE89: 39.5 | AF89: 35.18 | AG89: 9.31 | AH89: 7.94 | AI89: 9.34 | AJ89: 12.21 | AK89: 203.1 | AL89: 147.4 | AM89: 103.35 | AN89: 163.51 | AO89: 7.23 | AP89: 9.75 | AQ89: 11.43 | AR89: 14.05 | AS89: 182.3 | AT89: 171.59 | AU89: 150.57 | AV89: 211.42 | AW89: 214.98 | AX89: 189.74 | AY89: 158.36 | AZ89: 233.15 | BA89: 46.52 | BB89: 52.7 | BC89: 63.15 | BD89: 42.89 | BE89: 15.98 | BF89: 14.2 | BG89: 15.39 | BH89: 21.07 | BI89: 3356.88 | BJ89: 3620.56 | BK89: 3802.23 | BL89: 4273.77 | BM89: 371.37 | BN89: 420.14 | BO89: 542.65 | BP89: 790.81 | BQ89: 1119.66 | BR89: 1040.77 | BS89: 1142.98 | BT89: 1012.92 | BU89: 808.57 | BV89: 1165.02 | BW89: 1338.5 | BX89: 1914.43 | BY89: 682.5 | BZ89: 1027.68 | CA89: 1219.89 | CB89: 1766.6 | CC89: 22.17 | CD89: 18.8 | CE89: 19.63 | CF89: 14.11 | CG89: 3.43 | CH89: 3.15 | CI89: 2.41 | CJ89: 2.93 | CK89: 5.89 | CL89: 5.62 | CM89: 3.96 | CN89: 5.1 | CO89: 0 | CP89: 0 | CQ89: 0 | CR89: 0
A90: 2 | B90: 13 | C90: 2 | D90: 2 | E90: G | F90: 021302 | G90: 213022 | H90: KROŚNICE | I90: 8151 | J90: 8106 | K90: 8058 | L90: 7980 | M90: 95.8 | N90: 95.36 | O90: 93.24 | P90: 97.43 | Q90: 48.08 | R90: 50.6 | S90: 47.9 | T90: 45.51 | U90: 10.25 | V90: 8.32 | W90: 10.9 | X90: 10.45 | Y90: 19.65 | Z90: 8.38 | AA90: 13.95 | AB90: 10.73 | AC90: 38.23 | AD90: 37.08 | AE90: 36.5 | AF90: 34.16 | AG90: 10.12 | AH90: 9.43 | AI90: 12.77 | AJ90: 11.6 | AK90: 66.67 | AL90: 157.21 | AM90: 125.67 | AN90: 121.55 | AO90: 0.17 | AP90: 1.35 | AQ90: 5.25 | AR90: 6.55 | AS90: 52.96 | AT90: 88.06 | AU90: 96.95 | AV90: 106.44 | AW90: 40.15 | AX90: 78.4 | AY90: 95.33 | AZ90: 111.74 | BA90: 249.05 | BB90: 127.55 | BC90: 104.89 | BD90: 89.49 | BE90: 14.82 | BF90: 14.14 | BG90: 19.61 | BH90: 17.05 | BI90: 2644.4 | BJ90: 2904.74 | BK90: 2994.39 | BL90: 3488.82 | BM90: 563.72 | BN90: 477.56 | BO90: 681.67 | BP90: 800.72 | BQ90: 3475.49 | BR90: 3413.67 | BS90: 3585.26 | BT90: 3443.05 | BU90: 813.37 | BV90: 766.99 | BW90: 1339.59 | BX90: 1600.43 | BY90: 484.66 | BZ90: 377.46 | CA90: 860.67 | CB90: 921.93 | CC90: 60.53 | CD90: 56.71 | CE90: 53.48 | CF90: 43.76 | CG90: 7.72 | CH90: 8.04 | CI90: 8.13 | CJ90: 10.8 | CK90: 11.32 | CL90: 12.4 | CM90: 12.22 | CN90: 15.96 | CO90: 0 | CP90: 0 | CQ90: 0 | CR90: 0
A91: 2 | B91: 13 | C91: 3 | D91: 3 | E91: G | F91: 021303 | G91: 213033 | H91: MILICZ | I91: 24172 | J91: 24147 | K91: 24007 | L91: 23356 | M91: 90.51 | N91: 88.34 | O91: 92.45 | P91: 93.42 | Q91: 59.78 | R91: 59.97 | S91: 59.01 | T91: 58.33 | U91: 1.04 | V91: 8.42 | W91: 11.12 | X91: 6.81 | Y91: 11.84 | Z91: 12.38 | AA91: 11.07 | AB91: 14.6 | AC91: 31.52 | AD91: 32.04 | AE91: 31.01 | AF91: 29.73 | AG91: 2.97 | AH91: 12.19 | AI91: 12.59 | AJ91: 7.46 | AK91: 86.74 | AL91: 167.02 | AM91: 174.34 | AN91: 86.94 | AO91: 0.38 | AP91: 5.83 | AQ91: 10.81 | AR91: 5.89 | AS91: 41.15 | AT91: 142.82 | AU91: 186.8 | AV91: 134.27 | AW91: -28.26 | AX91: 150.95 | AY91: 205.68 | AZ91: 139.55 | BA91: -353.85 | BB91: 66.25 | BC91: 48.62 | BD91: 71.66 | BE91: 5.11 | BF91: 21.37 | BG91: 20.68 | BH91: 12.07 | BI91: 2765.64 | BJ91: 3070.54 | BK91: 3409.67 | BL91: 3703.7 | BM91: 48.14 | BN91: 431 | BO91: 642.35 | BP91: 432.3 | BQ91: 2085.06 | BR91: 2019.92 | BS91: 1830.92 | BT91: 1724.71 | BU91: 551.39 | BV91: 1126.45 | BW91: 1454.01 | BX91: 1568.03 | BY91: -173.75 | BZ91: 1000.56 | CA91: 1314.89 | CB91: 1412.18 | CC91: 40.79 | CD91: 34.85 | CE91: 29.29 | CF91: 25.38 | CG91: 16.13 | CH91: 3.38 | CI91: 2.92 | CJ91: 4.02 | CK91: 27.39 | CL91: 5.96 | CM91: 4.71 | CN91: 6.61 | CO91: 0 | CP91: 0 | CQ91: 0 | CR91: 0
A92: 2 | B92: 14 | C92: 1 | D92: 1 | E92: G | F92: 021401 | G92: 214011 | H92: OLEŚNICA | I92: 37169 | J92: 37109 | K92: 36757 | L92: 35503 | M92: 79.61 | N92: 91.7 | O92: 91.54 | P92: 89.42 | Q92: 45.76 | R92: 49.09 | S92: 49.62 | T92: 45.02 | U92: 7.86 | V92: 2.45 | W92: 5.06 | X92: 0.67 | Y92: 15.16 | Z92: 15.26 | AA92: 14.43 | AB92: 14.99 | AC92: 32.26 | AD92: 31.63 | AE92: 32.95 | AF92: 35.12 | AG92: 23.13 | AH92: 2.94 | AI92: 9.36 | AJ92: 6.43 | AK92: 203.28 | AL92: 65.48 | AM92: 89.31 | AN92: 71.34 | AO92: 18.58 | AP92: 13.38 | AQ92: 17.15 | AR92: 10.61 | AS92: 224 | AT92: 173.38 | AU92: 156.52 | AV92: 177.87 | AW92: 241.76 | AX92: 183.09 | AY92: 162.07 | AZ92: 187.2 | BA92: 41.36 | BB92: 54.62 | BC92: 61.7 | BD92: 53.42 | BE92: 40.7 | BF92: 5.2 | BG92: 15.27 | BH92: 9.46 | BI92: 2120.47 | BJ92: 2314.54 | BK92: 2607.82 | BL92: 2418.18 | BM92: 364.25 | BN92: 115.29 | BO92: 266 | BP92: 35.75 | BQ92: 301.03 | BR92: 192.29 | BS92: 571.33 | BT92: 479.14 | BU92: 1954.09 | BV92: 1625.72 | BW92: 1446.11 | BX92: 1873.67 | BY92: 1844.78 | BZ92: 1516.23 | CA92: 1363.63 | CB92: 1761 | CC92: 5.17 | CD92: 3.74 | CE92: 9.95 | CF92: 7.98 | CG92: 2.04 | CH92: 2.24 | CI92: 1.53 | CJ92: 2.28 | CK92: 3.57 | CL92: 3.74 | CM92: 2.42 | CN92: 3.51 | CO92: 0 | CP92: 0.14 | CQ92: 0 | CR92: 0.06
A93: 2 | B93: 14 | C93: 2 | D93: 3 | E93: G | F93: 021402 | G93: 214023 | H93: BIERUTÓW | I93: 9963 | J93: 9918 | K93: 9835 | L93: 9415 | M93: 97.89 | N93: 94.25 | O93: 91.46 | P93: 88.94 | Q93: 63.92 | R93: 65.36 | S93: 64.05 | T93: 62.17 | U93: 7.43 | V93: 4.2 | W93: 6.95 | X93: 1.08 | Y93: 11.82 | Z93: 10.4 | AA93: 12.31 | AB93: 19.44 | AC93: 34.11 | AD93: 32.65 | AE93: 34.4 | AF93: 32.07 | AG93: 7.87 | AH93: 4.38 | AI93: 7 | AJ93: 1.51 | AK93: 77.29 | AL93: 92.63 | AM93: 124.71 | AN93: 56.61 | AO93: 0.94 | AP93: 4.27 | AQ93: 10.16 | AR93: 3.7 | AS93: 60.53 | AT93: 74 | AU93: 118.17 | AV93: 83.45 | AW93: 49.31 | AX93: 64.61 | AY93: 124.15 | AZ93: 80.57 | BA93: 202.79 | BB93: 154.77 | BC93: 80.55 | BD93: 124.11 | BE93: 11.48 | BF93: 7.4 | BG93: 12.06 | BH93: 2.64 | BI93: 2745.83 | BJ93: 3049.12 | BK93: 3274.57 | BL93: 3751.02 | BM93: 319.17 | BN93: 195.9 | BO93: 355.38 | BP93: 65.08 | BQ93: 2525.48 | BR93: 2726.79 | BS93: 2910.76 | BT93: 3333.83 | BU93: 414.2 | BV93: 522.76 | BW93: 1048.39 | BX93: 1411.32 | BY93: 262.76 | BZ93: 335.29 | CA93: 828.84 | CB93: 1160.73 | CC93: 57.55 | CD93: 55.09 | CE93: 52.07 | CF93: 49.15 | CG93: 5.34 | CH93: 5.2 | CI93: 4.89 | CJ93: 6.34 | CK93: 8.24 | CL93: 8.62 | CM93: 8.09 | CN93: 11.2 | CO93: 0 | CP93: 0 | CQ93: 0 | CR93: 0
A94: 2 | B94: 14 | C94: 3 | D94: 2 | E94: G | F94: 021403 | G94: 214032 | H94: DOBROSZYCE | I94: 6723 | J94: 6863 | K94: 6954 | L94: 7136 | M94: 90.47 | N94: 68.77 | O94: 88.93 | P94: 73.81 | Q94: 56.83 | R94: 58.14 | S94: 54.54 | T94: 52.09 | U94: 9.84 | V94: 11.25 | W94: 10.87 | X94: 6.57 | Y94: 22.8 | Z94: 12.68 | AA94: 19.62 | AB94: 40.88 | AC94: 38.4 | AD94: 37.82 | AE94: 39.07 | AF94: 38.43 | AG94: 9.79 | AH94: 24.92 | AI94: 12.16 | AJ94: 5.98 | AK94: 76.52 | AL94: 439.62 | AM94: 107.17 | AN94: 65.12 | AO94: 3.33 | AP94: 28.54 | AQ94: 30.52 | AR94: 10.69 | AS94: 85.26 | AT94: 324.4 | AU94: 235.06 | AV94: 109.72 | AW94: 81.54 | AX94: 421.99 | AY94: 257.77 | AZ94: 110.05 | BA94: 122.64 | BB94: 23.7 | BC94: 38.79 | BD94: 90.87 | BE94: 15.72 | BF94: 54.59 | BG94: 19.46 | BH94: 11.48 | BI94: 2751.72 | BJ94: 3048.93 | BK94: 3217.06 | BL94: 3288.64 | BM94: 476.37 | BN94: 590.03 | BO94: 640.96 | BP94: 414.96 | BQ94: 1723.64 | BR94: 1394.5 | BS94: 1150.42 | BT94: 1485.43 | BU94: 1377.01 | BV94: 3146.61 | BW94: 3523.26 | BX94: 4628.53 | BY94: 1051.25 | BZ94: 2852.63 | CA94: 3307.56 | CB94: 4488.4 | CC94: 32.2 | CD94: 18.29 | CE94: 17.34 | CF94: 17.36 | CG94: 7.16 | CH94: 4.39 | CI94: 3.54 | CJ94: 2.4 | CK94: 11.4 | CL94: 9.62 | CM94: 5.69 | CN94: 4.76 | CO94: 0 | CP94: 0 | CQ94: 0 | CR94: 0
A95: 2 | B95: 14 | C95: 4 | D95: 2 | E95: G | F95: 021404 | G95: 214042 | H95: DZIADOWA KŁODA | I95: 4597 | J95: 4586 | K95: 4584 | L95: 4556 | M95: 97.95 | N95: 94.57 | O95: 94.45 | P95: 91.84 | Q95: 72.13 | R95: 71.97 | S95: 71.33 | T95: 64.18 | U95: 10.34 | V95: 7.52 | W95: 11.27 | X95: 8.53 | Y95: 7.39 | Z95: 6.2 | AA95: 12.99 | AB95: 28.14 | AC95: 38.03 | AD95: 33.69 | AE95: 36.34 | AF95: 35.8 | AG95: 10.21 | AH95: 7.29 | AI95: 10.69 | AJ95: 7.86 | AK95: 173.8 | AL95: 216.8 | AM95: 129.49 | AN95: 48.63 | AO95: 17.69 | AP95: 20.1 | AQ95: 22.4 | AR95: 11.68 | AS95: 242.25 | AT95: 328.12 | AU95: 227.82 | AV95: 80.24 | AW95: 306.86 | AX95: 447.39 | AY95: 256.58 | AZ95: 74.07 | BA95: 32.59 | BB95: 22.35 | BC95: 38.97 | BD95: 135.01 | BE95: 17.24 | BF95: 12.39 | BG95: 17.61 | BH95: 12.94 | BI95: 3812.71 | BJ95: 3978.86 | BK95: 4230.8 | BL95: 4469.82 | BM95: 546.74 | BN95: 415.6 | BO95: 668.61 | BP95: 594.28 | BQ95: 829.02 | BR95: 654.16 | BS95: 654.45 | BT95: 1411.19 | BU95: 1332.75 | BV95: 1689.96 | BW95: 2192.32 | BX95: 2626.55 | BY95: 1160.89 | BZ95: 1513.12 | CA95: 2015.61 | CB95: 1847.22 | CC95: 15.36 | CD95: 11.19 | CE95: 10.42 | CF95: 18.61 | CG95: 3.56 | CH95: 3.21 | CI95: 2.9 | CJ95: 11.05 | CK95: 5.73 | CL95: 5.37 | CM95: 4.78 | CN95: 18.8 | CO95: 0 | CP95: 0 | CQ95: 0 | CR95: 0
A96: 2 | B96: 14 | C96: 5 | D96: 3 | E96: G | F96: 021405 | G96: 214053 | H96: MIEDZYBÓRZ | I96: 5067 | J96: 5102 | K96: 5096 | L96: 5048 | M96: 98.8 | N96: 93.42 | O96: 85.43 | P96: 95 | Q96: 64.12 | R96: 63.41 | S96: 62.95 | T96: 56.98 | U96: 5.51 | V96: 3.28 | W96: 5.66 | X96: 8.55 | Y96: 15.49 | Z96: 6.07 | AA96: 18.3 | AB96: 5.27 | AC96: 39.65 | AD96: 40.02 | AE96: 40.98 | AF96: 37.98 | AG96: 6.06 | AH96: 4.12 | AI96: 5.12 | AJ96: 9.36 | AK96: 38.84 | AL96: 165.14 | AM96: 107.58 | AN96: 271.47 | AO96: 0 | AP96: 1.07 | AQ96: 8.31 | AR96: 12.89 | AS96: 46.94 | AT96: 91.33 | AU96: 94.36 | AV96: 261.26 | AW96: 35.93 | AX96: 81.57 | AY96: 93.4 | AZ96: 366.63 | BA96: 278.31 | BB96: 122.59 | BC96: 107.07 | BD96: 27.28 | BE96: 9.41 | BF96: 6.95 | BG96: 8.85 | BH96: 14.43 | BI96: 3151.34 | BJ96: 3244.65 | BK96: 3443.31 | BL96: 3747.07 | BM96: 270.86 | BN96: 168.1 | BO96: 309.79 | BP96: 562.41 | BQ96: 2167.89 | BR96: 1910.45 | BS96: 2324.72 | BT96: 2128.17 | BU96: 482.46 | BV96: 621.14 | BW96: 1275.43 | BX96: 1445.47 | BY96: 305.89 | BZ96: 260.98 | CA96: 1079.13 | CB96: 1226.82 | CC96: 43.58 | CD96: 34.88 | CE96: 36.31 | CF96: 30.74 | CG96: 4.59 | CH96: 7.38 | CI96: 3.47 | CJ96: 4.68 | CK96: 6.95 | CL96: 12.44 | CM96: 6.07 | CN96: 7.51 | CO96: 0 | CP96: 0 | CQ96: 0 | CR96: 0
A97: 2 | B97: 14 | C97: 6 | D97: 2 | E97: G | F97: 021406 | G97: 214062 | H97: OLEŚNICA | I97: 13689 | J97: 13965 | K97: 14314 | L97: 15661 | M97: 93.1 | N97: 91.21 | O97: 92.33 | P97: 98.2 | Q97: 52.49 | R97: 52.3 | S97: 52.37 | T97: 52.05 | U97: 10.45 | V97: 10.96 | W97: 10.54 | X97: 2.58 | Y97: 17.91 | Z97: 14.47 | AA97: 12.02 | AB97: 12.64 | AC97: 31.82 | AD97: 28.59 | AE97: 29.14 | AF97: 28.59 | AG97: 10.88 | AH97: 11.21 | AI97: 11.31 | AJ97: 3.12 | AK97: 91.42 | AL97: 136.79 | AM97: 154.23 | AN97: 31.31 | AO97: 7.89 | AP97: 12.39 | AQ97: 16.24 | AR97: 7.54 | AS97: 95.44 | AT97: 166.12 | AU97: 229.57 | AV97: 135.48 | AW97: 95.07 | AX97: 173.62 | AY97: 243.91 | AZ97: 139.24 | BA97: 105.19 | BB97: 57.6 | BC97: 41 | BD97: 71.82 | BE97: 18.19 | BF97: 19.41 | BG97: 18.96 | BH97: 5.29 | BI97: 2438.01 | BJ97: 2780.25 | BK97: 2996.33 | BL97: 2864.28 | BM97: 485.54 | BN97: 582.84 | BO97: 602.85 | BP97: 141.81 | BQ97: 2133.53 | BR97: 1958.44 | BS97: 1831.28 | BT97: 1709.53 | BU97: 936.03 | BV97: 1481.07 | BW97: 1782.83 | BX97: 1162.54 | BY97: 862.94 | BZ97: 1390.26 | CA97: 1705.47 | CB97: 1080.17 | CC97: 42.76 | CD97: 33.6 | CE97: 29.55 | CF97: 30.51 | CG97: 2.67 | CH97: 2.53 | CI97: 1.83 | CJ97: 3.17 | CK97: 4.38 | CL97: 4.36 | CM97: 3.02 | CN97: 5.16 | CO97: 0 | CP97: 0 | CQ97: 0 | CR97: 0
A98: 2 | B98: 14 | C98: 7 | D98: 3 | E98: G | F98: 021407 | G98: 214073 | H98: SYCÓW | I98: 16874 | J98: 16888 | K98: 16809 | L98: 16493 | M98: 90.75 | N98: 92.46 | O98: 92.42 | P98: 90.95 | Q98: 54.33 | R98: 56.62 | S98: 54.72 | T98: 54.93 | U98: 6.93 | V98: 5.27 | W98: 8.77 | X98: 3.22 | Y98: 12.22 | Z98: 10.65 | AA98: 11.63 | AB98: 18.52 | AC98: 37.2 | AD98: 34.79 | AE98: 35.87 | AF98: 34.23 | AG98: 7.78 | AH98: 6.19 | AI98: 11.34 | AJ98: 5.09 | AK98: 132.12 | AL98: 118.97 | AM98: 141.28 | AN98: 59.84 | AO98: 6.63 | AP98: 9.08 | AQ98: 15.61 | AR98: 7.37 | AS98: 91.28 | AT98: 117.06 | AU98: 161.75 | AV98: 105.22 | AW98: 85.02 | AX98: 125.94 | AY98: 182.64 | AZ98: 106.36 | BA98: 117.62 | BB98: 79.4 | BC98: 54.75 | BD98: 94.02 | BE98: 13.4 | BF98: 10.28 | BG98: 18.91 | BH98: 8.43 | BI98: 2297.18 | BJ98: 2624.86 | BK98: 2803.75 | BL98: 3127.98 | BM98: 292.95 | BN98: 244.36 | BO98: 449.35 | BP98: 183.1 | BQ98: 1226.74 | BR98: 1273.09 | BS98: 1427.81 | BT98: 1566.65 | BU98: 859.25 | BV98: 931.34 | BW98: 1332.33 | BX98: 1605.24 | BY98: 465.66 | BZ98: 658.96 | CA98: 1124.11 | CB98: 1332.4 | CC98: 26.33 | CD98: 25.39 | CE98: 25.75 | CF98: 25.02 | CG98: 8.98 | CH98: 5.76 | CI98: 4.05 | CJ98: 5.49 | CK98: 15.03 | CL98: 10.05 | CM98: 6.56 | CN98: 9.59 | CO98: 0 | CP98: 0 | CQ98: 0 | CR98: 0.15
A99: 2 | B99: 14 | C99: 8 | D99: 3 | E99: G | F99: 021408 | G99: 214083 | H99: TWARDOGÓRA | I99: 13008 | J99: 12897 | K99: 12833 | L99: 12585 | M99: 92.49 | N99: 93.8 | O99: 93.13 | P99: 90.96 | Q99: 47.11 | R99: 47.16 | S99: 48.83 | T99: 47.82 | U99: 10.51 | V99: 7.91 | W99: 15.34 | X99: 11 | Y99: 10.4 | Z99: 11.92 | AA99: 8.07 | AB99: 13.51 | AC99: 34.36 | AD99: 34.65 | AE99: 37.49 | AF99: 35.32 | AG99: 11.06 | AH99: 7.93 | AI99: 15.88 | AJ99: 11.45 | AK99: 179.41 | AL99: 116.53 | AM99: 305.65 | AN99: 150.74 | AO99: 3.72 | AP99: 5.46 | AQ99: 14.09 | AR99: 20.5 | AS99: 107.43 | AT99: 97.34 | AU99: 217.63 | AV99: 184.85 | AW99: 113.74 | AX99: 95.94 | AY99: 303.55 | AZ99: 215.08 | BA99: 87.92 | BB99: 104.23 | BC99: 32.94 | BD99: 46.49 | BE99: 17.33 | BF99: 12.39 | BG99: 24.41 | BH99: 18.85 | BI99: 2257.34 | BJ99: 2311.78 | BK99: 2655.18 | BL99: 2904.24 | BM99: 503.6 | BN99: 387.66 | BO99: 834.35 | BP99: 668.42 | BQ99: 1211.53 | BR99: 1202.49 | BS99: 913.22 | BT99: 1027.78 | BU99: 988.31 | BV99: 906 | BW99: 1522.29 | BX99: 2116.14 | BY99: 566.12 | BZ99: 585.96 | CA99: 1227.01 | CB99: 1815.41 | CC99: 23.38 | CD99: 23.01 | CE99: 15.64 | CF99: 15.39 | CG99: 8.89 | CH99: 6.68 | CI99: 5.3 | CJ99: 5.06 | CK99: 13.93 | CL99: 10.4 | CM99: 8.14 | CN99: 8.29 | CO99: 0 | CP99: 0 | CQ99: 0 | CR99: 0
A100: 2 | B100: 15 | C100: 1 | D100: 1 | E100: G | F100: 021501 | G100: 215011 | H100: OŁAWA | I100: 33029 | J100: 33172 | K100: 33051 | L100: 33158 | M100: 95.6 | N100: 91.42 | O100: 94.63 | P100: 89.79 | Q100: 41.72 | R100: 47.26 | S100: 47.59 | T100: 43.98 | U100: 12.77 | V100: 10.88 | W100: 14.51 | X100: 5.87 | Y100: 20.64 | Z100: 12.63 | AA100: 18.38 | AB100: 20.28 | AC100: 39.88 | AD100: 37.57 | AE100: 38.56 | AF100: 39.68 | AG100: 12.63 | AH100: 11.89 | AI100: 14.78 | AJ100: 5.64 | AK100: 76.6 | AL100: 157.33 | AM100: 104.86 | AN100: 71.98 | AO100: 7.24 | AP100: 16.15 | AQ100: 21.51 | AR100: 14.93 | AS100: 110.51 | AT100: 157.48 | AU100: 154.06 | AV100: 142.91 | AW100: 112.69 | AX100: 177.54 | AY100: 166.03 | AZ100: 150.87 | BA100: 88.74 | BB100: 56.33 | BC100: 60.23 | BD100: 66.28 | BE100: 17.96 | BF100: 19.26 | BG100: 22.37 | BH100: 8.8 | BI100: 1856.9 | BJ100: 2234.65 | BK100: 2497.86 | BL100: 2238.7 | BM100: 568.52 | BN100: 514.48 | BO100: 761.39 | BP100: 298.62 | BQ100: 1253.23 | BR100: 1398.56 | BS100: 1706.39 | BT100: 1700.74 | BU100: 1346.61 | BV100: 1294.01 | BW100: 1901.24 | BX100: 2065.4 | BY100: 1137.71 | BZ100: 1081.53 | CA100: 1677.5 | CB100: 1839.21 | CC100: 26.92 | CD100: 27.04 | CE100: 30.76 | CF100: 30 | CG100: 5.1 | CH100: 4.45 | CI100: 4.34 | CJ100: 5.7 | CK100: 7.26 | CL100: 7.16 | CM100: 6.54 | CN100: 8.86 | CO100: 0 | CP100: 0 | CQ100: 0.01 | CR100: 0
A101: 2 | B101: 15 | C101: 2 | D101: 2 | E101: G | F101: 021502 | G101: 215022 | H101: DOMANIÓW | I101: 5162 | J101: 5154 | K101: 5105 | L101: 4934 | M101: 94.5 | N101: 88.01 | O101: 88.16 | P101: 92.18 | Q101: 64.57 | R101: 62.74 | S101: 62.36 | T101: 60.25 | U101: 4.44 | V101: 8.6 | W101: 6.31 | X101: 6.02 | Y101: 11.95 | Z101: 16.32 | AA101: 9.76 | AB101: 16.29 | AC101: 35.81 | AD101: 33.42 | AE101: 33.08 | AF101: 29.92 | AG101: 4.8 | AH101: 7.58 | AI101: 5.58 | AJ101: 5.72 | AK101: 79.11 | AL101: 124.67 | AM101: 194.71 | AN101: 79.29 | AO101: 6.79 | AP101: 9.56 | AQ101: 17.64 | AR101: 18.51 | AS101: 72.42 | AT101: 135.51 | AU101: 181.13 | AV101: 149.89 | AW101: 65.91 | AX101: 141.93 | AY101: 233.21 | AZ101: 157.68 | BA101: 151.72 | BB101: 70.46 | BC101: 42.88 | BD101: 63.42 | BE101: 7.04 | BF101: 12.72 | BG101: 10.35 | BH101: 7.5 | BI101: 3233.92 | BJ101: 3588.73 | BK101: 3754.4 | BL101: 4487.42 | BM101: 222.29 | BN101: 491.68 | BO101: 379.62 | BP101: 448.58 | BQ101: 1986.72 | BR101: 1999.24 | BS101: 2018.43 | BT101: 2584.94 | BU101: 581.26 | BV101: 1631.53 | BW101: 1814.88 | BX101: 2361.19 | BY101: 428.06 | BZ101: 1447.21 | CA101: 1423.1 | CB101: 2148.38 | CC101: 37.49 | CD101: 30.76 | CE101: 29.56 | CF101: 31.99 | CG101: 3.9 | CH101: 3.49 | CI101: 6.2 | CJ101: 4.08 | CK101: 6.32 | CL101: 6.02 | CM101: 10.48 | CN101: 6.78 | CO101: 0 | CP101: 0 | CQ101: 0 | CR101: 0
A102: 2 | B102: 15 | C102: 3 | D102: 3 | E102: G | F102: 021503 | G102: 215033 | H102: JELCZ-LASKOWICE | I102: 23323 | J102: 23298 | K102: 23264 | L102: 23682 | M102: 95.4 | N102: 93.22 | O102: 93.1 | P102: 92.12 | Q102: 42.14 | R102: 45.65 | S102: 44.3 | T102: 40.35 | U102: 18.74 | V102: 16.61 | W102: 19.98 | X102: 21.73 | Y102: 20.32 | Z102: 17.95 | AA102: 22.01 | AB102: 21.27 | AC102: 29.69 | AD102: 29.7 | AE102: 33.26 | AF102: 34.6 | AG102: 19.6 | AH102: 15.91 | AI102: 19.56 | AJ102: 22.04 | AK102: 113.72 | AL102: 130.93 | AM102: 121.3 | AN102: 143.18 | AO102: 15.15 | AP102: 16.88 | AQ102: 18.31 | AR102: 20.86 | AS102: 168.84 | AT102: 188.74 | AU102: 180 | AV102: 209.4 | AW102: 176.62 | AX102: 199.23 | AY102: 187.12 | AZ102: 218.81 | BA102: 56.62 | BB102: 50.19 | BC102: 53.44 | BD102: 45.7 | BE102: 27.25 | BF102: 24.57 | BG102: 29.02 | BH102: 32.67 | BI102: 2119.45 | BJ102: 2497.09 | BK102: 2604.38 | BL102: 2572.77 | BM102: 942.81 | BN102: 908.65 | BO102: 1174.4 | BP102: 1385.64 | BQ102: 417.79 | BR102: 300.28 | BS102: 182.6 | BT102: 63.34 | BU102: 1958.91 | BV102: 2106.22 | BW102: 2601.58 | BX102: 3066.59 | BY102: 1841.09 | BZ102: 1988.27 | CA102: 2483.45 | CB102: 2950.55 | CC102: 7.92 | CD102: 5.12 | CE102: 2.89 | CF102: 0.92 | CG102: 2.41 | CH102: 2.09 | CI102: 1.89 | CJ102: 1.77 | CK102: 3.46 | CL102: 3.23 | CM102: 2.8 | CN102: 2.6 | CO102: 0 | CP102: 0 | CQ102: 0 | CR102: 0
A103: 2 | B103: 15 | C103: 4 | D103: 2 | E103: G | F103: 021504 | G103: 215042 | H103: OŁAWA | I103: 15209 | J103: 15207 | K103: 15250 | L103: 15591 | M103: 85.9 | N103: 92.56 | O103: 96.64 | P103: 96.97 | Q103: 42.02 | R103: 44.16 | S103: 39.99 | T103: 40.96 | U103: 20.48 | V103: 17.07 | W103: 24.54 | X103: 15.58 | Y103: 29.52 | Z103: 13.02 | AA103: 12.21 | AB103: 18.01 | AC103: 33.86 | AD103: 31.75 | AE103: 32.94 | AF103: 32.74 | AG103: 17.75 | AH103: 16.04 | AI103: 24.56 | AJ103: 17.38 | AK103: 110.76 | AL103: 202.25 | AM103: 267.06 | AN103: 100.91 | AO103: 3.71 | AP103: 10.49 | AQ103: 17.65 | AR103: 12.11 | AS103: 103.11 | AT103: 164.02 | AU103: 239.3 | AV103: 162.05 | AW103: 103.4 | AX103: 191.32 | AY103: 310.13 | AZ103: 183.05 | BA103: 96.72 | BB103: 52.27 | BC103: 32.25 | BD103: 54.63 | BE103: 27.4 | BF103: 23.57 | BG103: 33.48 | BH103: 24.14 | BI103: 2422.36 | BJ103: 2797.93 | BK103: 2907.34 | BL103: 2986.81 | BM103: 1180.83 | BN103: 1081.65 | BO103: 1784.19 | BP103: 1136.18 | BQ103: 1818.08 | BR103: 1463.26 | BS103: 1032.02 | BT103: 551.92 | BU103: 2158.87 | BV103: 1840.12 | BW103: 2753.28 | BX103: 2931.63 | BY103: 1985.36 | BZ103: 1504.8 | CA103: 2365.5 | CB103: 2474.1 | CC103: 27.09 | CD103: 21.38 | CE103: 13.72 | CF103: 7.34 | CG103: 3.34 | CH103: 5.57 | CI103: 5.62 | CJ103: 6.43 | CK103: 5.17 | CL103: 8.34 | CM103: 7.57 | CN103: 8.94 | CO103: 0 | CP103: 0 | CQ103: 0 | CR103: 0
A104: 2 | B104: 16 | C104: 1 | D104: 3 | E104: G | F104: 021601 | G104: 216013 | H104: CHOCIANÓW | I104: 12778 | J104: 12793 | K104: 12660 | L104: 12483 | M104: 97.81 | N104: 93.64 | O104: 89.93 | P104: 82.47 | Q104: 51.59 | R104: 57.04 | S104: 55.23 | T104: 52.02 | U104: 5.95 | V104: 1.22 | W104: 6.4 | X104: 6.26 | Y104: 5.47 | Z104: 8.85 | AA104: 9.15 | AB104: 22.37 | AC104: 41.25 | AD104: 40.43 | AE104: 43.7 | AF104: 44.98 | AG104: 6.48 | AH104: 3.7 | AI104: 7.58 | AJ104: 7.59 | AK104: 150.29 | AL104: 83.5 | AM104: 186.62 | AN104: 101.83 | AO104: 4.12 | AP104: 2.11 | AQ104: 9.02 | AR104: 10.51 | AS104: 147.71 | AT104: 91.61 | AU104: 160.65 | AV104: 125.17 | AW104: 177.25 | AX104: 88.56 | AY104: 178.6 | AZ104: 127.9 | BA104: 56.42 | BB104: 112.92 | BC104: 55.99 | BD104: 78.19 | BE104: 10.63 | BF104: 6.44 | BG104: 12.81 | BH104: 11.94 | BI104: 2117.05 | BJ104: 2463.63 | BK104: 2659.18 | BL104: 2559.25 | BM104: 244.15 | BN104: 52.78 | BO104: 307.95 | BP104: 307.73 | BQ104: 1219.44 | BR104: 1213.86 | BS104: 1209.69 | BT104: 1338.93 | BU104: 534.54 | BV104: 517.89 | BW104: 945.11 | BX104: 1844.49 | BY104: 396.16 | BZ104: 366.88 | CA104: 810.75 | CB104: 1700.22 | CC104: 29.07 | CD104: 26.32 | CE104: 22.59 | CF104: 22.44 | CG104: 4.41 | CH104: 4.1 | CI104: 2.99 | CJ104: 3.65 | CK104: 6.57 | CL104: 7.01 | CM104: 4.97 | CN104: 6.32 | CO104: 0.55 | CP104: 0.73 | CQ104: 0 | CR104: 0.01
A105: 2 | B105: 16 | C105: 2 | D105: 2 | E105: G | F105: 021602 | G105: 216022 | H105: GAWORZYCE | I105: 3997 | J105: 3982 | K105: 3957 | L105: 3776 | M105: 78.76 | N105: 79.41 | O105: 87.51 | P105: 73.51 | Q105: 63.46 | R105: 64.56 | S105: 57.44 | T105: 55.48 | U105: 11.96 | V105: 11.82 | W105: 23.45 | X105: 13.44 | Y105: 32.96 | Z105: 17.49 | AA105: 32.16 | AB105: 38.05 | AC105: 37.06 | AD105: 37.87 | AE105: 38.31 | AF105: 37.69 | AG105: 9.49 | AH105: 9.62 | AI105: 20.86 | AJ105: 10.16 | AK105: 89.93 | AL105: 201.96 | AM105: 103.95 | AN105: 93.05 | AO105: 4.69 | AP105: 20.17 | AQ105: 17.95 | AR105: 10.91 | AS105: 75.97 | AT105: 178.62 | AU105: 146.78 | AV105: 121.9 | AW105: 64.79 | AX105: 202.17 | AY105: 150.91 | AZ105: 123.67 | BA105: 154.35 | BB105: 49.46 | BC105: 66.26 | BD105: 80.86 | BE105: 18.47 | BF105: 19.44 | BG105: 34.93 | BH105: 19.01 | BI105: 2931.86 | BJ105: 3158.71 | BK105: 3546.14 | BL105: 3575.41 | BM105: 552.43 | BN105: 578.33 | BO105: 1447.91 | BP105: 865.94 | BQ105: 2069.28 | BR105: 2111.35 | BS105: 2052.07 | BT105: 2043.36 | BU105: 2226.67 | BV105: 2122.75 | BW105: 3579.59 | BX105: 4515.69 | BY105: 1295.86 | BZ105: 1848.77 | CA105: 3381.5 | CB105: 4238.03 | CC105: 35.27 | CD105: 34.27 | CE105: 29.09 | CF105: 23.31 | CG105: 16.82 | CH105: 5.06 | CI105: 3.24 | CJ105: 4.38 | CK105: 32.72 | CL105: 10.23 | CM105: 5.41 | CN105: 8.63 | CO105: 0 | CP105: 0 | CQ105: 0 | CR105: 0
A106: 2 | B106: 16 | C106: 3 | D106: 2 | E106: G | F106: 021603 | G106: 216032 | H106: GRĘBOCICE | I106: 5358 | J106: 5430 | K106: 5391 | L106: 5290 | M106: 97.21 | N106: 89.22 | O106: 93.17 | P106: 97.8 | Q106: 28.42 | R106: 30.68 | S106: 31.48 | T106: 25.17 | U106: 23.61 | V106: 19.36 | W106: 20.91 | X106: 29.06 | Y106: 29.71 | Z106: 19.02 | AA106: 35.61 | AB106: 24.32 | AC106: 32.87 | AD106: 33.05 | AE106: 34.33 | AF106: 34.65 | AG106: 23.04 | AH106: 17.35 | AI106: 19.53 | AJ106: 28.43 | AK106: 82.01 | AL106: 166.04 | AM106: 64.54 | AN106: 137.34 | AO106: 12.34 | AP106: 22.33 | AQ106: 7.53 | AR106: 16.44 | AS106: 139.13 | AT106: 231.04 | AU106: 117.16 | AV106: 155.97 | AW106: 139.32 | AX106: 232.15 | AY106: 117.21 | AZ106: 157.36 | BA106: 71.78 | BB106: 43.08 | BC106: 85.31 | BD106: 63.55 | BE106: 28.6 | BF106: 24.28 | BG106: 26.16 | BH106: 34.69 | BI106: 2706.62 | BJ106: 2886.46 | BK106: 3219.14 | BL106: 3203 | BM106: 2248.33 | BN106: 1821.39 | BO106: 2138.64 | BP106: 3696.88 | BQ106: 122.57 | BR106: 97.92 | BS106: 139.38 | BT106: 544.96 | BU106: 4299.25 | BV106: 4151.54 | BW106: 5259.59 | BX106: 4635.46 | BY106: 4283.98 | BZ106: 4136.48 | CA106: 5244.42 | CB106: 4563.29 | CC106: 1.25 | CD106: 0.93 | CE106: 1.27 | CF106: 4.19 | CG106: 0.19 | CH106: 0.17 | CI106: 0.16 | CJ106: 0.63 | CK106: 0.24 | CL106: 0.24 | CM106: 0.22 | CN106: 0.77 | CO106: 6.59 | CP106: 0 | CQ106: 0 | CR106: 0
A107: 2 | B107: 16 | C107: 4 | D107: 3 | E107: G | F107: 021604 | G107: 216043 | H107: POLKOWICE | I107: 27676 | J107: 27715 | K107: 27694 | L107: 26956 | M107: 92.5 | N107: 91.36 | O107: 89.72 | P107: 96.64 | Q107: 23.52 | R107: 27.46 | S107: 26.89 | T107: 25.93 | U107: 9.16 | V107: 7 | W107: 9.44 | X107: 18.06 | Y107: 23.65 | Z107: 17.91 | AA107: 22.31 | AB107: 12.24 | AC107: 34.19 | AD107: 35.31 | AE107: 34.54 | AF107: 35.83 | AG107: 8.65 | AH107: 6.69 | AI107: 8.82 | AJ107: 17.65 | AK107: 61.39 | AL107: 81.09 | AM107: 80.41 | AN107: 188.33 | AO107: 8.29 | AP107: 8.77 | AQ107: 9.68 | AR107: 4.43 | AS107: 90.44 | AT107: 94.67 | AU107: 91.35 | AV107: 216.36 | AW107: 90.37 | AX107: 92.92 | AY107: 89.21 | AZ107: 244.84 | BA107: 110.66 | BB107: 107.62 | BC107: 112.09 | BD107: 40.84 | BE107: 10.6 | BF107: 8.91 | BG107: 12.06 | BH107: 22.32 | BI107: 2184.25 | BJ107: 2513.45 | BK107: 2718.23 | BL107: 3212.91 | BM107: 850.9 | BN107: 640.78 | BO107: 954.66 | BP107: 2237.9 | BQ107: 3539.58 | BR107: 3933.44 | BS107: 4662.74 | BT107: 4443.52 | BU107: 2379.49 | BV107: 2337.37 | BW107: 2992.62 | BX107: 3816.02 | BY107: 2361.42 | BZ107: 1725.94 | CA107: 2344.46 | CB107: 3469.15 | CC107: 35.26 | CD107: 39.26 | CE107: 41.39 | CF107: 34.65 | CG107: 0.82 | CH107: 6.66 | CI107: 6.12 | CJ107: 5.1 | CK107: 1.04 | CL107: 8.96 | CM107: 8.26 | CN107: 6.4 | CO107: 0 | CP107: 0 | CQ107: 0 | CR107: 0
A108: 2 | B108: 16 | C108: 5 | D108: 3 | E108: G | F108: 021605 | G108: 216053 | H108: PRZEMKÓW | I108: 8329 | J108: 8308 | K108: 8245 | L108: 7892 | M108: 96.5 | N108: 89.18 | O108: 91.3 | P108: 95.11 | Q108: 61.04 | R108: 65.26 | S108: 64.91 | T108: 61.06 | U108: 9.52 | V108: 3.99 | W108: 8.42 | X108: 2.86 | Y108: 9.35 | Z108: 5.9 | AA108: 18.88 | AB108: 7.58 | AC108: 42.32 | AD108: 39.45 | AE108: 40.01 | AF108: 39.72 | AG108: 10.96 | AH108: 3.87 | AI108: 8.72 | AJ108: 4.51 | AK108: 140.92 | AL108: 267.9 | AM108: 84.17 | AN108: 100.51 | AO108: 8.17 | AP108: 22.3 | AQ108: 33.48 | AR108: 30.11 | AS108: 173.04 | AT108: 294.37 | AU108: 164.94 | AV108: 363.07 | AW108: 190.81 | AX108: 367.92 | AY108: 176.87 | AZ108: 497.26 | BA108: 52.41 | BB108: 27.18 | BC108: 56.54 | BD108: 20.11 | BE108: 16.5 | BF108: 7.05 | BG108: 14.67 | BH108: 6.59 | BI108: 2560.78 | BJ108: 2870.75 | BK108: 3195.71 | BL108: 3227.11 | BM108: 399.48 | BN108: 175.39 | BO108: 414.45 | BP108: 151.32 | BQ108: 1954.51 | BR108: 2252.6 | BS108: 3087.3 | BT108: 3030.64 | BU108: 841.9 | BV108: 1073.79 | BW108: 2049.22 | BX108: 2309.03 | BY108: 746.66 | BZ108: 973.65 | CA108: 1856.34 | CB108: 2094.21 | CC108: 44.96 | CD108: 45.67 | CE108: 57.26 | CF108: 54.54 | CG108: 4.41 | CH108: 3.75 | CI108: 4.91 | CJ108: 7.71 | CK108: 6.65 | CL108: 6.69 | CM108: 8.2 | CN108: 11.85 | CO108: 2.7 | CP108: 2.44 | CQ108: 2.19 | CR108: 2.99
A109: 2 | B109: 16 | C109: 6 | D109: 2 | E109: G | F109: 021606 | G109: 216062 | H109: RADWANICE | I109: 4810 | J109: 4854 | K109: 4935 | L109: 4952 | M109: 91.96 | N109: 84.73 | O109: 79.31 | P109: 65.31 | Q109: 38.93 | R109: 43.06 | S109: 42.52 | T109: 37.19 | U109: 30.14 | V109: 23.16 | W109: 24.46 | X109: 31.87 | Y109: 31.37 | Z109: 37.13 | AA109: 41.27 | AB109: 44.64 | AC109: 40.93 | AD109: 39.54 | AE109: 38.03 | AF109: 40.65 | AG109: 27.95 | AH109: 20.09 | AI109: 21.68 | AJ109: 20.85 | AK109: 121.77 | AL109: 90.73 | AM109: 95.21 | AN109: 154.67 | AO109: 15.98 | AP109: 6.73 | AQ109: 1.65 | AR109: 17.16 | AS109: 132.88 | AT109: 115.65 | AU109: 99.14 | AV109: 141.17 | AW109: 138.35 | AX109: 117.5 | AY109: 99.06 | AZ109: 146.12 | BA109: 72.28 | BB109: 85.11 | BC109: 100.95 | BD109: 68.44 | BE109: 38.9 | BF109: 32.53 | BG109: 36.51 | BH109: 41.65 | BI109: 2537.68 | BJ109: 2760.44 | BK109: 2932.4 | BL109: 2787.75 | BM109: 1964.84 | BN109: 1484.94 | BO109: 1687.06 | BP109: 2388.88 | BQ109: 1367.84 | BR109: 1011.68 | BS109: 815.72 | BT109: 391.36 | BU109: 3227.17 | BV109: 3762.98 | BW109: 3953.53 | BX109: 6512.53 | BY109: 2880.26 | BZ109: 3419.21 | CA109: 3626.99 | CB109: 6017.34 | CC109: 19.3 | CD109: 13.37 | CE109: 9.38 | CF109: 3.41 | CG109: 5.38 | CH109: 4.93 | CI109: 4.01 | CJ109: 4.41 | CK109: 7.53 | CL109: 7.98 | CM109: 6.75 | CN109: 8.82 | CO109: 0 | CP109: 0 | CQ109: 0 | CR109: 0.17
A110: 2 | B110: 17 | C110: 1 | D110: 2 | E110: G | F110: 021701 | G110: 217012 | H110: BORÓW | I110: 5294 | J110: 5257 | K110: 5195 | L110: 5075 | M110: 96.46 | N110: 89.9 | O110: 84.09 | P110: 85.2 | Q110: 60.45 | R110: 64.07 | S110: 62.43 | T110: 56.81 | U110: 9.04 | V110: 11.36 | W110: 9.58 | X110: 15.54 | Y110: 6.39 | Z110: 7.67 | AA110: 19.9 | AB110: 21.92 | AC110: 40.72 | AD110: 39.1 | AE110: 39.28 | AF110: 35.35 | AG110: 8.77 | AH110: 10.22 | AI110: 8.8 | AJ110: 13.28 | AK110: 204.64 | AL110: 306.94 | AM110: 126.85 | AN110: 138.84 | AO110: 9.16 | AP110: 19.03 | AQ110: 20.75 | AR110: 22.69 | AS110: 211.51 | AT110: 330.81 | AU110: 200.68 | AV110: 206.14 | AW110: 252.93 | AX110: 398.92 | AY110: 209.83 | AZ110: 212.33 | BA110: 39.54 | BB110: 25.07 | BC110: 47.66 | BD110: 47.1 | BE110: 15.91 | BF110: 17.37 | BG110: 16.72 | BH110: 24.52 | BI110: 2539.12 | BJ110: 2878.37 | BK110: 3018.13 | BL110: 3689.59 | BM110: 379.73 | BN110: 510.21 | BO110: 463.17 | BP110: 1009.4 | BQ110: 868.49 | BR110: 777.05 | BS110: 687.62 | BT110: 614.11 | BU110: 756.47 | BV110: 1416.28 | BW110: 2377.72 | BX110: 3358.63 | BY110: 659.61 | BZ110: 1318.74 | CA110: 2279.01 | CB110: 3268.86 | CC110: 19.95 | CD110: 15.55 | CE110: 11.96 | CF110: 8.06 | CG110: 2.8 | CH110: 2.32 | CI110: 1.86 | CJ110: 1.57 | CK110: 4.25 | CL110: 4.05 | CM110: 3.42 | CN110: 2.81 | CO110: 0 | CP110: 0 | CQ110: 0 | CR110: 0
A111: 2 | B111: 17 | C111: 2 | D111: 2 | E111: G | F111: 021702 | G111: 217022 | H111: KONDRATOWICE | I111: 4292 | J111: 4259 | K111: 4169 | L111: 4013 | M111: 97.92 | N111: 94.62 | O111: 95.57 | P111: 97.64 | Q111: 59.98 | R111: 61.31 | S111: 61.35 | T111: 53.16 | U111: 0.44 | V111: 1.46 | W111: 6.8 | X111: 11.65 | Y111: 2.64 | Z111: 2.89 | AA111: 3.15 | AB111: 7.76 | AC111: 30.89 | AD111: 32.97 | AE111: 33.82 | AF111: 30.7 | AG111: 1.14 | AH111: 3.55 | AI111: 7.18 | AJ111: 12.13 | AK111: 95.38 | AL111: 243.11 | AM111: 377.39 | AN111: 189.44 | AO111: 0 | AP111: 3.24 | AQ111: 9.76 | AR111: 11.48 | AS111: 100 | AT111: 192.16 | AU111: 304.72 | AV111: 230.33 | AW111: 100 | AX111: 216.6 | AY111: 437.18 | AZ111: 258.35 | BA111: 100 | BB111: 46.17 | BC111: 22.87 | BD111: 38.71 | BE111: 6.77 | BF111: 6.5 | BG111: 11.51 | BH111: 19.79 | BI111: 2887.98 | BJ111: 3061.94 | BK111: 3485.86 | BL111: 4110.82 | BM111: 21.27 | BN111: 72.71 | BO111: 386.39 | BP111: 901.03 | BQ111: 884.5 | BR111: 851.48 | BS111: 792.53 | BT111: 669.5 | BU111: 137.81 | BV111: 356.49 | BW111: 864.19 | BX111: 1607.58 | BY111: 129.77 | BZ111: 317.61 | CA111: 752.77 | CB111: 1484.09 | CC111: 17.99 | CD111: 16.13 | CE111: 13.33 | CF111: 8.45 | CG111: 0.74 | CH111: 1.21 | CI111: 2.25 | CJ111: 1.92 | CK111: 1.23 | CL111: 2.09 | CM111: 3.82 | CN111: 3.08 | CO111: 0.11 | CP111: 0 | CQ111: 0.29 | CR111: 0.76
A112: 2 | B112: 17 | C112: 3 | D112: 2 | E112: G | F112: 021703 | G112: 217032 | H112: PRZEWORNO | I112: 4786 | J112: 4734 | K112: 4676 | L112: 4549 | M112: 95.77 | N112: 95.9 | O112: 85.15 | P112: 97.55 | Q112: 70.33 | R112: 71.24 | S112: 69.37 | T112: 63.14 | U112: 6.29 | V112: 5.66 | W112: 11.85 | X112: 9.32 | Y112: 6.62 | Z112: 6.56 | AA112: 3.47 | AB112: 10.87 | AC112: 37.25 | AD112: 36.98 | AE112: 38.58 | AF112: 32.78 | AG112: 8.38 | AH112: 5.7 | AI112: 11.24 | AJ112: 9.94 | AK112: 161.01 | AL112: 149.91 | AM112: 924.28 | AN112: 107 | AO112: 4.11 | AP112: 4.34 | AQ112: 21.33 | AR112: 21.26 | AS112: 144.61 | AT112: 148.36 | AU112: 593.25 | AV112: 267.16 | AW112: 164.52 | AX112: 168.29 | AY112: 975.15 | AZ112: 297.41 | BA112: 60.78 | BB112: 59.42 | BC112: 10.25 | BD112: 33.62 | BE112: 13.46 | BF112: 9.52 | BG112: 20.86 | BH112: 15.97 | BI112: 2811.2 | BJ112: 3127.53 | BK112: 3431.52 | BL112: 3866.77 | BM112: 251.4 | BN112: 248.43 | BO112: 586.02 | BP112: 570.69 | BQ112: 687.89 | BR112: 575.58 | BS112: 461.38 | BT112: 351.72 | BU112: 555.7 | BV112: 609.35 | BW112: 1649.69 | BX112: 2136.5 | BY112: 437.14 | BZ112: 489.49 | CA112: 1528.34 | CB112: 2013.96 | CC112: 16.48 | CD112: 12.57 | CE112: 7.94 | CF112: 5.6 | CG112: 3.34 | CH112: 2.93 | CI112: 2.25 | CJ112: 2.31 | CK112: 5.36 | CL112: 4.9 | CM112: 4.18 | CN112: 3.78 | CO112: 0 | CP112: 0 | CQ112: 0 | CR112: 0
A113: 2 | B113: 17 | C113: 4 | D113: 3 | E113: G | F113: 021704 | G113: 217043 | H113: STRZELIN | I113: 22167 | J113: 22121 | K113: 22008 | L113: 21503 | M113: 94.71 | N113: 94.34 | O113: 96.12 | P113: 95.96 | Q113: 45.98 | R113: 48.5 | S113: 48.08 | T113: 48.06 | U113: 6.54 | V113: 7.83 | W113: 10.34 | X113: 4.07 | Y113: 14.94 | Z113: 12.93 | AA113: 12.96 | AB113: 15.77 | AC113: 36.01 | AD113: 35.19 | AE113: 34.95 | AF113: 32.85 | AG113: 7.37 | AH113: 9.03 | AI113: 11.94 | AJ113: 5.1 | AK113: 73.84 | AL113: 101.03 | AM113: 107.62 | AN113: 46.11 | AO113: 0.94 | AP113: 4.32 | AQ113: 6.58 | AR113: 0.38 | AS113: 59.34 | AT113: 78.94 | AU113: 107.84 | AV113: 64.93 | AW113: 45.66 | AX113: 71.27 | AY113: 110.26 | AZ113: 56.25 | BA113: 219.02 | BB113: 140.32 | BC113: 90.69 | BD113: 177.77 | BE113: 10.8 | BF113: 13.92 | BG113: 18.03 | BH113: 7.86 | BI113: 2183.01 | BJ113: 2496.09 | BK113: 2645.63 | BL113: 2957.05 | BM113: 310.57 | BN113: 403.05 | BO113: 568.89 | BP113: 250.2 | BQ113: 2670.28 | BR113: 2799.36 | BS113: 2879.01 | BT113: 3167.91 | BU113: 618.23 | BV113: 759.23 | BW113: 1036.49 | BX113: 894.79 | BY113: 355.98 | BZ113: 502.23 | CA113: 810.15 | CB113: 621.61 | CC113: 53.27 | CD113: 51.31 | CE113: 50.3 | CF113: 49.4 | CG113: 6.52 | CH113: 5.77 | CI113: 4.67 | CJ113: 6.46 | CK113: 9.68 | CL113: 8.96 | CM113: 6.92 | CN113: 10.02 | CO113: 0 | CP113: 0 | CQ113: 0 | CR113: 0
A114: 2 | B114: 17 | C114: 5 | D114: 3 | E114: G | F114: 021705 | G114: 217053 | H114: WIĄZÓW | I114: 7174 | J114: 7085 | K114: 7000 | L114: 6985 | M114: 93.71 | N114: 93.61 | O114: 86.9 | P114: 98.95 | Q114: 61.8 | R114: 62.25 | S114: 61.17 | T114: 58.61 | U114: 10.47 | V114: 10.71 | W114: 9.89 | X114: 14.5 | Y114: 15.1 | Z114: 6.44 | AA114: 16.81 | AB114: 10.49 | AC114: 40.35 | AD114: 39.93 | AE114: 39.86 | AF114: 38.07 | AG114: 11.23 | AH114: 11.84 | AI114: 10.3 | AJ114: 14.95 | AK114: 107.9 | AL114: 285.43 | AM114: 137.09 | AN114: 155.35 | AO114: 8.16 | AP114: 16.26 | AQ114: 17.87 | AR114: 20.92 | AS114: 114.51 | AT114: 307.7 | AU114: 199.57 | AV114: 278.89 | AW114: 118.77 | AX114: 382.7 | AY114: 212.9 | AZ114: 311.08 | BA114: 84.2 | BB114: 26.13 | BC114: 46.97 | BD114: 32.15 | BE114: 16.53 | BF114: 19.3 | BG114: 17.57 | BH114: 22.79 | BI114: 3019.6 | BJ114: 3304.63 | BK114: 3514.82 | BL114: 3987.39 | BM114: 511.42 | BN114: 568.54 | BO114: 568.06 | BP114: 986.67 | BQ114: 952.34 | BR114: 846.51 | BS114: 716.71 | BT114: 595.62 | BU114: 1152.39 | BV114: 1366.16 | BW114: 2367.91 | BX114: 2242.71 | BY114: 924.19 | BZ114: 1248.36 | CA114: 2227.83 | CB114: 2120.08 | CC114: 18.26 | CD114: 14.93 | CE114: 10.84 | CF114: 8.66 | CG114: 4.89 | CH114: 2.45 | CI114: 2.29 | CJ114: 2.24 | CK114: 7.65 | CL114: 3.97 | CM114: 3.89 | CN114: 3.45 | CO114: 0 | CP114: 0 | CQ114: 0 | CR114: 0
A115: 2 | B115: 18 | C115: 1 | D115: 2 | E115: G | F115: 021801 | G115: 218012 | H115: KOSTOMŁOTY | I115: 7142 | J115: 7110 | K115: 7062 | L115: 7205 | M115: 90.17 | N115: 91.05 | O115: 96.23 | P115: 92.75 | Q115: 59.78 | R115: 61.94 | S115: 60.94 | T115: 59.67 | U115: 15.34 | V115: 15.96 | W115: 17.54 | X115: 11.27 | Y115: 21.73 | Z115: 14.08 | AA115: 15.18 | AB115: 21.02 | AC115: 34.52 | AD115: 31.61 | AE115: 32.48 | AF115: 33.66 | AG115: 15.12 | AH115: 15.07 | AI115: 17.73 | AJ115: 11.02 | AK115: 111.69 | AL115: 187.19 | AM115: 145.38 | AN115: 80.84 | AO115: 12.79 | AP115: 20.06 | AQ115: 24.11 | AR115: 12.65 | AS115: 154.27 | AT115: 239.09 | AU115: 249.86 | AV115: 165.09 | AW115: 160.39 | AX115: 260.68 | AY115: 269.75 | AZ115: 170 | BA115: 62.35 | BB115: 38.36 | BC115: 37.07 | BD115: 58.82 | BE115: 23.97 | BF115: 26.93 | BG115: 28.61 | BH115: 20.69 | BI115: 2720.04 | BJ115: 3281.41 | BK115: 3546.87 | BL115: 3743.14 | BM115: 698.21 | BN115: 845.53 | BO115: 1020.71 | BP115: 707.15 | BQ115: 792.17 | BR115: 682.48 | BS115: 573.1 | BT115: 449.97 | BU115: 1835.42 | BV115: 2015.54 | BW115: 2431.45 | BX115: 2629.34 | BY115: 1714.94 | BZ115: 1902.29 | CA115: 2317.43 | CB115: 2517.58 | CC115: 15.7 | CD115: 11.73 | CE115: 9.47 | CF115: 6.65 | CG115: 2.93 | CH115: 2.32 | CI115: 2.14 | CJ115: 1.94 | CK115: 4.99 | CL115: 4.12 | CM115: 3.48 | CN115: 3.35 | CO115: 0 | CP115: 0 | CQ115: 0 | CR115: 0
